Workbook

Sheet HOME
A1: CHLAPCI
B9: DISCIPLÍNY

Sheet TVOJE
B1: 6.A | E1: 6.B | N1: 8.A | Q1: 8.B | T1: 9.A
D34: ='Z MÍSTA'!E110 -> 209 | F34: ='Z MÍSTA'!G110 -> Jilemnice 07.06.22 | G34: ='Z MÍSTA'!H110 -> 794.2 | I34: ='Z MÍSTA'!J110 -> 0 | J34: ='Z MÍSTA'!K110 -> 0 | K34: ='Z MÍSTA'!L110 -> 0

Sheet TVOJE2
I1: ,
D3: výkon | F3: místo | G3: body | I3: 20 - 21 | J3: 19 - 20 | K3: 18 - 19
C4: 60 m
C6: 300 m
C8: 1000 m
C10: dálka
C12: výška
C14: míček
C16: koule
C18: oštěp
C20: člunek
C22: lehsed
C24: odbíjení
C26: plavání
C28: shyby
C30: šplh
C32: švihadlo
C34: z místa

Sheet FOTO
B2: PRO ZOBRAZENÍ FOTOGRAFIÍ JE TŘEBA PŘÍSTUP K INTERNETU
E5: DALŠÍ SPORTOVNÍ AKCE
B7: 2020 | C7: VYHLÁŠENÍ SE NEUSKUTEČNILO | E7: 10.12.2019 OF FLORBAL STARŠÍ ŽÁCI | F7: 13.11.2019 OF PLAVÁNÍ JILEMNICE
E8: 19.12.2019 OF FLORBAL ML.ŽÁCI JIL. | F8: 25.9.2019 JILEMNICKÉ ŠTAFETY
E9: 24. 9.2019 OF ČTYŘBOJ TURNOV
B11: 2019 | C11: VYHLÁŠENÍ SPORTOVCE ŠKOLY 13. ROČNÍK | E11: 6. 12. 2018 OF FLORBAL 6.-7. ROČ | F11: 14.11.2018 OF PLAVÁNÍ JILEMNICE
E12: 26. 9.2018 OF ČTYŘBOJ TURNOV
B13: 2018 | C13: VYHLÁŠENÍ SPORTOVCE ŠKOLY 12. ROČNÍK
B15: 2017 | C15: VYHLÁŠENÍ SPORTOVCE ŠKOLY 11. ROČNÍK
B17: 2016 | C17: VYHLÁŠENÍ SPORTOVCE ŠKOLY 10. ROČNÍK | E17: 11. 5. 2016 POHÁR ROZHLASU TURNOV
C20: průběžně budu přídávat další

Sheet CH15
C1: T O P 1 5 | S1: stav k | U1: =TODAY() -> 2022-06-27
F3: 60 m | G3: 300m | H3: 1000m | I3: dálka | J3: výška | K3: míček | L3: koule | M3: člunek | N3: lehsed | O3: odbíjení | P3: plavání | Q3: šplh | R3: švihadlo | S3: z místa | T3: REPRE | U3: CELKEM
A5: 1. | B5: =B35 -> EXNER | C5: Tomáš | D5: 6.A | F5: 796.0272713 | G5: 577.7079054 | H5: 467.3692038 | I5: 717.288 | J5: 616.92 | K5: 200 | L5: 532.2222222 | M5: 697.0110275 | N5: 525 | O5: 120 | P5: 402.8594033 | Q5: 0 | R5: 400 | S5: 877.8 | T5: 0 | U5: 6930.205033
A6: 2. | B6: =B36 -> JANATA | C6: Denis | D6: 6.A | F6: 739.8153396 | G6: 572.2171302 | H6: 504.9564792 | I6: 601.692 | J6: 571.16 | K6: 300 | L6: 413.8888889 | M6: 601.4285254 | N6: 437.5 | O6: 144 | P6: 0 | Q6: 0 | R6: 406.25 | S6: 566.2 | T6: 0 | U6: 5859.108363
A7: 3. | B7: =B37 -> JINDŘIŠEK | C7: Alex Jiří | D7: 6.A | F7: 755.9429337 | G7: 567.5040087 | H7: 486.6566538 | I7: 570.57 | J7: 513.96 | K7: 312.5 | L7: 591.6666667 | M7: 0 | N7: 462.5 | O7: 56 | P7: 0 | Q7: 0 | R7: 0 | S7: 380 | T7: 0 | U7: 4697.300263
A8: 4. | B8: =B38 -> MARŠÁLEK | C8: Ondřej | D8: 6.A | F8: 735.4442612 | G8: 460.3575973 | H8: 517.9925278 | I8: 530.556 | J8: 571.16 | K8: 281.25 | L8: 515 | M8: 673.2574349 | N8: 450 | O8: 64 | P8: 0 | Q8: 0 | R8: 218.75 | S8: 642.2 | T8: 0 | U8: 5659.967821
A9: 5. | B9: =B39 -> MLATEČEK | C9: Patrik | D9: 6.A | F9: 665.5779902 | G9: 416.1890542 | H9: 491.4076741 | I9: 499.434 | J9: 502.52 | K9: 331.25 | L9: 471.1111111 | M9: 532.1107918 | N9: 375 | O9: 64 | P9: 0 | Q9: 0 | R9: 218.75 | S9: 494 | T9: 0 | U9: 5061.350621
A10: 6. | B10: =B40 -> SCHOLZ | C10: Matyáš | D10: 6.A | F10: 707.6107236 | G10: 537.4665074 | H10: 440.8427291 | I10: 575.016 | J10: 565.44 | K10: 325 | L10: 554.4444444 | M10: 0 | N10: 412.5 | O10: 144 | P10: 0 | Q10: 225.8795325 | R10: 293.75 | S10: 722 | T10: 0 | U10: 5503.949937
A11: 7. | B11: =B41 -> TOMÁŠ | C11: Jakub | D11: 6.A | F11: 722.690997 | G11: 642.1466419 | H11: 685.7715849 | I11: 622.44 | J11: 616.92 | K11: 306.25 | L11: 491.6666667 | M11: 739.972927 | N11: 562.5 | O11: 104 | P11: 0 | Q11: 236.4149487 | R11: 662.5 | S11: 653.6 | T11: 0 | U11: 7046.873766
A12: 8. | B12: =B42 -> VÁCLAVÍK | C12: Jan | D12: 6.A | F12: 727.4869732 | G12: 643.9919536 | H12: 648.2252539 | I12: 576.498 | J12: 599.76 | K12: 312.5 | L12: 456.6666667 | M12: 734.3660791 | N12: 425 | O12: 88 | P12: 0 | Q12: 229.995921 | R12: 631.25 | S12: 691.6 | T12: 0 | U12: 6765.340847
A13: 9. | B13: =B43 -> VEČEŘA | C13: David | D13: 6.A | F13: 627.4254685 | G13: 407.9419398 | H13: 552.474462 | I13: 499.434 | J13: 513.96 | K13: 287.5 | L13: 466.6666667 | M13: 597.4113857 | N13: 437.5 | O13: 56 | P13: 0 | Q13: 0 | R13: 231.25 | S13: 566.2 | T13: 0 | U13: 5243.763923
A14: 10. | B14: =B44 -> VYBÍRAL | C14: Radim | D14: 6.A | F14: 807.4243764 | G14: 758.9565742 | H14: 782.4494297 | I14: 680.238 | J14: 662.68 | K14: 375 | L14: 516.1111111 | M14: 751.3008251 | N14: 687.5 | O14: 280 | P14: 0 | Q14: 542.0782867 | R14: 718.75 | S14: 794.2 | T14: 0 | U14: 8356.688603
A15: 11. | B15: =B45 -> BERISHA | C15: David | D15: 6.B | F15: 573.0345768 | G15: 0 | H15: 275.511637 | I15: 392.73 | J15: 388.12 | K15: 218.75 | L15: 286.1111111 | M15: 689.0223205 | N15: 0 | O15: 80 | P15: 0 | Q15: 0 | R15: 0 | S15: 608 | T15: 0 | U15: 3511.279645
A16: 12. | B16: =B46 -> EFENBERK | C16: Šimon | D16: 6.B | F16: 746.167838 | G16: 526.745587 | H16: 515.1147793 | I16: 530.556 | J16: 565.44 | K16: 262.5 | L16: 533.8888889 | M16: 684.6151695 | N16: 500 | O16: 80 | P16: 459.4836601 | Q16: 228.9976287 | R16: 525 | S16: 653.6 | T16: 0 | U16: 6812.109552
A17: 13. | B17: =B47 -> FEJKL | C17: Antonín | D17: 6.B | F17: 768.7687942 | G17: 744.1615219 | H17: 716.3365869 | I17: 666.9 | J17: 616.92 | K17: 500 | L17: 520.5555556 | M17: 803.2973807 | N17: 612.5 | O17: 280 | P17: 401.9320679 | Q17: 306.9141833 | R17: 825 | S17: 779 | T17: 125 | U17: 8667.28609
A18: 14. | B18: =B48 -> GOTTSTEIN | C18: Matouš | D18: 6.B | F18: 819.2100192 | G18: 811.516458 | H18: 849.6285826 | I18: 729.144 | J18: 685.56 | K18: 450 | L18: 525 | M18: 801.2730516 | N18: 637.5 | O18: 160 | P18: 397.7705926 | Q18: 437.7736562 | R18: 800 | S18: 813.2 | T18: 250 | U18: 9167.57636
A19: 15. | B19: =B49 -> HÁK | C19: Šimon | D19: 6.B | F19: 0 | G19: 0 | H19: 0 | I19: 0 | J19: 0 | K19: 0 | L19: 0 | M19: 0 | N19: 0 | O19: 0 | P19: 0 | Q19: 0 | R19: 0 | S19: 0 | T19: 0 | U19: 0
F34: 60 m | G34: 300m | H34: 1000m | I34: dálka | J34: výška | K34: míček | L34: koule | M34: člunek | N34: lehsed | O34: odbíjení | P34: plavání | Q34: šplh | R34: švihadlo | S34: z místa | T34: REPRE | U34: CELKEM
B35: ='60'!B101 -> EXNER | C35: ='60'!C101 -> Tomáš | D35: ='60'!D101 -> 6.A | F35: ='60'!H101 -> 796.0272713 | G35: ='300'!H101 -> 577.7079054 | H35: ='1000'!H101 -> 467.3692038 | I35: =DÁLKA!H101 -> 717.288 | J35: =VÝŠKA!H101 -> 616.92 | K35: =MÍČEK!H101 -> 200 | L35: =KOULE!H101 -> 532.2222222 | M35: =ČLUNEK!H101 -> 697.0110275 | N35: =LEHSED!H101 -> 525 | O35: =ODBÍJENÍ!H101 -> 120 | P35: =PLAVÁNÍ!H101 -> 402.8594033 | Q35: =ŠPLH!H101 -> 0 | R35: =ŠVIHADLO!H101 -> 400 | S35: ='Z MÍSTA'!H101 -> 877.8 | T35: =REPRE!E4 -> 0 | U35: =SUM(F35:T35) -> 6930.205033 | W35: =FREQUENCY(F35:S35,0) -> 1
B36: ='60'!B102 -> JANATA | C36: ='60'!C102 -> Denis | D36: ='60'!D102 -> 6.A | F36: ='60'!H102 -> 739.8153396 | G36: ='300'!H102 -> 572.2171302 | H36: ='1000'!H102 -> 504.9564792 | I36: =DÁLKA!H102 -> 601.692 | J36: =VÝŠKA!H102 -> 571.16 | K36: =MÍČEK!H102 -> 300 | L36: =KOULE!H102 -> 413.8888889 | M36: =ČLUNEK!H102 -> 601.4285254 | N36: =LEHSED!H102 -> 437.5 | O36: =ODBÍJENÍ!H102 -> 144 | P36: =PLAVÁNÍ!H102 -> 0 | Q36: =ŠPLH!H102 -> 0 | R36: =ŠVIHADLO!H102 -> 406.25 | S36: ='Z MÍSTA'!H102 -> 566.2 | T36: =REPRE!E5 -> 0 | U36: 5859.108363 | W36: 2
B37: ='60'!B103 -> JINDŘIŠEK | C37: ='60'!C103 -> Alex Jiří | D37: ='60'!D103 -> 6.A | F37: ='60'!H103 -> 755.9429337 | G37: ='300'!H103 -> 567.5040087 | H37: ='1000'!H103 -> 486.6566538 | I37: =DÁLKA!H103 -> 570.57 | J37: =VÝŠKA!H103 -> 513.96 | K37: =MÍČEK!H103 -> 312.5 | L37: =KOULE!H103 -> 591.6666667 | M37: =ČLUNEK!H103 -> 0 | N37: =LEHSED!H103 -> 462.5 | O37: =ODBÍJENÍ!H103 -> 56 | P37: =PLAVÁNÍ!H103 -> 0 | Q37: =ŠPLH!H103 -> 0 | R37: =ŠVIHADLO!H103 -> 0 | S37: ='Z MÍSTA'!H103 -> 380 | T37: =REPRE!E6 -> 0 | U37: 4697.300263 | W37: 4
B38: ='60'!B104 -> MARŠÁLEK | C38: ='60'!C104 -> Ondřej | D38: ='60'!D104 -> 6.A | F38: ='60'!H104 -> 735.4442612 | G38: ='300'!H104 -> 460.3575973 | H38: ='1000'!H104 -> 517.9925278 | I38: =DÁLKA!H104 -> 530.556 | J38: =VÝŠKA!H104 -> 571.16 | K38: =MÍČEK!H104 -> 281.25 | L38: =KOULE!H104 -> 515 | M38: =ČLUNEK!H104 -> 673.2574349 | N38: =LEHSED!H104 -> 450 | O38: =ODBÍJENÍ!H104 -> 64 | P38: =PLAVÁNÍ!H104 -> 0 | Q38: =ŠPLH!H104 -> 0 | R38: =ŠVIHADLO!H104 -> 218.75 | S38: ='Z MÍSTA'!H104 -> 642.2 | T38: =REPRE!E7 -> 0 | U38: 5659.967821 | W38: 2
B39: ='60'!B105 -> MLATEČEK | C39: ='60'!C105 -> Patrik | D39: ='60'!D105 -> 6.A | F39: ='60'!H105 -> 665.5779902 | G39: ='300'!H105 -> 416.1890542 | H39: ='1000'!H105 -> 491.4076741 | I39: =DÁLKA!H105 -> 499.434 | J39: =VÝŠKA!H105 -> 502.52 | K39: =MÍČEK!H105 -> 331.25 | L39: =KOULE!H105 -> 471.1111111 | M39: =ČLUNEK!H105 -> 532.1107918 | N39: =LEHSED!H105 -> 375 | O39: =ODBÍJENÍ!H105 -> 64 | P39: =PLAVÁNÍ!H105 -> 0 | Q39: =ŠPLH!H105 -> 0 | R39: =ŠVIHADLO!H105 -> 218.75 | S39: ='Z MÍSTA'!H105 -> 494 | T39: =REPRE!E8 -> 0 | U39: 5061.350621 | W39: 2
B40: ='60'!B106 -> SCHOLZ | C40: ='60'!C106 -> Matyáš | D40: ='60'!D106 -> 6.A | F40: ='60'!H106 -> 707.6107236 | G40: ='300'!H106 -> 537.4665074 | H40: ='1000'!H106 -> 440.8427291 | I40: =DÁLKA!H106 -> 575.016 | J40: =VÝŠKA!H106 -> 565.44 | K40: =MÍČEK!H106 -> 325 | L40: =KOULE!H106 -> 554.4444444 | M40: =ČLUNEK!H106 -> 0 | N40: =LEHSED!H106 -> 412.5 | O40: =ODBÍJENÍ!H106 -> 144 | P40: =PLAVÁNÍ!H106 -> 0 | Q40: =ŠPLH!H106 -> 225.8795325 | R40: =ŠVIHADLO!H106 -> 293.75 | S40: ='Z MÍSTA'!H106 -> 722 | T40: =REPRE!E9 -> 0 | U40: 5503.949937 | W40: 2
B41: ='60'!B107 -> TOMÁŠ | C41: ='60'!C107 -> Jakub | D41: ='60'!D107 -> 6.A | F41: ='60'!H107 -> 722.690997 | G41: ='300'!H107 -> 642.1466419 | H41: ='1000'!H107 -> 685.7715849 | I41: =DÁLKA!H107 -> 622.44 | J41: =VÝŠKA!H107 -> 616.92 | K41: =MÍČEK!H107 -> 306.25 | L41: =KOULE!H107 -> 491.6666667 | M41: =ČLUNEK!H107 -> 739.972927 | N41: =LEHSED!H107 -> 562.5 | O41: =ODBÍJENÍ!H107 -> 104 | P41: =PLAVÁNÍ!H107 -> 0 | Q41: =ŠPLH!H107 -> 236.4149487 | R41: =ŠVIHADLO!H107 -> 662.5 | S41: ='Z MÍSTA'!H107 -> 653.6 | T41: =REPRE!E10 -> 0 | U41: 7046.873766 | W41: 1
B42: ='60'!B108 -> VÁCLAVÍK | C42: ='60'!C108 -> Jan | D42: ='60'!D108 -> 6.A | F42: ='60'!H108 -> 727.4869732 | G42: ='300'!H108 -> 643.9919536 | H42: ='1000'!H108 -> 648.2252539 | I42: =DÁLKA!H108 -> 576.498 | J42: =VÝŠKA!H108 -> 599.76 | K42: =MÍČEK!H108 -> 312.5 | L42: =KOULE!H108 -> 456.6666667 | M42: =ČLUNEK!H108 -> 734.3660791 | N42: =LEHSED!H108 -> 425 | O42: =ODBÍJENÍ!H108 -> 88 | P42: =PLAVÁNÍ!H108 -> 0 | Q42: =ŠPLH!H108 -> 229.995921 | R42: =ŠVIHADLO!H108 -> 631.25 | S42: ='Z MÍSTA'!H108 -> 691.6 | T42: =REPRE!E11 -> 0 | U42: 6765.340847 | W42: 1
B43: ='60'!B109 -> VEČEŘA | C43: ='60'!C109 -> David | D43: ='60'!D109 -> 6.A | F43: ='60'!H109 -> 627.4254685 | G43: ='300'!H109 -> 407.9419398 | H43: ='1000'!H109 -> 552.474462 | I43: =DÁLKA!H109 -> 499.434 | J43: =VÝŠKA!H109 -> 513.96 | K43: =MÍČEK!H109 -> 287.5 | L43: =KOULE!H109 -> 466.6666667 | M43: =ČLUNEK!H109 -> 597.4113857 | N43: =LEHSED!H109 -> 437.5 | O43: =ODBÍJENÍ!H109 -> 56 | P43: =PLAVÁNÍ!H109 -> 0 | Q43: =ŠPLH!H109 -> 0 | R43: =ŠVIHADLO!H109 -> 231.25 | S43: ='Z MÍSTA'!H109 -> 566.2 | T43: =REPRE!E12 -> 0 | U43: 5243.763923 | W43: 2
B44: ='60'!B110 -> VYBÍRAL | C44: ='60'!C110 -> Radim | D44: ='60'!D110 -> 6.A | F44: ='60'!H110 -> 807.4243764 | G44: ='300'!H110 -> 758.9565742 | H44: ='1000'!H110 -> 782.4494297 | I44: =DÁLKA!H110 -> 680.238 | J44: =VÝŠKA!H110 -> 662.68 | K44: =MÍČEK!H110 -> 375 | L44: =KOULE!H110 -> 516.1111111 | M44: =ČLUNEK!H110 -> 751.3008251 | N44: =LEHSED!H110 -> 687.5 | O44: =ODBÍJENÍ!H110 -> 280 | P44: =PLAVÁNÍ!H110 -> 0 | Q44: =ŠPLH!H110 -> 542.0782867 | R44: =ŠVIHADLO!H110 -> 718.75 | S44: ='Z MÍSTA'!H110 -> 794.2 | T44: =REPRE!E13 -> 0 | U44: 8356.688603 | W44: 1 | X44: =SUM(W35:W44) -> 18
B45: ='60'!B111 -> BERISHA | C45: ='60'!C111 -> David | D45: ='60'!D111 -> 6.B | F45: ='60'!H111 -> 573.0345768 | G45: ='300'!H111 -> 0 | H45: ='1000'!H111 -> 275.511637 | I45: =DÁLKA!H111 -> 392.73 | J45: =VÝŠKA!H111 -> 388.12 | K45: =MÍČEK!H111 -> 218.75 | L45: =KOULE!H111 -> 286.1111111 | M45: =ČLUNEK!H111 -> 689.0223205 | N45: =LEHSED!H111 -> 0 | O45: =ODBÍJENÍ!H111 -> 80 | P45: =PLAVÁNÍ!H111 -> 0 | Q45: =ŠPLH!H111 -> 0 | R45: =ŠVIHADLO!H111 -> 0 | S45: ='Z MÍSTA'!H111 -> 608 | T45: =REPRE!E14 -> 0 | U45: 3511.279645 | W45: 5
B46: ='60'!B112 -> EFENBERK | C46: ='60'!C112 -> Šimon | D46: ='60'!D112 -> 6.B | F46: ='60'!H112 -> 746.167838 | G46: ='300'!H112 -> 526.745587 | H46: ='1000'!H112 -> 515.1147793 | I46: =DÁLKA!H112 -> 530.556 | J46: =VÝŠKA!H112 -> 565.44 | K46: =MÍČEK!H112 -> 262.5 | L46: =KOULE!H112 -> 533.8888889 | M46: =ČLUNEK!H112 -> 684.6151695 | N46: =LEHSED!H112 -> 500 | O46: =ODBÍJENÍ!H112 -> 80 | P46: =PLAVÁNÍ!H112 -> 459.4836601 | Q46: =ŠPLH!H112 -> 228.9976287 | R46: =ŠVIHADLO!H112 -> 525 | S46: ='Z MÍSTA'!H112 -> 653.6 | T46: =REPRE!E15 -> 0 | U46: 6812.109552 | W46: 0
B47: ='60'!B113 -> FEJKL | C47: ='60'!C113 -> Antonín | D47: ='60'!D113 -> 6.B | F47: ='60'!H113 -> 768.7687942 | G47: ='300'!H113 -> 744.1615219 | H47: ='1000'!H113 -> 716.3365869 | I47: =DÁLKA!H113 -> 666.9 | J47: =VÝŠKA!H113 -> 616.92 | K47: =MÍČEK!H113 -> 500 | L47: =KOULE!H113 -> 520.5555556 | M47: =ČLUNEK!H113 -> 803.2973807 | N47: =LEHSED!H113 -> 612.5 | O47: =ODBÍJENÍ!H113 -> 280 | P47: =PLAVÁNÍ!H113 -> 401.9320679 | Q47: =ŠPLH!H113 -> 306.9141833 | R47: =ŠVIHADLO!H113 -> 825 | S47: ='Z MÍSTA'!H113 -> 779 | T47: =REPRE!E16 -> 125 | U47: 8667.28609 | W47: 0
B48: ='60'!B114 -> GOTTSTEIN | C48: ='60'!C114 -> Matouš | D48: ='60'!D114 -> 6.B | F48: ='60'!H114 -> 819.2100192 | G48: ='300'!H114 -> 811.516458 | H48: ='1000'!H114 -> 849.6285826 | I48: =DÁLKA!H114 -> 729.144 | J48: =VÝŠKA!H114 -> 685.56 | K48: =MÍČEK!H114 -> 450 | L48: =KOULE!H114 -> 525 | M48: =ČLUNEK!H114 -> 801.2730516 | N48: =LEHSED!H114 -> 637.5 | O48: =ODBÍJENÍ!H114 -> 160 | P48: =PLAVÁNÍ!H114 -> 397.7705926 | Q48: =ŠPLH!H114 -> 437.7736562 | R48: =ŠVIHADLO!H114 -> 800 | S48: ='Z MÍSTA'!H114 -> 813.2 | T48: =REPRE!E17 -> 250 | U48: 9167.57636 | W48: 0
B49: ='60'!B115 -> HÁK | C49: ='60'!C115 -> Šimon | D49: ='60'!D115 -> 6.B | F49: ='60'!H115 -> 0 | G49: ='300'!H115 -> 0 | H49: ='1000'!H115 -> 0 | I49: =DÁLKA!H115 -> 0 | J49: =VÝŠKA!H115 -> 0 | K49: =MÍČEK!H115 -> 0 | L49: =KOULE!H115 -> 0 | M49: =ČLUNEK!H115 -> 0 | N49: =LEHSED!H115 -> 0 | O49: =ODBÍJENÍ!H115 -> 0 | P49: =PLAVÁNÍ!H115 -> 0 | Q49: =ŠPLH!H115 -> 0 | R49: =ŠVIHADLO!H115 -> 0 | S49: ='Z MÍSTA'!H115 -> 0 | T49: =REPRE!E18 -> 0 | U49: 0 | W49: 14
B50: ='60'!B116 -> POVAŽANEC | C50: ='60'!C116 -> Lukáš | D50: ='60'!D116 -> 6.B | F50: ='60'!H116 -> 728.6978385 | G50: ='300'!H116 -> 529.7250091 | H50: ='1000'!H116 -> 522.2033073 | I50: =DÁLKA!H116 -> 586.872 | J50: =VÝŠKA!H116 -> 582.6 | K50: =MÍČEK!H116 -> 412.5 | L50: =KOULE!H116 -> 561.1111111 | M50: =ČLUNEK!H116 -> 668.0633446 | N50: =LEHSED!H116 -> 375 | O50: =ODBÍJENÍ!H116 -> 160 | P50: =PLAVÁNÍ!H116 -> 0 | Q50: =ŠPLH!H116 -> 0 | R50: =ŠVIHADLO!H116 -> 368.75 | S50: ='Z MÍSTA'!H116 -> 615.6 | T50: =REPRE!E19 -> 0 | U50: 6111.122611 | W50: 2
B51: ='60'!B117 -> VANCL | C51: ='60'!C117 -> Jakub | D51: ='60'!D117 -> 6.B | F51: ='60'!H117 -> 674.0025401 | G51: ='300'!H117 -> 471.4432042 | H51: ='1000'!H117 -> 553.4020256 | I51: =DÁLKA!H117 -> 454.974 | J51: =VÝŠKA!H117 -> 502.52 | K51: =MÍČEK!H117 -> 256.25 | L51: =KOULE!H117 -> 470 | M51: =ČLUNEK!H117 -> 551.1411818 | N51: =LEHSED!H117 -> 462.5 | O51: =ODBÍJENÍ!H117 -> 120 | P51: =PLAVÁNÍ!H117 -> 0 | Q51: =ŠPLH!H117 -> 0 | R51: =ŠVIHADLO!H117 -> 112.5 | S51: ='Z MÍSTA'!H117 -> 551 | T51: =REPRE!E20 -> 0 | U51: 5179.732952 | W51: 2
B52: ='60'!B118 -> VANCL | C52: ='60'!C118 -> Miroslav | D52: ='60'!D118 -> 6.B | F52: ='60'!H118 -> 663.6325813 | G52: ='300'!H118 -> 273.2719421 | H52: ='1000'!H118 -> 383.0538881 | I52: =DÁLKA!H118 -> 549.822 | J52: =VÝŠKA!H118 -> 571.16 | K52: =MÍČEK!H118 -> 262.5 | L52: =KOULE!H118 -> 443.3333333 | M52: =ČLUNEK!H118 -> 603.039864 | N52: =LEHSED!H118 -> 337.5 | O52: =ODBÍJENÍ!H118 -> 40 | P52: =PLAVÁNÍ!H118 -> 0 | Q52: =ŠPLH!H118 -> 0 | R52: =ŠVIHADLO!H118 -> 425 | S52: ='Z MÍSTA'!H118 -> 722 | T52: =REPRE!E21 -> 0 | U52: 5274.313609 | W52: 2
B53: ='60'!B119 -> VOTOČEK | C53: ='60'!C119 -> Michal | D53: ='60'!D119 -> 6.B | F53: ='60'!H119 -> 690.0489953 | G53: ='300'!H119 -> 489.9827871 | H53: ='1000'!H119 -> 521.6156858 | I53: =DÁLKA!H119 -> 480.168 | J53: =VÝŠKA!H119 -> 565.44 | K53: =MÍČEK!H119 -> 375 | L53: =KOULE!H119 -> 483.3333333 | M53: =ČLUNEK!H119 -> 588.6290175 | N53: =LEHSED!H119 -> 462.5 | O53: =ODBÍJENÍ!H119 -> 64 | P53: =PLAVÁNÍ!H119 -> 0 | Q53: =ŠPLH!H119 -> 0 | R53: =ŠVIHADLO!H119 -> 312.5 | S53: ='Z MÍSTA'!H119 -> 611.8 | T53: =REPRE!E22 -> 0 | U53: 5645.017819 | W53: 2 | X53: =SUM(W45:W53)-14 -> 13
B54: ='60'!B120 -> BOUKAL | C54: ='60'!C120 -> Jakub | D54: ='60'!D120 -> 7.A | F54: ='60'!H120 -> 0 | G54: ='300'!H120 -> 0 | H54: ='1000'!H120 -> 0 | I54: =DÁLKA!H120 -> 0 | J54: =VÝŠKA!H120 -> 0 | K54: =MÍČEK!H120 -> 0 | L54: =KOULE!H120 -> 540 | M54: =ČLUNEK!H120 -> 466.698218 | N54: =LEHSED!H120 -> 0 | O54: =ODBÍJENÍ!H120 -> 0 | P54: =PLAVÁNÍ!H120 -> 0 | Q54: =ŠPLH!H120 -> 0 | R54: =ŠVIHADLO!H120 -> 306.25 | S54: ='Z MÍSTA'!H120 -> 554.8 | T54: =REPRE!E23 -> 0 | U54: 1867.748218 | W54: 10
B55: ='60'!B121 -> DEMČUK | C55: ='60'!C121 -> Ilja | D55: ='60'!D121 -> 7.A | F55: ='60'!H121 -> 756.6054005 | G55: ='300'!H121 -> 698.0002058 | H55: ='1000'!H121 -> 685.331938 | I55: =DÁLKA!H121 -> 655.044 | J55: =VÝŠKA!H121 -> 668.4 | K55: =MÍČEK!H121 -> 387.5 | L55: =KOULE!H121 -> 527.2222222 | M55: =ČLUNEK!H121 -> 739.0358447 | N55: =LEHSED!H121 -> 475 | O55: =ODBÍJENÍ!H121 -> 48 | P55: =PLAVÁNÍ!H121 -> 0 | Q55: =ŠPLH!H121 -> 0 | R55: =ŠVIHADLO!H121 -> 300 | S55: ='Z MÍSTA'!H121 -> 691.6 | T55: =REPRE!E24 -> 0 | U55: 6631.739611 | W55: 2
B56: ='60'!B122 -> FAISTAUER | C56: ='60'!C122 -> Kryštof | D56: ='60'!D122 -> 7.A | F56: ='60'!H122 -> 812.0909077 | G56: ='300'!H122 -> 705.1870344 | H56: ='1000'!H122 -> 704.1241418 | I56: =DÁLKA!H122 -> 674.31 | J56: =VÝŠKA!H122 -> 725.6 | K56: =MÍČEK!H122 -> 562.5 | L56: =KOULE!H122 -> 506.1111111 | M56: =ČLUNEK!H122 -> 803.2973807 | N56: =LEHSED!H122 -> 575 | O56: =ODBÍJENÍ!H122 -> 80 | P56: =PLAVÁNÍ!H122 -> 0 | Q56: =ŠPLH!H122 -> 454.4495972 | R56: =ŠVIHADLO!H122 -> 525 | S56: ='Z MÍSTA'!H122 -> 809.4 | T56: =REPRE!E25 -> 200 | U56: 8137.070173 | W56: 1
B57: ='60'!B123 -> FRK | C57: ='60'!C123 -> Matyáš | D57: ='60'!D123 -> 7.A | F57: ='60'!H123 -> 622.4032872 | G57: ='300'!H123 -> 409.7476803 | H57: ='1000'!H123 -> 403.2782067 | I57: =DÁLKA!H123 -> 543.894 | J57: =VÝŠKA!H123 -> 0 | K57: =MÍČEK!H123 -> 325 | L57: =KOULE!H123 -> 479.4444444 | M57: =ČLUNEK!H123 -> 626.7028757 | N57: =LEHSED!H123 -> 437.5 | O57: =ODBÍJENÍ!H123 -> 72 | P57: =PLAVÁNÍ!H123 -> 0 | Q57: =ŠPLH!H123 -> 0 | R57: =ŠVIHADLO!H123 -> 0 | S57: ='Z MÍSTA'!H123 -> 646 | T57: =REPRE!E26 -> 0 | U57: 4565.970494 | W57: 4
B58: ='60'!B124 -> HUBÁLOVSKÝ | C58: ='60'!C124 -> Marek | D58: ='60'!D124 -> 7.A | F58: ='60'!H124 -> 686.8716023 | G58: ='300'!H124 -> 703.2857871 | H58: ='1000'!H124 -> 623.9560503 | I58: =DÁLKA!H124 -> 594.282 | J58: =VÝŠKA!H124 -> 639.8 | K58: =MÍČEK!H124 -> 425 | L58: =KOULE!H124 -> 451.1111111 | M58: =ČLUNEK!H124 -> 728.7963523 | N58: =LEHSED!H124 -> 562.5 | O58: =ODBÍJENÍ!H124 -> 152 | P58: =PLAVÁNÍ!H124 -> 0 | Q58: =ŠPLH!H124 -> 225.8795325 | R58: =ŠVIHADLO!H124 -> 418.75 | S58: ='Z MÍSTA'!H124 -> 725.8 | T58: =REPRE!E27 -> 0 | U58: 6938.032436 | W58: 1
B59: ='60'!B125 -> MAŘAS | C59: ='60'!C125 -> Dominik | D59: ='60'!D125 -> 7.A | F59: ='60'!H125 -> 0 | G59: ='300'!H125 -> 358.7850196 | H59: ='1000'!H125 -> 404.6626946 | I59: =DÁLKA!H125 -> 499.434 | J59: =VÝŠKA!H125 -> 611.2 | K59: =MÍČEK!H125 -> 350 | L59: =KOULE!H125 -> 455.5555556 | M59: =ČLUNEK!H125 -> 535.1344495 | N59: =LEHSED!H125 -> 0 | O59: =ODBÍJENÍ!H125 -> 48 | P59: =PLAVÁNÍ!H125 -> 0 | Q59: =ŠPLH!H125 -> 0 | R59: =ŠVIHADLO!H125 -> 0 | S59: ='Z MÍSTA'!H125 -> 771.4 | T59: =REPRE!E28 -> 0 | U59: 4034.171719 | W59: 5
B60: ='60'!B126 -> MAŤÁTKO | C60: ='60'!C126 -> Jakub | D60: ='60'!D126 -> 7.A | F60: ='60'!H126 -> 0 | G60: ='300'!H126 -> 296.6168196 | H60: ='1000'!H126 -> 0 | I60: =DÁLKA!H126 -> 0 | J60: =VÝŠKA!H126 -> 611.2 | K60: =MÍČEK!H126 -> 312.5 | L60: =KOULE!H126 -> 0 | M60: =ČLUNEK!H126 -> 511.1595269 | N60: =LEHSED!H126 -> 0 | O60: =ODBÍJENÍ!H126 -> 0 | P60: =PLAVÁNÍ!H126 -> 0 | Q60: =ŠPLH!H126 -> 0 | R60: =ŠVIHADLO!H126 -> 0 | S60: ='Z MÍSTA'!H126 -> 532 | T60: =REPRE!E29 -> 0 | U60: 2263.476347 | W60: 9
B61: ='60'!B127 -> MERY | C61: ='60'!C127 -> Luboš | D61: ='60'!D127 -> 7.A | F61: ='60'!H127 -> 681.6533976 | G61: ='300'!H127 -> 496.8807367 | H61: ='1000'!H127 -> 595.9212799 | I61: =DÁLKA!H127 -> 588.354 | J61: =VÝŠKA!H127 -> 0 | K61: =MÍČEK!H127 -> 262.5 | L61: =KOULE!H127 -> 438.8888889 | M61: =ČLUNEK!H127 -> 677.6087828 | N61: =LEHSED!H127 -> 450 | O61: =ODBÍJENÍ!H127 -> 48 | P61: =PLAVÁNÍ!H127 -> 0 | Q61: =ŠPLH!H127 -> 0 | R61: =ŠVIHADLO!H127 -> 218.75 | S61: ='Z MÍSTA'!H127 -> 608 | T61: =REPRE!E30 -> 0 | U61: 5066.557086 | W61: 3
B62: ='60'!B128 -> NOVOTNÝ | C62: ='60'!C128 -> Matěj | D62: ='60'!D128 -> 7.A | F62: ='60'!H128 -> 679.5927294 | G62: ='300'!H128 -> 464.8641341 | H62: ='1000'!H128 -> 440.3119422 | I62: =DÁLKA!H128 -> 542.412 | J62: =VÝŠKA!H128 -> 0 | K62: =MÍČEK!H128 -> 318.75 | L62: =KOULE!H128 -> 493.3333333 | M62: =ČLUNEK!H128 -> 643.3650492 | N62: =LEHSED!H128 -> 412.5 | O62: =ODBÍJENÍ!H128 -> 88 | P62: =PLAVÁNÍ!H128 -> 0 | Q62: =ŠPLH!H128 -> 0 | R62: =ŠVIHADLO!H128 -> 431.25 | S62: ='Z MÍSTA'!H128 -> 585.2 | T62: =REPRE!E31 -> 0 | U62: 5099.579188 | W62: 3
B63: ='60'!B129 -> ŘEHOŘEK | C63: ='60'!C129 -> Vojtěch | D63: ='60'!D129 -> 7.A | F63: ='60'!H129 -> 709.3123844 | G63: ='300'!H129 -> 529.2053145 | H63: ='1000'!H129 -> 574.1306339 | I63: =DÁLKA!H129 -> 631.332 | J63: =VÝŠKA!H129 -> 611.2 | K63: =MÍČEK!H129 -> 560 | L63: =KOULE!H129 -> 527.7777778 | M63: =ČLUNEK!H129 -> 679.3552394 | N63: =LEHSED!H129 -> 412.5 | O63: =ODBÍJENÍ!H129 -> 88 | P63: =PLAVÁNÍ!H129 -> 0 | Q63: =ŠPLH!H129 -> 0 | R63: =ŠVIHADLO!H129 -> 593.75 | S63: ='Z MÍSTA'!H129 -> 676.4 | T63: =REPRE!E32 -> 200 | U63: 6792.96335 | W63: 2
B64: ='60'!B130 -> ŠÍR | C64: ='60'!C130 -> Matyáš | D64: ='60'!D130 -> 7.A | F64: ='60'!H130 -> 687.9268179 | G64: ='300'!H130 -> 0 | H64: ='1000'!H130 -> 613.887944 | I64: =DÁLKA!H130 -> 545.376 | J64: =VÝŠKA!H130 -> 542.56 | K64: =MÍČEK!H130 -> 312.5 | L64: =KOULE!H130 -> 373.3333333 | M64: =ČLUNEK!H130 -> 577.5582256 | N64: =LEHSED!H130 -> 437.5 | O64: =ODBÍJENÍ!H130 -> 80 | P64: =PLAVÁNÍ!H130 -> 0 | Q64: =ŠPLH!H130 -> 0 | R64: =ŠVIHADLO!H130 -> 412.5 | S64: ='Z MÍSTA'!H130 -> 535.8 | T64: =REPRE!E33 -> 0 | U64: 5118.942321 | W64: 3
B65: ='60'!B131 -> TORÁČ | C65: ='60'!C131 -> Tomáš | D65: ='60'!D131 -> 7.A | F65: ='60'!H131 -> 0 | G65: ='300'!H131 -> 119.9046605 | H65: ='1000'!H131 -> 334.2347908 | I65: =DÁLKA!H131 -> 383.838 | J65: =VÝŠKA!H131 -> 496.8 | K65: =MÍČEK!H131 -> 218.75 | L65: =KOULE!H131 -> 418.8888889 | M65: =ČLUNEK!H131 -> 342.7074986 | N65: =LEHSED!H131 -> 375 | O65: =ODBÍJENÍ!H131 -> 48 | P65: =PLAVÁNÍ!H131 -> 0 | Q65: =ŠPLH!H131 -> 0 | R65: =ŠVIHADLO!H131 -> 175 | S65: ='Z MÍSTA'!H131 -> 342 | T65: =REPRE!E34 -> 0 | U65: 3255.123839 | W65: 3
B66: ='60'!B132 -> ULLMAN | C66: ='60'!C132 -> Šimon | D66: ='60'!D132 -> 7.A | F66: ='60'!H132 -> 854.4544355 | G66: ='300'!H132 -> 801.597725 | H66: ='1000'!H132 -> 681.2104883 | I66: =DÁLKA!H132 -> 626.886 | J66: =VÝŠKA!H132 -> 668.4 | K66: =MÍČEK!H132 -> 0 | L66: =KOULE!H132 -> 460.5555556 | M66: =ČLUNEK!H132 -> 801.2730516 | N66: =LEHSED!H132 -> 575 | O66: =ODBÍJENÍ!H132 -> 72 | P66: =PLAVÁNÍ!H132 -> 0 | Q66: =ŠPLH!H132 -> 483.1202422 | R66: =ŠVIHADLO!H132 -> 306.25 | S66: ='Z MÍSTA'!H132 -> 874 | T66: =REPRE!E35 -> 0 | U66: 7204.747498 | W66: 2
B67: ='60'!B133 -> VÁCLAVÍK | C67: ='60'!C133 -> Ondřej | D67: ='60'!D133 -> 7.A | F67: ='60'!H133 -> 793.051222 | G67: ='300'!H133 -> 396.2861288 | H67: ='1000'!H133 -> 697.035122 | I67: =DÁLKA!H133 -> 695.058 | J67: =VÝŠKA!H133 -> 599.76 | K67: =MÍČEK!H133 -> 525 | L67: =KOULE!H133 -> 0 | M67: =ČLUNEK!H133 -> 810.423469 | N67: =LEHSED!H133 -> 525 | O67: =ODBÍJENÍ!H133 -> 128 | P67: =PLAVÁNÍ!H133 -> 0 | Q67: =ŠPLH!H133 -> 454.4495972 | R67: =ŠVIHADLO!H133 -> 518.75 | S67: ='Z MÍSTA'!H133 -> 767.6 | T67: =REPRE!E36 -> 25 | U67: =SUM(F67:T67) -> 6935.413539 | W67: =FREQUENCY(F67:S67,0) -> 2 | X67: =SUM(W54:W67) -> 50
B68: ='60'!B134 -> AUERSWALD | C68: ='60'!C134 -> Daniel | D68: ='60'!D134 -> 7.B | F68: ='60'!H134 -> 759.9384151 | G68: ='300'!H134 -> 670.248152 | H68: ='1000'!H134 -> 622.3229105 | I68: =DÁLKA!H134 -> 674.31 | J68: =VÝŠKA!H134 -> 599.76 | K68: =MÍČEK!H134 -> 362.5 | L68: =KOULE!H134 -> 0 | M68: =ČLUNEK!H134 -> 0 | N68: =LEHSED!H134 -> 500 | O68: =ODBÍJENÍ!H134 -> 120 | P68: =PLAVÁNÍ!H134 -> 0 | Q68: =ŠPLH!H134 -> 362.2515934 | R68: =ŠVIHADLO!H134 -> 531.25 | S68: ='Z MÍSTA'!H134 -> 794.2 | T68: =REPRE!E37 -> 25 | U68: 6021.781071 | W68: 3
B69: ='60'!B135 -> BODLÁK | C69: ='60'!C135 -> Vladimír | D69: ='60'!D135 -> 7.B | F69: ='60'!H135 -> 0 | G69: ='300'!H135 -> 0 | H69: ='1000'!H135 -> 0 | I69: =DÁLKA!H135 -> 0 | J69: =VÝŠKA!H135 -> 0 | K69: =MÍČEK!H135 -> 0 | L69: =KOULE!H135 -> 0 | M69: =ČLUNEK!H135 -> 0 | N69: =LEHSED!H135 -> 0 | O69: =ODBÍJENÍ!H135 -> 0 | P69: =PLAVÁNÍ!H135 -> 0 | Q69: =ŠPLH!H135 -> 0 | R69: =ŠVIHADLO!H135 -> 0 | S69: ='Z MÍSTA'!H135 -> 0 | T69: =REPRE!E38 -> 0 | U69: 0 | W69: 14
B70: ='60'!B136 -> BUDÍN | C70: ='60'!C136 -> Martin | D70: ='60'!D136 -> 7.B | F70: ='60'!H136 -> 755.9429337 | G70: ='300'!H136 -> 664.7758676 | H70: ='1000'!H136 -> 771.3578354 | I70: =DÁLKA!H136 -> 604.656 | J70: =VÝŠKA!H136 -> 611.2 | K70: =MÍČEK!H136 -> 462.5 | L70: =KOULE!H136 -> 459.4444444 | M70: =ČLUNEK!H136 -> 770.5328822 | N70: =LEHSED!H136 -> 500 | O70: =ODBÍJENÍ!H136 -> 72 | P70: =PLAVÁNÍ!H136 -> 0 | Q70: =ŠPLH!H136 -> 360.1728925 | R70: =ŠVIHADLO!H136 -> 825 | S70: ='Z MÍSTA'!H136 -> 760 | T70: =REPRE!E39 -> 0 | U70: 7617.582856 | W70: 1
B71: ='60'!B137 -> DVOŘÁK | C71: ='60'!C137 -> Dominik | D71: ='60'!D137 -> 7.B | F71: ='60'!H137 -> 676.0224588 | G71: ='300'!H137 -> 573.6554298 | H71: ='1000'!H137 -> 0 | I71: =DÁLKA!H137 -> 542.412 | J71: =VÝŠKA!H137 -> 611.2 | K71: =MÍČEK!H137 -> 387.5 | L71: =KOULE!H137 -> 513.3333333 | M71: =ČLUNEK!H137 -> 678.4815858 | N71: =LEHSED!H137 -> 525 | O71: =ODBÍJENÍ!H137 -> 72 | P71: =PLAVÁNÍ!H137 -> 0 | Q71: =ŠPLH!H137 -> 326.8324324 | R71: =ŠVIHADLO!H137 -> 443.75 | S71: ='Z MÍSTA'!H137 -> 676.4 | T71: =REPRE!E40 -> 0 | U71: 6026.58724 | W71: 2
B72: ='60'!B138 -> FIŠERA | C72: ='60'!C138 -> Vojtěch | D72: ='60'!D138 -> 7.B | F72: ='60'!H138 -> 720.3211103 | G72: ='300'!H138 -> 0 | H72: ='1000'!H138 -> 617.1630079 | I72: =DÁLKA!H138 -> 558.714 | J72: =VÝŠKA!H138 -> 571.16 | K72: =MÍČEK!H138 -> 237.5 | L72: =KOULE!H138 -> 472.7777778 | M72: =ČLUNEK!H138 -> 693.4515368 | N72: =LEHSED!H138 -> 550 | O72: =ODBÍJENÍ!H138 -> 72 | P72: =PLAVÁNÍ!H138 -> 0 | Q72: =ŠPLH!H138 -> 225.8795325 | R72: =ŠVIHADLO!H138 -> 250 | S72: ='Z MÍSTA'!H138 -> 634.6 | T72: =REPRE!E41 -> 0 | U72: 5603.566965 | W72: 2
B73: ='60'!B139 -> JINDŘIŠEK | C73: ='60'!C139 -> Vít | D73: ='60'!D139 -> 7.B | F73: ='60'!H139 -> 867.0009914 | G73: ='300'!H139 -> 924.2720384 | H73: ='1000'!H139 -> 857.2643218 | I73: =DÁLKA!H139 -> 745.446 | J73: =VÝŠKA!H139 -> 759.92 | K73: =MÍČEK!H139 -> 661.25 | L73: =KOULE!H139 -> 606.1111111 | M73: =ČLUNEK!H139 -> 841.716492 | N73: =LEHSED!H139 -> 625 | O73: =ODBÍJENÍ!H139 -> 344 | P73: =PLAVÁNÍ!H139 -> 0 | Q73: =ŠPLH!H139 -> 547.1091217 | R73: =ŠVIHADLO!H139 -> 712.5 | S73: ='Z MÍSTA'!H139 -> 870.2 | T73: =REPRE!E42 -> 250 | U73: 9611.790076 | W73: 1
B74: ='60'!B140 -> JIROUŠ | C74: ='60'!C140 -> Matouš | D74: ='60'!D140 -> 7.B | F74: ='60'!H140 -> 763.9841015 | G74: ='300'!H140 -> 667.23959 | H74: ='1000'!H140 -> 0 | I74: =DÁLKA!H140 -> 675.792 | J74: =VÝŠKA!H140 -> 599.76 | K74: =MÍČEK!H140 -> 368.75 | L74: =KOULE!H140 -> 494.4444444 | M74: =ČLUNEK!H140 -> 705.9736758 | N74: =LEHSED!H140 -> 562.5 | O74: =ODBÍJENÍ!H140 -> 112 | P74: =PLAVÁNÍ!H140 -> 0 | Q74: =ŠPLH!H140 -> 316.7738135 | R74: =ŠVIHADLO!H140 -> 643.75 | S74: ='Z MÍSTA'!H140 -> 763.8 | T74: =REPRE!E43 -> 75 | U74: 6749.767625 | W74: 2
B75: ='60'!B141 -> KERLE | C75: ='60'!C141 -> Marek | D75: ='60'!D141 -> 7.B | F75: ='60'!H141 -> 816.0280734 | G75: ='300'!H141 -> 809.4257451 | H75: ='1000'!H141 -> 718.2323981 | I75: =DÁLKA!H141 -> 752.856 | J75: =VÝŠKA!H141 -> 771.36 | K75: =MÍČEK!H141 -> 575 | L75: =KOULE!H141 -> 569.4444444 | M75: =ČLUNEK!H141 -> 823.8306559 | N75: =LEHSED!H141 -> 700 | O75: =ODBÍJENÍ!H141 -> 344 | P75: =PLAVÁNÍ!H141 -> 0 | Q75: =ŠPLH!H141 -> 611.9556029 | R75: =ŠVIHADLO!H141 -> 650 | S75: ='Z MÍSTA'!H141 -> 763.8 | T75: =REPRE!E44 -> 175 | U75: 9080.93292 | W75: 1
B76: ='60'!B142 -> LUKEŠ | C76: ='60'!C142 -> Jakub | D76: ='60'!D142 -> 7.B | F76: ='60'!H142 -> 824.8485875 | G76: ='300'!H142 -> 836.2580216 | H76: ='1000'!H142 -> 802.8954518 | I76: =DÁLKA!H142 -> 738.036 | J76: =VÝŠKA!H142 -> 817.12 | K76: =MÍČEK!H142 -> 300 | L76: =KOULE!H142 -> 441.6666667 | M76: =ČLUNEK!H142 -> 769.5604759 | N76: =LEHSED!H142 -> 500 | O76: =ODBÍJENÍ!H142 -> 152 | P76: =PLAVÁNÍ!H142 -> 0 | Q76: =ŠPLH!H142 -> 446.8408849 | R76: =ŠVIHADLO!H142 -> 531.25 | S76: ='Z MÍSTA'!H142 -> 915.8 | T76: =REPRE!E45 -> 125 | U76: 8201.276088 | W76: 1
B77: ='60'!B143 -> OTT | C77: ='60'!C143 -> Matyáš | D77: ='60'!D143 -> 7.B | F77: ='60'!H143 -> 828.1114119 | G77: ='300'!H143 -> 795.6854645 | H77: ='1000'!H143 -> 833.7405554 | I77: =DÁLKA!H143 -> 692.094 | J77: =VÝŠKA!H143 -> 697 | K77: =MÍČEK!H143 -> 437.5 | L77: =KOULE!H143 -> 506.6666667 | M77: =ČLUNEK!H143 -> 790.2301812 | N77: =LEHSED!H143 -> 500 | O77: =ODBÍJENÍ!H143 -> 192 | P77: =PLAVÁNÍ!H143 -> 570.3302526 | Q77: =ŠPLH!H143 -> 357.1207348 | R77: =ŠVIHADLO!H143 -> 781.25 | S77: ='Z MÍSTA'!H143 -> 725.8 | T77: =REPRE!E46 -> 175 | U77: 8882.529267 | W77: 0
B78: ='60'!B144 -> POKORNÝ | C78: ='60'!C144 -> Matyáš | D78: ='60'!D144 -> 7.B | F78: ='60'!H144 -> 837.2410454 | G78: ='300'!H144 -> 909.2217956 | H78: ='1000'!H144 -> 873.8502746 | I78: =DÁLKA!H144 -> 770.64 | J78: =VÝŠKA!H144 -> 754.2 | K78: =MÍČEK!H144 -> 562.5 | L78: =KOULE!H144 -> 472.7777778 | M78: =ČLUNEK!H144 -> 896.8589319 | N78: =LEHSED!H144 -> 912.5 | O78: =ODBÍJENÍ!H144 -> 192 | P78: =PLAVÁNÍ!H144 -> 0 | Q78: =ŠPLH!H144 -> 459.0421769 | R78: =ŠVIHADLO!H144 -> 806.25 | S78: ='Z MÍSTA'!H144 -> 843.6 | T78: =REPRE!E47 -> 250 | U78: 9540.682002 | W78: 1
B79: ='60'!B145 -> POLÁČEK | C79: ='60'!C145 -> Matyáš | D79: ='60'!D145 -> 7.B | F79: ='60'!H145 -> 679.0799062 | G79: ='300'!H145 -> 499.7702463 | H79: ='1000'!H145 -> 0 | I79: =DÁLKA!H145 -> 554.268 | J79: =VÝŠKA!H145 -> 542.56 | K79: =MÍČEK!H145 -> 462.5 | L79: =KOULE!H145 -> 461.1111111 | M79: =ČLUNEK!H145 -> 0 | N79: =LEHSED!H145 -> 487.5 | O79: =ODBÍJENÍ!H145 -> 88 | P79: =PLAVÁNÍ!H145 -> 0 | Q79: =ŠPLH!H145 -> 0 | R79: =ŠVIHADLO!H145 -> 368.75 | S79: ='Z MÍSTA'!H145 -> 627 | T79: =REPRE!E48 -> 25 | U79: 4795.539264 | W79: 4
B80: ='60'!B146 -> SOUKUP | C80: ='60'!C146 -> Patrik | D80: ='60'!D146 -> 7.B | F80: ='60'!H146 -> 0 | G80: ='300'!H146 -> 0 | H80: ='1000'!H146 -> 0 | I80: =DÁLKA!H146 -> 0 | J80: =VÝŠKA!H146 -> 0 | K80: =MÍČEK!H146 -> 0 | L80: =KOULE!H146 -> 0 | M80: =ČLUNEK!H146 -> 0 | N80: =LEHSED!H146 -> 0 | O80: =ODBÍJENÍ!H146 -> 0 | P80: =PLAVÁNÍ!H146 -> 0 | Q80: =ŠPLH!H146 -> 0 | R80: =ŠVIHADLO!H146 -> 0 | S80: ='Z MÍSTA'!H146 -> 0 | T80: =REPRE!E49 -> 0 | U80: 0 | W80: 14
B81: ='60'!B147 -> VALENTA | C81: ='60'!C147 -> Jakub | D81: ='60'!D147 -> 7.B | F81: ='60'!H147 -> 742.9754984 | G81: ='300'!H147 -> 787.6028804 | H81: ='1000'!H147 -> 787.42602 | I81: =DÁLKA!H147 -> 0 | J81: =VÝŠKA!H147 -> 725.6 | K81: =MÍČEK!H147 -> 350 | L81: =KOULE!H147 -> 466.6666667 | M81: =ČLUNEK!H147 -> 820.716355 | N81: =LEHSED!H147 -> 750 | O81: =ODBÍJENÍ!H147 -> 192 | P81: =PLAVÁNÍ!H147 -> 0 | Q81: =ŠPLH!H147 -> 496.3805587 | R81: =ŠVIHADLO!H147 -> 556.25 | S81: ='Z MÍSTA'!H147 -> 737.2 | T81: =REPRE!E50 -> 250 | U81: 7662.817979 | W81: 2
B82: ='60'!B148 -> VRBATA | C82: ='60'!C148 -> Dominik | D82: ='60'!D148 -> 7.B | F82: ='60'!H148 -> 751.3437545 | G82: ='300'!H148 -> 634.6718571 | H82: ='1000'!H148 -> 693.2208108 | I82: =DÁLKA!H148 -> 666.9 | J82: =VÝŠKA!H148 -> 599.76 | K82: =MÍČEK!H148 -> 462.5 | L82: =KOULE!H148 -> 522.7777778 | M82: =ČLUNEK!H148 -> 713.2110561 | N82: =LEHSED!H148 -> 525 | O82: =ODBÍJENÍ!H148 -> 128 | P82: =PLAVÁNÍ!H148 -> 580.4049576 | Q82: =ŠPLH!H148 -> 617.2776402 | R82: =ŠVIHADLO!H148 -> 662.5 | S82: ='Z MÍSTA'!H148 -> 729.6 | T82: =REPRE!E51 -> 125 | U82: 8412.167854 | W82: 0 | X82: =SUM(W68:W82)-28 -> 20
B83: ='60'!B149 -> FEJKL | C83: ='60'!C149 -> Jan | D83: ='60'!D149 -> 8.A | F83: ='60'!H149 -> 897.3444658 | G83: ='300'!H149 -> 887.3255032 | H83: ='1000'!H149 -> 802.8199828 | I83: =DÁLKA!H149 -> 798.798 | J83: =VÝŠKA!H149 -> 811.4 | K83: =MÍČEK!H149 -> 762.5 | L83: =KOULE!H149 -> 587.7777778 | M83: =ČLUNEK!H149 -> 885.5078489 | N83: =LEHSED!H149 -> 637.5 | O83: =ODBÍJENÍ!H149 -> 416 | P83: =PLAVÁNÍ!H149 -> 0 | Q83: =ŠPLH!H149 -> 632.4704888 | R83: =ŠVIHADLO!H149 -> 631.25 | S83: ='Z MÍSTA'!H149 -> 881.6 | T83: =REPRE!E52 -> 125 | U83: 9757.294067 | W83: 1
B84: ='60'!B150 -> KOTYK | C84: ='60'!C150 -> Tadeáš | D84: ='60'!D150 -> 8.A | F84: ='60'!H150 -> 693.2619561 | G84: ='300'!H150 -> 463.20925 | H84: ='1000'!H150 -> 346.5857821 | I84: =DÁLKA!H150 -> 536.484 | J84: =VÝŠKA!H150 -> 525.4 | K84: =MÍČEK!H150 -> 325 | L84: =KOULE!H150 -> 554.4444444 | M84: =ČLUNEK!H150 -> 692.5639119 | N84: =LEHSED!H150 -> 412.5 | O84: =ODBÍJENÍ!H150 -> 256 | P84: =PLAVÁNÍ!H150 -> 0 | Q84: =ŠPLH!H150 -> 0 | R84: =ŠVIHADLO!H150 -> 456.25 | S84: ='Z MÍSTA'!H150 -> 687.8 | T84: =REPRE!E53 -> 0 | U84: 5949.499345 | W84: 2
B85: ='60'!B151 -> KRAUSE | C85: ='60'!C151 -> Tadeáš | D85: ='60'!D151 -> 8.A | F85: ='60'!H151 -> 828.1114119 | G85: ='300'!H151 -> 848.7963795 | H85: ='1000'!H151 -> 822.0620288 | I85: =DÁLKA!H151 -> 788.424 | J85: =VÝŠKA!H151 -> 799.96 | K85: =MÍČEK!H151 -> 468.75 | L85: =KOULE!H151 -> 573.3333333 | M85: =ČLUNEK!H151 -> 874.3234806 | N85: =LEHSED!H151 -> 637.5 | O85: =ODBÍJENÍ!H151 -> 256 | P85: =PLAVÁNÍ!H151 -> 0 | Q85: =ŠPLH!H151 -> 519.3719705 | R85: =ŠVIHADLO!H151 -> 1068.75 | S85: ='Z MÍSTA'!H151 -> 839.8 | T85: =REPRE!E54 -> 125 | U85: 9450.182605 | W85: 1
B86: ='60'!B152 -> LEŠÁK | C86: ='60'!C152 -> Martin | D86: ='60'!D152 -> 8.A | F86: ='60'!H152 -> 712.1703439 | G86: ='300'!H152 -> 619.273247 | H86: ='1000'!H152 -> 578.2191348 | I86: =DÁLKA!H152 -> 660.972 | J86: =VÝŠKA!H152 -> 656.96 | K86: =MÍČEK!H152 -> 375 | L86: =KOULE!H152 -> 550.5555556 | M86: =ČLUNEK!H152 -> 692.5639119 | N86: =LEHSED!H152 -> 362.5 | O86: =ODBÍJENÍ!H152 -> 248 | P86: =PLAVÁNÍ!H152 -> 0 | Q86: =ŠPLH!H152 -> 0 | R86: =ŠVIHADLO!H152 -> 350 | S86: ='Z MÍSTA'!H152 -> 646 | T86: =REPRE!E55 -> 0 | U86: 6452.214193 | W86: 2
B87: ='60'!B153 -> NECHANICKÝ | C87: ='60'!C153 -> David | D87: ='60'!D153 -> 8.A | F87: ='60'!H153 -> 900.3153573 | G87: ='300'!H153 -> 833.831435 | H87: ='1000'!H153 -> 721.4145761 | I87: =DÁLKA!H153 -> 794.352 | J87: =VÝŠKA!H153 -> 685.56 | K87: =MÍČEK!H153 -> 537.5 | L87: =KOULE!H153 -> 627.7777778 | M87: =ČLUNEK!H153 -> 882.135289 | N87: =LEHSED!H153 -> 475 | O87: =ODBÍJENÍ!H153 -> 416 | P87: =PLAVÁNÍ!H153 -> 0 | Q87: =ŠPLH!H153 -> 446.8408849 | R87: =ŠVIHADLO!H153 -> 668.75 | S87: ='Z MÍSTA'!H153 -> 950 | T87: =REPRE!E56 -> 175 | U87: 9114.47732 | W87: 1
B88: ='60'!B154 -> ŘEHOŘEK | C88: ='60'!C154 -> Jan | D88: ='60'!D154 -> 8.A | F88: ='60'!H154 -> 830.5783105 | G88: ='300'!H154 -> 738.2362706 | H88: ='1000'!H154 -> 670.7136105 | I88: =DÁLKA!H154 -> 721.734 | J88: =VÝŠKA!H154 -> 777.08 | K88: =MÍČEK!H154 -> 487.5 | L88: =KOULE!H154 -> 494.4444444 | M88: =ČLUNEK!H154 -> 832.1964843 | N88: =LEHSED!H154 -> 500 | O88: =ODBÍJENÍ!H154 -> 746 | P88: =PLAVÁNÍ!H154 -> 0 | Q88: =ŠPLH!H154 -> 326.3284155 | R88: =ŠVIHADLO!H154 -> 837.5 | S88: ='Z MÍSTA'!H154 -> 798 | T88: =REPRE!E57 -> 125 | U88: 8885.311536 | W88: 1
B89: ='60'!B155 -> SOUKUP | C89: ='60'!C155 -> Ondřej | D89: ='60'!D155 -> 8.A | F89: ='60'!H155 -> 759.2690405 | G89: ='300'!H155 -> 0 | H89: ='1000'!H155 -> 0 | I89: =DÁLKA!H155 -> 572.052 | J89: =VÝŠKA!H155 -> 571.16 | K89: =MÍČEK!H155 -> 0 | L89: =KOULE!H155 -> 597.2222222 | M89: =ČLUNEK!H155 -> 715.0299381 | N89: =LEHSED!H155 -> 587.5 | O89: =ODBÍJENÍ!H155 -> 717.2 | P89: =PLAVÁNÍ!H155 -> 0 | Q89: =ŠPLH!H155 -> 225.8795325 | R89: =ŠVIHADLO!H155 -> 950 | S89: ='Z MÍSTA'!H155 -> 646 | T89: =REPRE!E58 -> 75 | U89: 6416.312733 | W89: 4
B90: ='60'!B156 -> SPANILÝ | C90: ='60'!C156 -> David | D90: ='60'!D156 -> 8.A | F90: ='60'!H156 -> 850.9463384 | G90: ='300'!H156 -> 863.649992 | H90: ='1000'!H156 -> 784.3172348 | I90: =DÁLKA!H156 -> 791.388 | J90: =VÝŠKA!H156 -> 685.56 | K90: =MÍČEK!H156 -> 737.5 | L90: =KOULE!H156 -> 605.5555556 | M90: =ČLUNEK!H156 -> 843.8479711 | N90: =LEHSED!H156 -> 550 | O90: =ODBÍJENÍ!H156 -> 746 | P90: =PLAVÁNÍ!H156 -> 0 | Q90: =ŠPLH!H156 -> 671.9793924 | R90: =ŠVIHADLO!H156 -> 900 | S90: ='Z MÍSTA'!H156 -> 881.6 | T90: =REPRE!E59 -> 125 | U90: 10037.34448 | W90: 1 | X90: =SUM(W83:W90) -> 13
B91: ='60'!B157 -> ČADAN | C91: ='60'!C157 -> Benjamín | D91: ='60'!D157 -> 8.B | F91: ='60'!H157 -> 712.1703439 | G91: ='300'!H157 -> 0 | H91: ='1000'!H157 -> 0 | I91: =DÁLKA!H157 -> 622.44 | J91: =VÝŠKA!H157 -> 639.8 | K91: =MÍČEK!H157 -> 0 | L91: =KOULE!H157 -> 522.2222222 | M91: =ČLUNEK!H157 -> 0 | N91: =LEHSED!H157 -> 0 | O91: =ODBÍJENÍ!H157 -> 72 | P91: =PLAVÁNÍ!H157 -> 0 | Q91: =ŠPLH!H157 -> 0 | R91: =ŠVIHADLO!H157 -> 0 | S91: ='Z MÍSTA'!H157 -> 634.6 | T91: =REPRE!E60 -> 0 | U91: 3203.232566 | W91: 8
B92: ='60'!B158 -> ČERNÝ | C92: ='60'!C158 -> Michal | D92: ='60'!D158 -> 8.B | F92: ='60'!H158 -> 757.2692403 | G92: ='300'!H158 -> 604.9894302 | H92: ='1000'!H158 -> 574.9012345 | I92: =DÁLKA!H158 -> 617.994 | J92: =VÝŠKA!H158 -> 599.76 | K92: =MÍČEK!H158 -> 556.25 | L92: =KOULE!H158 -> 635.5555556 | M92: =ČLUNEK!H158 -> 769.5604759 | N92: =LEHSED!H158 -> 537.5 | O92: =ODBÍJENÍ!H158 -> 240 | P92: =PLAVÁNÍ!H158 -> 0 | Q92: =ŠPLH!H158 -> 0 | R92: =ŠVIHADLO!H158 -> 293.75 | S92: ='Z MÍSTA'!H158 -> 615.6 | T92: =REPRE!E61 -> 0 | U92: 6803.129936 | W92: 2
B93: ='60'!B159 -> DOLEJŠÍ | C93: ='60'!C159 -> David | D93: ='60'!D159 -> 8.B | F93: ='60'!H159 -> 814.4478746 | G93: ='300'!H159 -> 738.8461192 | H93: ='1000'!H159 -> 715.3774788 | I93: =DÁLKA!H159 -> 706.914 | J93: =VÝŠKA!H159 -> 656.96 | K93: =MÍČEK!H159 -> 268.75 | L93: =KOULE!H159 -> 552.2222222 | M93: =ČLUNEK!H159 -> 776.3918658 | N93: =LEHSED!H159 -> 500 | O93: =ODBÍJENÍ!H159 -> 168 | P93: =PLAVÁNÍ!H159 -> 0 | Q93: =ŠPLH!H159 -> 256.2049775 | R93: =ŠVIHADLO!H159 -> 475 | S93: ='Z MÍSTA'!H159 -> 741 | T93: =REPRE!E62 -> 50 | U93: 7420.114538 | W93: 1
B94: ='60'!B160 -> NOVÁK | C94: ='60'!C160 -> Matěj | D94: ='60'!D160 -> 8.B | F94: ='60'!H160 -> 712.1703439 | G94: ='300'!H160 -> 0 | H94: ='1000'!H160 -> 0 | I94: =DÁLKA!H160 -> 650.598 | J94: =VÝŠKA!H160 -> 525.4 | K94: =MÍČEK!H160 -> 412.5 | L94: =KOULE!H160 -> 451.1111111 | M94: =ČLUNEK!H160 -> 757.0233329 | N94: =LEHSED!H160 -> 437.5 | O94: =ODBÍJENÍ!H160 -> 208 | P94: =PLAVÁNÍ!H160 -> 0 | Q94: =ŠPLH!H160 -> 296.6736801 | R94: =ŠVIHADLO!H160 -> 756.25 | S94: ='Z MÍSTA'!H160 -> 691.6 | T94: =REPRE!E63 -> 25 | U94: 5923.826468 | W94: 3
B95: ='60'!B161 -> POVAŽANEC | C95: ='60'!C161 -> Martin | D95: ='60'!D161 -> 8.B | F95: ='60'!H161 -> 848.3370614 | G95: ='300'!H161 -> 762.7740379 | H95: ='1000'!H161 -> 687.2872017 | I95: =DÁLKA!H161 -> 822.51 | J95: =VÝŠKA!H161 -> 822.84 | K95: =MÍČEK!H161 -> 625 | L95: =KOULE!H161 -> 775.5555556 | M95: =ČLUNEK!H161 -> 759.899553 | N95: =LEHSED!H161 -> 425 | O95: =ODBÍJENÍ!H161 -> 272 | P95: =PLAVÁNÍ!H161 -> 0 | Q95: =ŠPLH!H161 -> 487.7005608 | R95: =ŠVIHADLO!H161 -> 437.5 | S95: ='Z MÍSTA'!H161 -> 870.2 | T95: =REPRE!E64 -> 50 | U95: 8646.60397 | W95: 1
B96: ='60'!B162 -> RICHTER | C96: ='60'!C162 -> Jakub | D96: ='60'!D162 -> 8.B | F96: ='60'!H162 -> 746.8102109 | G96: ='300'!H162 -> 627.1520599 | H96: ='1000'!H162 -> 608.8670668 | I96: =DÁLKA!H162 -> 588.354 | J96: =VÝŠKA!H162 -> 542.56 | K96: =MÍČEK!H162 -> 362.5 | L96: =KOULE!H162 -> 511.1111111 | M96: =ČLUNEK!H162 -> 699.6901644 | N96: =LEHSED!H162 -> 450 | O96: =ODBÍJENÍ!H162 -> 168 | P96: =PLAVÁNÍ!H162 -> 0 | Q96: =ŠPLH!H162 -> 324.0923699 | R96: =ŠVIHADLO!H162 -> 437.5 | S96: ='Z MÍSTA'!H162 -> 722 | T96: =REPRE!E65 -> 0 | U96: 6788.636983 | W96: 1
B97: ='60'!B163 -> ROZUMEK | C97: ='60'!C163 -> Adam | D97: ='60'!D163 -> 8.B | F97: ='60'!H163 -> 771.5347637 | G97: ='300'!H163 -> 483.3185647 | H97: ='1000'!H163 -> 597.4805048 | I97: =DÁLKA!H163 -> 577.98 | J97: =VÝŠKA!H163 -> 571.16 | K97: =MÍČEK!H163 -> 562.5 | L97: =KOULE!H163 -> 688.8888889 | M97: =ČLUNEK!H163 -> 741.850247 | N97: =LEHSED!H163 -> 537.5 | O97: =ODBÍJENÍ!H163 -> 312 | P97: =PLAVÁNÍ!H163 -> 0 | Q97: =ŠPLH!H163 -> 0 | R97: =ŠVIHADLO!H163 -> 693.75 | S97: ='Z MÍSTA'!H163 -> 684 | T97: =REPRE!E66 -> 0 | U97: 7221.962969 | W97: 2
B98: ='60'!B164 -> VALENTA | C98: ='60'!C164 -> František | D98: ='60'!D164 -> 8.B | F98: ='60'!H164 -> 797.5251288 | G98: ='300'!H164 -> 647.0271306 | H98: ='1000'!H164 -> 619.844357 | I98: =DÁLKA!H164 -> 607.62 | J98: =VÝŠKA!H164 -> 628.36 | K98: =MÍČEK!H164 -> 350 | L98: =KOULE!H164 -> 594.4444444 | M98: =ČLUNEK!H164 -> 803.2973807 | N98: =LEHSED!H164 -> 525 | O98: =ODBÍJENÍ!H164 -> 272 | P98: =PLAVÁNÍ!H164 -> 0 | Q98: =ŠPLH!H164 -> 0 | R98: =ŠVIHADLO!H164 -> 450 | S98: ='Z MÍSTA'!H164 -> 672.6 | T98: =REPRE!E67 -> 0 | U98: 6967.718442 | W98: 2
B99: ='60'!B165 -> ZAPLATÍLEK | C99: ='60'!C165 -> Josef | D99: ='60'!D165 -> 8.B | F99: ='60'!H165 -> 758.601056 | G99: ='300'!H165 -> 732.9806436 | H99: ='1000'!H165 -> 706.5680968 | I99: =DÁLKA!H165 -> 643.188 | J99: =VÝŠKA!H165 -> 725.6 | K99: =MÍČEK!H165 -> 525 | L99: =KOULE!H165 -> 490.5555556 | M99: =ČLUNEK!H165 -> 832.1964843 | N99: =LEHSED!H165 -> 575 | O99: =ODBÍJENÍ!H165 -> 312 | P99: =PLAVÁNÍ!H165 -> 0 | Q99: =ŠPLH!H165 -> 225.8795325 | R99: =ŠVIHADLO!H165 -> 625 | S99: ='Z MÍSTA'!H165 -> 763.8 | T99: =REPRE!E68 -> 0 | U99: =SUM(F99:T99) -> 7916.369369 | W99: =FREQUENCY(F99:S99,0) -> 1 | X99: =SUM(W91:W99)-8-3 -> 10
B100: ='60'!B166 -> ERBEN | C100: ='60'!C166 -> Viktor | D100: ='60'!D166 -> 9.A | F100: ='60'!H166 -> 744.2485451 | G100: ='300'!H166 -> 606.2274069 | H100: ='1000'!H166 -> 591.4556434 | I100: =DÁLKA!H166 -> 659.49 | J100: =VÝŠKA!H166 -> 668.4 | K100: =MÍČEK!H166 -> 312.5 | L100: =KOULE!H166 -> 0 | M100: =ČLUNEK!H166 -> 736.2308693 | N100: =LEHSED!H166 -> 350 | O100: =ODBÍJENÍ!H166 -> 440 | P100: =PLAVÁNÍ!H166 -> 0 | Q100: =ŠPLH!H166 -> 371.3110352 | R100: =ŠVIHADLO!H166 -> 412.5 | S100: ='Z MÍSTA'!H166 -> 763.8 | T100: =REPRE!E69 -> 0 | U100: 6656.1635 | W100: 2
B101: ='60'!B167 -> FRANC | C101: ='60'!C167 -> Daniel | D101: ='60'!D167 -> 9.A | F101: ='60'!H167 -> 709.3123844 | G101: ='300'!H167 -> 540.7903402 | H101: ='1000'!H167 -> 448.0839787 | I101: =DÁLKA!H167 -> 577.98 | J101: =VÝŠKA!H167 -> 571.16 | K101: =MÍČEK!H167 -> 412.5 | L101: =KOULE!H167 -> 652.7777778 | M101: =ČLUNEK!H167 -> 775.4124277 | N101: =LEHSED!H167 -> 400 | O101: =ODBÍJENÍ!H167 -> 408 | P101: =PLAVÁNÍ!H167 -> 0 | Q101: =ŠPLH!H167 -> 0 | R101: =ŠVIHADLO!H167 -> 543.75 | S101: ='Z MÍSTA'!H167 -> 646 | T101: =REPRE!E70 -> 0 | U101: 6685.766909 | W101: 2
B102: ='60'!B168 -> JINDŘIŠEK | C102: ='60'!C168 -> Matyáš | D102: ='60'!D168 -> 9.A | F102: ='60'!H168 -> 799.7843281 | G102: ='300'!H168 -> 755.7961632 | H102: ='1000'!H168 -> 775.383217 | I102: =DÁLKA!H168 -> 797.316 | J102: =VÝŠKA!H168 -> 714.16 | K102: =MÍČEK!H168 -> 650 | L102: =KOULE!H168 -> 707.7777778 | M102: =ČLUNEK!H168 -> 878.7775806 | N102: =LEHSED!H168 -> 650 | O102: =ODBÍJENÍ!H168 -> 480 | P102: =PLAVÁNÍ!H168 -> 0 | Q102: =ŠPLH!H168 -> 755.2283877 | R102: =ŠVIHADLO!H168 -> 537.5 | S102: ='Z MÍSTA'!H168 -> 881.6 | T102: =REPRE!E71 -> 50 | U102: 9433.323454 | W102: 1
B103: ='60'!B169 -> KOLAČNÝ | C103: ='60'!C169 -> Štěpán | D103: ='60'!D169 -> 9.A | F103: ='60'!H169 -> 716.2180571 | G103: ='300'!H169 -> 513.9102192 | H103: ='1000'!H169 -> 531.806188 | I103: =DÁLKA!H169 -> 663.936 | J103: =VÝŠKA!H169 -> 571.16 | K103: =MÍČEK!H169 -> 412.5 | L103: =KOULE!H169 -> 643.3333333 | M103: =ČLUNEK!H169 -> 779.3373061 | N103: =LEHSED!H169 -> 412.5 | O103: =ODBÍJENÍ!H169 -> 496 | P103: =PLAVÁNÍ!H169 -> 0 | Q103: =ŠPLH!H169 -> 0 | R103: =ŠVIHADLO!H169 -> 0 | S103: ='Z MÍSTA'!H169 -> 661.2 | T103: =REPRE!E72 -> 0 | U103: 6401.901104 | W103: 3
B104: ='60'!B170 -> KRISTAN | C104: ='60'!C170 -> Jáchym | D104: ='60'!D170 -> 9.A | F104: ='60'!H170 -> 586.2316238 | G104: ='300'!H170 -> 333.6491763 | H104: ='1000'!H170 -> 436.510202 | I104: =DÁLKA!H170 -> 523.146 | J104: =VÝŠKA!H170 -> 0 | K104: =MÍČEK!H170 -> 250 | L104: =KOULE!H170 -> 437.7777778 | M104: =ČLUNEK!H170 -> 497.8791149 | N104: =LEHSED!H170 -> 287.5 | O104: =ODBÍJENÍ!H170 -> 64 | P104: =PLAVÁNÍ!H170 -> 0 | Q104: =ŠPLH!H170 -> 0 | R104: =ŠVIHADLO!H170 -> 0 | S104: ='Z MÍSTA'!H170 -> 456 | T104: =REPRE!E73 -> 0 | U104: 3872.693895 | W104: 4
B105: ='60'!B171 -> NGUYEN | C105: ='60'!C171 -> David | D105: ='60'!D171 -> 9.A | F105: ='60'!H171 -> 794.5359835 | G105: ='300'!H171 -> 688.3298735 | H105: ='1000'!H171 -> 606.1942507 | I105: =DÁLKA!H171 -> 786.942 | J105: =VÝŠKA!H171 -> 697 | K105: =MÍČEK!H171 -> 593.75 | L105: =KOULE!H171 -> 635.5555556 | M105: =ČLUNEK!H171 -> 898.003429 | N105: =LEHSED!H171 -> 375 | O105: =ODBÍJENÍ!H171 -> 480 | P105: =PLAVÁNÍ!H171 -> 0 | Q105: =ŠPLH!H171 -> 693.8880489 | R105: =ŠVIHADLO!H171 -> 612.5 | S105: ='Z MÍSTA'!H171 -> 877.8 | T105: =REPRE!E74 -> 0 | U105: 8739.499141 | W105: 1
B106: ='60'!B172 -> NOVOTNÝ | C106: ='60'!C172 -> Jan | D106: ='60'!D172 -> 9.A | F106: ='60'!H172 -> 819.2100192 | G106: ='300'!H172 -> 664.074241 | H106: ='1000'!H172 -> 663.559629 | I106: =DÁLKA!H172 -> 689.13 | J106: =VÝŠKA!H172 -> 714.16 | K106: =MÍČEK!H172 -> 387.5 | L106: =KOULE!H172 -> 669.4444444 | M106: =ČLUNEK!H172 -> 860.0239829 | N106: =LEHSED!H172 -> 550 | O106: =ODBÍJENÍ!H172 -> 72 | P106: =PLAVÁNÍ!H172 -> 0 | Q106: =ŠPLH!H172 -> 464.4364436 | R106: =ŠVIHADLO!H172 -> 512.5 | S106: ='Z MÍSTA'!H172 -> 828.4 | T106: =REPRE!E75 -> 0 | U106: 7894.43876 | W106: 1
B107: ='60'!B173 -> RÁB | C107: ='60'!C173 -> Adam | D107: ='60'!D173 -> 9.A | F107: ='60'!H173 -> 702.5638075 | G107: ='300'!H173 -> 493.0602204 | H107: ='1000'!H173 -> 436.7320031 | I107: =DÁLKA!H173 -> 577.98 | J107: =VÝŠKA!H173 -> 571.16 | K107: =MÍČEK!H173 -> 431.25 | L107: =KOULE!H173 -> 721.1111111 | M107: =ČLUNEK!H173 -> 705.9736758 | N107: =LEHSED!H173 -> 375 | O107: =ODBÍJENÍ!H173 -> 168 | P107: =PLAVÁNÍ!H173 -> 0 | Q107: =ŠPLH!H173 -> 0 | R107: =ŠVIHADLO!H173 -> 0 | S107: ='Z MÍSTA'!H173 -> 649.8 | T107: =REPRE!E76 -> 0 | U107: 5832.630818 | W107: 3
B108: ='60'!B174 -> REPASKÝ | C108: ='60'!C174 -> Jakub | D108: ='60'!D174 -> 9.A | F108: ='60'!H174 -> 850.9463384 | G108: ='300'!H174 -> 727.5786867 | H108: ='1000'!H174 -> 694.6286202 | I108: =DÁLKA!H174 -> 736.554 | J108: =VÝŠKA!H174 -> 771.36 | K108: =MÍČEK!H174 -> 737.5 | L108: =KOULE!H174 -> 778.8888889 | M108: =ČLUNEK!H174 -> 855.6771362 | N108: =LEHSED!H174 -> 625 | O108: =ODBÍJENÍ!H174 -> 657.2 | P108: =PLAVÁNÍ!H174 -> 0 | Q108: =ŠPLH!H174 -> 657.6898195 | R108: =ŠVIHADLO!H174 -> 818.75 | S108: ='Z MÍSTA'!H174 -> 904.4 | T108: =REPRE!E77 -> 50 | U108: 9866.17349 | W108: 1
B109: ='60'!B175 -> SKÁLA | C109: ='60'!C175 -> Jan | D109: ='60'!D175 -> 9.A | F109: ='60'!H175 -> 843.1736979 | G109: ='300'!H175 -> 719.0908052 | H109: ='1000'!H175 -> 733.3917631 | I109: =DÁLKA!H175 -> 776.568 | J109: =VÝŠKA!H175 -> 697 | K109: =MÍČEK!H175 -> 487.5 | L109: =KOULE!H175 -> 652.2222222 | M109: =ČLUNEK!H175 -> 867.6905756 | N109: =LEHSED!H175 -> 612.5 | O109: =ODBÍJENÍ!H175 -> 240 | P109: =PLAVÁNÍ!H175 -> 0 | Q109: =ŠPLH!H175 -> 558.5727507 | R109: =ŠVIHADLO!H175 -> 656.25 | S109: ='Z MÍSTA'!H175 -> 900.6 | T109: =REPRE!E78 -> 75 | U109: 8819.559815 | W109: 1
B110: ='60'!B176 -> ŠPULÁK | C110: ='60'!C176 -> Jakub | D110: ='60'!D176 -> 9.A | F110: ='60'!H176 -> 757.9344574 | G110: ='300'!H176 -> 617.3640243 | H110: ='1000'!H176 -> 608.7371918 | I110: =DÁLKA!H176 -> 699.504 | J110: =VÝŠKA!H176 -> 668.4 | K110: =MÍČEK!H176 -> 618.75 | L110: =KOULE!H176 -> 671.1111111 | M110: =ČLUNEK!H176 -> 823.8306559 | N110: =LEHSED!H176 -> 0 | O110: =ODBÍJENÍ!H176 -> 528 | P110: =PLAVÁNÍ!H176 -> 665.5228413 | Q110: =ŠPLH!H176 -> 0 | R110: =ŠVIHADLO!H176 -> 481.25 | S110: ='Z MÍSTA'!H176 -> 817 | T110: =REPRE!E79 -> 50 | U110: 8007.404282 | W110: 2
B111: ='60'!B177 -> VALENTA | C111: ='60'!C177 -> Tomáš | D111: ='60'!D177 -> 9.A | F111: ='60'!H177 -> 906.3254367 | G111: ='300'!H177 -> 860.0908738 | H111: ='1000'!H177 -> 749.6019638 | I111: =DÁLKA!H177 -> 909.948 | J111: =VÝŠKA!H177 -> 868.6 | K111: =MÍČEK!H177 -> 800 | L111: =KOULE!H177 -> 781.6666667 | M111: =ČLUNEK!H177 -> 953.8536221 | N111: =LEHSED!H177 -> 700 | O111: =ODBÍJENÍ!H177 -> 657.2 | P111: =PLAVÁNÍ!H177 -> 0 | Q111: =ŠPLH!H177 -> 657.6898195 | R111: =ŠVIHADLO!H177 -> 806.25 | S111: ='Z MÍSTA'!H177 -> 995.6 | T111: =REPRE!E80 -> 125 | U111: 10771.82638 | W111: 1
B112: ='60'!B178 -> VANCL | C112: ='60'!C178 -> Jiří | D112: ='60'!D178 -> 9.A | F112: ='60'!H178 -> 800.5407267 | G112: ='300'!H178 -> 601.7557061 | H112: ='1000'!H178 -> 594.4114691 | I112: =DÁLKA!H178 -> 741 | J112: =VÝŠKA!H178 -> 628.36 | K112: =MÍČEK!H178 -> 362.5 | L112: =KOULE!H178 -> 663.8888889 | M112: =ČLUNEK!H178 -> 808.3808967 | N112: =LEHSED!H178 -> 525 | O112: =ODBÍJENÍ!H178 -> 528 | P112: =PLAVÁNÍ!H178 -> 0 | Q112: =ŠPLH!H178 -> 0 | R112: =ŠVIHADLO!H178 -> 593.75 | S112: ='Z MÍSTA'!H178 -> 824.6 | T112: =REPRE!E81 -> 50 | U112: 7722.187688 | W112: 2
B113: ='60'!B179 -> VAŠÍČEK | C113: ='60'!C179 -> David | D113: ='60'!D179 -> 9.A | F113: ='60'!H179 -> 812.0909077 | G113: ='300'!H179 -> 743.9560816 | H113: ='1000'!H179 -> 807.9080894 | I113: =DÁLKA!H179 -> 693.576 | J113: =VÝŠKA!H179 -> 0 | K113: =MÍČEK!H179 -> 450 | L113: =KOULE!H179 -> 0 | M113: =ČLUNEK!H179 -> 868.7920797 | N113: =LEHSED!H179 -> 0 | O113: =ODBÍJENÍ!H179 -> 176 | P113: =PLAVÁNÍ!H179 -> 0 | Q113: =ŠPLH!H179 -> 429.7268592 | R113: =ŠVIHADLO!H179 -> 687.5 | S113: ='Z MÍSTA'!H179 -> 836 | T113: =REPRE!E82 -> 0 | U113: 6505.550018 | W113: 4
B114: ='60'!B180 -> ZOUHAR | C114: ='60'!C180 -> Ondřej | D114: ='60'!D180 -> 9.A | F114: ='60'!H180 -> 901.3106814 | G114: ='300'!H180 -> 748.4944524 | H114: ='1000'!H180 -> 626.6054141 | I114: =DÁLKA!H180 -> 0 | J114: =VÝŠKA!H180 -> 771.36 | K114: =MÍČEK!H180 -> 500 | L114: =KOULE!H180 -> 611.1111111 | M114: =ČLUNEK!H180 -> 879.8951758 | N114: =LEHSED!H180 -> 450 | O114: =ODBÍJENÍ!H180 -> 496 | P114: =PLAVÁNÍ!H180 -> 0 | Q114: =ŠPLH!H180 -> 497.1884064 | R114: =ŠVIHADLO!H180 -> 637.5 | S114: ='Z MÍSTA'!H180 -> 801.8 | T114: =REPRE!E83 -> 50 | U114: 7971.265241 | W114: 2
B115: ='60'!B181 -> ZUZÁNEK | C115: ='60'!C181 -> Filip | D115: ='60'!D181 -> 9.A | F115: ='60'!H181 -> 811.3087831 | G115: ='300'!H181 -> 610.2742234 | H115: ='1000'!H181 -> 620.0464023 | I115: =DÁLKA!H181 -> 752.856 | J115: =VÝŠKA!H181 -> 656.96 | K115: =MÍČEK!H181 -> 325 | L115: =KOULE!H181 -> 596.1111111 | M115: =ČLUNEK!H181 -> 879.8951758 | N115: =LEHSED!H181 -> 625 | O115: =ODBÍJENÍ!H181 -> 368 | P115: =PLAVÁNÍ!H181 -> 0 | Q115: =ŠPLH!H181 -> 446.2213961 | R115: =ŠVIHADLO!H181 -> 0 | S115: ='Z MÍSTA'!H181 -> 805.6 | T115: =REPRE!E84 -> 0 | U115: 7497.273092 | W115: 2 | X115: =SUM(W100:W115) -> 32

Sheet ROČ
C1: CELKOVÉ VÝSLEDKY | W1: =TODAY() -> 2022-06-27
B3: 6. ročník | F3: 60 m | G3: 300m | H3: 1000m | I3: dálka | J3: výška | K3: míček | L3: koule | M3: oštěp | N3: člunek | O3: lehsed | P3: odbíjení | Q3: plavání | R3: shyby | S3: šplh | T3: švihadlo | U3: z místa | V3: REPRE | W3: CELKEM
A5: 1. | B5: =B121 -> EXNER | C5: =C121 -> Tomáš | D5: 6.A | E5: 0 | F5: 796.0272713 | G5: 577.7079054 | H5: 467.3692038 | I5: 717.288 | J5: 616.92 | K5: 200 | L5: 532.2222222 | M5: 0 | N5: 697.0110275 | O5: 525 | P5: 120 | Q5: 402.8594033 | R5: 150 | S5: 0 | T5: 400 | U5: 877.8 | V5: 0 | W5: 7080.205033
A6: 2. | B6: =B122 -> JANATA | C6: Denis | D6: 6.A | E6: 0 | F6: 739.8153396 | G6: 572.2171302 | H6: 504.9564792 | I6: 601.692 | J6: 571.16 | K6: 300 | L6: 413.8888889 | M6: 0 | N6: 601.4285254 | O6: 437.5 | P6: 144 | Q6: 0 | R6: 0 | S6: 0 | T6: 406.25 | U6: 566.2 | V6: 0 | W6: 5859.108363
A7: 3. | B7: =B123 -> JINDŘIŠEK | C7: Alex Jiří | D7: 6.A | E7: 0 | F7: 755.9429337 | G7: 567.5040087 | H7: 486.6566538 | I7: 570.57 | J7: 513.96 | K7: 312.5 | L7: 591.6666667 | M7: 0 | N7: 0 | O7: 462.5 | P7: 56 | Q7: 0 | R7: 0 | S7: 0 | T7: 0 | U7: 380 | V7: 0 | W7: 4697.300263
A8: 4. | B8: =B124 -> MARŠÁLEK | C8: Ondřej | D8: 6.A | E8: 0 | F8: 735.4442612 | G8: 460.3575973 | H8: 517.9925278 | I8: 530.556 | J8: 571.16 | K8: 281.25 | L8: 515 | M8: 0 | N8: 673.2574349 | O8: 450 | P8: 64 | Q8: 0 | R8: 0 | S8: 0 | T8: 218.75 | U8: 642.2 | V8: 0 | W8: 5659.967821
A9: 5. | B9: =B125 -> MLATEČEK | C9: Patrik | D9: 6.A | E9: 0 | F9: 665.5779902 | G9: 416.1890542 | H9: 491.4076741 | I9: 499.434 | J9: 502.52 | K9: 331.25 | L9: 471.1111111 | M9: 0 | N9: 532.1107918 | O9: 375 | P9: 64 | Q9: 0 | R9: 0 | S9: 0 | T9: 218.75 | U9: 494 | V9: 0 | W9: 5061.350621
A10: 6. | B10: =B126 -> SCHOLZ | C10: Matyáš | D10: 6.A | E10: 0 | F10: 707.6107236 | G10: 537.4665074 | H10: 440.8427291 | I10: 575.016 | J10: 565.44 | K10: 325 | L10: 554.4444444 | M10: 0 | N10: 0 | O10: 412.5 | P10: 144 | Q10: 0 | R10: 0 | S10: 225.8795325 | T10: 293.75 | U10: 722 | V10: 0 | W10: 5503.949937
A11: 7. | B11: =B127 -> TOMÁŠ | C11: Jakub | D11: 6.A | E11: 0 | F11: 722.690997 | G11: 642.1466419 | H11: 685.7715849 | I11: 622.44 | J11: 616.92 | K11: 306.25 | L11: 491.6666667 | M11: 0 | N11: 739.972927 | O11: 562.5 | P11: 104 | Q11: 0 | R11: 300 | S11: 236.4149487 | T11: 662.5 | U11: 653.6 | V11: 0 | W11: 7346.873766
A12: 8. | B12: =B128 -> VÁCLAVÍK | C12: Jan | D12: 6.A | E12: 0 | F12: 727.4869732 | G12: 643.9919536 | H12: 648.2252539 | I12: 576.498 | J12: 599.76 | K12: 312.5 | L12: 456.6666667 | M12: 0 | N12: 734.3660791 | O12: 425 | P12: 88 | Q12: 0 | R12: 525 | S12: 229.995921 | T12: 631.25 | U12: 691.6 | V12: 0 | W12: 7290.340847
A13: 9. | B13: =B129 -> VEČEŘA | C13: David | D13: 6.A | E13: 0 | F13: 627.4254685 | G13: 407.9419398 | H13: 552.474462 | I13: 499.434 | J13: 513.96 | K13: 287.5 | L13: 466.6666667 | M13: 0 | N13: 597.4113857 | O13: 437.5 | P13: 56 | Q13: 0 | R13: 0 | S13: 0 | T13: 231.25 | U13: 566.2 | V13: 0 | W13: 5243.763923
A14: 10. | B14: =B130 -> VYBÍRAL | C14: Radim | D14: 6.A | E14: 0 | F14: 807.4243764 | G14: 758.9565742 | H14: 782.4494297 | I14: 680.238 | J14: 662.68 | K14: 375 | L14: 516.1111111 | M14: 0 | N14: 751.3008251 | O14: 687.5 | P14: 280 | Q14: 0 | R14: 525 | S14: 542.0782867 | T14: 718.75 | U14: 794.2 | V14: 0 | W14: 8881.688603
A15: 11. | B15: =B131 -> BERISHA | C15: David | D15: 6.B | E15: 0 | F15: 573.0345768 | G15: 0 | H15: 275.511637 | I15: 392.73 | J15: 388.12 | K15: 218.75 | L15: 286.1111111 | M15: 0 | N15: 689.0223205 | O15: 0 | P15: 80 | Q15: 0 | R15: 0 | S15: 0 | T15: 0 | U15: 608 | V15: 0 | W15: 3511.279645
A16: 12. | B16: =B132 -> EFENBERK | C16: Šimon | D16: 6.B | E16: 0 | F16: 746.167838 | G16: 526.745587 | H16: 515.1147793 | I16: 530.556 | J16: 565.44 | K16: 262.5 | L16: 533.8888889 | M16: 0 | N16: 684.6151695 | O16: 500 | P16: 80 | Q16: 459.4836601 | R16: 0 | S16: 228.9976287 | T16: 525 | U16: 653.6 | V16: 0 | W16: 6812.109552
A17: 13. | B17: =B133 -> FEJKL | C17: Antonín | D17: 6.B | E17: 0 | F17: 768.7687942 | G17: 744.1615219 | H17: 716.3365869 | I17: 666.9 | J17: 616.92 | K17: 500 | L17: 520.5555556 | M17: 0 | N17: 803.2973807 | O17: 612.5 | P17: 280 | Q17: 401.9320679 | R17: 0 | S17: 306.9141833 | T17: 825 | U17: 779 | V17: 125 | W17: 8667.28609
A18: 14. | B18: =B134 -> GOTTSTEIN | C18: Matouš | D18: 6.B | E18: 0 | F18: 819.2100192 | G18: 811.516458 | H18: 849.6285826 | I18: 729.144 | J18: 685.56 | K18: 450 | L18: 525 | M18: 0 | N18: 801.2730516 | O18: 637.5 | P18: 160 | Q18: 397.7705926 | R18: 150 | S18: 437.7736562 | T18: 800 | U18: 813.2 | V18: 250 | W18: 9317.57636
A19: 15. | B19: =B135 -> HÁK | C19: Šimon | D19: 6.B | E19: 0 | F19: 0 | G19: 0 | H19: 0 | I19: 0 | J19: 0 | K19: 0 | L19: 0 | M19: 0 | N19: 0 | O19: 0 | P19: 0 | Q19: 0 | R19: 0 | S19: 0 | T19: 0 | U19: 0 | V19: 0 | W19: 0
A20: 16. | B20: =B136 -> POVAŽANEC | C20: Lukáš | D20: 6.B | E20: 0 | F20: 728.6978385 | G20: 529.7250091 | H20: 522.2033073 | I20: 586.872 | J20: 582.6 | K20: 412.5 | L20: 561.1111111 | M20: 0 | N20: 668.0633446 | O20: 375 | P20: 160 | Q20: 0 | R20: 0 | S20: 0 | T20: 368.75 | U20: 615.6 | V20: 0 | W20: 6111.122611
A21: 17. | B21: =B137 -> VANCL | C21: Jakub | D21: 6.B | E21: 0 | F21: 674.0025401 | G21: 471.4432042 | H21: 553.4020256 | I21: 454.974 | J21: 502.52 | K21: 256.25 | L21: 470 | M21: 0 | N21: 551.1411818 | O21: 462.5 | P21: 120 | Q21: 0 | R21: 75 | S21: 0 | T21: 112.5 | U21: 551 | V21: 0 | W21: 5254.732952
A22: 18. | B22: =B138 -> VANCL | C22: Miroslav | D22: 6.B | E22: 0 | F22: 663.6325813 | G22: 273.2719421 | H22: 383.0538881 | I22: 549.822 | J22: 571.16 | K22: 262.5 | L22: 443.3333333 | M22: 0 | N22: 603.039864 | O22: 337.5 | P22: 40 | Q22: 0 | R22: 0 | S22: 0 | T22: 425 | U22: 722 | V22: 0 | W22: 5274.313609
A23: 19. | B23: =B139 -> VOTOČEK | C23: Michal | D23: 6.B | E23: 0 | F23: 690.0489953 | G23: 489.9827871 | H23: 521.6156858 | I23: 480.168 | J23: 565.44 | K23: 375 | L23: 483.3333333 | M23: 0 | N23: 588.6290175 | O23: 462.5 | P23: 64 | Q23: 0 | R23: 0 | S23: 0 | T23: 312.5 | U23: 611.8 | V23: 0 | W23: 5645.017819
C25: CELKOVÉ VÝSLEDKY | W25: =TODAY() -> 2022-06-27
B27: 7. ročník | F27: 60 m | G27: 300m | H27: 1000m | I27: dálka | J27: výška | K27: míček | L27: koule | M27: oštěp | N27: člunek | O27: lehsed | P27: odbíjení | Q27: plavání | R27: shyby | S27: šplh | T27: švihadlo | U27: z místa | V27: REPRE | W27: CELKEM
A29: 1. | B29: =B140 -> BOUKAL | C29: =C140 -> Jakub | D29: 7.A | E29: 0 | F29: 0 | G29: 0 | H29: 0 | I29: 0 | J29: 0 | K29: 0 | L29: 540 | M29: 0 | N29: 466.698218 | O29: 0 | P29: 0 | Q29: 0 | R29: 0 | S29: 0 | T29: 306.25 | U29: 554.8 | V29: 0 | W29: 1867.748218
A30: 2. | B30: =B141 -> DEMČUK | C30: Ilja | D30: 7.A | E30: 0 | F30: 756.6054005 | G30: 698.0002058 | H30: 685.331938 | I30: 655.044 | J30: 668.4 | K30: 387.5 | L30: 527.2222222 | M30: 0 | N30: 739.0358447 | O30: 475 | P30: 48 | Q30: 0 | R30: 75 | S30: 0 | T30: 300 | U30: 691.6 | V30: 0 | W30: 6706.739611
A31: 3. | B31: =B142 -> FAISTAUER | C31: Kryštof | D31: 7.A | E31: 0 | F31: 812.0909077 | G31: 705.1870344 | H31: 704.1241418 | I31: 674.31 | J31: 725.6 | K31: 562.5 | L31: 506.1111111 | M31: 0 | N31: 803.2973807 | O31: 575 | P31: 80 | Q31: 0 | R31: 0 | S31: 454.4495972 | T31: 525 | U31: 809.4 | V31: 200 | W31: 8137.070173
A32: 4. | B32: =B143 -> FRK | C32: Matyáš | D32: 7.A | E32: 0 | F32: 622.4032872 | G32: 409.7476803 | H32: 403.2782067 | I32: 543.894 | J32: 0 | K32: 325 | L32: 479.4444444 | M32: 0 | N32: 626.7028757 | O32: 437.5 | P32: 72 | Q32: 0 | R32: 0 | S32: 0 | T32: 0 | U32: 646 | V32: 0 | W32: 4565.970494
A33: 5. | B33: =B144 -> HUBÁLOVSKÝ | C33: Marek | D33: 7.A | E33: 0 | F33: 686.8716023 | G33: 703.2857871 | H33: 623.9560503 | I33: 594.282 | J33: 639.8 | K33: 425 | L33: 451.1111111 | M33: 0 | N33: 728.7963523 | O33: 562.5 | P33: 152 | Q33: 0 | R33: 0 | S33: 225.8795325 | T33: 418.75 | U33: 725.8 | V33: 0 | W33: 6938.032436
A34: 6. | B34: =B145 -> MAŘAS | C34: Dominik | D34: 7.A | E34: 0 | F34: 0 | G34: 358.7850196 | H34: 404.6626946 | I34: 499.434 | J34: 611.2 | K34: 350 | L34: 455.5555556 | M34: 0 | N34: 535.1344495 | O34: 0 | P34: 48 | Q34: 0 | R34: 75 | S34: 0 | T34: 0 | U34: 771.4 | V34: 0 | W34: 4109.171719
A35: 7. | B35: =B146 -> MAŤÁTKO | C35: Jakub | D35: 7.A | E35: 0 | F35: 0 | G35: 296.6168196 | H35: 0 | I35: 0 | J35: 611.2 | K35: 312.5 | L35: 0 | M35: 0 | N35: 511.1595269 | O35: 0 | P35: 0 | Q35: 0 | R35: 0 | S35: 0 | T35: 0 | U35: 532 | V35: 0 | W35: 2263.476347
A36: 8. | B36: =B147 -> MERY | C36: Luboš | D36: 7.A | E36: 0 | F36: 681.6533976 | G36: 496.8807367 | H36: 595.9212799 | I36: 588.354 | J36: 0 | K36: 262.5 | L36: 438.8888889 | M36: 0 | N36: 677.6087828 | O36: 450 | P36: 48 | Q36: 0 | R36: 0 | S36: 0 | T36: 218.75 | U36: 608 | V36: 0 | W36: 5066.557086
A37: 9. | B37: =B148 -> NOVOTNÝ | C37: Matěj | D37: 7.A | E37: 0 | F37: 679.5927294 | G37: 464.8641341 | H37: 440.3119422 | I37: 542.412 | J37: 0 | K37: 318.75 | L37: 493.3333333 | M37: 0 | N37: 643.3650492 | O37: 412.5 | P37: 88 | Q37: 0 | R37: 0 | S37: 0 | T37: 431.25 | U37: 585.2 | V37: 0 | W37: 5099.579188
A38: 10. | B38: =B149 -> ŘEHOŘEK | C38: Vojtěch | D38: 7.A | E38: 0 | F38: 709.3123844 | G38: 529.2053145 | H38: 574.1306339 | I38: 631.332 | J38: 611.2 | K38: 560 | L38: 527.7777778 | M38: 0 | N38: 679.3552394 | O38: 412.5 | P38: 88 | Q38: 0 | R38: 0 | S38: 0 | T38: 593.75 | U38: 676.4 | V38: 200 | W38: 6792.96335
A39: 11. | B39: =B150 -> ŠÍR | C39: Matyáš | D39: 7.A | E39: 0 | F39: 687.9268179 | G39: 0 | H39: 613.887944 | I39: 545.376 | J39: 542.56 | K39: 312.5 | L39: 373.3333333 | M39: 0 | N39: 577.5582256 | O39: 437.5 | P39: 80 | Q39: 0 | R39: 0 | S39: 0 | T39: 412.5 | U39: 535.8 | V39: 0 | W39: 5118.942321
A40: 12. | B40: =B151 -> TORÁČ | C40: Tomáš | D40: 7.A | E40: 0 | F40: 0 | G40: 119.9046605 | H40: 334.2347908 | I40: 383.838 | J40: 496.8 | K40: 218.75 | L40: 418.8888889 | M40: 0 | N40: 342.7074986 | O40: 375 | P40: 48 | Q40: 0 | R40: 0 | S40: 0 | T40: 175 | U40: 342 | V40: 0 | W40: 3255.123839
A41: 13. | B41: =B152 -> ULLMAN | C41: Šimon | D41: 7.A | E41: 0 | F41: 854.4544355 | G41: 801.597725 | H41: 681.2104883 | I41: 626.886 | J41: 668.4 | K41: 0 | L41: 460.5555556 | M41: 0 | N41: 801.2730516 | O41: 575 | P41: 72 | Q41: 0 | R41: 600 | S41: 483.1202422 | T41: 306.25 | U41: 874 | V41: 0 | W41: 7804.747498
A42: 14. | B42: =B153 -> VÁCLAVÍK | C42: Ondřej | D42: 7.A | E42: 0 | F42: 793.051222 | G42: 396.2861288 | H42: 697.035122 | I42: 695.058 | J42: 599.76 | K42: 525 | L42: 0 | M42: 0 | N42: 810.423469 | O42: 525 | P42: 128 | Q42: 0 | R42: 825 | S42: 454.4495972 | T42: 518.75 | U42: 767.6 | V42: 25 | W42: 7760.413539
A43: 15. | B43: =B154 -> AUERSWALD | C43: Daniel | D43: 7.B | E43: 0 | F43: 759.9384151 | G43: 670.248152 | H43: 622.3229105 | I43: 674.31 | J43: 599.76 | K43: 362.5 | L43: 0 | M43: 0 | N43: 0 | O43: 500 | P43: 120 | Q43: 0 | R43: 225 | S43: 362.2515934 | T43: 531.25 | U43: 794.2 | V43: 25 | W43: 6246.781071
A44: 16. | B44: =B155 -> BODLÁK | C44: Vladimír | D44: 7.B | E44: 0 | F44: 0 | G44: 0 | H44: 0 | I44: 0 | J44: 0 | K44: 0 | L44: 0 | M44: 0 | N44: 0 | O44: 0 | P44: 0 | Q44: 0 | R44: 0 | S44: 0 | T44: 0 | U44: 0 | V44: 0 | W44: 0
A45: 17. | B45: =B156 -> BUDÍN | C45: Martin | D45: 7.B | E45: 0 | F45: 755.9429337 | G45: 664.7758676 | H45: 771.3578354 | I45: 604.656 | J45: 611.2 | K45: 462.5 | L45: 459.4444444 | M45: 0 | N45: 770.5328822 | O45: 500 | P45: 72 | Q45: 0 | R45: 375 | S45: 360.1728925 | T45: 825 | U45: 760 | V45: 0 | W45: 7992.582856
A46: 18. | B46: =B157 -> DVOŘÁK | C46: Dominik | D46: 7.B | E46: 0 | F46: 676.0224588 | G46: 573.6554298 | H46: 0 | I46: 542.412 | J46: 611.2 | K46: 387.5 | L46: 513.3333333 | M46: 0 | N46: 678.4815858 | O46: 525 | P46: 72 | Q46: 0 | R46: 0 | S46: 326.8324324 | T46: 443.75 | U46: 676.4 | V46: 0 | W46: 6026.58724
A47: 19. | B47: =B158 -> FIŠERA | C47: Vojtěch | D47: 7.B | E47: 0 | F47: 720.3211103 | G47: 0 | H47: 617.1630079 | I47: 558.714 | J47: 571.16 | K47: 237.5 | L47: 472.7777778 | M47: 0 | N47: 693.4515368 | O47: 550 | P47: 72 | Q47: 0 | R47: 0 | S47: 225.8795325 | T47: 250 | U47: 634.6 | V47: 0 | W47: 5603.566965
A48: 20. | B48: =B159 -> JINDŘIŠEK | C48: Vít | D48: 7.B | E48: 0 | F48: 867.0009914 | G48: 924.2720384 | H48: 857.2643218 | I48: 745.446 | J48: 759.92 | K48: 661.25 | L48: 606.1111111 | M48: 0 | N48: 841.716492 | O48: 625 | P48: 344 | Q48: 0 | R48: 1125 | S48: 547.1091217 | T48: 712.5 | U48: 870.2 | V48: 250 | W48: 10736.79008
A49: 21. | B49: =B160 -> JIROUŠ | C49: Matouš | D49: 7.B | E49: 0 | F49: 763.9841015 | G49: 667.23959 | H49: 0 | I49: 675.792 | J49: 599.76 | K49: 368.75 | L49: 494.4444444 | M49: 0 | N49: 705.9736758 | O49: 562.5 | P49: 112 | Q49: 0 | R49: 150 | S49: 316.7738135 | T49: 643.75 | U49: 763.8 | V49: 75 | W49: 6899.767625
A50: 22. | B50: =B161 -> KERLE | C50: Marek | D50: 7.B | E50: 0 | F50: 816.0280734 | G50: 809.4257451 | H50: 718.2323981 | I50: 752.856 | J50: 771.36 | K50: 575 | L50: 569.4444444 | M50: 0 | N50: 823.8306559 | O50: 700 | P50: 344 | Q50: 0 | R50: 900 | S50: 611.9556029 | T50: 650 | U50: 763.8 | V50: 175 | W50: 9980.93292
A51: 23. | B51: =B162 -> LUKEŠ | C51: Jakub | D51: 7.B | E51: 0 | F51: 824.8485875 | G51: 836.2580216 | H51: 802.8954518 | I51: 738.036 | J51: 817.12 | K51: 300 | L51: 441.6666667 | M51: 0 | N51: 769.5604759 | O51: 500 | P51: 152 | Q51: 0 | R51: 525 | S51: 446.8408849 | T51: 531.25 | U51: 915.8 | V51: 125 | W51: 8726.276088
A52: 24. | B52: =B163 -> OTT | C52: Matyáš | D52: 7.B | E52: 0 | F52: 828.1114119 | G52: 795.6854645 | H52: 833.7405554 | I52: 692.094 | J52: 697 | K52: 437.5 | L52: 506.6666667 | M52: 0 | N52: 790.2301812 | O52: 500 | P52: 192 | Q52: 570.3302526 | R52: 675 | S52: 357.1207348 | T52: 781.25 | U52: 725.8 | V52: 175 | W52: 9557.529267
A53: 25. | B53: =B164 -> POKORNÝ | C53: Matyáš | D53: 7.B | E53: 0 | F53: 837.2410454 | G53: 909.2217956 | H53: 873.8502746 | I53: 770.64 | J53: 754.2 | K53: 562.5 | L53: 472.7777778 | M53: 0 | N53: 896.8589319 | O53: 912.5 | P53: 192 | Q53: 0 | R53: 1050 | S53: 459.0421769 | T53: 806.25 | U53: 843.6 | V53: 250 | W53: 10590.682
A54: 26. | B54: =B165 -> POLÁČEK | C54: Matyáš | D54: 7.B | E54: 0 | F54: 679.0799062 | G54: 499.7702463 | H54: 0 | I54: 554.268 | J54: 542.56 | K54: 462.5 | L54: 461.1111111 | M54: 0 | N54: 0 | O54: 487.5 | P54: 88 | Q54: 0 | R54: 0 | S54: 0 | T54: 368.75 | U54: 627 | V54: 25 | W54: 4795.539264
A55: 27. | B55: =B166 -> SOUKUP | C55: Patrik | D55: 7.B | E55: 0 | F55: 0 | G55: 0 | H55: 0 | I55: 0 | J55: 0 | K55: 0 | L55: 0 | M55: 0 | N55: 0 | O55: 0 | P55: 0 | Q55: 0 | R55: 0 | S55: 0 | T55: 0 | U55: 0 | V55: 0 | W55: 0
A56: 28. | B56: =B167 -> VALENTA | C56: Jakub | D56: 7.B | E56: 0 | F56: 742.9754984 | G56: 787.6028804 | H56: 787.42602 | I56: 0 | J56: 725.6 | K56: 350 | L56: 466.6666667 | M56: 0 | N56: 820.716355 | O56: 750 | P56: 192 | Q56: 0 | R56: 0 | S56: 496.3805587 | T56: 556.25 | U56: 737.2 | V56: 250 | W56: 7662.817979
A57: 29. | B57: =B168 -> VRBATA | C57: Dominik | D57: 7.B | E57: 0 | F57: 751.3437545 | G57: 634.6718571 | H57: 693.2208108 | I57: 666.9 | J57: 599.76 | K57: 462.5 | L57: 522.7777778 | M57: 0 | N57: 713.2110561 | O57: 525 | P57: 128 | Q57: 580.4049576 | R57: 675 | S57: 617.2776402 | T57: 662.5 | U57: 729.6 | V57: 125 | W57: 9087.167854
C61: CELKOVÉ VÝSLEDKY | W61: =W25 -> 2022-06-27
B63: 8. ročník | F63: 60 m | G63: 300m | H63: 1000m | I63: dálka | J63: výška | K63: míček | L63: koule | M63: oštěp | N63: člunek | O63: lehsed | P63: odbíjení | Q63: plavání | R63: shyby | S63: šplh | T63: švihadlo | U63: z místa | V63: REPRE | W63: CELKEM
A65: 1. | B65: =B169 -> FEJKL | C65: =C169 -> Jan | D65: 8.A | E65: 0 | F65: 897.3444658 | G65: 887.3255032 | H65: 802.8199828 | I65: 798.798 | J65: 811.4 | K65: 762.5 | L65: 587.7777778 | M65: 0 | N65: 885.5078489 | O65: 637.5 | P65: 416 | Q65: 0 | R65: 0 | S65: 632.4704888 | T65: 631.25 | U65: 881.6 | V65: 125 | W65: 9757.294067
A66: 2. | B66: =B170 -> KOTYK | C66: Tadeáš | D66: 8.A | E66: 0 | F66: 693.2619561 | G66: 463.20925 | H66: 346.5857821 | I66: 536.484 | J66: 525.4 | K66: 325 | L66: 554.4444444 | M66: 0 | N66: 692.5639119 | O66: 412.5 | P66: 256 | Q66: 0 | R66: 0 | S66: 0 | T66: 456.25 | U66: 687.8 | V66: 0 | W66: 5949.499345
A67: 3. | B67: =B171 -> KRAUSE | C67: Tadeáš | D67: 8.A | E67: 0 | F67: 828.1114119 | G67: 848.7963795 | H67: 822.0620288 | I67: 788.424 | J67: 799.96 | K67: 468.75 | L67: 573.3333333 | M67: 0 | N67: 874.3234806 | O67: 637.5 | P67: 256 | Q67: 0 | R67: 0 | S67: 519.3719705 | T67: 1068.75 | U67: 839.8 | V67: 125 | W67: 9450.182605
A68: 4. | B68: =B172 -> LEŠÁK | C68: Martin | D68: 8.A | E68: 0 | F68: 712.1703439 | G68: 619.273247 | H68: 578.2191348 | I68: 660.972 | J68: 656.96 | K68: 375 | L68: 550.5555556 | M68: 0 | N68: 692.5639119 | O68: 362.5 | P68: 248 | Q68: 0 | R68: 0 | S68: 0 | T68: 350 | U68: 646 | V68: 0 | W68: 6452.214193
A69: 5. | B69: =B173 -> NECHANICKÝ | C69: David | D69: 8.A | E69: 0 | F69: 900.3153573 | G69: 833.831435 | H69: 721.4145761 | I69: 794.352 | J69: 685.56 | K69: 537.5 | L69: 627.7777778 | M69: 0 | N69: 882.135289 | O69: 475 | P69: 416 | Q69: 0 | R69: 300 | S69: 446.8408849 | T69: 668.75 | U69: 950 | V69: 175 | W69: 9414.47732
A70: 6. | B70: =B174 -> ŘEHOŘEK | C70: Jan | D70: 8.A | E70: 0 | F70: 830.5783105 | G70: 738.2362706 | H70: 670.7136105 | I70: 721.734 | J70: 777.08 | K70: 487.5 | L70: 494.4444444 | M70: 0 | N70: 832.1964843 | O70: 500 | P70: 746 | Q70: 0 | R70: 0 | S70: 326.3284155 | T70: 837.5 | U70: 798 | V70: 125 | W70: 8885.311536
A71: 7. | B71: =B175 -> SOUKUP | C71: Ondřej | D71: 8.A | E71: 0 | F71: 759.2690405 | G71: 0 | H71: 0 | I71: 572.052 | J71: 571.16 | K71: 0 | L71: 597.2222222 | M71: 0 | N71: 715.0299381 | O71: 587.5 | P71: 717.2 | Q71: 0 | R71: 0 | S71: 225.8795325 | T71: 950 | U71: 646 | V71: 75 | W71: 6416.312733
A72: 8. | B72: =B176 -> SPANILÝ | C72: David | D72: 8.A | E72: 0 | F72: 850.9463384 | G72: 863.649992 | H72: 784.3172348 | I72: 791.388 | J72: 685.56 | K72: 737.5 | L72: 605.5555556 | M72: 0 | N72: 843.8479711 | O72: 550 | P72: 746 | Q72: 0 | R72: 300 | S72: 671.9793924 | T72: 900 | U72: 881.6 | V72: 125 | W72: 10337.34448
A73: 9. | B73: =B177 -> ČADAN | C73: Benjamín | D73: 8.B | E73: 0 | F73: 712.1703439 | G73: 0 | H73: 0 | I73: 622.44 | J73: 639.8 | K73: 0 | L73: 522.2222222 | M73: 0 | N73: 0 | O73: 0 | P73: 72 | Q73: 0 | R73: 0 | S73: 0 | T73: 0 | U73: 634.6 | V73: 0 | W73: 3203.232566
A74: 10. | B74: =B178 -> ČERNÝ | C74: Michal | D74: 8.B | E74: 0 | F74: 757.2692403 | G74: 604.9894302 | H74: 574.9012345 | I74: 617.994 | J74: 599.76 | K74: 556.25 | L74: 635.5555556 | M74: 0 | N74: 769.5604759 | O74: 537.5 | P74: 240 | Q74: 0 | R74: 0 | S74: 0 | T74: 293.75 | U74: 615.6 | V74: 0 | W74: 6803.129936
A75: 11. | B75: =B179 -> DOLEJŠÍ | C75: David | D75: 8.B | E75: 0 | F75: 814.4478746 | G75: 738.8461192 | H75: 715.3774788 | I75: 706.914 | J75: 656.96 | K75: 268.75 | L75: 552.2222222 | M75: 0 | N75: 776.3918658 | O75: 500 | P75: 168 | Q75: 0 | R75: 150 | S75: 256.2049775 | T75: 475 | U75: 741 | V75: 50 | W75: 7570.114538
A76: 12. | B76: =B180 -> NOVÁK | C76: Matěj | D76: 8.B | E76: 0 | F76: 712.1703439 | G76: 0 | H76: 0 | I76: 650.598 | J76: 525.4 | K76: 412.5 | L76: 451.1111111 | M76: 0 | N76: 757.0233329 | O76: 437.5 | P76: 208 | Q76: 0 | R76: 450 | S76: 296.6736801 | T76: 756.25 | U76: 691.6 | V76: 25 | W76: 6373.826468
A77: 13. | B77: =B181 -> POVAŽANEC | C77: Martin | D77: 8.B | E77: 0 | F77: 848.3370614 | G77: 762.7740379 | H77: 687.2872017 | I77: 822.51 | J77: 822.84 | K77: 625 | L77: 775.5555556 | M77: 0 | N77: 759.899553 | O77: 425 | P77: 272 | Q77: 0 | R77: 75 | S77: 487.7005608 | T77: 437.5 | U77: 870.2 | V77: 50 | W77: 8721.60397
A78: 14. | B78: =B182 -> RICHTER | C78: Jakub | D78: 8.B | E78: 0 | F78: 746.8102109 | G78: 627.1520599 | H78: 608.8670668 | I78: 588.354 | J78: 542.56 | K78: 362.5 | L78: 511.1111111 | M78: 0 | N78: 699.6901644 | O78: 450 | P78: 168 | Q78: 0 | R78: 0 | S78: 324.0923699 | T78: 437.5 | U78: 722 | V78: 0 | W78: 6788.636983
A79: 15. | B79: =B183 -> ROZUMEK | C79: Adam | D79: 8.B | E79: 0 | F79: 771.5347637 | G79: 483.3185647 | H79: 597.4805048 | I79: 577.98 | J79: 571.16 | K79: 562.5 | L79: 688.8888889 | M79: 0 | N79: 741.850247 | O79: 537.5 | P79: 312 | Q79: 0 | R79: 0 | S79: 0 | T79: 693.75 | U79: 684 | V79: 0 | W79: 7221.962969
A80: 16. | B80: =B184 -> VALENTA | C80: František | D80: 8.B | E80: 0 | F80: 797.5251288 | G80: 647.0271306 | H80: 619.844357 | I80: 607.62 | J80: 628.36 | K80: 350 | L80: 594.4444444 | M80: 0 | N80: 803.2973807 | O80: 525 | P80: 272 | Q80: 0 | R80: 150 | S80: 0 | T80: 450 | U80: 672.6 | V80: 0 | W80: 7117.718442
A81: 17. | B81: =B185 -> ZAPLATÍLEK | C81: Josef | D81: 8.B | E81: 0 | F81: 758.601056 | G81: 732.9806436 | H81: 706.5680968 | I81: 643.188 | J81: 725.6 | K81: 525 | L81: 490.5555556 | M81: 0 | N81: 832.1964843 | O81: 575 | P81: 312 | Q81: 0 | R81: 75 | S81: 225.8795325 | T81: 625 | U81: 763.8 | V81: 0 | W81: 7991.369369
C84: CELKOVÉ VÝSLEDKY
B86: 9. ročník | F86: 60 m | G86: 300m | H86: 1000m | I86: dálka | J86: výška | K86: míček | L86: koule | M86: oštěp | N86: člunek | O86: lehsed | P86: odbíjení | Q86: plavání | R86: shyby | S86: šplh | T86: švihadlo | U86: z místa | V86: REPRE | W86: CELKEM
A88: 1. | B88: =B186 -> ERBEN | C88: =C186 -> Viktor | D88: 9.A | E88: 0 | F88: 744.2485451 | G88: 606.2274069 | H88: 591.4556434 | I88: 659.49 | J88: 668.4 | K88: 312.5 | L88: 0 | M88: 0 | N88: 736.2308693 | O88: 350 | P88: 440 | Q88: 0 | R88: 225 | S88: 371.3110352 | T88: 412.5 | U88: 763.8 | V88: 0 | W88: 6881.1635
A89: 2. | B89: =B187 -> FRANC | C89: Daniel | D89: 9.A | E89: 0 | F89: 709.3123844 | G89: 540.7903402 | H89: 448.0839787 | I89: 577.98 | J89: 571.16 | K89: 412.5 | L89: 652.7777778 | M89: 0 | N89: 775.4124277 | O89: 400 | P89: 408 | Q89: 0 | R89: 0 | S89: 0 | T89: 543.75 | U89: 646 | V89: 0 | W89: 6685.766909
A90: 3. | B90: =B188 -> JINDŘIŠEK | C90: Matyáš | D90: 9.A | E90: 0 | F90: 799.7843281 | G90: 755.7961632 | H90: 775.383217 | I90: 797.316 | J90: 714.16 | K90: 650 | L90: 707.7777778 | M90: 0 | N90: 878.7775806 | O90: 650 | P90: 480 | Q90: 0 | R90: 750 | S90: 755.2283877 | T90: 537.5 | U90: 881.6 | V90: 50 | W90: 10183.32345
A91: 4. | B91: =B189 -> KOLAČNÝ | C91: Štěpán | D91: 9.A | E91: 0 | F91: 716.2180571 | G91: 513.9102192 | H91: 531.806188 | I91: 663.936 | J91: 571.16 | K91: 412.5 | L91: 643.3333333 | M91: 0 | N91: 779.3373061 | O91: 412.5 | P91: 496 | Q91: 0 | R91: 75 | S91: 0 | T91: 0 | U91: 661.2 | V91: 0 | W91: 6476.901104
A92: 5. | B92: =B190 -> KRISTAN | C92: Jáchym | D92: 9.A | E92: 0 | F92: 586.2316238 | G92: 333.6491763 | H92: 436.510202 | I92: 523.146 | J92: 0 | K92: 250 | L92: 437.7777778 | M92: 0 | N92: 497.8791149 | O92: 287.5 | P92: 64 | Q92: 0 | R92: 0 | S92: 0 | T92: 0 | U92: 456 | V92: 0 | W92: 3872.693895
A93: 6. | B93: =B191 -> NGUYEN | C93: David | D93: 9.A | E93: 0 | F93: 794.5359835 | G93: 688.3298735 | H93: 606.1942507 | I93: 786.942 | J93: 697 | K93: 593.75 | L93: 635.5555556 | M93: 0 | N93: 898.003429 | O93: 375 | P93: 480 | Q93: 0 | R93: 150 | S93: 693.8880489 | T93: 612.5 | U93: 877.8 | V93: 0 | W93: 8889.499141
A94: 7. | B94: =B192 -> NOVOTNÝ | C94: Jan | D94: 9.A | E94: 0 | F94: 819.2100192 | G94: 664.074241 | H94: 663.559629 | I94: 689.13 | J94: 714.16 | K94: 387.5 | L94: 669.4444444 | M94: 0 | N94: 860.0239829 | O94: 550 | P94: 72 | Q94: 0 | R94: 375 | S94: 464.4364436 | T94: 512.5 | U94: 828.4 | V94: 0 | W94: 8269.43876
A95: 8. | B95: =B193 -> RÁB | C95: Adam | D95: 9.A | E95: 0 | F95: 702.5638075 | G95: 493.0602204 | H95: 436.7320031 | I95: 577.98 | J95: 571.16 | K95: 431.25 | L95: 721.1111111 | M95: 0 | N95: 705.9736758 | O95: 375 | P95: 168 | Q95: 0 | R95: 0 | S95: 0 | T95: 0 | U95: 649.8 | V95: 0 | W95: 5832.630818
A96: 9. | B96: =B194 -> REPASKÝ | C96: Jakub | D96: 9.A | E96: 0 | F96: 850.9463384 | G96: 727.5786867 | H96: 694.6286202 | I96: 736.554 | J96: 771.36 | K96: 737.5 | L96: 778.8888889 | M96: 0 | N96: 855.6771362 | O96: 625 | P96: 657.2 | Q96: 0 | R96: 450 | S96: 657.6898195 | T96: 818.75 | U96: 904.4 | V96: 50 | W96: 10316.17349
A97: 10. | B97: =B195 -> SKÁLA | C97: Jan | D97: 9.A | E97: 0 | F97: 843.1736979 | G97: 719.0908052 | H97: 733.3917631 | I97: 776.568 | J97: 697 | K97: 487.5 | L97: 652.2222222 | M97: 0 | N97: 867.6905756 | O97: 612.5 | P97: 240 | Q97: 0 | R97: 900 | S97: 558.5727507 | T97: 656.25 | U97: 900.6 | V97: 75 | W97: 9719.559815
A98: 11. | B98: =B196 -> ŠPULÁK | C98: Jakub | D98: 9.A | E98: 0 | F98: 757.9344574 | G98: 617.3640243 | H98: 608.7371918 | I98: 699.504 | J98: 668.4 | K98: 618.75 | L98: 671.1111111 | M98: 0 | N98: 823.8306559 | O98: 0 | P98: 528 | Q98: 665.5228413 | R98: 0 | S98: 0 | T98: 481.25 | U98: 817 | V98: 50 | W98: 8007.404282
A99: 12. | B99: =B197 -> VALENTA | C99: Tomáš | D99: 9.A | E99: 0 | F99: 906.3254367 | G99: 860.0908738 | H99: 749.6019638 | I99: 909.948 | J99: 868.6 | K99: 800 | L99: 781.6666667 | M99: 0 | N99: 953.8536221 | O99: 700 | P99: 657.2 | Q99: 0 | R99: 600 | S99: 657.6898195 | T99: 806.25 | U99: 995.6 | V99: 125 | W99: 11371.82638
A100: 13. | B100: =B198 -> VANCL | C100: Jiří | D100: 9.A | E100: 0 | F100: 800.5407267 | G100: 601.7557061 | H100: 594.4114691 | I100: 741 | J100: 628.36 | K100: 362.5 | L100: 663.8888889 | M100: 0 | N100: 808.3808967 | O100: 525 | P100: 528 | Q100: 0 | R100: 75 | S100: 0 | T100: 593.75 | U100: 824.6 | V100: 50 | W100: 7797.187688
A101: 14. | B101: =B199 -> VAŠÍČEK | C101: David | D101: 9.A | E101: 0 | F101: 812.0909077 | G101: 743.9560816 | H101: 807.9080894 | I101: 693.576 | J101: 0 | K101: 450 | L101: 0 | M101: 0 | N101: 868.7920797 | O101: 0 | P101: 176 | Q101: 0 | R101: 450 | S101: 429.7268592 | T101: 687.5 | U101: 836 | V101: 0 | W101: 6955.550018
A102: 15. | B102: =B200 -> ZOUHAR | C102: Ondřej | D102: 9.A | E102: 0 | F102: 901.3106814 | G102: 748.4944524 | H102: 626.6054141 | I102: 0 | J102: 771.36 | K102: 500 | L102: 611.1111111 | M102: 0 | N102: 879.8951758 | O102: 450 | P102: 496 | Q102: 0 | R102: 75 | S102: 497.1884064 | T102: 637.5 | U102: 801.8 | V102: 50 | W102: 8046.265241
A103: 16. | B103: =B201 -> ZUZÁNEK | C103: Filip | D103: 9.A | E103: 0 | F103: 811.3087831 | G103: 610.2742234 | H103: 620.0464023 | I103: 752.856 | J103: 656.96 | K103: 325 | L103: 596.1111111 | M103: 0 | N103: 879.8951758 | O103: 625 | P103: 368 | Q103: 0 | R103: 1050 | S103: 446.2213961 | T103: 0 | U103: 805.6 | V103: 0 | W103: 8547.273092
F120: 60 m | G120: 300m | H120: 1000m | I120: dálka | J120: výška | K120: míček | L120: koule | M120: oštěp | N120: člunek | O120: lehsed | P120: odbíjení | Q120: plavání | R120: shyby | S120: šplh | T120: švihadlo | U120: z místa | V120: REPRE | W120: CELKEM
B121: EXNER | C121: Tomáš | D121: 6.A | F121: ='60'!H101 -> 796.0272713 | G121: ='300'!H101 -> 577.7079054 | H121: ='1000'!H101 -> 467.3692038 | I121: =DÁLKA!H101 -> 717.288 | J121: =VÝŠKA!H101 -> 616.92 | K121: =MÍČEK!H101 -> 200 | L121: =KOULE!H101 -> 532.2222222 | M121: =OŠTĚP!H101 -> 0 | N121: =ČLUNEK!H101 -> 697.0110275 | O121: =LEHSED!H101 -> 525 | P121: =ODBÍJENÍ!H101 -> 120 | Q121: =PLAVÁNÍ!H101 -> 402.8594033 | R121: =SHYBY!H101 -> 150 | S121: =ŠPLH!H101 -> 0 | T121: =ŠVIHADLO!H101 -> 400 | U121: ='Z MÍSTA'!H101 -> 877.8 | V121: =REPRE!E4 -> 0 | W121: =SUM(F121:V121) -> 7080.205033
B122: JANATA | C122: Denis | D122: 6.A | F122: ='60'!H102 -> 739.8153396 | G122: ='300'!H102 -> 572.2171302 | H122: ='1000'!H102 -> 504.9564792 | I122: =DÁLKA!H102 -> 601.692 | J122: =VÝŠKA!H102 -> 571.16 | K122: =MÍČEK!H102 -> 300 | L122: =KOULE!H102 -> 413.8888889 | M122: =OŠTĚP!H102 -> 0 | N122: =ČLUNEK!H102 -> 601.4285254 | O122: =LEHSED!H102 -> 437.5 | P122: =ODBÍJENÍ!H102 -> 144 | Q122: =PLAVÁNÍ!H102 -> 0 | R122: =SHYBY!H102 -> 0 | S122: =ŠPLH!H102 -> 0 | T122: =ŠVIHADLO!H102 -> 406.25 | U122: ='Z MÍSTA'!H102 -> 566.2 | V122: =REPRE!E5 -> 0 | W122: 5859.108363
B123: JINDŘIŠEK | C123: Alex Jiří | D123: 6.A | F123: ='60'!H103 -> 755.9429337 | G123: ='300'!H103 -> 567.5040087 | H123: ='1000'!H103 -> 486.6566538 | I123: =DÁLKA!H103 -> 570.57 | J123: =VÝŠKA!H103 -> 513.96 | K123: =MÍČEK!H103 -> 312.5 | L123: =KOULE!H103 -> 591.6666667 | M123: =OŠTĚP!H103 -> 0 | N123: =ČLUNEK!H103 -> 0 | O123: =LEHSED!H103 -> 462.5 | P123: =ODBÍJENÍ!H103 -> 56 | Q123: =PLAVÁNÍ!H103 -> 0 | R123: =SHYBY!H103 -> 0 | S123: =ŠPLH!H103 -> 0 | T123: =ŠVIHADLO!H103 -> 0 | U123: ='Z MÍSTA'!H103 -> 380 | V123: =REPRE!E6 -> 0 | W123: 4697.300263
B124: MARŠÁLEK | C124: Ondřej | D124: 6.A | F124: ='60'!H104 -> 735.4442612 | G124: ='300'!H104 -> 460.3575973 | H124: ='1000'!H104 -> 517.9925278 | I124: =DÁLKA!H104 -> 530.556 | J124: =VÝŠKA!H104 -> 571.16 | K124: =MÍČEK!H104 -> 281.25 | L124: =KOULE!H104 -> 515 | M124: =OŠTĚP!H104 -> 0 | N124: =ČLUNEK!H104 -> 673.2574349 | O124: =LEHSED!H104 -> 450 | P124: =ODBÍJENÍ!H104 -> 64 | Q124: =PLAVÁNÍ!H104 -> 0 | R124: =SHYBY!H104 -> 0 | S124: =ŠPLH!H104 -> 0 | T124: =ŠVIHADLO!H104 -> 218.75 | U124: ='Z MÍSTA'!H104 -> 642.2 | V124: =REPRE!E7 -> 0 | W124: 5659.967821
B125: MLATEČEK | C125: Patrik | D125: 6.A | F125: ='60'!H105 -> 665.5779902 | G125: ='300'!H105 -> 416.1890542 | H125: ='1000'!H105 -> 491.4076741 | I125: =DÁLKA!H105 -> 499.434 | J125: =VÝŠKA!H105 -> 502.52 | K125: =MÍČEK!H105 -> 331.25 | L125: =KOULE!H105 -> 471.1111111 | M125: =OŠTĚP!H105 -> 0 | N125: =ČLUNEK!H105 -> 532.1107918 | O125: =LEHSED!H105 -> 375 | P125: =ODBÍJENÍ!H105 -> 64 | Q125: =PLAVÁNÍ!H105 -> 0 | R125: =SHYBY!H105 -> 0 | S125: =ŠPLH!H105 -> 0 | T125: =ŠVIHADLO!H105 -> 218.75 | U125: ='Z MÍSTA'!H105 -> 494 | V125: =REPRE!E8 -> 0 | W125: 5061.350621
B126: SCHOLZ | C126: Matyáš | D126: 6.A | F126: ='60'!H106 -> 707.6107236 | G126: ='300'!H106 -> 537.4665074 | H126: ='1000'!H106 -> 440.8427291 | I126: =DÁLKA!H106 -> 575.016 | J126: =VÝŠKA!H106 -> 565.44 | K126: =MÍČEK!H106 -> 325 | L126: =KOULE!H106 -> 554.4444444 | M126: =OŠTĚP!H106 -> 0 | N126: =ČLUNEK!H106 -> 0 | O126: =LEHSED!H106 -> 412.5 | P126: =ODBÍJENÍ!H106 -> 144 | Q126: =PLAVÁNÍ!H106 -> 0 | R126: =SHYBY!H106 -> 0 | S126: =ŠPLH!H106 -> 225.8795325 | T126: =ŠVIHADLO!H106 -> 293.75 | U126: ='Z MÍSTA'!H106 -> 722 | V126: =REPRE!E9 -> 0 | W126: 5503.949937
B127: TOMÁŠ | C127: Jakub | D127: 6.A | F127: ='60'!H107 -> 722.690997 | G127: ='300'!H107 -> 642.1466419 | H127: ='1000'!H107 -> 685.7715849 | I127: =DÁLKA!H107 -> 622.44 | J127: =VÝŠKA!H107 -> 616.92 | K127: =MÍČEK!H107 -> 306.25 | L127: =KOULE!H107 -> 491.6666667 | M127: =OŠTĚP!H107 -> 0 | N127: =ČLUNEK!H107 -> 739.972927 | O127: =LEHSED!H107 -> 562.5 | P127: =ODBÍJENÍ!H107 -> 104 | Q127: =PLAVÁNÍ!H107 -> 0 | R127: =SHYBY!H107 -> 300 | S127: =ŠPLH!H107 -> 236.4149487 | T127: =ŠVIHADLO!H107 -> 662.5 | U127: ='Z MÍSTA'!H107 -> 653.6 | V127: =REPRE!E10 -> 0 | W127: 7346.873766
B128: VÁCLAVÍK | C128: Jan | D128: 6.A | F128: ='60'!H108 -> 727.4869732 | G128: ='300'!H108 -> 643.9919536 | H128: ='1000'!H108 -> 648.2252539 | I128: =DÁLKA!H108 -> 576.498 | J128: =VÝŠKA!H108 -> 599.76 | K128: =MÍČEK!H108 -> 312.5 | L128: =KOULE!H108 -> 456.6666667 | M128: =OŠTĚP!H108 -> 0 | N128: =ČLUNEK!H108 -> 734.3660791 | O128: =LEHSED!H108 -> 425 | P128: =ODBÍJENÍ!H108 -> 88 | Q128: =PLAVÁNÍ!H108 -> 0 | R128: =SHYBY!H108 -> 525 | S128: =ŠPLH!H108 -> 229.995921 | T128: =ŠVIHADLO!H108 -> 631.25 | U128: ='Z MÍSTA'!H108 -> 691.6 | V128: =REPRE!E11 -> 0 | W128: 7290.340847
B129: VEČEŘA | C129: David | D129: 6.A | F129: ='60'!H109 -> 627.4254685 | G129: ='300'!H109 -> 407.9419398 | H129: ='1000'!H109 -> 552.474462 | I129: =DÁLKA!H109 -> 499.434 | J129: =VÝŠKA!H109 -> 513.96 | K129: =MÍČEK!H109 -> 287.5 | L129: =KOULE!H109 -> 466.6666667 | M129: =OŠTĚP!H109 -> 0 | N129: =ČLUNEK!H109 -> 597.4113857 | O129: =LEHSED!H109 -> 437.5 | P129: =ODBÍJENÍ!H109 -> 56 | Q129: =PLAVÁNÍ!H109 -> 0 | R129: =SHYBY!H109 -> 0 | S129: =ŠPLH!H109 -> 0 | T129: =ŠVIHADLO!H109 -> 231.25 | U129: ='Z MÍSTA'!H109 -> 566.2 | V129: =REPRE!E12 -> 0 | W129: 5243.763923
B130: VYBÍRAL | C130: Radim | D130: 6.A | F130: ='60'!H110 -> 807.4243764 | G130: ='300'!H110 -> 758.9565742 | H130: ='1000'!H110 -> 782.4494297 | I130: =DÁLKA!H110 -> 680.238 | J130: =VÝŠKA!H110 -> 662.68 | K130: =MÍČEK!H110 -> 375 | L130: =KOULE!H110 -> 516.1111111 | M130: =OŠTĚP!H110 -> 0 | N130: =ČLUNEK!H110 -> 751.3008251 | O130: =LEHSED!H110 -> 687.5 | P130: =ODBÍJENÍ!H110 -> 280 | Q130: =PLAVÁNÍ!H110 -> 0 | R130: =SHYBY!H110 -> 525 | S130: =ŠPLH!H110 -> 542.0782867 | T130: =ŠVIHADLO!H110 -> 718.75 | U130: ='Z MÍSTA'!H110 -> 794.2 | V130: =REPRE!E13 -> 0 | W130: 8881.688603
B131: BERISHA | C131: David | D131: 6.B | F131: ='60'!H111 -> 573.0345768 | G131: ='300'!H111 -> 0 | H131: ='1000'!H111 -> 275.511637 | I131: =DÁLKA!H111 -> 392.73 | J131: =VÝŠKA!H111 -> 388.12 | K131: =MÍČEK!H111 -> 218.75 | L131: =KOULE!H111 -> 286.1111111 | M131: =OŠTĚP!H111 -> 0 | N131: =ČLUNEK!H111 -> 689.0223205 | O131: =LEHSED!H111 -> 0 | P131: =ODBÍJENÍ!H111 -> 80 | Q131: =PLAVÁNÍ!H111 -> 0 | R131: =SHYBY!H111 -> 0 | S131: =ŠPLH!H111 -> 0 | T131: =ŠVIHADLO!H111 -> 0 | U131: ='Z MÍSTA'!H111 -> 608 | V131: =REPRE!E14 -> 0 | W131: 3511.279645
B132: EFENBERK | C132: Šimon | D132: 6.B | F132: ='60'!H112 -> 746.167838 | G132: ='300'!H112 -> 526.745587 | H132: ='1000'!H112 -> 515.1147793 | I132: =DÁLKA!H112 -> 530.556 | J132: =VÝŠKA!H112 -> 565.44 | K132: =MÍČEK!H112 -> 262.5 | L132: =KOULE!H112 -> 533.8888889 | M132: =OŠTĚP!H112 -> 0 | N132: =ČLUNEK!H112 -> 684.6151695 | O132: =LEHSED!H112 -> 500 | P132: =ODBÍJENÍ!H112 -> 80 | Q132: =PLAVÁNÍ!H112 -> 459.4836601 | R132: =SHYBY!H112 -> 0 | S132: =ŠPLH!H112 -> 228.9976287 | T132: =ŠVIHADLO!H112 -> 525 | U132: ='Z MÍSTA'!H112 -> 653.6 | V132: =REPRE!E15 -> 0 | W132: 6812.109552
B133: FEJKL | C133: Antonín | D133: 6.B | F133: ='60'!H113 -> 768.7687942 | G133: ='300'!H113 -> 744.1615219 | H133: ='1000'!H113 -> 716.3365869 | I133: =DÁLKA!H113 -> 666.9 | J133: =VÝŠKA!H113 -> 616.92 | K133: =MÍČEK!H113 -> 500 | L133: =KOULE!H113 -> 520.5555556 | M133: =OŠTĚP!H113 -> 0 | N133: =ČLUNEK!H113 -> 803.2973807 | O133: =LEHSED!H113 -> 612.5 | P133: =ODBÍJENÍ!H113 -> 280 | Q133: =PLAVÁNÍ!H113 -> 401.9320679 | R133: =SHYBY!H113 -> 0 | S133: =ŠPLH!H113 -> 306.9141833 | T133: =ŠVIHADLO!H113 -> 825 | U133: ='Z MÍSTA'!H113 -> 779 | V133: =REPRE!E16 -> 125 | W133: 8667.28609
B134: GOTTSTEIN | C134: Matouš | D134: 6.B | F134: ='60'!H114 -> 819.2100192 | G134: ='300'!H114 -> 811.516458 | H134: ='1000'!H114 -> 849.6285826 | I134: =DÁLKA!H114 -> 729.144 | J134: =VÝŠKA!H114 -> 685.56 | K134: =MÍČEK!H114 -> 450 | L134: =KOULE!H114 -> 525 | M134: =OŠTĚP!H114 -> 0 | N134: =ČLUNEK!H114 -> 801.2730516 | O134: =LEHSED!H114 -> 637.5 | P134: =ODBÍJENÍ!H114 -> 160 | Q134: =PLAVÁNÍ!H114 -> 397.7705926 | R134: =SHYBY!H114 -> 150 | S134: =ŠPLH!H114 -> 437.7736562 | T134: =ŠVIHADLO!H114 -> 800 | U134: ='Z MÍSTA'!H114 -> 813.2 | V134: =REPRE!E17 -> 250 | W134: 9317.57636
B135: HÁK | C135: Šimon | D135: 6.B | F135: ='60'!H115 -> 0 | G135: ='300'!H115 -> 0 | H135: ='1000'!H115 -> 0 | I135: =DÁLKA!H115 -> 0 | J135: =VÝŠKA!H115 -> 0 | K135: =MÍČEK!H115 -> 0 | L135: =KOULE!H115 -> 0 | M135: =OŠTĚP!H115 -> 0 | N135: =ČLUNEK!H115 -> 0 | O135: =LEHSED!H115 -> 0 | P135: =ODBÍJENÍ!H115 -> 0 | Q135: =PLAVÁNÍ!H115 -> 0 | R135: =SHYBY!H115 -> 0 | S135: =ŠPLH!H115 -> 0 | T135: =ŠVIHADLO!H115 -> 0 | U135: ='Z MÍSTA'!H115 -> 0 | V135: =REPRE!E18 -> 0 | W135: 0
B136: POVAŽANEC | C136: Lukáš | D136: 6.B | F136: ='60'!H116 -> 728.6978385 | G136: ='300'!H116 -> 529.7250091 | H136: ='1000'!H116 -> 522.2033073 | I136: =DÁLKA!H116 -> 586.872 | J136: =VÝŠKA!H116 -> 582.6 | K136: =MÍČEK!H116 -> 412.5 | L136: =KOULE!H116 -> 561.1111111 | M136: =OŠTĚP!H116 -> 0 | N136: =ČLUNEK!H116 -> 668.0633446 | O136: =LEHSED!H116 -> 375 | P136: =ODBÍJENÍ!H116 -> 160 | Q136: =PLAVÁNÍ!H116 -> 0 | R136: =SHYBY!H116 -> 0 | S136: =ŠPLH!H116 -> 0 | T136: =ŠVIHADLO!H116 -> 368.75 | U136: ='Z MÍSTA'!H116 -> 615.6 | V136: =REPRE!E19 -> 0 | W136: 6111.122611
B137: VANCL | C137: Jakub | D137: 6.B | F137: ='60'!H117 -> 674.0025401 | G137: ='300'!H117 -> 471.4432042 | H137: ='1000'!H117 -> 553.4020256 | I137: =DÁLKA!H117 -> 454.974 | J137: =VÝŠKA!H117 -> 502.52 | K137: =MÍČEK!H117 -> 256.25 | L137: =KOULE!H117 -> 470 | M137: =OŠTĚP!H117 -> 0 | N137: =ČLUNEK!H117 -> 551.1411818 | O137: =LEHSED!H117 -> 462.5 | P137: =ODBÍJENÍ!H117 -> 120 | Q137: =PLAVÁNÍ!H117 -> 0 | R137: =SHYBY!H117 -> 75 | S137: =ŠPLH!H117 -> 0 | T137: =ŠVIHADLO!H117 -> 112.5 | U137: ='Z MÍSTA'!H117 -> 551 | V137: =REPRE!E20 -> 0 | W137: 5254.732952
B138: VANCL | C138: Miroslav | D138: 6.B | F138: ='60'!H118 -> 663.6325813 | G138: ='300'!H118 -> 273.2719421 | H138: ='1000'!H118 -> 383.0538881 | I138: =DÁLKA!H118 -> 549.822 | J138: =VÝŠKA!H118 -> 571.16 | K138: =MÍČEK!H118 -> 262.5 | L138: =KOULE!H118 -> 443.3333333 | M138: =OŠTĚP!H118 -> 0 | N138: =ČLUNEK!H118 -> 603.039864 | O138: =LEHSED!H118 -> 337.5 | P138: =ODBÍJENÍ!H118 -> 40 | Q138: =PLAVÁNÍ!H118 -> 0 | R138: =SHYBY!H118 -> 0 | S138: =ŠPLH!H118 -> 0 | T138: =ŠVIHADLO!H118 -> 425 | U138: ='Z MÍSTA'!H118 -> 722 | V138: =REPRE!E21 -> 0 | W138: 5274.313609
B139: VOTOČEK | C139: Michal | D139: 6.B | F139: ='60'!H119 -> 690.0489953 | G139: ='300'!H119 -> 489.9827871 | H139: ='1000'!H119 -> 521.6156858 | I139: =DÁLKA!H119 -> 480.168 | J139: =VÝŠKA!H119 -> 565.44 | K139: =MÍČEK!H119 -> 375 | L139: =KOULE!H119 -> 483.3333333 | M139: =OŠTĚP!H119 -> 0 | N139: =ČLUNEK!H119 -> 588.6290175 | O139: =LEHSED!H119 -> 462.5 | P139: =ODBÍJENÍ!H119 -> 64 | Q139: =PLAVÁNÍ!H119 -> 0 | R139: =SHYBY!H119 -> 0 | S139: =ŠPLH!H119 -> 0 | T139: =ŠVIHADLO!H119 -> 312.5 | U139: ='Z MÍSTA'!H119 -> 611.8 | V139: =REPRE!E22 -> 0 | W139: 5645.017819
B140: BOUKAL | C140: Jakub | D140: 7.A | F140: ='60'!H120 -> 0 | G140: ='300'!H120 -> 0 | H140: ='1000'!H120 -> 0 | I140: =DÁLKA!H120 -> 0 | J140: =VÝŠKA!H120 -> 0 | K140: =MÍČEK!H120 -> 0 | L140: =KOULE!H120 -> 540 | M140: =OŠTĚP!H120 -> 0 | N140: =ČLUNEK!H120 -> 466.698218 | O140: =LEHSED!H120 -> 0 | P140: =ODBÍJENÍ!H120 -> 0 | Q140: =PLAVÁNÍ!H120 -> 0 | R140: =SHYBY!H120 -> 0 | S140: =ŠPLH!H120 -> 0 | T140: =ŠVIHADLO!H120 -> 306.25 | U140: ='Z MÍSTA'!H120 -> 554.8 | V140: =REPRE!E23 -> 0 | W140: 1867.748218
B141: DEMČUK | C141: Ilja | D141: 7.A | F141: ='60'!H121 -> 756.6054005 | G141: ='300'!H121 -> 698.0002058 | H141: ='1000'!H121 -> 685.331938 | I141: =DÁLKA!H121 -> 655.044 | J141: =VÝŠKA!H121 -> 668.4 | K141: =MÍČEK!H121 -> 387.5 | L141: =KOULE!H121 -> 527.2222222 | M141: =OŠTĚP!H121 -> 0 | N141: =ČLUNEK!H121 -> 739.0358447 | O141: =LEHSED!H121 -> 475 | P141: =ODBÍJENÍ!H121 -> 48 | Q141: =PLAVÁNÍ!H121 -> 0 | R141: =SHYBY!H121 -> 75 | S141: =ŠPLH!H121 -> 0 | T141: =ŠVIHADLO!H121 -> 300 | U141: ='Z MÍSTA'!H121 -> 691.6 | V141: =REPRE!E24 -> 0 | W141: 6706.739611
B142: FAISTAUER | C142: Kryštof | D142: 7.A | F142: ='60'!H122 -> 812.0909077 | G142: ='300'!H122 -> 705.1870344 | H142: ='1000'!H122 -> 704.1241418 | I142: =DÁLKA!H122 -> 674.31 | J142: =VÝŠKA!H122 -> 725.6 | K142: =MÍČEK!H122 -> 562.5 | L142: =KOULE!H122 -> 506.1111111 | M142: =OŠTĚP!H122 -> 0 | N142: =ČLUNEK!H122 -> 803.2973807 | O142: =LEHSED!H122 -> 575 | P142: =ODBÍJENÍ!H122 -> 80 | Q142: =PLAVÁNÍ!H122 -> 0 | R142: =SHYBY!H122 -> 0 | S142: =ŠPLH!H122 -> 454.4495972 | T142: =ŠVIHADLO!H122 -> 525 | U142: ='Z MÍSTA'!H122 -> 809.4 | V142: =REPRE!E25 -> 200 | W142: 8137.070173
B143: FRK | C143: Matyáš | D143: 7.A | F143: ='60'!H123 -> 622.4032872 | G143: ='300'!H123 -> 409.7476803 | H143: ='1000'!H123 -> 403.2782067 | I143: =DÁLKA!H123 -> 543.894 | J143: =VÝŠKA!H123 -> 0 | K143: =MÍČEK!H123 -> 325 | L143: =KOULE!H123 -> 479.4444444 | M143: =OŠTĚP!H123 -> 0 | N143: =ČLUNEK!H123 -> 626.7028757 | O143: =LEHSED!H123 -> 437.5 | P143: =ODBÍJENÍ!H123 -> 72 | Q143: =PLAVÁNÍ!H123 -> 0 | R143: =SHYBY!H123 -> 0 | S143: =ŠPLH!H123 -> 0 | T143: =ŠVIHADLO!H123 -> 0 | U143: ='Z MÍSTA'!H123 -> 646 | V143: =REPRE!E26 -> 0 | W143: 4565.970494
B144: HUBÁLOVSKÝ | C144: Marek | D144: 7.A | F144: ='60'!H124 -> 686.8716023 | G144: ='300'!H124 -> 703.2857871 | H144: ='1000'!H124 -> 623.9560503 | I144: =DÁLKA!H124 -> 594.282 | J144: =VÝŠKA!H124 -> 639.8 | K144: =MÍČEK!H124 -> 425 | L144: =KOULE!H124 -> 451.1111111 | M144: =OŠTĚP!H124 -> 0 | N144: =ČLUNEK!H124 -> 728.7963523 | O144: =LEHSED!H124 -> 562.5 | P144: =ODBÍJENÍ!H124 -> 152 | Q144: =PLAVÁNÍ!H124 -> 0 | R144: =SHYBY!H124 -> 0 | S144: =ŠPLH!H124 -> 225.8795325 | T144: =ŠVIHADLO!H124 -> 418.75 | U144: ='Z MÍSTA'!H124 -> 725.8 | V144: =REPRE!E27 -> 0 | W144: 6938.032436
B145: MAŘAS | C145: Dominik | D145: 7.A | F145: ='60'!H125 -> 0 | G145: ='300'!H125 -> 358.7850196 | H145: ='1000'!H125 -> 404.6626946 | I145: =DÁLKA!H125 -> 499.434 | J145: =VÝŠKA!H125 -> 611.2 | K145: =MÍČEK!H125 -> 350 | L145: =KOULE!H125 -> 455.5555556 | M145: =OŠTĚP!H125 -> 0 | N145: =ČLUNEK!H125 -> 535.1344495 | O145: =LEHSED!H125 -> 0 | P145: =ODBÍJENÍ!H125 -> 48 | Q145: =PLAVÁNÍ!H125 -> 0 | R145: =SHYBY!H125 -> 75 | S145: =ŠPLH!H125 -> 0 | T145: =ŠVIHADLO!H125 -> 0 | U145: ='Z MÍSTA'!H125 -> 771.4 | V145: =REPRE!E28 -> 0 | W145: 4109.171719
B146: MAŤÁTKO | C146: Jakub | D146: 7.A | F146: ='60'!H126 -> 0 | G146: ='300'!H126 -> 296.6168196 | H146: ='1000'!H126 -> 0 | I146: =DÁLKA!H126 -> 0 | J146: =VÝŠKA!H126 -> 611.2 | K146: =MÍČEK!H126 -> 312.5 | L146: =KOULE!H126 -> 0 | M146: =OŠTĚP!H126 -> 0 | N146: =ČLUNEK!H126 -> 511.1595269 | O146: =LEHSED!H126 -> 0 | P146: =ODBÍJENÍ!H126 -> 0 | Q146: =PLAVÁNÍ!H126 -> 0 | R146: =SHYBY!H126 -> 0 | S146: =ŠPLH!H126 -> 0 | T146: =ŠVIHADLO!H126 -> 0 | U146: ='Z MÍSTA'!H126 -> 532 | V146: =REPRE!E29 -> 0 | W146: 2263.476347
B147: MERY | C147: Luboš | D147: 7.A | F147: ='60'!H127 -> 681.6533976 | G147: ='300'!H127 -> 496.8807367 | H147: ='1000'!H127 -> 595.9212799 | I147: =DÁLKA!H127 -> 588.354 | J147: =VÝŠKA!H127 -> 0 | K147: =MÍČEK!H127 -> 262.5 | L147: =KOULE!H127 -> 438.8888889 | M147: =OŠTĚP!H127 -> 0 | N147: =ČLUNEK!H127 -> 677.6087828 | O147: =LEHSED!H127 -> 450 | P147: =ODBÍJENÍ!H127 -> 48 | Q147: =PLAVÁNÍ!H127 -> 0 | R147: =SHYBY!H127 -> 0 | S147: =ŠPLH!H127 -> 0 | T147: =ŠVIHADLO!H127 -> 218.75 | U147: ='Z MÍSTA'!H127 -> 608 | V147: =REPRE!E30 -> 0 | W147: 5066.557086
B148: NOVOTNÝ | C148: Matěj | D148: 7.A | F148: ='60'!H128 -> 679.5927294 | G148: ='300'!H128 -> 464.8641341 | H148: ='1000'!H128 -> 440.3119422 | I148: =DÁLKA!H128 -> 542.412 | J148: =VÝŠKA!H128 -> 0 | K148: =MÍČEK!H128 -> 318.75 | L148: =KOULE!H128 -> 493.3333333 | M148: =OŠTĚP!H128 -> 0 | N148: =ČLUNEK!H128 -> 643.3650492 | O148: =LEHSED!H128 -> 412.5 | P148: =ODBÍJENÍ!H128 -> 88 | Q148: =PLAVÁNÍ!H128 -> 0 | R148: =SHYBY!H128 -> 0 | S148: =ŠPLH!H128 -> 0 | T148: =ŠVIHADLO!H128 -> 431.25 | U148: ='Z MÍSTA'!H128 -> 585.2 | V148: =REPRE!E31 -> 0 | W148: 5099.579188
B149: ŘEHOŘEK | C149: Vojtěch | D149: 7.A | F149: ='60'!H129 -> 709.3123844 | G149: ='300'!H129 -> 529.2053145 | H149: ='1000'!H129 -> 574.1306339 | I149: =DÁLKA!H129 -> 631.332 | J149: =VÝŠKA!H129 -> 611.2 | K149: =MÍČEK!H129 -> 560 | L149: =KOULE!H129 -> 527.7777778 | M149: =OŠTĚP!H129 -> 0 | N149: =ČLUNEK!H129 -> 679.3552394 | O149: =LEHSED!H129 -> 412.5 | P149: =ODBÍJENÍ!H129 -> 88 | Q149: =PLAVÁNÍ!H129 -> 0 | R149: =SHYBY!H129 -> 0 | S149: =ŠPLH!H129 -> 0 | T149: =ŠVIHADLO!H129 -> 593.75 | U149: ='Z MÍSTA'!H129 -> 676.4 | V149: =REPRE!E32 -> 200 | W149: 6792.96335
B150: ŠÍR | C150: Matyáš | D150: 7.A | F150: ='60'!H130 -> 687.9268179 | G150: ='300'!H130 -> 0 | H150: ='1000'!H130 -> 613.887944 | I150: =DÁLKA!H130 -> 545.376 | J150: =VÝŠKA!H130 -> 542.56 | K150: =MÍČEK!H130 -> 312.5 | L150: =KOULE!H130 -> 373.3333333 | M150: =OŠTĚP!H130 -> 0 | N150: =ČLUNEK!H130 -> 577.5582256 | O150: =LEHSED!H130 -> 437.5 | P150: =ODBÍJENÍ!H130 -> 80 | Q150: =PLAVÁNÍ!H130 -> 0 | R150: =SHYBY!H130 -> 0 | S150: =ŠPLH!H130 -> 0 | T150: =ŠVIHADLO!H130 -> 412.5 | U150: ='Z MÍSTA'!H130 -> 535.8 | V150: =REPRE!E33 -> 0 | W150: 5118.942321
B151: TORÁČ | C151: Tomáš | D151: 7.A | F151: ='60'!H131 -> 0 | G151: ='300'!H131 -> 119.9046605 | H151: ='1000'!H131 -> 334.2347908 | I151: =DÁLKA!H131 -> 383.838 | J151: =VÝŠKA!H131 -> 496.8 | K151: =MÍČEK!H131 -> 218.75 | L151: =KOULE!H131 -> 418.8888889 | M151: =OŠTĚP!H131 -> 0 | N151: =ČLUNEK!H131 -> 342.7074986 | O151: =LEHSED!H131 -> 375 | P151: =ODBÍJENÍ!H131 -> 48 | Q151: =PLAVÁNÍ!H131 -> 0 | R151: =SHYBY!H131 -> 0 | S151: =ŠPLH!H131 -> 0 | T151: =ŠVIHADLO!H131 -> 175 | U151: ='Z MÍSTA'!H131 -> 342 | V151: =REPRE!E34 -> 0 | W151: 3255.123839
B152: ULLMAN | C152: Šimon | D152: 7.A | F152: ='60'!H132 -> 854.4544355 | G152: ='300'!H132 -> 801.597725 | H152: ='1000'!H132 -> 681.2104883 | I152: =DÁLKA!H132 -> 626.886 | J152: =VÝŠKA!H132 -> 668.4 | K152: =MÍČEK!H132 -> 0 | L152: =KOULE!H132 -> 460.5555556 | M152: =OŠTĚP!H132 -> 0 | N152: =ČLUNEK!H132 -> 801.2730516 | O152: =LEHSED!H132 -> 575 | P152: =ODBÍJENÍ!H132 -> 72 | Q152: =PLAVÁNÍ!H132 -> 0 | R152: =SHYBY!H132 -> 600 | S152: =ŠPLH!H132 -> 483.1202422 | T152: =ŠVIHADLO!H132 -> 306.25 | U152: ='Z MÍSTA'!H132 -> 874 | V152: =REPRE!E35 -> 0 | W152: 7804.747498
B153: VÁCLAVÍK | C153: Ondřej | D153: 7.A | F153: ='60'!H133 -> 793.051222 | G153: ='300'!H133 -> 396.2861288 | H153: ='1000'!H133 -> 697.035122 | I153: =DÁLKA!H133 -> 695.058 | J153: =VÝŠKA!H133 -> 599.76 | K153: =MÍČEK!H133 -> 525 | L153: =KOULE!H133 -> 0 | M153: =OŠTĚP!H133 -> 0 | N153: =ČLUNEK!H133 -> 810.423469 | O153: =LEHSED!H133 -> 525 | P153: =ODBÍJENÍ!H133 -> 128 | Q153: =PLAVÁNÍ!H133 -> 0 | R153: =SHYBY!H133 -> 825 | S153: =ŠPLH!H133 -> 454.4495972 | T153: =ŠVIHADLO!H133 -> 518.75 | U153: ='Z MÍSTA'!H133 -> 767.6 | V153: =REPRE!E36 -> 25 | W153: =SUM(F153:V153) -> 7760.413539
B154: AUERSWALD | C154: Daniel | D154: 7.B | F154: ='60'!H134 -> 759.9384151 | G154: ='300'!H134 -> 670.248152 | H154: ='1000'!H134 -> 622.3229105 | I154: =DÁLKA!H134 -> 674.31 | J154: =VÝŠKA!H134 -> 599.76 | K154: =MÍČEK!H134 -> 362.5 | L154: =KOULE!H134 -> 0 | M154: =OŠTĚP!H134 -> 0 | N154: =ČLUNEK!H134 -> 0 | O154: =LEHSED!H134 -> 500 | P154: =ODBÍJENÍ!H134 -> 120 | Q154: =PLAVÁNÍ!H134 -> 0 | R154: =SHYBY!H134 -> 225 | S154: =ŠPLH!H134 -> 362.2515934 | T154: =ŠVIHADLO!H134 -> 531.25 | U154: ='Z MÍSTA'!H134 -> 794.2 | V154: =REPRE!E37 -> 25 | W154: 6246.781071
B155: BODLÁK | C155: Vladimír | D155: 7.B | F155: ='60'!H135 -> 0 | G155: ='300'!H135 -> 0 | H155: ='1000'!H135 -> 0 | I155: =DÁLKA!H135 -> 0 | J155: =VÝŠKA!H135 -> 0 | K155: =MÍČEK!H135 -> 0 | L155: =KOULE!H135 -> 0 | M155: =OŠTĚP!H135 -> 0 | N155: =ČLUNEK!H135 -> 0 | O155: =LEHSED!H135 -> 0 | P155: =ODBÍJENÍ!H135 -> 0 | Q155: =PLAVÁNÍ!H135 -> 0 | R155: =SHYBY!H135 -> 0 | S155: =ŠPLH!H135 -> 0 | T155: =ŠVIHADLO!H135 -> 0 | U155: ='Z MÍSTA'!H135 -> 0 | V155: =REPRE!E38 -> 0 | W155: 0
B156: BUDÍN | C156: Martin | D156: 7.B | F156: ='60'!H136 -> 755.9429337 | G156: ='300'!H136 -> 664.7758676 | H156: ='1000'!H136 -> 771.3578354 | I156: =DÁLKA!H136 -> 604.656 | J156: =VÝŠKA!H136 -> 611.2 | K156: =MÍČEK!H136 -> 462.5 | L156: =KOULE!H136 -> 459.4444444 | M156: =OŠTĚP!H136 -> 0 | N156: =ČLUNEK!H136 -> 770.5328822 | O156: =LEHSED!H136 -> 500 | P156: =ODBÍJENÍ!H136 -> 72 | Q156: =PLAVÁNÍ!H136 -> 0 | R156: =SHYBY!H136 -> 375 | S156: =ŠPLH!H136 -> 360.1728925 | T156: =ŠVIHADLO!H136 -> 825 | U156: ='Z MÍSTA'!H136 -> 760 | V156: =REPRE!E39 -> 0 | W156: 7992.582856
B157: DVOŘÁK | C157: Dominik | D157: 7.B | F157: ='60'!H137 -> 676.0224588 | G157: ='300'!H137 -> 573.6554298 | H157: ='1000'!H137 -> 0 | I157: =DÁLKA!H137 -> 542.412 | J157: =VÝŠKA!H137 -> 611.2 | K157: =MÍČEK!H137 -> 387.5 | L157: =KOULE!H137 -> 513.3333333 | M157: =OŠTĚP!H137 -> 0 | N157: =ČLUNEK!H137 -> 678.4815858 | O157: =LEHSED!H137 -> 525 | P157: =ODBÍJENÍ!H137 -> 72 | Q157: =PLAVÁNÍ!H137 -> 0 | R157: =SHYBY!H137 -> 0 | S157: =ŠPLH!H137 -> 326.8324324 | T157: =ŠVIHADLO!H137 -> 443.75 | U157: ='Z MÍSTA'!H137 -> 676.4 | V157: =REPRE!E40 -> 0 | W157: 6026.58724
B158: FIŠERA | C158: Vojtěch | D158: 7.B | F158: ='60'!H138 -> 720.3211103 | G158: ='300'!H138 -> 0 | H158: ='1000'!H138 -> 617.1630079 | I158: =DÁLKA!H138 -> 558.714 | J158: =VÝŠKA!H138 -> 571.16 | K158: =MÍČEK!H138 -> 237.5 | L158: =KOULE!H138 -> 472.7777778 | M158: =OŠTĚP!H138 -> 0 | N158: =ČLUNEK!H138 -> 693.4515368 | O158: =LEHSED!H138 -> 550 | P158: =ODBÍJENÍ!H138 -> 72 | Q158: =PLAVÁNÍ!H138 -> 0 | R158: =SHYBY!H138 -> 0 | S158: =ŠPLH!H138 -> 225.8795325 | T158: =ŠVIHADLO!H138 -> 250 | U158: ='Z MÍSTA'!H138 -> 634.6 | V158: =REPRE!E41 -> 0 | W158: 5603.566965
B159: JINDŘIŠEK | C159: Vít | D159: 7.B | F159: ='60'!H139 -> 867.0009914 | G159: ='300'!H139 -> 924.2720384 | H159: ='1000'!H139 -> 857.2643218 | I159: =DÁLKA!H139 -> 745.446 | J159: =VÝŠKA!H139 -> 759.92 | K159: =MÍČEK!H139 -> 661.25 | L159: =KOULE!H139 -> 606.1111111 | M159: =OŠTĚP!H139 -> 0 | N159: =ČLUNEK!H139 -> 841.716492 | O159: =LEHSED!H139 -> 625 | P159: =ODBÍJENÍ!H139 -> 344 | Q159: =PLAVÁNÍ!H139 -> 0 | R159: =SHYBY!H139 -> 1125 | S159: =ŠPLH!H139 -> 547.1091217 | T159: =ŠVIHADLO!H139 -> 712.5 | U159: ='Z MÍSTA'!H139 -> 870.2 | V159: =REPRE!E42 -> 250 | W159: 10736.79008
B160: JIROUŠ | C160: Matouš | D160: 7.B | F160: ='60'!H140 -> 763.9841015 | G160: ='300'!H140 -> 667.23959 | H160: ='1000'!H140 -> 0 | I160: =DÁLKA!H140 -> 675.792 | J160: =VÝŠKA!H140 -> 599.76 | K160: =MÍČEK!H140 -> 368.75 | L160: =KOULE!H140 -> 494.4444444 | M160: =OŠTĚP!H140 -> 0 | N160: =ČLUNEK!H140 -> 705.9736758 | O160: =LEHSED!H140 -> 562.5 | P160: =ODBÍJENÍ!H140 -> 112 | Q160: =PLAVÁNÍ!H140 -> 0 | R160: =SHYBY!H140 -> 150 | S160: =ŠPLH!H140 -> 316.7738135 | T160: =ŠVIHADLO!H140 -> 643.75 | U160: ='Z MÍSTA'!H140 -> 763.8 | V160: =REPRE!E43 -> 75 | W160: 6899.767625
B161: KERLE | C161: Marek | D161: 7.B | F161: ='60'!H141 -> 816.0280734 | G161: ='300'!H141 -> 809.4257451 | H161: ='1000'!H141 -> 718.2323981 | I161: =DÁLKA!H141 -> 752.856 | J161: =VÝŠKA!H141 -> 771.36 | K161: =MÍČEK!H141 -> 575 | L161: =KOULE!H141 -> 569.4444444 | M161: =OŠTĚP!H141 -> 0 | N161: =ČLUNEK!H141 -> 823.8306559 | O161: =LEHSED!H141 -> 700 | P161: =ODBÍJENÍ!H141 -> 344 | Q161: =PLAVÁNÍ!H141 -> 0 | R161: =SHYBY!H141 -> 900 | S161: =ŠPLH!H141 -> 611.9556029 | T161: =ŠVIHADLO!H141 -> 650 | U161: ='Z MÍSTA'!H141 -> 763.8 | V161: =REPRE!E44 -> 175 | W161: 9980.93292
B162: LUKEŠ | C162: Jakub | D162: 7.B | F162: ='60'!H142 -> 824.8485875 | G162: ='300'!H142 -> 836.2580216 | H162: ='1000'!H142 -> 802.8954518 | I162: =DÁLKA!H142 -> 738.036 | J162: =VÝŠKA!H142 -> 817.12 | K162: =MÍČEK!H142 -> 300 | L162: =KOULE!H142 -> 441.6666667 | M162: =OŠTĚP!H142 -> 0 | N162: =ČLUNEK!H142 -> 769.5604759 | O162: =LEHSED!H142 -> 500 | P162: =ODBÍJENÍ!H142 -> 152 | Q162: =PLAVÁNÍ!H142 -> 0 | R162: =SHYBY!H142 -> 525 | S162: =ŠPLH!H142 -> 446.8408849 | T162: =ŠVIHADLO!H142 -> 531.25 | U162: ='Z MÍSTA'!H142 -> 915.8 | V162: =REPRE!E45 -> 125 | W162: 8726.276088
B163: OTT | C163: Matyáš | D163: 7.B | F163: ='60'!H143 -> 828.1114119 | G163: ='300'!H143 -> 795.6854645 | H163: ='1000'!H143 -> 833.7405554 | I163: =DÁLKA!H143 -> 692.094 | J163: =VÝŠKA!H143 -> 697 | K163: =MÍČEK!H143 -> 437.5 | L163: =KOULE!H143 -> 506.6666667 | M163: =OŠTĚP!H143 -> 0 | N163: =ČLUNEK!H143 -> 790.2301812 | O163: =LEHSED!H143 -> 500 | P163: =ODBÍJENÍ!H143 -> 192 | Q163: =PLAVÁNÍ!H143 -> 570.3302526 | R163: =SHYBY!H143 -> 675 | S163: =ŠPLH!H143 -> 357.1207348 | T163: =ŠVIHADLO!H143 -> 781.25 | U163: ='Z MÍSTA'!H143 -> 725.8 | V163: =REPRE!E46 -> 175 | W163: 9557.529267
B164: POKORNÝ | C164: Matyáš | D164: 7.B | F164: ='60'!H144 -> 837.2410454 | G164: ='300'!H144 -> 909.2217956 | H164: ='1000'!H144 -> 873.8502746 | I164: =DÁLKA!H144 -> 770.64 | J164: =VÝŠKA!H144 -> 754.2 | K164: =MÍČEK!H144 -> 562.5 | L164: =KOULE!H144 -> 472.7777778 | M164: =OŠTĚP!H144 -> 0 | N164: =ČLUNEK!H144 -> 896.8589319 | O164: =LEHSED!H144 -> 912.5 | P164: =ODBÍJENÍ!H144 -> 192 | Q164: =PLAVÁNÍ!H144 -> 0 | R164: =SHYBY!H144 -> 1050 | S164: =ŠPLH!H144 -> 459.0421769 | T164: =ŠVIHADLO!H144 -> 806.25 | U164: ='Z MÍSTA'!H144 -> 843.6 | V164: =REPRE!E47 -> 250 | W164: 10590.682
B165: POLÁČEK | C165: Matyáš | D165: 7.B | F165: ='60'!H145 -> 679.0799062 | G165: ='300'!H145 -> 499.7702463 | H165: ='1000'!H145 -> 0 | I165: =DÁLKA!H145 -> 554.268 | J165: =VÝŠKA!H145 -> 542.56 | K165: =MÍČEK!H145 -> 462.5 | L165: =KOULE!H145 -> 461.1111111 | M165: =OŠTĚP!H145 -> 0 | N165: =ČLUNEK!H145 -> 0 | O165: =LEHSED!H145 -> 487.5 | P165: =ODBÍJENÍ!H145 -> 88 | Q165: =PLAVÁNÍ!H145 -> 0 | R165: =SHYBY!H145 -> 0 | S165: =ŠPLH!H145 -> 0 | T165: =ŠVIHADLO!H145 -> 368.75 | U165: ='Z MÍSTA'!H145 -> 627 | V165: =REPRE!E48 -> 25 | W165: 4795.539264
B166: SOUKUP | C166: Patrik | D166: 7.B | F166: ='60'!H146 -> 0 | G166: ='300'!H146 -> 0 | H166: ='1000'!H146 -> 0 | I166: =DÁLKA!H146 -> 0 | J166: =VÝŠKA!H146 -> 0 | K166: =MÍČEK!H146 -> 0 | L166: =KOULE!H146 -> 0 | M166: =OŠTĚP!H146 -> 0 | N166: =ČLUNEK!H146 -> 0 | O166: =LEHSED!H146 -> 0 | P166: =ODBÍJENÍ!H146 -> 0 | Q166: =PLAVÁNÍ!H146 -> 0 | R166: =SHYBY!H146 -> 0 | S166: =ŠPLH!H146 -> 0 | T166: =ŠVIHADLO!H146 -> 0 | U166: ='Z MÍSTA'!H146 -> 0 | V166: =REPRE!E49 -> 0 | W166: 0
B167: VALENTA | C167: Jakub | D167: 7.B | F167: ='60'!H147 -> 742.9754984 | G167: ='300'!H147 -> 787.6028804 | H167: ='1000'!H147 -> 787.42602 | I167: =DÁLKA!H147 -> 0 | J167: =VÝŠKA!H147 -> 725.6 | K167: =MÍČEK!H147 -> 350 | L167: =KOULE!H147 -> 466.6666667 | M167: =OŠTĚP!H147 -> 0 | N167: =ČLUNEK!H147 -> 820.716355 | O167: =LEHSED!H147 -> 750 | P167: =ODBÍJENÍ!H147 -> 192 | Q167: =PLAVÁNÍ!H147 -> 0 | R167: =SHYBY!H147 -> 0 | S167: =ŠPLH!H147 -> 496.3805587 | T167: =ŠVIHADLO!H147 -> 556.25 | U167: ='Z MÍSTA'!H147 -> 737.2 | V167: =REPRE!E50 -> 250 | W167: 7662.817979
B168: VRBATA | C168: Dominik | D168: 7.B | F168: ='60'!H148 -> 751.3437545 | G168: ='300'!H148 -> 634.6718571 | H168: ='1000'!H148 -> 693.2208108 | I168: =DÁLKA!H148 -> 666.9 | J168: =VÝŠKA!H148 -> 599.76 | K168: =MÍČEK!H148 -> 462.5 | L168: =KOULE!H148 -> 522.7777778 | M168: =OŠTĚP!H148 -> 0 | N168: =ČLUNEK!H148 -> 713.2110561 | O168: =LEHSED!H148 -> 525 | P168: =ODBÍJENÍ!H148 -> 128 | Q168: =PLAVÁNÍ!H148 -> 580.4049576 | R168: =SHYBY!H148 -> 675 | S168: =ŠPLH!H148 -> 617.2776402 | T168: =ŠVIHADLO!H148 -> 662.5 | U168: ='Z MÍSTA'!H148 -> 729.6 | V168: =REPRE!E51 -> 125 | W168: 9087.167854
B169: FEJKL | C169: Jan | D169: 8.A | F169: ='60'!H149 -> 897.3444658 | G169: ='300'!H149 -> 887.3255032 | H169: ='1000'!H149 -> 802.8199828 | I169: =DÁLKA!H149 -> 798.798 | J169: =VÝŠKA!H149 -> 811.4 | K169: =MÍČEK!H149 -> 762.5 | L169: =KOULE!H149 -> 587.7777778 | M169: =OŠTĚP!H149 -> 0 | N169: =ČLUNEK!H149 -> 885.5078489 | O169: =LEHSED!H149 -> 637.5 | P169: =ODBÍJENÍ!H149 -> 416 | Q169: =PLAVÁNÍ!H149 -> 0 | R169: =SHYBY!H149 -> 0 | S169: =ŠPLH!H149 -> 632.4704888 | T169: =ŠVIHADLO!H149 -> 631.25 | U169: ='Z MÍSTA'!H149 -> 881.6 | V169: =REPRE!E52 -> 125 | W169: 9757.294067
B170: KOTYK | C170: Tadeáš | D170: 8.A | F170: ='60'!H150 -> 693.2619561 | G170: ='300'!H150 -> 463.20925 | H170: ='1000'!H150 -> 346.5857821 | I170: =DÁLKA!H150 -> 536.484 | J170: =VÝŠKA!H150 -> 525.4 | K170: =MÍČEK!H150 -> 325 | L170: =KOULE!H150 -> 554.4444444 | M170: =OŠTĚP!H150 -> 0 | N170: =ČLUNEK!H150 -> 692.5639119 | O170: =LEHSED!H150 -> 412.5 | P170: =ODBÍJENÍ!H150 -> 256 | Q170: =PLAVÁNÍ!H150 -> 0 | R170: =SHYBY!H150 -> 0 | S170: =ŠPLH!H150 -> 0 | T170: =ŠVIHADLO!H150 -> 456.25 | U170: ='Z MÍSTA'!H150 -> 687.8 | V170: =REPRE!E53 -> 0 | W170: 5949.499345
B171: KRAUSE | C171: Tadeáš | D171: 8.A | F171: ='60'!H151 -> 828.1114119 | G171: ='300'!H151 -> 848.7963795 | H171: ='1000'!H151 -> 822.0620288 | I171: =DÁLKA!H151 -> 788.424 | J171: =VÝŠKA!H151 -> 799.96 | K171: =MÍČEK!H151 -> 468.75 | L171: =KOULE!H151 -> 573.3333333 | M171: =OŠTĚP!H151 -> 0 | N171: =ČLUNEK!H151 -> 874.3234806 | O171: =LEHSED!H151 -> 637.5 | P171: =ODBÍJENÍ!H151 -> 256 | Q171: =PLAVÁNÍ!H151 -> 0 | R171: =SHYBY!H151 -> 0 | S171: =ŠPLH!H151 -> 519.3719705 | T171: =ŠVIHADLO!H151 -> 1068.75 | U171: ='Z MÍSTA'!H151 -> 839.8 | V171: =REPRE!E54 -> 125 | W171: 9450.182605
B172: LEŠÁK | C172: Martin | D172: 8.A | F172: ='60'!H152 -> 712.1703439 | G172: ='300'!H152 -> 619.273247 | H172: ='1000'!H152 -> 578.2191348 | I172: =DÁLKA!H152 -> 660.972 | J172: =VÝŠKA!H152 -> 656.96 | K172: =MÍČEK!H152 -> 375 | L172: =KOULE!H152 -> 550.5555556 | M172: =OŠTĚP!H152 -> 0 | N172: =ČLUNEK!H152 -> 692.5639119 | O172: =LEHSED!H152 -> 362.5 | P172: =ODBÍJENÍ!H152 -> 248 | Q172: =PLAVÁNÍ!H152 -> 0 | R172: =SHYBY!H152 -> 0 | S172: =ŠPLH!H152 -> 0 | T172: =ŠVIHADLO!H152 -> 350 | U172: ='Z MÍSTA'!H152 -> 646 | V172: =REPRE!E55 -> 0 | W172: 6452.214193
B173: NECHANICKÝ | C173: David | D173: 8.A | F173: ='60'!H153 -> 900.3153573 | G173: ='300'!H153 -> 833.831435 | H173: ='1000'!H153 -> 721.4145761 | I173: =DÁLKA!H153 -> 794.352 | J173: =VÝŠKA!H153 -> 685.56 | K173: =MÍČEK!H153 -> 537.5 | L173: =KOULE!H153 -> 627.7777778 | M173: =OŠTĚP!H153 -> 0 | N173: =ČLUNEK!H153 -> 882.135289 | O173: =LEHSED!H153 -> 475 | P173: =ODBÍJENÍ!H153 -> 416 | Q173: =PLAVÁNÍ!H153 -> 0 | R173: =SHYBY!H153 -> 300 | S173: =ŠPLH!H153 -> 446.8408849 | T173: =ŠVIHADLO!H153 -> 668.75 | U173: ='Z MÍSTA'!H153 -> 950 | V173: =REPRE!E56 -> 175 | W173: 9414.47732
B174: ŘEHOŘEK | C174: Jan | D174: 8.A | F174: ='60'!H154 -> 830.5783105 | G174: ='300'!H154 -> 738.2362706 | H174: ='1000'!H154 -> 670.7136105 | I174: =DÁLKA!H154 -> 721.734 | J174: =VÝŠKA!H154 -> 777.08 | K174: =MÍČEK!H154 -> 487.5 | L174: =KOULE!H154 -> 494.4444444 | M174: =OŠTĚP!H154 -> 0 | N174: =ČLUNEK!H154 -> 832.1964843 | O174: =LEHSED!H154 -> 500 | P174: =ODBÍJENÍ!H154 -> 746 | Q174: =PLAVÁNÍ!H154 -> 0 | R174: =SHYBY!H154 -> 0 | S174: =ŠPLH!H154 -> 326.3284155 | T174: =ŠVIHADLO!H154 -> 837.5 | U174: ='Z MÍSTA'!H154 -> 798 | V174: =REPRE!E57 -> 125 | W174: 8885.311536
B175: SOUKUP | C175: Ondřej | D175: 8.A | F175: ='60'!H155 -> 759.2690405 | G175: ='300'!H155 -> 0 | H175: ='1000'!H155 -> 0 | I175: =DÁLKA!H155 -> 572.052 | J175: =VÝŠKA!H155 -> 571.16 | K175: =MÍČEK!H155 -> 0 | L175: =KOULE!H155 -> 597.2222222 | M175: =OŠTĚP!H155 -> 0 | N175: =ČLUNEK!H155 -> 715.0299381 | O175: =LEHSED!H155 -> 587.5 | P175: =ODBÍJENÍ!H155 -> 717.2 | Q175: =PLAVÁNÍ!H155 -> 0 | R175: =SHYBY!H155 -> 0 | S175: =ŠPLH!H155 -> 225.8795325 | T175: =ŠVIHADLO!H155 -> 950 | U175: ='Z MÍSTA'!H155 -> 646 | V175: =REPRE!E58 -> 75 | W175: 6416.312733
B176: SPANILÝ | C176: David | D176: 8.A | F176: ='60'!H156 -> 850.9463384 | G176: ='300'!H156 -> 863.649992 | H176: ='1000'!H156 -> 784.3172348 | I176: =DÁLKA!H156 -> 791.388 | J176: =VÝŠKA!H156 -> 685.56 | K176: =MÍČEK!H156 -> 737.5 | L176: =KOULE!H156 -> 605.5555556 | M176: =OŠTĚP!H156 -> 0 | N176: =ČLUNEK!H156 -> 843.8479711 | O176: =LEHSED!H156 -> 550 | P176: =ODBÍJENÍ!H156 -> 746 | Q176: =PLAVÁNÍ!H156 -> 0 | R176: =SHYBY!H156 -> 300 | S176: =ŠPLH!H156 -> 671.9793924 | T176: =ŠVIHADLO!H156 -> 900 | U176: ='Z MÍSTA'!H156 -> 881.6 | V176: =REPRE!E59 -> 125 | W176: 10337.34448
B177: ČADAN | C177: Benjamín | D177: 8.B | F177: ='60'!H157 -> 712.1703439 | G177: ='300'!H157 -> 0 | H177: ='1000'!H157 -> 0 | I177: =DÁLKA!H157 -> 622.44 | J177: =VÝŠKA!H157 -> 639.8 | K177: =MÍČEK!H157 -> 0 | L177: =KOULE!H157 -> 522.2222222 | M177: =OŠTĚP!H157 -> 0 | N177: =ČLUNEK!H157 -> 0 | O177: =LEHSED!H157 -> 0 | P177: =ODBÍJENÍ!H157 -> 72 | Q177: =PLAVÁNÍ!H157 -> 0 | R177: =SHYBY!H157 -> 0 | S177: =ŠPLH!H157 -> 0 | T177: =ŠVIHADLO!H157 -> 0 | U177: ='Z MÍSTA'!H157 -> 634.6 | V177: =REPRE!E60 -> 0 | W177: 3203.232566
B178: ČERNÝ | C178: Michal | D178: 8.B | F178: ='60'!H158 -> 757.2692403 | G178: ='300'!H158 -> 604.9894302 | H178: ='1000'!H158 -> 574.9012345 | I178: =DÁLKA!H158 -> 617.994 | J178: =VÝŠKA!H158 -> 599.76 | K178: =MÍČEK!H158 -> 556.25 | L178: =KOULE!H158 -> 635.5555556 | M178: =OŠTĚP!H158 -> 0 | N178: =ČLUNEK!H158 -> 769.5604759 | O178: =LEHSED!H158 -> 537.5 | P178: =ODBÍJENÍ!H158 -> 240 | Q178: =PLAVÁNÍ!H158 -> 0 | R178: =SHYBY!H158 -> 0 | S178: =ŠPLH!H158 -> 0 | T178: =ŠVIHADLO!H158 -> 293.75 | U178: ='Z MÍSTA'!H158 -> 615.6 | V178: =REPRE!E61 -> 0 | W178: 6803.129936
B179: DOLEJŠÍ | C179: David | D179: 8.B | F179: ='60'!H159 -> 814.4478746 | G179: ='300'!H159 -> 738.8461192 | H179: ='1000'!H159 -> 715.3774788 | I179: =DÁLKA!H159 -> 706.914 | J179: =VÝŠKA!H159 -> 656.96 | K179: =MÍČEK!H159 -> 268.75 | L179: =KOULE!H159 -> 552.2222222 | M179: =OŠTĚP!H159 -> 0 | N179: =ČLUNEK!H159 -> 776.3918658 | O179: =LEHSED!H159 -> 500 | P179: =ODBÍJENÍ!H159 -> 168 | Q179: =PLAVÁNÍ!H159 -> 0 | R179: =SHYBY!H159 -> 150 | S179: =ŠPLH!H159 -> 256.2049775 | T179: =ŠVIHADLO!H159 -> 475 | U179: ='Z MÍSTA'!H159 -> 741 | V179: =REPRE!E62 -> 50 | W179: 7570.114538
B180: NOVÁK | C180: Matěj | D180: 8.B | F180: ='60'!H160 -> 712.1703439 | G180: ='300'!H160 -> 0 | H180: ='1000'!H160 -> 0 | I180: =DÁLKA!H160 -> 650.598 | J180: =VÝŠKA!H160 -> 525.4 | K180: =MÍČEK!H160 -> 412.5 | L180: =KOULE!H160 -> 451.1111111 | M180: =OŠTĚP!H160 -> 0 | N180: =ČLUNEK!H160 -> 757.0233329 | O180: =LEHSED!H160 -> 437.5 | P180: =ODBÍJENÍ!H160 -> 208 | Q180: =PLAVÁNÍ!H160 -> 0 | R180: =SHYBY!H160 -> 450 | S180: =ŠPLH!H160 -> 296.6736801 | T180: =ŠVIHADLO!H160 -> 756.25 | U180: ='Z MÍSTA'!H160 -> 691.6 | V180: =REPRE!E63 -> 25 | W180: 6373.826468
B181: POVAŽANEC | C181: Martin | D181: 8.B | F181: ='60'!H161 -> 848.3370614 | G181: ='300'!H161 -> 762.7740379 | H181: ='1000'!H161 -> 687.2872017 | I181: =DÁLKA!H161 -> 822.51 | J181: =VÝŠKA!H161 -> 822.84 | K181: =MÍČEK!H161 -> 625 | L181: =KOULE!H161 -> 775.5555556 | M181: =OŠTĚP!H161 -> 0 | N181: =ČLUNEK!H161 -> 759.899553 | O181: =LEHSED!H161 -> 425 | P181: =ODBÍJENÍ!H161 -> 272 | Q181: =PLAVÁNÍ!H161 -> 0 | R181: =SHYBY!H161 -> 75 | S181: =ŠPLH!H161 -> 487.7005608 | T181: =ŠVIHADLO!H161 -> 437.5 | U181: ='Z MÍSTA'!H161 -> 870.2 | V181: =REPRE!E64 -> 50 | W181: 8721.60397
B182: RICHTER | C182: Jakub | D182: 8.B | F182: ='60'!H162 -> 746.8102109 | G182: ='300'!H162 -> 627.1520599 | H182: ='1000'!H162 -> 608.8670668 | I182: =DÁLKA!H162 -> 588.354 | J182: =VÝŠKA!H162 -> 542.56 | K182: =MÍČEK!H162 -> 362.5 | L182: =KOULE!H162 -> 511.1111111 | M182: =OŠTĚP!H162 -> 0 | N182: =ČLUNEK!H162 -> 699.6901644 | O182: =LEHSED!H162 -> 450 | P182: =ODBÍJENÍ!H162 -> 168 | Q182: =PLAVÁNÍ!H162 -> 0 | R182: =SHYBY!H162 -> 0 | S182: =ŠPLH!H162 -> 324.0923699 | T182: =ŠVIHADLO!H162 -> 437.5 | U182: ='Z MÍSTA'!H162 -> 722 | V182: =REPRE!E65 -> 0 | W182: 6788.636983
B183: ROZUMEK | C183: Adam | D183: 8.B | F183: ='60'!H163 -> 771.5347637 | G183: ='300'!H163 -> 483.3185647 | H183: ='1000'!H163 -> 597.4805048 | I183: =DÁLKA!H163 -> 577.98 | J183: =VÝŠKA!H163 -> 571.16 | K183: =MÍČEK!H163 -> 562.5 | L183: =KOULE!H163 -> 688.8888889 | M183: =OŠTĚP!H163 -> 0 | N183: =ČLUNEK!H163 -> 741.850247 | O183: =LEHSED!H163 -> 537.5 | P183: =ODBÍJENÍ!H163 -> 312 | Q183: =PLAVÁNÍ!H163 -> 0 | R183: =SHYBY!H163 -> 0 | S183: =ŠPLH!H163 -> 0 | T183: =ŠVIHADLO!H163 -> 693.75 | U183: ='Z MÍSTA'!H163 -> 684 | V183: =REPRE!E66 -> 0 | W183: 7221.962969
B184: VALENTA | C184: František | D184: 8.B | F184: ='60'!H164 -> 797.5251288 | G184: ='300'!H164 -> 647.0271306 | H184: ='1000'!H164 -> 619.844357 | I184: =DÁLKA!H164 -> 607.62 | J184: =VÝŠKA!H164 -> 628.36 | K184: =MÍČEK!H164 -> 350 | L184: =KOULE!H164 -> 594.4444444 | M184: =OŠTĚP!H164 -> 0 | N184: =ČLUNEK!H164 -> 803.2973807 | O184: =LEHSED!H164 -> 525 | P184: =ODBÍJENÍ!H164 -> 272 | Q184: =PLAVÁNÍ!H164 -> 0 | R184: =SHYBY!H164 -> 150 | S184: =ŠPLH!H164 -> 0 | T184: =ŠVIHADLO!H164 -> 450 | U184: ='Z MÍSTA'!H164 -> 672.6 | V184: =REPRE!E67 -> 0 | W184: 7117.718442
B185: ZAPLATÍLEK | C185: Josef | D185: 8.B | F185: ='60'!H165 -> 758.601056 | G185: ='300'!H165 -> 732.9806436 | H185: ='1000'!H165 -> 706.5680968 | I185: =DÁLKA!H165 -> 643.188 | J185: =VÝŠKA!H165 -> 725.6 | K185: =MÍČEK!H165 -> 525 | L185: =KOULE!H165 -> 490.5555556 | M185: =OŠTĚP!H165 -> 0 | N185: =ČLUNEK!H165 -> 832.1964843 | O185: =LEHSED!H165 -> 575 | P185: =ODBÍJENÍ!H165 -> 312 | Q185: =PLAVÁNÍ!H165 -> 0 | R185: =SHYBY!H165 -> 75 | S185: =ŠPLH!H165 -> 225.8795325 | T185: =ŠVIHADLO!H165 -> 625 | U185: ='Z MÍSTA'!H165 -> 763.8 | V185: =REPRE!E68 -> 0 | W185: =SUM(F185:V185) -> 7991.369369
B186: ERBEN | C186: Viktor | D186: 9.A | F186: ='60'!H166 -> 744.2485451 | G186: ='300'!H166 -> 606.2274069 | H186: ='1000'!H166 -> 591.4556434 | I186: =DÁLKA!H166 -> 659.49 | J186: =VÝŠKA!H166 -> 668.4 | K186: =MÍČEK!H166 -> 312.5 | L186: =KOULE!H166 -> 0 | M186: =OŠTĚP!H166 -> 0 | N186: =ČLUNEK!H166 -> 736.2308693 | O186: =LEHSED!H166 -> 350 | P186: =ODBÍJENÍ!H166 -> 440 | Q186: =PLAVÁNÍ!H166 -> 0 | R186: =SHYBY!H166 -> 225 | S186: =ŠPLH!H166 -> 371.3110352 | T186: =ŠVIHADLO!H166 -> 412.5 | U186: ='Z MÍSTA'!H166 -> 763.8 | V186: =REPRE!E69 -> 0 | W186: 6881.1635
B187: FRANC | C187: Daniel | D187: 9.A | F187: ='60'!H167 -> 709.3123844 | G187: ='300'!H167 -> 540.7903402 | H187: ='1000'!H167 -> 448.0839787 | I187: =DÁLKA!H167 -> 577.98 | J187: =VÝŠKA!H167 -> 571.16 | K187: =MÍČEK!H167 -> 412.5 | L187: =KOULE!H167 -> 652.7777778 | M187: =OŠTĚP!H167 -> 0 | N187: =ČLUNEK!H167 -> 775.4124277 | O187: =LEHSED!H167 -> 400 | P187: =ODBÍJENÍ!H167 -> 408 | Q187: =PLAVÁNÍ!H167 -> 0 | R187: =SHYBY!H167 -> 0 | S187: =ŠPLH!H167 -> 0 | T187: =ŠVIHADLO!H167 -> 543.75 | U187: ='Z MÍSTA'!H167 -> 646 | V187: =REPRE!E70 -> 0 | W187: 6685.766909
B188: JINDŘIŠEK | C188: Matyáš | D188: 9.A | F188: ='60'!H168 -> 799.7843281 | G188: ='300'!H168 -> 755.7961632 | H188: ='1000'!H168 -> 775.383217 | I188: =DÁLKA!H168 -> 797.316 | J188: =VÝŠKA!H168 -> 714.16 | K188: =MÍČEK!H168 -> 650 | L188: =KOULE!H168 -> 707.7777778 | M188: =OŠTĚP!H168 -> 0 | N188: =ČLUNEK!H168 -> 878.7775806 | O188: =LEHSED!H168 -> 650 | P188: =ODBÍJENÍ!H168 -> 480 | Q188: =PLAVÁNÍ!H168 -> 0 | R188: =SHYBY!H168 -> 750 | S188: =ŠPLH!H168 -> 755.2283877 | T188: =ŠVIHADLO!H168 -> 537.5 | U188: ='Z MÍSTA'!H168 -> 881.6 | V188: =REPRE!E71 -> 50 | W188: 10183.32345
B189: KOLAČNÝ | C189: Štěpán | D189: 9.A | F189: ='60'!H169 -> 716.2180571 | G189: ='300'!H169 -> 513.9102192 | H189: ='1000'!H169 -> 531.806188 | I189: =DÁLKA!H169 -> 663.936 | J189: =VÝŠKA!H169 -> 571.16 | K189: =MÍČEK!H169 -> 412.5 | L189: =KOULE!H169 -> 643.3333333 | M189: =OŠTĚP!H169 -> 0 | N189: =ČLUNEK!H169 -> 779.3373061 | O189: =LEHSED!H169 -> 412.5 | P189: =ODBÍJENÍ!H169 -> 496 | Q189: =PLAVÁNÍ!H169 -> 0 | R189: =SHYBY!H169 -> 75 | S189: =ŠPLH!H169 -> 0 | T189: =ŠVIHADLO!H169 -> 0 | U189: ='Z MÍSTA'!H169 -> 661.2 | V189: =REPRE!E72 -> 0 | W189: 6476.901104
B190: KRISTAN | C190: Jáchym | D190: 9.A | F190: ='60'!H170 -> 586.2316238 | G190: ='300'!H170 -> 333.6491763 | H190: ='1000'!H170 -> 436.510202 | I190: =DÁLKA!H170 -> 523.146 | J190: =VÝŠKA!H170 -> 0 | K190: =MÍČEK!H170 -> 250 | L190: =KOULE!H170 -> 437.7777778 | M190: =OŠTĚP!H170 -> 0 | N190: =ČLUNEK!H170 -> 497.8791149 | O190: =LEHSED!H170 -> 287.5 | P190: =ODBÍJENÍ!H170 -> 64 | Q190: =PLAVÁNÍ!H170 -> 0 | R190: =SHYBY!H170 -> 0 | S190: =ŠPLH!H170 -> 0 | T190: =ŠVIHADLO!H170 -> 0 | U190: ='Z MÍSTA'!H170 -> 456 | V190: =REPRE!E73 -> 0 | W190: 3872.693895
B191: NGUYEN | C191: David | D191: 9.A | F191: ='60'!H171 -> 794.5359835 | G191: ='300'!H171 -> 688.3298735 | H191: ='1000'!H171 -> 606.1942507 | I191: =DÁLKA!H171 -> 786.942 | J191: =VÝŠKA!H171 -> 697 | K191: =MÍČEK!H171 -> 593.75 | L191: =KOULE!H171 -> 635.5555556 | M191: =OŠTĚP!H171 -> 0 | N191: =ČLUNEK!H171 -> 898.003429 | O191: =LEHSED!H171 -> 375 | P191: =ODBÍJENÍ!H171 -> 480 | Q191: =PLAVÁNÍ!H171 -> 0 | R191: =SHYBY!H171 -> 150 | S191: =ŠPLH!H171 -> 693.8880489 | T191: =ŠVIHADLO!H171 -> 612.5 | U191: ='Z MÍSTA'!H171 -> 877.8 | V191: =REPRE!E74 -> 0 | W191: 8889.499141
B192: NOVOTNÝ | C192: Jan | D192: 9.A | F192: ='60'!H172 -> 819.2100192 | G192: ='300'!H172 -> 664.074241 | H192: ='1000'!H172 -> 663.559629 | I192: =DÁLKA!H172 -> 689.13 | J192: =VÝŠKA!H172 -> 714.16 | K192: =MÍČEK!H172 -> 387.5 | L192: =KOULE!H172 -> 669.4444444 | M192: =OŠTĚP!H172 -> 0 | N192: =ČLUNEK!H172 -> 860.0239829 | O192: =LEHSED!H172 -> 550 | P192: =ODBÍJENÍ!H172 -> 72 | Q192: =PLAVÁNÍ!H172 -> 0 | R192: =SHYBY!H172 -> 375 | S192: =ŠPLH!H172 -> 464.4364436 | T192: =ŠVIHADLO!H172 -> 512.5 | U192: ='Z MÍSTA'!H172 -> 828.4 | V192: =REPRE!E75 -> 0 | W192: 8269.43876
B193: RÁB | C193: Adam | D193: 9.A | F193: ='60'!H173 -> 702.5638075 | G193: ='300'!H173 -> 493.0602204 | H193: ='1000'!H173 -> 436.7320031 | I193: =DÁLKA!H173 -> 577.98 | J193: =VÝŠKA!H173 -> 571.16 | K193: =MÍČEK!H173 -> 431.25 | L193: =KOULE!H173 -> 721.1111111 | M193: =OŠTĚP!H173 -> 0 | N193: =ČLUNEK!H173 -> 705.9736758 | O193: =LEHSED!H173 -> 375 | P193: =ODBÍJENÍ!H173 -> 168 | Q193: =PLAVÁNÍ!H173 -> 0 | R193: =SHYBY!H173 -> 0 | S193: =ŠPLH!H173 -> 0 | T193: =ŠVIHADLO!H173 -> 0 | U193: ='Z MÍSTA'!H173 -> 649.8 | V193: =REPRE!E76 -> 0 | W193: 5832.630818
B194: REPASKÝ | C194: Jakub | D194: 9.A | F194: ='60'!H174 -> 850.9463384 | G194: ='300'!H174 -> 727.5786867 | H194: ='1000'!H174 -> 694.6286202 | I194: =DÁLKA!H174 -> 736.554 | J194: =VÝŠKA!H174 -> 771.36 | K194: =MÍČEK!H174 -> 737.5 | L194: =KOULE!H174 -> 778.8888889 | M194: =OŠTĚP!H174 -> 0 | N194: =ČLUNEK!H174 -> 855.6771362 | O194: =LEHSED!H174 -> 625 | P194: =ODBÍJENÍ!H174 -> 657.2 | Q194: =PLAVÁNÍ!H174 -> 0 | R194: =SHYBY!H174 -> 450 | S194: =ŠPLH!H174 -> 657.6898195 | T194: =ŠVIHADLO!H174 -> 818.75 | U194: ='Z MÍSTA'!H174 -> 904.4 | V194: =REPRE!E77 -> 50 | W194: 10316.17349
B195: SKÁLA | C195: Jan | D195: 9.A | F195: ='60'!H175 -> 843.1736979 | G195: ='300'!H175 -> 719.0908052 | H195: ='1000'!H175 -> 733.3917631 | I195: =DÁLKA!H175 -> 776.568 | J195: =VÝŠKA!H175 -> 697 | K195: =MÍČEK!H175 -> 487.5 | L195: =KOULE!H175 -> 652.2222222 | M195: =OŠTĚP!H175 -> 0 | N195: =ČLUNEK!H175 -> 867.6905756 | O195: =LEHSED!H175 -> 612.5 | P195: =ODBÍJENÍ!H175 -> 240 | Q195: =PLAVÁNÍ!H175 -> 0 | R195: =SHYBY!H175 -> 900 | S195: =ŠPLH!H175 -> 558.5727507 | T195: =ŠVIHADLO!H175 -> 656.25 | U195: ='Z MÍSTA'!H175 -> 900.6 | V195: =REPRE!E78 -> 75 | W195: 9719.559815
B196: ŠPULÁK | C196: Jakub | D196: 9.A | F196: ='60'!H176 -> 757.9344574 | G196: ='300'!H176 -> 617.3640243 | H196: ='1000'!H176 -> 608.7371918 | I196: =DÁLKA!H176 -> 699.504 | J196: =VÝŠKA!H176 -> 668.4 | K196: =MÍČEK!H176 -> 618.75 | L196: =KOULE!H176 -> 671.1111111 | M196: =OŠTĚP!H176 -> 0 | N196: =ČLUNEK!H176 -> 823.8306559 | O196: =LEHSED!H176 -> 0 | P196: =ODBÍJENÍ!H176 -> 528 | Q196: =PLAVÁNÍ!H176 -> 665.5228413 | R196: =SHYBY!H176 -> 0 | S196: =ŠPLH!H176 -> 0 | T196: =ŠVIHADLO!H176 -> 481.25 | U196: ='Z MÍSTA'!H176 -> 817 | V196: =REPRE!E79 -> 50 | W196: 8007.404282
B197: VALENTA | C197: Tomáš | D197: 9.A | F197: ='60'!H177 -> 906.3254367 | G197: ='300'!H177 -> 860.0908738 | H197: ='1000'!H177 -> 749.6019638 | I197: =DÁLKA!H177 -> 909.948 | J197: =VÝŠKA!H177 -> 868.6 | K197: =MÍČEK!H177 -> 800 | L197: =KOULE!H177 -> 781.6666667 | M197: =OŠTĚP!H177 -> 0 | N197: =ČLUNEK!H177 -> 953.8536221 | O197: =LEHSED!H177 -> 700 | P197: =ODBÍJENÍ!H177 -> 657.2 | Q197: =PLAVÁNÍ!H177 -> 0 | R197: =SHYBY!H177 -> 600 | S197: =ŠPLH!H177 -> 657.6898195 | T197: =ŠVIHADLO!H177 -> 806.25 | U197: ='Z MÍSTA'!H177 -> 995.6 | V197: =REPRE!E80 -> 125 | W197: 11371.82638
B198: VANCL | C198: Jiří | D198: 9.A | F198: ='60'!H178 -> 800.5407267 | G198: ='300'!H178 -> 601.7557061 | H198: ='1000'!H178 -> 594.4114691 | I198: =DÁLKA!H178 -> 741 | J198: =VÝŠKA!H178 -> 628.36 | K198: =MÍČEK!H178 -> 362.5 | L198: =KOULE!H178 -> 663.8888889 | M198: =OŠTĚP!H178 -> 0 | N198: =ČLUNEK!H178 -> 808.3808967 | O198: =LEHSED!H178 -> 525 | P198: =ODBÍJENÍ!H178 -> 528 | Q198: =PLAVÁNÍ!H178 -> 0 | R198: =SHYBY!H178 -> 75 | S198: =ŠPLH!H178 -> 0 | T198: =ŠVIHADLO!H178 -> 593.75 | U198: ='Z MÍSTA'!H178 -> 824.6 | V198: =REPRE!E81 -> 50 | W198: 7797.187688
B199: VAŠÍČEK | C199: David | D199: 9.A | F199: ='60'!H179 -> 812.0909077 | G199: ='300'!H179 -> 743.9560816 | H199: ='1000'!H179 -> 807.9080894 | I199: =DÁLKA!H179 -> 693.576 | J199: =VÝŠKA!H179 -> 0 | K199: =MÍČEK!H179 -> 450 | L199: =KOULE!H179 -> 0 | M199: =OŠTĚP!H179 -> 0 | N199: =ČLUNEK!H179 -> 868.7920797 | O199: =LEHSED!H179 -> 0 | P199: =ODBÍJENÍ!H179 -> 176 | Q199: =PLAVÁNÍ!H179 -> 0 | R199: =SHYBY!H179 -> 450 | S199: =ŠPLH!H179 -> 429.7268592 | T199: =ŠVIHADLO!H179 -> 687.5 | U199: ='Z MÍSTA'!H179 -> 836 | V199: =REPRE!E82 -> 0 | W199: 6955.550018
B200: ZOUHAR | C200: Ondřej | D200: 9.A | F200: ='60'!H180 -> 901.3106814 | G200: ='300'!H180 -> 748.4944524 | H200: ='1000'!H180 -> 626.6054141 | I200: =DÁLKA!H180 -> 0 | J200: =VÝŠKA!H180 -> 771.36 | K200: =MÍČEK!H180 -> 500 | L200: =KOULE!H180 -> 611.1111111 | M200: =OŠTĚP!H180 -> 0 | N200: =ČLUNEK!H180 -> 879.8951758 | O200: =LEHSED!H180 -> 450 | P200: =ODBÍJENÍ!H180 -> 496 | Q200: =PLAVÁNÍ!H180 -> 0 | R200: =SHYBY!H180 -> 75 | S200: =ŠPLH!H180 -> 497.1884064 | T200: =ŠVIHADLO!H180 -> 637.5 | U200: ='Z MÍSTA'!H180 -> 801.8 | V200: =REPRE!E83 -> 50 | W200: 8046.265241
B201: ZUZÁNEK | C201: Filip | D201: 9.A | F201: ='60'!H181 -> 811.3087831 | G201: ='300'!H181 -> 610.2742234 | H201: ='1000'!H181 -> 620.0464023 | I201: =DÁLKA!H181 -> 752.856 | J201: =VÝŠKA!H181 -> 656.96 | K201: =MÍČEK!H181 -> 325 | L201: =KOULE!H181 -> 596.1111111 | M201: =OŠTĚP!H181 -> 0 | N201: =ČLUNEK!H181 -> 879.8951758 | O201: =LEHSED!H181 -> 625 | P201: =ODBÍJENÍ!H181 -> 368 | Q201: =PLAVÁNÍ!H181 -> 0 | R201: =SHYBY!H181 -> 1050 | S201: =ŠPLH!H181 -> 446.2213961 | T201: =ŠVIHADLO!H181 -> 0 | U201: ='Z MÍSTA'!H181 -> 805.6 | V201: =REPRE!E84 -> 0 | W201: 8547.273092

Sheet VÝK
B1: SPORTOVEC ŠKOLY 2020 - 2021 | K1: CHLAPCI 6. ROČNÍK
C3: 60 m | D3: 300m | E3: 1000m | F3: dálka | G3: výška | H3: míček | I3: koule | J3: oštěp | K3: člunek | L3: lehsed | M3: odbíjení | N3: plavání | O3: shyby | P3: šplh | Q3: švihadlo | R3: z místa | S3: REPRE | T3: BODY
A4: ='60'!B101 -> EXNER | B4: ='60'!C101 -> Tomáš | C4: ='60'!E101 -> 9.1 | D4: ='300'!E101 -> 00:01:00.640 | E4: ='1000'!E101 -> 00:06:05.110 | F4: =DÁLKA!E101 -> 409 | G4: =VÝŠKA!E101 -> 111 | H4: =MÍČEK!E101 -> 16 | I4: =KOULE!E101 -> 6.58 | J4: =OŠTĚP!E101 -> 0 | K4: =ČLUNEK!E101 -> 11.83 | L4: =LEHSED!E101 -> 42 | M4: =ODBÍJENÍ!E101 -> 15 | N4: =PLAVÁNÍ!E101 -> 33 | O4: =SHYBY!E101 -> 2 | P4: =ŠPLH!E101 -> 0 | Q4: =ŠVIHADLO!E101 -> 64 | R4: ='Z MÍSTA'!E101 -> 231 | S4: =REPRE!E4 -> 0 | T4: =ROČ!W5 -> 7080.205033
A5: ='60'!B102 -> JANATA | B5: ='60'!C102 -> Denis | C5: ='60'!E102 -> 9.92 | D5: ='300'!E102 -> 00:01:01.020 | E5: ='1000'!E102 -> 00:05:37.770 | F5: =DÁLKA!E102 -> 331 | G5: =VÝŠKA!E102 -> 103 | H5: =MÍČEK!E102 -> 24 | I5: =KOULE!E102 -> 4.45 | J5: =OŠTĚP!E102 -> 0 | K5: =ČLUNEK!E102 -> 12.96 | L5: =LEHSED!E102 -> 35 | M5: =ODBÍJENÍ!E102 -> 18 | N5: =PLAVÁNÍ!E102 -> 0 | O5: =SHYBY!E102 -> 0 | P5: =ŠPLH!E102 -> 0 | Q5: =ŠVIHADLO!E102 -> 65 | R5: ='Z MÍSTA'!E102 -> 149 | S5: =REPRE!E5 -> 0 | T5: =ROČ!W6 -> 5859.108363 | V5: =FREQUENCY(C5:R5,0) -> 4
A6: ='60'!B103 -> JINDŘIŠEK | B6: ='60'!C103 -> Alex Jiří | C6: ='60'!E103 -> 9.67 | D6: ='300'!E103 -> 00:01:01.350 | E6: ='1000'!E103 -> 00:05:50.550 | F6: =DÁLKA!E103 -> 310 | G6: =VÝŠKA!E103 -> 93 | H6: =MÍČEK!E103 -> 25 | I6: =KOULE!E103 -> 7.65 | J6: =OŠTĚP!E103 -> 0 | K6: =ČLUNEK!E103 -> 0 | L6: =LEHSED!E103 -> 37 | M6: =ODBÍJENÍ!E103 -> 7 | N6: =PLAVÁNÍ!E103 -> 0 | O6: =SHYBY!E103 -> 0 | P6: =ŠPLH!E103 -> 0 | Q6: =ŠVIHADLO!E103 -> 0 | R6: ='Z MÍSTA'!E103 -> 100 | S6: =REPRE!E6 -> 0 | T6: =ROČ!W7 -> 4697.300263 | V6: =FREQUENCY(C6:R6,0) -> 6
A7: ='60'!B104 -> MARŠÁLEK | B7: ='60'!C104 -> Ondřej | C7: ='60'!E104 -> 9.99 | D7: ='300'!E104 -> 00:01:09.950 | E7: ='1000'!E104 -> 00:05:29.220 | F7: =DÁLKA!E104 -> 283 | G7: =VÝŠKA!E104 -> 103 | H7: =MÍČEK!E104 -> 22.5 | I7: =KOULE!E104 -> 6.27 | J7: =OŠTĚP!E104 -> 0 | K7: =ČLUNEK!E104 -> 12.1 | L7: =LEHSED!E104 -> 36 | M7: =ODBÍJENÍ!E104 -> 8 | N7: =PLAVÁNÍ!E104 -> 0 | O7: =SHYBY!E104 -> 0 | P7: =ŠPLH!E104 -> 0 | Q7: =ŠVIHADLO!E104 -> 35 | R7: ='Z MÍSTA'!E104 -> 169 | S7: =REPRE!E7 -> 0 | T7: =ROČ!W8 -> 5659.967821 | V7: 4
A8: ='60'!B105 -> MLATEČEK | B8: ='60'!C105 -> Patrik | C8: ='60'!E105 -> 11.26 | D8: ='300'!E105 -> 00:01:14.240 | E8: ='1000'!E105 -> 00:05:47.140 | F8: =DÁLKA!E105 -> 262 | G8: =VÝŠKA!E105 -> 91 | H8: =MÍČEK!E105 -> 26.5 | I8: =KOULE!E105 -> 5.48 | J8: =OŠTĚP!E105 -> 0 | K8: =ČLUNEK!E105 -> 13.85 | L8: =LEHSED!E105 -> 30 | M8: =ODBÍJENÍ!E105 -> 8 | N8: =PLAVÁNÍ!E105 -> 0 | O8: =SHYBY!E105 -> 0 | P8: =ŠPLH!E105 -> 0 | Q8: =ŠVIHADLO!E105 -> 35 | R8: ='Z MÍSTA'!E105 -> 130 | S8: =REPRE!E8 -> 0 | T8: =ROČ!W9 -> 5061.350621 | V8: 4
A9: ='60'!B106 -> SCHOLZ | B9: ='60'!C106 -> Matyáš | C9: ='60'!E106 -> 10.46 | D9: ='300'!E106 -> 00:01:03.540 | E9: ='1000'!E106 -> 00:06:27.230 | F9: =DÁLKA!E106 -> 313 | G9: =VÝŠKA!E106 -> 102 | H9: =MÍČEK!E106 -> 26 | I9: =KOULE!E106 -> 6.98 | J9: =OŠTĚP!E106 -> 0 | K9: =ČLUNEK!E106 -> 0 | L9: =LEHSED!E106 -> 33 | M9: =ODBÍJENÍ!E106 -> 18 | N9: =PLAVÁNÍ!E106 -> 0 | O9: =SHYBY!E106 -> 0 | P9: =ŠPLH!E106 -> 25 | Q9: =ŠVIHADLO!E106 -> 47 | R9: ='Z MÍSTA'!E106 -> 190 | S9: =REPRE!E9 -> 0 | T9: =ROČ!W10 -> 5503.949937 | V9: 4
A10: ='60'!B107 -> TOMÁŠ | B10: ='60'!C107 -> Jakub | C10: ='60'!E107 -> 10.2 | D10: ='300'!E107 -> 00:00:56.510 | E10: ='1000'!E107 -> 00:04:08.320 | F10: =DÁLKA!E107 -> 345 | G10: =VÝŠKA!E107 -> 111 | H10: =MÍČEK!E107 -> 24.5 | I10: =KOULE!E107 -> 5.85 | J10: =OŠTĚP!E107 -> 0 | K10: =ČLUNEK!E107 -> 11.36 | L10: =LEHSED!E107 -> 45 | M10: =ODBÍJENÍ!E107 -> 13 | N10: =PLAVÁNÍ!E107 -> 0 | O10: =SHYBY!E107 -> 4 | P10: =ŠPLH!E107 -> 16.97 | Q10: =ŠVIHADLO!E107 -> 106 | R10: ='Z MÍSTA'!E107 -> 172 | S10: =REPRE!E10 -> 0 | T10: =ROČ!W11 -> 7346.873766 | V10: 2
A11: ='60'!B108 -> VÁCLAVÍK | B11: ='60'!C108 -> Jan | C11: ='60'!E108 -> 10.12 | D11: ='300'!E108 -> 00:00:56.400 | E11: ='1000'!E108 -> 00:04:22.770 | F11: =DÁLKA!E108 -> 314 | G11: =VÝŠKA!E108 -> 108 | H11: =MÍČEK!E108 -> 25 | I11: =KOULE!E108 -> 5.22 | J11: =OŠTĚP!E108 -> 0 | K11: =ČLUNEK!E108 -> 11.42 | L11: =LEHSED!E108 -> 34 | M11: =ODBÍJENÍ!E108 -> 11 | N11: =PLAVÁNÍ!E108 -> 0 | O11: =SHYBY!E108 -> 7 | P11: =ŠPLH!E108 -> 19.04 | Q11: =ŠVIHADLO!E108 -> 101 | R11: ='Z MÍSTA'!E108 -> 182 | S11: =REPRE!E11 -> 0 | T11: =ROČ!W12 -> 7290.340847 | V11: 2
A12: ='60'!B109 -> VEČEŘA | B12: ='60'!C109 -> David | C12: ='60'!E109 -> 12.1 | D12: ='300'!E109 -> 00:01:15.100 | E12: ='1000'!E109 -> 00:05:08.560 | F12: =DÁLKA!E109 -> 262 | G12: =VÝŠKA!E109 -> 93 | H12: =MÍČEK!E109 -> 23 | I12: =KOULE!E109 -> 5.4 | J12: =OŠTĚP!E109 -> 0 | K12: =ČLUNEK!E109 -> 13.01 | L12: =LEHSED!E109 -> 35 | M12: =ODBÍJENÍ!E109 -> 7 | N12: =PLAVÁNÍ!E109 -> 0 | O12: =SHYBY!E109 -> 0 | P12: =ŠPLH!E109 -> 0 | Q12: =ŠVIHADLO!E109 -> 37 | R12: ='Z MÍSTA'!E109 -> 149 | S12: =REPRE!E12 -> 0 | T12: =ROČ!W13 -> 5243.763923 | V12: 4
A13: ='60'!B110 -> VYBÍRAL | B13: ='60'!C110 -> Radim | C13: ='60'!E110 -> 8.95 | D13: ='300'!E110 -> 00:00:50.300 | E13: ='1000'!E110 -> 00:03:37.520 | F13: =DÁLKA!E110 -> 384 | G13: =VÝŠKA!E110 -> 119 | H13: =MÍČEK!E110 -> 30 | I13: =KOULE!E110 -> 6.29 | J13: =OŠTĚP!E110 -> 0 | K13: =ČLUNEK!E110 -> 11.24 | L13: =LEHSED!E110 -> 55 | M13: =ODBÍJENÍ!E110 -> 35 | N13: =PLAVÁNÍ!E110 -> 0 | O13: =SHYBY!E110 -> 7 | P13: =ŠPLH!E110 -> 4.83 | Q13: =ŠVIHADLO!E110 -> 115 | R13: ='Z MÍSTA'!E110 -> 209 | S13: =REPRE!E13 -> 0 | T13: =ROČ!W14 -> 8881.688603 | V13: 2
A14: ='60'!B111 -> BERISHA | B14: ='60'!C111 -> David | C14: ='60'!E111 -> 13.54 | D14: ='300'!E111 -> 00:00:00 | E14: ='1000'!E111 -> 00:10:22.160 | F14: =DÁLKA!E111 -> 190 | G14: =VÝŠKA!E111 -> 71 | H14: =MÍČEK!E111 -> 17.5 | I14: =KOULE!E111 -> 2.15 | J14: =OŠTĚP!E111 -> 0 | K14: =ČLUNEK!E111 -> 11.92 | L14: =LEHSED!E111 -> 0 | M14: =ODBÍJENÍ!E111 -> 10 | N14: =PLAVÁNÍ!E111 -> 0 | O14: =SHYBY!E111 -> 0 | P14: =ŠPLH!E111 -> 0 | Q14: =ŠVIHADLO!E111 -> 0 | R14: ='Z MÍSTA'!E111 -> 160 | S14: =REPRE!E14 -> 0 | T14: =ROČ!W15 -> 3511.279645 | V14: =FREQUENCY(C14:R14,0) -> 7
A15: ='60'!B112 -> EFENBERK | B15: ='60'!C112 -> Šimon | C15: ='60'!E112 -> 9.82 | D15: ='300'!E112 -> 00:01:04.360 | E15: ='1000'!E112 -> 00:05:31.070 | F15: =DÁLKA!E112 -> 283 | G15: =VÝŠKA!E112 -> 102 | H15: =MÍČEK!E112 -> 21 | I15: =KOULE!E112 -> 6.61 | J15: =OŠTĚP!E112 -> 0 | K15: =ČLUNEK!E112 -> 11.97 | L15: =LEHSED!E112 -> 40 | M15: =ODBÍJENÍ!E112 -> 10 | N15: =PLAVÁNÍ!E112 -> 28.3 | O15: =SHYBY!E112 -> 0 | P15: =ŠPLH!E112 -> 19.51 | Q15: =ŠVIHADLO!E112 -> 84 | R15: ='Z MÍSTA'!E112 -> 172 | S15: =REPRE!E15 -> 0 | T15: =ROČ!W16 -> 6812.109552 | V15: =FREQUENCY(C15:R15,0) -> 2
A16: ='60'!B113 -> FEJKL | B16: ='60'!C113 -> Antonín | C16: ='60'!E113 -> 9.48 | D16: ='300'!E113 -> 00:00:51.010 | E16: ='1000'!E113 -> 00:03:57.680 | F16: =DÁLKA!E113 -> 375 | G16: =VÝŠKA!E113 -> 111 | H16: =MÍČEK!E113 -> 40 | I16: =KOULE!E113 -> 6.37 | J16: =OŠTĚP!E113 -> 0 | K16: =ČLUNEK!E113 -> 10.71 | L16: =LEHSED!E113 -> 49 | M16: =ODBÍJENÍ!E113 -> 35 | N16: =PLAVÁNÍ!E113 -> 33.09 | O16: =SHYBY!E113 -> 0 | P16: =ŠPLH!E113 -> 9.92 | Q16: =ŠVIHADLO!E113 -> 132 | R16: ='Z MÍSTA'!E113 -> 205 | S16: =REPRE!E16 -> 125 | T16: =ROČ!W17 -> 8667.28609 | V16: =FREQUENCY(C16:R16,0) -> 2
A17: ='60'!B114 -> GOTTSTEIN | B17: ='60'!C114 -> Matouš | C17: ='60'!E114 -> 8.8 | D17: ='300'!E114 -> 00:00:47.930 | E17: ='1000'!E114 -> 00:03:20.260 | F17: =DÁLKA!E114 -> 417 | G17: =VÝŠKA!E114 -> 123 | H17: =MÍČEK!E114 -> 36 | I17: =KOULE!E114 -> 6.45 | J17: =OŠTĚP!E114 -> 0 | K17: =ČLUNEK!E114 -> 10.73 | L17: =LEHSED!E114 -> 51 | M17: =ODBÍJENÍ!E114 -> 20 | N17: =PLAVÁNÍ!E114 -> 33.5 | O17: =SHYBY!E114 -> 2 | P17: =ŠPLH!E114 -> 6.19 | Q17: =ŠVIHADLO!E114 -> 128 | R17: ='Z MÍSTA'!E114 -> 214 | S17: =REPRE!E17 -> 250 | T17: =ROČ!W18 -> 9317.57636 | V17: 1
A18: ='60'!B115 -> HÁK | B18: ='60'!C115 -> Šimon | C18: ='60'!E115 -> 0 | D18: ='300'!E115 -> 00:00:00 | E18: ='1000'!E115 -> 00:00:00 | F18: =DÁLKA!E115 -> 0 | G18: =VÝŠKA!E115 -> 0 | H18: =MÍČEK!E115 -> 0 | I18: =KOULE!E115 -> 0 | J18: =OŠTĚP!E115 -> 0 | K18: =ČLUNEK!E115 -> 0 | L18: =LEHSED!E115 -> 0 | M18: =ODBÍJENÍ!E115 -> 0 | N18: =PLAVÁNÍ!E115 -> 0 | O18: =SHYBY!E115 -> 0 | P18: =ŠPLH!E115 -> 0 | Q18: =ŠVIHADLO!E115 -> 0 | R18: ='Z MÍSTA'!E115 -> 0 | S18: =REPRE!E18 -> 0 | T18: =ROČ!W19 -> 0 | V18: 16
A19: ='60'!B116 -> POVAŽANEC | B19: ='60'!C116 -> Lukáš | C19: ='60'!E116 -> 10.1 | D19: ='300'!E116 -> 00:01:04.130 | E19: ='1000'!E116 -> 00:05:26.550 | F19: =DÁLKA!E116 -> 321 | G19: =VÝŠKA!E116 -> 105 | H19: =MÍČEK!E116 -> 33 | I19: =KOULE!E116 -> 7.1 | J19: =OŠTĚP!E116 -> 0 | K19: =ČLUNEK!E116 -> 12.16 | L19: =LEHSED!E116 -> 30 | M19: =ODBÍJENÍ!E116 -> 20 | N19: =PLAVÁNÍ!E116 -> 0 | O19: =SHYBY!E116 -> 0 | P19: =ŠPLH!E116 -> 0 | Q19: =ŠVIHADLO!E116 -> 59 | R19: ='Z MÍSTA'!E116 -> 162 | S19: =REPRE!E19 -> 0 | T19: =ROČ!W20 -> 6111.122611 | V19: 4
A20: ='60'!B117 -> VANCL | B20: ='60'!C117 -> Jakub | C20: ='60'!E117 -> 11.09 | D20: ='300'!E117 -> 00:01:08.950 | E20: ='1000'!E117 -> 00:05:08.040 | F20: =DÁLKA!E117 -> 232 | G20: =VÝŠKA!E117 -> 91 | H20: =MÍČEK!E117 -> 20.5 | I20: =KOULE!E117 -> 5.46 | J20: =OŠTĚP!E117 -> 0 | K20: =ČLUNEK!E117 -> 13.6 | L20: =LEHSED!E117 -> 37 | M20: =ODBÍJENÍ!E117 -> 15 | N20: =PLAVÁNÍ!E117 -> 0 | O20: =SHYBY!E117 -> 1 | P20: =ŠPLH!E117 -> 0 | Q20: =ŠVIHADLO!E117 -> 18 | R20: ='Z MÍSTA'!E117 -> 145 | S20: =REPRE!E20 -> 0 | T20: =ROČ!W21 -> 5254.732952 | V20: 3
A21: ='60'!B118 -> VANCL | B21: ='60'!C118 -> Miroslav | C21: ='60'!E118 -> 11.3 | D21: ='300'!E118 -> 00:01:32.620 | E21: ='1000'!E118 -> 00:07:26.110 | F21: =DÁLKA!E118 -> 296 | G21: =VÝŠKA!E118 -> 103 | H21: =MÍČEK!E118 -> 21 | I21: =KOULE!E118 -> 4.98 | J21: =OŠTĚP!E118 -> 0 | K21: =ČLUNEK!E118 -> 12.94 | L21: =LEHSED!E118 -> 27 | M21: =ODBÍJENÍ!E118 -> 5 | N21: =PLAVÁNÍ!E118 -> 0 | O21: =SHYBY!E118 -> 0 | P21: =ŠPLH!E118 -> 0 | Q21: =ŠVIHADLO!E118 -> 68 | R21: ='Z MÍSTA'!E118 -> 190 | S21: =REPRE!E21 -> 0 | T21: =ROČ!W22 -> 5274.313609 | V21: 4
A22: ='60'!B119 -> VOTOČEK | B22: ='60'!C119 -> Michal | C22: ='60'!E119 -> 10.78 | D22: ='300'!E119 -> 00:01:07.340 | E22: ='1000'!E119 -> 00:05:26.920 | F22: =DÁLKA!E119 -> 249 | G22: =VÝŠKA!E119 -> 102 | H22: =MÍČEK!E119 -> 30 | I22: =KOULE!E119 -> 5.7 | J22: =OŠTĚP!E119 -> 0 | K22: =ČLUNEK!E119 -> 13.12 | L22: =LEHSED!E119 -> 37 | M22: =ODBÍJENÍ!E119 -> 8 | N22: =PLAVÁNÍ!E119 -> 0 | O22: =SHYBY!E119 -> 0 | P22: =ŠPLH!E119 -> 0 | Q22: =ŠVIHADLO!E119 -> 50 | R22: ='Z MÍSTA'!E119 -> 161 | S22: =REPRE!E22 -> 0 | T22: =ROČ!W23 -> 5645.017819 | V22: 4
A27: SPORTOVEC ŠKOLY 2020 - 2021 | J27: CHLAPCI 7. ROČNÍK
C29: 60 m | D29: 300m | E29: 1000m | F29: dálka | G29: výška | H29: míček | I29: koule | J29: oštěp | K29: člunek | L29: lehsed | M29: odbíjení | N29: plavání | O29: shyby | P29: šplh | Q29: švihadlo | R29: z místa | S29: REPRE | T29: BODY
A30: ='60'!B120 -> BOUKAL | B30: ='60'!C120 -> Jakub | C30: ='60'!E120 -> 0 | D30: ='300'!E126 -> 00:01:29.020 | E30: ='1000'!E120 -> 00:00:00 | F30: =DÁLKA!E120 -> 0 | G30: =VÝŠKA!E120 -> 0 | H30: =MÍČEK!E120 -> 0 | I30: =KOULE!E120 -> 6.72 | J30: =OŠTĚP!E120 -> 0 | K30: =ČLUNEK!E120 -> 14.74 | L30: =LEHSED!E120 -> 0 | M30: =ODBÍJENÍ!E120 -> 0 | N30: =PLAVÁNÍ!E120 -> 0 | O30: =SHYBY!E120 -> 0 | P30: =ŠPLH!E120 -> 0 | Q30: =ŠVIHADLO!E120 -> 49 | R30: ='Z MÍSTA'!E120 -> 146 | S30: =REPRE!E23 -> 0 | T30: =ROČ!W140 -> 1867.748218
A31: ='60'!B121 -> DEMČUK | B31: ='60'!C121 -> Ilja | C31: ='60'!E121 -> 9.66 | D31: ='300'!E127 -> 00:01:06.760 | E31: ='1000'!E121 -> 00:04:08.480 | F31: =DÁLKA!E121 -> 367 | G31: =VÝŠKA!E121 -> 120 | H31: =MÍČEK!E121 -> 31 | I31: =KOULE!E121 -> 6.49 | J31: =OŠTĚP!E121 -> 0 | K31: =ČLUNEK!E121 -> 11.37 | L31: =LEHSED!E121 -> 38 | M31: =ODBÍJENÍ!E121 -> 6 | N31: =PLAVÁNÍ!E121 -> 0 | O31: =SHYBY!E121 -> 1 | P31: =ŠPLH!E121 -> 0 | Q31: =ŠVIHADLO!E121 -> 48 | R31: ='Z MÍSTA'!E121 -> 182 | S31: =REPRE!E24 -> 0 | T31: =ROČ!W141 -> 6706.739611
A32: ='60'!B122 -> FAISTAUER | B32: ='60'!C122 -> Kryštof | C32: ='60'!E122 -> 8.89 | D32: ='300'!E128 -> 00:01:09.540 | E32: ='1000'!E122 -> 00:04:01.820 | F32: =DÁLKA!E122 -> 380 | G32: =VÝŠKA!E122 -> 130 | H32: =MÍČEK!E122 -> 45 | I32: =KOULE!E122 -> 6.11 | J32: =OŠTĚP!E122 -> 0 | K32: =ČLUNEK!E122 -> 10.71 | L32: =LEHSED!E122 -> 46 | M32: =ODBÍJENÍ!E122 -> 10 | N32: =PLAVÁNÍ!E122 -> 0 | O32: =SHYBY!E122 -> 0 | P32: =ŠPLH!E122 -> 5.92 | Q32: =ŠVIHADLO!E122 -> 84 | R32: ='Z MÍSTA'!E122 -> 213 | S32: =REPRE!E25 -> 200 | T32: =ROČ!W142 -> 8137.070173
A33: ='60'!B123 -> FRK | B33: ='60'!C123 -> Matyáš | C33: ='60'!E123 -> 12.22 | D33: ='300'!E129 -> 00:01:04.170 | E33: ='1000'!E123 -> 00:07:03.570 | F33: =DÁLKA!E123 -> 292 | G33: =VÝŠKA!E123 -> 0 | H33: =MÍČEK!E123 -> 26 | I33: =KOULE!E123 -> 5.63 | J33: =OŠTĚP!E123 -> 0 | K33: =ČLUNEK!E123 -> 12.65 | L33: =LEHSED!E123 -> 35 | M33: =ODBÍJENÍ!E123 -> 9 | N33: =PLAVÁNÍ!E123 -> 0 | O33: =SHYBY!E123 -> 0 | P33: =ŠPLH!E123 -> 0 | Q33: =ŠVIHADLO!E123 -> 0 | R33: ='Z MÍSTA'!E123 -> 170 | S33: =REPRE!E26 -> 0 | T33: =ROČ!W143 -> 4565.970494
A34: ='60'!B124 -> HUBÁLOVSKÝ | B34: ='60'!C124 -> Marek | C34: ='60'!E124 -> 10.84 | D34: ='300'!E130 -> 00:00:00 | E34: ='1000'!E124 -> 00:04:33.040 | F34: =DÁLKA!E124 -> 326 | G34: =VÝŠKA!E124 -> 115 | H34: =MÍČEK!E124 -> 34 | I34: =KOULE!E124 -> 5.12 | J34: =OŠTĚP!E124 -> 0 | K34: =ČLUNEK!E124 -> 11.48 | L34: =LEHSED!E124 -> 45 | M34: =ODBÍJENÍ!E124 -> 19 | N34: =PLAVÁNÍ!E124 -> 0 | O34: =SHYBY!E124 -> 0 | P34: =ŠPLH!E124 -> 25 | Q34: =ŠVIHADLO!E124 -> 67 | R34: ='Z MÍSTA'!E124 -> 191 | S34: =REPRE!E27 -> 0 | T34: =ROČ!W144 -> 6938.032436
A35: ='60'!B125 -> MAŘAS | B35: ='60'!C125 -> Dominik | C35: ='60'!E125 -> 0 | D35: ='300'!E131 -> 00:02:06.130 | E35: ='1000'!E125 -> 00:07:02.110 | F35: =DÁLKA!E125 -> 262 | G35: =VÝŠKA!E125 -> 110 | H35: =MÍČEK!E125 -> 28 | I35: =KOULE!E125 -> 5.2 | J35: =OŠTĚP!E125 -> 0 | K35: =ČLUNEK!E125 -> 13.81 | L35: =LEHSED!E125 -> 0 | M35: =ODBÍJENÍ!E125 -> 6 | N35: =PLAVÁNÍ!E125 -> 0 | O35: =SHYBY!E125 -> 1 | P35: =ŠPLH!E125 -> 0 | Q35: =ŠVIHADLO!E125 -> 0 | R35: ='Z MÍSTA'!E125 -> 203 | S35: =REPRE!E28 -> 0 | T35: =ROČ!W145 -> 4109.171719
A36: ='60'!B126 -> MAŤÁTKO | B36: ='60'!C126 -> Jakub | C36: ='60'!E126 -> 0 | D36: ='300'!E132 -> 00:00:48.360 | E36: ='1000'!E126 -> 00:00:00 | F36: =DÁLKA!E126 -> 0 | G36: =VÝŠKA!E126 -> 110 | H36: =MÍČEK!E126 -> 25 | I36: =KOULE!E126 -> 0 | J36: =OŠTĚP!E126 -> 0 | K36: =ČLUNEK!E126 -> 14.13 | L36: =LEHSED!E126 -> 0 | M36: =ODBÍJENÍ!E126 -> 0 | N36: =PLAVÁNÍ!E126 -> 0 | O36: =SHYBY!E126 -> 0 | P36: =ŠPLH!E126 -> 0 | Q36: =ŠVIHADLO!E126 -> 0 | R36: ='Z MÍSTA'!E126 -> 140 | S36: =REPRE!E29 -> 0 | T36: =ROČ!W146 -> 2263.476347
A37: ='60'!B127 -> MERY | B37: ='60'!C127 -> Luboš | C37: ='60'!E127 -> 10.94 | D37: ='300'!E133 -> 00:01:16.350 | E37: ='1000'!E127 -> 00:04:45.950 | F37: =DÁLKA!E127 -> 322 | G37: =VÝŠKA!E127 -> 0 | H37: =MÍČEK!E127 -> 21 | I37: =KOULE!E127 -> 4.9 | J37: =OŠTĚP!E127 -> 0 | K37: =ČLUNEK!E127 -> 12.05 | L37: =LEHSED!E127 -> 36 | M37: =ODBÍJENÍ!E127 -> 6 | N37: =PLAVÁNÍ!E127 -> 0 | O37: =SHYBY!E127 -> 0 | P37: =ŠPLH!E127 -> 0 | Q37: =ŠVIHADLO!E127 -> 35 | R37: ='Z MÍSTA'!E127 -> 160 | S37: =REPRE!E30 -> 0 | T37: =ROČ!W147 -> 5066.557086
A38: ='60'!B128 -> NOVOTNÝ | B38: ='60'!C128 -> Matěj | C38: ='60'!E128 -> 10.98 | D38: ='300'!E134 -> 00:00:54.880 | E38: ='1000'!E128 -> 00:06:27.700 | F38: =DÁLKA!E128 -> 291 | G38: =VÝŠKA!E128 -> 0 | H38: =MÍČEK!E128 -> 25.5 | I38: =KOULE!E128 -> 5.88 | J38: =OŠTĚP!E128 -> 0 | K38: =ČLUNEK!E128 -> 12.45 | L38: =LEHSED!E128 -> 33 | M38: =ODBÍJENÍ!E128 -> 11 | N38: =PLAVÁNÍ!E128 -> 0 | O38: =SHYBY!E128 -> 0 | P38: =ŠPLH!E128 -> 0 | Q38: =ŠVIHADLO!E128 -> 69 | R38: ='Z MÍSTA'!E128 -> 154 | S38: =REPRE!E31 -> 0 | T38: =ROČ!W148 -> 5099.579188
A39: ='60'!B129 -> ŘEHOŘEK | B39: ='60'!C129 -> Vojtěch | C39: ='60'!E129 -> 10.43 | D39: ='300'!E135 -> 00:00:00 | E39: ='1000'!E129 -> 00:04:56.860 | F39: =DÁLKA!E129 -> 351 | G39: =VÝŠKA!E129 -> 110 | H39: =MÍČEK!E129 -> 44.8 | I39: =KOULE!E129 -> 6.5 | J39: =OŠTĚP!E129 -> 0 | K39: =ČLUNEK!E129 -> 12.03 | L39: =LEHSED!E129 -> 33 | M39: =ODBÍJENÍ!E129 -> 11 | N39: =PLAVÁNÍ!E129 -> 0 | O39: =SHYBY!E129 -> 0 | P39: =ŠPLH!E129 -> 0 | Q39: =ŠVIHADLO!E129 -> 95 | R39: ='Z MÍSTA'!E129 -> 178 | S39: =REPRE!E32 -> 200 | T39: =ROČ!W149 -> 6792.96335
A40: ='60'!B130 -> ŠÍR | B40: ='60'!C130 -> Matyáš | C40: ='60'!E130 -> 10.82 | D40: ='300'!E136 -> 00:00:55.190 | E40: ='1000'!E130 -> 00:04:37.540 | F40: =DÁLKA!E130 -> 293 | G40: =VÝŠKA!E130 -> 98 | H40: =MÍČEK!E130 -> 25 | I40: =KOULE!E130 -> 3.72 | J40: =OŠTĚP!E130 -> 0 | K40: =ČLUNEK!E130 -> 13.26 | L40: =LEHSED!E130 -> 35 | M40: =ODBÍJENÍ!E130 -> 10 | N40: =PLAVÁNÍ!E130 -> 0 | O40: =SHYBY!E130 -> 0 | P40: =ŠPLH!E130 -> 0 | Q40: =ŠVIHADLO!E130 -> 66 | R40: ='Z MÍSTA'!E130 -> 141 | S40: =REPRE!E33 -> 0 | T40: =ROČ!W150 -> 5118.942321
A41: ='60'!B131 -> TORÁČ | B41: ='60'!C131 -> Tomáš | C41: ='60'!E131 -> 0 | D41: ='300'!E137 -> 00:01:00.920 | E41: ='1000'!E131 -> 00:08:31.860 | F41: =DÁLKA!E131 -> 184 | G41: =VÝŠKA!E131 -> 90 | H41: =MÍČEK!E131 -> 17.5 | I41: =KOULE!E131 -> 4.54 | J41: =OŠTĚP!E131 -> 0 | K41: =ČLUNEK!E131 -> 16.54 | L41: =LEHSED!E131 -> 30 | M41: =ODBÍJENÍ!E131 -> 6 | N41: =PLAVÁNÍ!E131 -> 0 | O41: =SHYBY!E131 -> 0 | P41: =ŠPLH!E131 -> 0 | Q41: =ŠVIHADLO!E131 -> 28 | R41: ='Z MÍSTA'!E131 -> 90 | S41: =REPRE!E34 -> 0 | T41: =ROČ!W151 -> 3255.123839
A42: ='60'!B132 -> ULLMAN | B42: ='60'!C132 -> Šimon | C42: ='60'!E132 -> 8.38 | D42: ='300'!E138 -> 00:00:00 | E42: ='1000'!E132 -> 00:04:09.990 | F42: =DÁLKA!E132 -> 348 | G42: =VÝŠKA!E132 -> 120 | H42: =MÍČEK!E132 -> 0 | I42: =KOULE!E132 -> 5.29 | J42: =OŠTĚP!E132 -> 0 | K42: =ČLUNEK!E132 -> 10.73 | L42: =LEHSED!E132 -> 46 | M42: =ODBÍJENÍ!E132 -> 9 | N42: =PLAVÁNÍ!E132 -> 0 | O42: =SHYBY!E132 -> 8 | P42: =ŠPLH!E132 -> 5.51 | Q42: =ŠVIHADLO!E132 -> 49 | R42: ='Z MÍSTA'!E132 -> 230 | S42: =REPRE!E35 -> 0 | T42: =ROČ!W152 -> 7804.747498
A43: ='60'!B133 -> VÁCLAVÍK | B43: ='60'!C133 -> Ondřej | C43: ='60'!E133 -> 9.14 | D43: ='300'!E139 -> 00:00:43.530 | E43: ='1000'!E133 -> 00:04:04.290 | F43: =DÁLKA!E133 -> 394 | G43: =VÝŠKA!E133 -> 108 | H43: =MÍČEK!E133 -> 42 | I43: =KOULE!E133 -> 0 | J43: =OŠTĚP!E133 -> 0 | K43: =ČLUNEK!E133 -> 10.64 | L43: =LEHSED!E133 -> 42 | M43: =ODBÍJENÍ!E133 -> 16 | N43: =PLAVÁNÍ!E133 -> 0 | O43: =SHYBY!E133 -> 11 | P43: =ŠPLH!E133 -> 5.92 | Q43: =ŠVIHADLO!E133 -> 83 | R43: ='Z MÍSTA'!E133 -> 202 | S43: =REPRE!E36 -> 25 | T43: =ROČ!W153 -> 7760.413539
A44: ='60'!B134 -> AUERSWALD | B44: ='60'!C134 -> Daniel | C44: ='60'!E134 -> 9.61 | D44: ='300'!E140 -> 00:00:55.050 | E44: ='1000'!E134 -> 00:04:33.760 | F44: =DÁLKA!E134 -> 380 | G44: =VÝŠKA!E134 -> 108 | H44: =MÍČEK!E134 -> 29 | I44: =KOULE!E134 -> 0 | J44: =OŠTĚP!E134 -> 0 | K44: =ČLUNEK!E134 -> 0 | L44: =LEHSED!E134 -> 40 | M44: =ODBÍJENÍ!E134 -> 15 | N44: =PLAVÁNÍ!E134 -> 0 | O44: =SHYBY!E134 -> 3 | P44: =ŠPLH!E134 -> 7.85 | Q44: =ŠVIHADLO!E134 -> 85 | R44: ='Z MÍSTA'!E134 -> 209 | S44: =REPRE!E37 -> 25 | T44: =ROČ!W154 -> 6246.781071
A45: ='60'!B135 -> BODLÁK | B45: ='60'!C135 -> Vladimír | C45: ='60'!E135 -> 0 | D45: ='300'!E141 -> 00:00:48.020 | E45: ='1000'!E135 -> 00:00:00 | F45: =DÁLKA!E135 -> 0 | G45: =VÝŠKA!E135 -> 0 | H45: =MÍČEK!E135 -> 0 | I45: =KOULE!E135 -> 0 | J45: =OŠTĚP!E135 -> 0 | K45: =ČLUNEK!E135 -> 0 | L45: =LEHSED!E135 -> 0 | M45: =ODBÍJENÍ!E135 -> 0 | N45: =PLAVÁNÍ!E135 -> 0 | O45: =SHYBY!E135 -> 0 | P45: =ŠPLH!E135 -> 0 | Q45: =ŠVIHADLO!E135 -> 0 | R45: ='Z MÍSTA'!E135 -> 0 | S45: =REPRE!E38 -> 0 | T45: =ROČ!W155 -> 0
A46: ='60'!B136 -> BUDÍN | B46: ='60'!C136 -> Martin | C46: ='60'!E136 -> 9.67 | D46: ='300'!E142 -> 00:00:46.890 | E46: ='1000'!E136 -> 00:03:40.660 | F46: =DÁLKA!E136 -> 333 | G46: =VÝŠKA!E136 -> 110 | H46: =MÍČEK!E136 -> 37 | I46: =KOULE!E136 -> 5.27 | J46: =OŠTĚP!E136 -> 0 | K46: =ČLUNEK!E136 -> 11.04 | L46: =LEHSED!E136 -> 40 | M46: =ODBÍJENÍ!E136 -> 9 | N46: =PLAVÁNÍ!E136 -> 0 | O46: =SHYBY!E136 -> 5 | P46: =ŠPLH!E136 -> 7.91 | Q46: =ŠVIHADLO!E136 -> 132 | R46: ='Z MÍSTA'!E136 -> 200 | S46: =REPRE!E39 -> 0 | T46: =ROČ!W156 -> 7992.582856
A47: ='60'!B137 -> DVOŘÁK | B47: ='60'!C137 -> Dominik | C47: ='60'!E137 -> 11.05 | D47: ='300'!E143 -> 00:00:48.620 | E47: ='1000'!E137 -> 00:00:00 | F47: =DÁLKA!E137 -> 291 | G47: =VÝŠKA!E137 -> 110 | H47: =MÍČEK!E137 -> 31 | I47: =KOULE!E137 -> 6.24 | J47: =OŠTĚP!E137 -> 0 | K47: =ČLUNEK!E137 -> 12.04 | L47: =LEHSED!E137 -> 42 | M47: =ODBÍJENÍ!E137 -> 9 | N47: =PLAVÁNÍ!E137 -> 0 | O47: =SHYBY!E137 -> 0 | P47: =ŠPLH!E137 -> 9.04 | Q47: =ŠVIHADLO!E137 -> 71 | R47: ='Z MÍSTA'!E137 -> 178 | S47: =REPRE!E40 -> 0 | T47: =ROČ!W157 -> 6026.58724
A48: ='60'!B138 -> FIŠERA | B48: ='60'!C138 -> Vojtěch | C48: ='60'!E138 -> 10.24 | D48: ='300'!E144 -> 00:00:44.070 | E48: ='1000'!E138 -> 00:04:36.060 | F48: =DÁLKA!E138 -> 302 | G48: =VÝŠKA!E138 -> 103 | H48: =MÍČEK!E138 -> 19 | I48: =KOULE!E138 -> 5.51 | J48: =OŠTĚP!E138 -> 0 | K48: =ČLUNEK!E138 -> 11.87 | L48: =LEHSED!E138 -> 44 | M48: =ODBÍJENÍ!E138 -> 9 | N48: =PLAVÁNÍ!E138 -> 0 | O48: =SHYBY!E138 -> 0 | P48: =ŠPLH!E138 -> 25 | Q48: =ŠVIHADLO!E138 -> 40 | R48: ='Z MÍSTA'!E138 -> 167 | S48: =REPRE!E41 -> 0 | T48: =ROČ!W158 -> 5603.566965
A49: ='60'!B139 -> JINDŘIŠEK | B49: ='60'!C139 -> Vít | C49: ='60'!E139 -> 8.24 | D49: ='300'!E145 -> 00:01:06.520 | E49: ='1000'!E139 -> 00:03:18.470 | F49: =DÁLKA!E139 -> 428 | G49: =VÝŠKA!E139 -> 136 | H49: =MÍČEK!E139 -> 52.9 | I49: =KOULE!E139 -> 7.91 | J49: =OŠTĚP!E139 -> 0 | K49: =ČLUNEK!E139 -> 10.34 | L49: =LEHSED!E139 -> 50 | M49: =ODBÍJENÍ!E139 -> 43 | N49: =PLAVÁNÍ!E139 -> 0 | O49: =SHYBY!E139 -> 15 | P49: =ŠPLH!E139 -> 4.78 | Q49: =ŠVIHADLO!E139 -> 114 | R49: ='Z MÍSTA'!E139 -> 229 | S49: =REPRE!E42 -> 250 | T49: =ROČ!W159 -> 10736.79008
A50: ='60'!B140 -> JIROUŠ | B50: ='60'!C140 -> Matouš | C50: ='60'!E140 -> 9.55 | D50: ='300'!E146 -> 00:00:00 | E50: ='1000'!E140 -> 00:00:00 | F50: =DÁLKA!E140 -> 381 | G50: =VÝŠKA!E140 -> 108 | H50: =MÍČEK!E140 -> 29.5 | I50: =KOULE!E140 -> 5.9 | J50: =OŠTĚP!E140 -> 0 | K50: =ČLUNEK!E140 -> 11.73 | L50: =LEHSED!E140 -> 45 | M50: =ODBÍJENÍ!E140 -> 14 | N50: =PLAVÁNÍ!E140 -> 0 | O50: =SHYBY!E140 -> 2 | P50: =ŠPLH!E140 -> 9.46 | Q50: =ŠVIHADLO!E140 -> 103 | R50: ='Z MÍSTA'!E140 -> 201 | S50: =REPRE!E43 -> 75 | T50: =ROČ!W160 -> 6899.767625
A51: ='60'!B141 -> KERLE | B51: ='60'!C141 -> Marek | C51: ='60'!E141 -> 8.84 | D51: ='300'!E147 -> 00:00:48.980 | E51: ='1000'!E141 -> 00:03:57.050 | F51: =DÁLKA!E141 -> 433 | G51: =VÝŠKA!E141 -> 138 | H51: =MÍČEK!E141 -> 46 | I51: =KOULE!E141 -> 7.25 | J51: =OŠTĚP!E141 -> 0 | K51: =ČLUNEK!E141 -> 10.51 | L51: =LEHSED!E141 -> 56 | M51: =ODBÍJENÍ!E141 -> 43 | N51: =PLAVÁNÍ!E141 -> 0 | O51: =SHYBY!E141 -> 12 | P51: =ŠPLH!E141 -> 4.22 | Q51: =ŠVIHADLO!E141 -> 104 | R51: ='Z MÍSTA'!E141 -> 201 | S51: =REPRE!E44 -> 175 | T51: =ROČ!W161 -> 9980.93292
A52: ='60'!B142 -> LUKEŠ | B52: ='60'!C142 -> Jakub | C52: ='60'!E142 -> 8.73 | D52: ='300'!E148 -> 00:00:56.960 | E52: ='1000'!E142 -> 00:03:31.960 | F52: =DÁLKA!E142 -> 423 | G52: =VÝŠKA!E142 -> 146 | H52: =MÍČEK!E142 -> 24 | I52: =KOULE!E142 -> 4.95 | J52: =OŠTĚP!E142 -> 0 | K52: =ČLUNEK!E142 -> 11.05 | L52: =LEHSED!E142 -> 40 | M52: =ODBÍJENÍ!E142 -> 19 | N52: =PLAVÁNÍ!E142 -> 0 | O52: =SHYBY!E142 -> 7 | P52: =ŠPLH!E142 -> 6.04 | Q52: =ŠVIHADLO!E142 -> 85 | R52: ='Z MÍSTA'!E142 -> 241 | S52: =REPRE!E45 -> 125 | T52: =ROČ!W162 -> 8726.276088
A53: ='60'!B143 -> OTT | B53: ='60'!C143 -> Matyáš | C53: ='60'!E143 -> 8.69 | D53: ='300'!E149 -> 00:00:44.880 | E53: ='1000'!E143 -> 00:03:24.090 | F53: =DÁLKA!E143 -> 392 | G53: =VÝŠKA!E143 -> 125 | H53: =MÍČEK!E143 -> 35 | I53: =KOULE!E143 -> 6.12 | J53: =OŠTĚP!E143 -> 0 | K53: =ČLUNEK!E143 -> 10.84 | L53: =LEHSED!E143 -> 40 | M53: =ODBÍJENÍ!E143 -> 24 | N53: =PLAVÁNÍ!E143 -> 22.13 | O53: =SHYBY!E143 -> 9 | P53: =ŠPLH!E143 -> 8 | Q53: =ŠVIHADLO!E143 -> 125 | R53: ='Z MÍSTA'!E143 -> 191 | S53: =REPRE!E46 -> 175 | T53: =ROČ!W163 -> 9557.529267
A54: ='60'!B144 -> POKORNÝ | B54: ='60'!C144 -> Matyáš | C54: ='60'!E144 -> 8.58 | D54: ='300'!E150 -> 00:01:09.690 | E54: ='1000'!E144 -> 00:03:14.690 | F54: =DÁLKA!E144 -> 445 | G54: =VÝŠKA!E144 -> 135 | H54: =MÍČEK!E144 -> 45 | I54: =KOULE!E144 -> 5.51 | J54: =OŠTĚP!E144 -> 0 | K54: =ČLUNEK!E144 -> 9.84 | L54: =LEHSED!E144 -> 73 | M54: =ODBÍJENÍ!E144 -> 24 | N54: =PLAVÁNÍ!E144 -> 0 | O54: =SHYBY!E144 -> 14 | P54: =ŠPLH!E144 -> 5.85 | Q54: =ŠVIHADLO!E144 -> 129 | R54: ='Z MÍSTA'!E144 -> 222 | S54: =REPRE!E47 -> 250 | T54: =ROČ!W164 -> 10590.682
A55: ='60'!B145 -> POLÁČEK | B55: ='60'!C145 -> Matyáš | C55: ='60'!E145 -> 10.99 | D55: ='300'!E151 -> 00:00:46.380 | E55: ='1000'!E145 -> 00:00:00 | F55: =DÁLKA!E145 -> 299 | G55: =VÝŠKA!E145 -> 98 | H55: =MÍČEK!E145 -> 37 | I55: =KOULE!E145 -> 5.3 | J55: =OŠTĚP!E145 -> 0 | K55: =ČLUNEK!E145 -> 0 | L55: =LEHSED!E145 -> 39 | M55: =ODBÍJENÍ!E145 -> 11 | N55: =PLAVÁNÍ!E145 -> 0 | O55: =SHYBY!E145 -> 0 | P55: =ŠPLH!E145 -> 0 | Q55: =ŠVIHADLO!E145 -> 59 | R55: ='Z MÍSTA'!E145 -> 165 | S55: =REPRE!E48 -> 25 | T55: =ROČ!W165 -> 4795.539264
A56: ='60'!B146 -> SOUKUP | B56: ='60'!C146 -> Patrik | C56: ='60'!E146 -> 0 | D56: ='300'!E152 -> 00:00:57.910 | E56: ='1000'!E146 -> 00:00:00 | F56: =DÁLKA!E146 -> 0 | G56: =VÝŠKA!E146 -> 0 | H56: =MÍČEK!E146 -> 0 | I56: =KOULE!E146 -> 0 | J56: =OŠTĚP!E146 -> 0 | K56: =ČLUNEK!E146 -> 0 | L56: =LEHSED!E146 -> 0 | M56: =ODBÍJENÍ!E146 -> 0 | N56: =PLAVÁNÍ!E146 -> 0 | O56: =SHYBY!E146 -> 0 | P56: =ŠPLH!E146 -> 0 | Q56: =ŠVIHADLO!E146 -> 0 | R56: ='Z MÍSTA'!E146 -> 0 | S56: =REPRE!E49 -> 0 | T56: =ROČ!W166 -> 0
A57: ='60'!B147 -> VALENTA | B57: ='60'!C147 -> Jakub | C57: ='60'!E147 -> 9.87 | D57: ='300'!E153 -> 00:00:46.990 | E57: ='1000'!E147 -> 00:03:36.140 | F57: =DÁLKA!E147 -> 0 | G57: =VÝŠKA!E147 -> 130 | H57: =MÍČEK!E147 -> 28 | I57: =KOULE!E147 -> 5.4 | J57: =OŠTĚP!E147 -> 0 | K57: =ČLUNEK!E147 -> 10.54 | L57: =LEHSED!E147 -> 60 | M57: =ODBÍJENÍ!E147 -> 24 | N57: =PLAVÁNÍ!E147 -> 0 | O57: =SHYBY!E147 -> 0 | P57: =ŠPLH!E147 -> 5.34 | Q57: =ŠVIHADLO!E147 -> 89 | R57: ='Z MÍSTA'!E147 -> 194 | S57: =REPRE!E50 -> 250 | T57: =ROČ!W167 -> 7662.817979
A58: ='60'!B148 -> VRBATA | B58: ='60'!C148 -> Dominik | C58: ='60'!E148 -> 9.74 | D58: ='300'!E154 -> 00:00:51.300 | E58: ='1000'!E148 -> 00:04:05.640 | F58: =DÁLKA!E148 -> 375 | G58: =VÝŠKA!E148 -> 108 | H58: =MÍČEK!E148 -> 37 | I58: =KOULE!E148 -> 6.41 | J58: =OŠTĚP!E148 -> 0 | K58: =ČLUNEK!E148 -> 11.65 | L58: =LEHSED!E148 -> 42 | M58: =ODBÍJENÍ!E148 -> 16 | N58: =PLAVÁNÍ!E148 -> 21.7 | O58: =SHYBY!E148 -> 9 | P58: =ŠPLH!E148 -> 4.18 | Q58: =ŠVIHADLO!E148 -> 106 | R58: ='Z MÍSTA'!E148 -> 192 | S58: =REPRE!E51 -> 125 | T58: =ROČ!W168 -> 9087.167854
A61: SPORTOVEC ŠKOLY 2020 - 2021 | J61: CHLAPCI 8. ROČNÍK
C63: 60 m | D63: 300m | E63: 1000m | F63: dálka | G63: výška | H63: míček | I63: koule | J63: oštěp | K63: člunek | L63: lehsed | M63: odbíjení | N63: plavání | O63: shyby | P63: šplh | Q63: švihadlo | R63: z místa | S63: REPRE | T63: BODY
A64: ='60'!B149 -> FEJKL | B64: ='60'!C149 -> Jan | C64: ='60'!E149 -> 7.92 | D64: ='300'!E158 -> 00:00:58.820 | E64: ='1000'!E149 -> 00:03:31.980 | F64: =DÁLKA!E149 -> 464 | G64: =VÝŠKA!E149 -> 145 | H64: =MÍČEK!E149 -> 61 | I64: =KOULE!E149 -> 7.58 | J64: =OŠTĚP!E149 -> 0 | K64: =ČLUNEK!E149 -> 9.94 | L64: =LEHSED!E149 -> 51 | M64: =ODBÍJENÍ!E149 -> 52 | N64: =PLAVÁNÍ!E149 -> 0 | O64: =SHYBY!E149 -> 0 | P64: =ŠPLH!E149 -> 4.07 | Q64: =ŠVIHADLO!E149 -> 101 | R64: ='Z MÍSTA'!E149 -> 232 | S64: =REPRE!E52 -> 125 | T64: =ROČ!W169 -> 9757.294067
A65: ='60'!B150 -> KOTYK | B65: ='60'!C150 -> Tadeáš | C65: ='60'!E150 -> 10.72 | D65: ='300'!E159 -> 00:00:51.270 | E65: ='1000'!E150 -> 00:08:13.460 | F65: =DÁLKA!E150 -> 287 | G65: =VÝŠKA!E150 -> 95 | H65: =MÍČEK!E150 -> 26 | I65: =KOULE!E150 -> 6.98 | J65: =OŠTĚP!E150 -> 0 | K65: =ČLUNEK!E150 -> 11.88 | L65: =LEHSED!E150 -> 33 | M65: =ODBÍJENÍ!E150 -> 32 | N65: =PLAVÁNÍ!E150 -> 0 | O65: =SHYBY!E150 -> 0 | P65: =ŠPLH!E150 -> 0 | Q65: =ŠVIHADLO!E150 -> 73 | R65: ='Z MÍSTA'!E150 -> 181 | S65: =REPRE!E53 -> 0 | T65: =ROČ!W170 -> 5949.499345
A66: ='60'!B151 -> KRAUSE | B66: ='60'!C151 -> Tadeáš | C66: ='60'!E151 -> 8.69 | D66: ='300'!E160 -> 00:00:00 | E66: ='1000'!E151 -> 00:03:27 | F66: =DÁLKA!E151 -> 457 | G66: =VÝŠKA!E151 -> 143 | H66: =MÍČEK!E151 -> 37.5 | I66: =KOULE!E151 -> 7.32 | J66: =OŠTĚP!E151 -> 0 | K66: =ČLUNEK!E151 -> 10.04 | L66: =LEHSED!E151 -> 51 | M66: =ODBÍJENÍ!E151 -> 32 | N66: =PLAVÁNÍ!E151 -> 0 | O66: =SHYBY!E151 -> 0 | P66: =ŠPLH!E151 -> 5.07 | Q66: =ŠVIHADLO!E151 -> 171 | R66: ='Z MÍSTA'!E151 -> 221 | S66: =REPRE!E54 -> 125 | T66: =ROČ!W171 -> 9450.182605
A67: ='60'!B152 -> LEŠÁK | B67: ='60'!C152 -> Martin | C67: ='60'!E152 -> 10.38 | D67: ='300'!E161 -> 00:00:50.120 | E67: ='1000'!E152 -> 00:04:54.750 | F67: =DÁLKA!E152 -> 371 | G67: =VÝŠKA!E152 -> 118 | H67: =MÍČEK!E152 -> 30 | I67: =KOULE!E152 -> 6.91 | J67: =OŠTĚP!E152 -> 0 | K67: =ČLUNEK!E152 -> 11.88 | L67: =LEHSED!E152 -> 29 | M67: =ODBÍJENÍ!E152 -> 31 | N67: =PLAVÁNÍ!E152 -> 0 | O67: =SHYBY!E152 -> 0 | P67: =ŠPLH!E152 -> 0 | Q67: =ŠVIHADLO!E152 -> 56 | R67: ='Z MÍSTA'!E152 -> 170 | S67: =REPRE!E55 -> 0 | T67: =ROČ!W172 -> 6452.214193
A68: ='60'!B153 -> NECHANICKÝ | B68: ='60'!C153 -> David | C68: ='60'!E153 -> 7.89 | D68: ='300'!E162 -> 00:00:57.420 | E68: ='1000'!E153 -> 00:03:56 | F68: =DÁLKA!E153 -> 461 | G68: =VÝŠKA!E153 -> 123 | H68: =MÍČEK!E153 -> 43 | I68: =KOULE!E153 -> 8.3 | J68: =OŠTĚP!E153 -> 0 | K68: =ČLUNEK!E153 -> 9.97 | L68: =LEHSED!E153 -> 38 | M68: =ODBÍJENÍ!E153 -> 52 | N68: =PLAVÁNÍ!E153 -> 0 | O68: =SHYBY!E153 -> 4 | P68: =ŠPLH!E153 -> 6.04 | Q68: =ŠVIHADLO!E153 -> 107 | R68: ='Z MÍSTA'!E153 -> 250 | S68: =REPRE!E56 -> 175 | T68: =ROČ!W173 -> 9414.47732
A69: ='60'!B154 -> ŘEHOŘEK | B69: ='60'!C154 -> Jan | C69: ='60'!E154 -> 8.66 | D69: ='300'!E163 -> 00:01:07.910 | E69: ='1000'!E154 -> 00:04:13.920 | F69: =DÁLKA!E154 -> 412 | G69: =VÝŠKA!E154 -> 139 | H69: =MÍČEK!E154 -> 39 | I69: =KOULE!E154 -> 5.9 | J69: =OŠTĚP!E154 -> 0 | K69: =ČLUNEK!E154 -> 10.43 | L69: =LEHSED!E154 -> 40 | M69: =ODBÍJENÍ!E154 -> 345 | N69: =PLAVÁNÍ!E154 -> 0 | O69: =SHYBY!E154 -> 0 | P69: =ŠPLH!E154 -> 9.06 | Q69: =ŠVIHADLO!E154 -> 134 | R69: ='Z MÍSTA'!E154 -> 210 | S69: =REPRE!E57 -> 125 | T69: =ROČ!W174 -> 8885.311536
A70: ='60'!B155 -> SOUKUP | B70: ='60'!C155 -> Ondřej | C70: ='60'!E155 -> 9.62 | D70: ='300'!E164 -> 00:00:56.220 | E70: ='1000'!E155 -> 00:00:00 | F70: =DÁLKA!E155 -> 311 | G70: =VÝŠKA!E155 -> 103 | H70: =MÍČEK!E155 -> 0 | I70: =KOULE!E155 -> 7.75 | J70: =OŠTĚP!E155 -> 0 | K70: =ČLUNEK!E155 -> 11.63 | L70: =LEHSED!E155 -> 47 | M70: =ODBÍJENÍ!E155 -> 273 | N70: =PLAVÁNÍ!E155 -> 0 | O70: =SHYBY!E155 -> 0 | P70: =ŠPLH!E155 -> 25 | Q70: =ŠVIHADLO!E155 -> 152 | R70: ='Z MÍSTA'!E155 -> 170 | S70: =REPRE!E58 -> 75 | T70: =ROČ!W175 -> 6416.312733
A71: ='60'!B156 -> SPANILÝ | B71: ='60'!C156 -> David | C71: ='60'!E156 -> 8.42 | D71: ='300'!E165 -> 00:00:51.560 | E71: ='1000'!E156 -> 00:03:37 | F71: =DÁLKA!E156 -> 459 | G71: =VÝŠKA!E156 -> 123 | H71: =MÍČEK!E156 -> 59 | I71: =KOULE!E156 -> 7.9 | J71: =OŠTĚP!E156 -> 0 | K71: =ČLUNEK!E156 -> 10.32 | L71: =LEHSED!E156 -> 44 | M71: =ODBÍJENÍ!E156 -> 345 | N71: =PLAVÁNÍ!E156 -> 0 | O71: =SHYBY!E156 -> 4 | P71: =ŠPLH!E156 -> 3.81 | Q71: =ŠVIHADLO!E156 -> 144 | R71: ='Z MÍSTA'!E156 -> 232 | S71: =REPRE!E59 -> 125 | T71: =ROČ!W176 -> 10337.34448
A72: ='60'!B157 -> ČADAN | B72: ='60'!C157 -> Benjamín | C72: ='60'!E157 -> 10.38 | D72: ='300'!E166 -> 00:00:58.740 | E72: ='1000'!E157 -> 00:00:00 | F72: =DÁLKA!E157 -> 345 | G72: =VÝŠKA!E157 -> 115 | H72: =MÍČEK!E157 -> 0 | I72: =KOULE!E157 -> 6.4 | J72: =OŠTĚP!E157 -> 0 | K72: =ČLUNEK!E157 -> 0 | L72: =LEHSED!E157 -> 0 | M72: =ODBÍJENÍ!E157 -> 9 | N72: =PLAVÁNÍ!E157 -> 0 | O72: =SHYBY!E157 -> 0 | P72: =ŠPLH!E157 -> 0 | Q72: =ŠVIHADLO!E157 -> 0 | R72: ='Z MÍSTA'!E157 -> 167 | S72: =REPRE!E60 -> 0 | T72: =ROČ!W177 -> 3203.232566
A73: ='60'!B158 -> ČERNÝ | B73: ='60'!C158 -> Michal | C73: ='60'!E158 -> 9.65 | D73: ='300'!E167 -> 00:01:03.290 | E73: ='1000'!E158 -> 00:04:56.460 | F73: =DÁLKA!E158 -> 342 | G73: =VÝŠKA!E158 -> 108 | H73: =MÍČEK!E158 -> 44.5 | I73: =KOULE!E158 -> 8.44 | J73: =OŠTĚP!E158 -> 0 | K73: =ČLUNEK!E158 -> 11.05 | L73: =LEHSED!E158 -> 43 | M73: =ODBÍJENÍ!E158 -> 30 | N73: =PLAVÁNÍ!E158 -> 0 | O73: =SHYBY!E158 -> 0 | P73: =ŠPLH!E158 -> 0 | Q73: =ŠVIHADLO!E158 -> 47 | R73: ='Z MÍSTA'!E158 -> 162 | S73: =REPRE!E61 -> 0 | T73: =ROČ!W178 -> 6803.129936
A74: ='60'!B159 -> DOLEJŠÍ | B74: ='60'!C159 -> David | C74: ='60'!E159 -> 8.86 | D74: ='300'!E168 -> 00:00:50.450 | E74: ='1000'!E159 -> 00:03:58 | F74: =DÁLKA!E159 -> 402 | G74: =VÝŠKA!E159 -> 118 | H74: =MÍČEK!E159 -> 21.5 | I74: =KOULE!E159 -> 6.94 | J74: =OŠTĚP!E159 -> 0 | K74: =ČLUNEK!E159 -> 10.98 | L74: =LEHSED!E159 -> 40 | M74: =ODBÍJENÍ!E159 -> 21 | N74: =PLAVÁNÍ!E159 -> 0 | O74: =SHYBY!E159 -> 2 | P74: =ŠPLH!E159 -> 13.69 | Q74: =ŠVIHADLO!E159 -> 76 | R74: ='Z MÍSTA'!E159 -> 195 | S74: =REPRE!E62 -> 50 | T74: =ROČ!W179 -> 7570.114538
A75: ='60'!B160 -> NOVÁK | B75: ='60'!C160 -> Matěj | C75: ='60'!E160 -> 10.38 | D75: ='300'!E169 -> 00:01:05.370 | E75: ='1000'!E160 -> 00:00:00 | F75: =DÁLKA!E160 -> 364 | G75: =VÝŠKA!E160 -> 95 | H75: =MÍČEK!E160 -> 33 | I75: =KOULE!E160 -> 5.12 | J75: =OŠTĚP!E160 -> 0 | K75: =ČLUNEK!E160 -> 11.18 | L75: =LEHSED!E160 -> 35 | M75: =ODBÍJENÍ!E160 -> 26 | N75: =PLAVÁNÍ!E160 -> 0 | O75: =SHYBY!E160 -> 6 | P75: =ŠPLH!E160 -> 10.46 | Q75: =ŠVIHADLO!E160 -> 121 | R75: ='Z MÍSTA'!E160 -> 182 | S75: =REPRE!E63 -> 25 | T75: =ROČ!W180 -> 6373.826468
A76: ='60'!B161 -> POVAŽANEC | B76: ='60'!C161 -> Martin | C76: ='60'!E161 -> 8.45 | D76: ='300'!E170 -> 00:01:23.850 | E76: ='1000'!E161 -> 00:04:07.770 | F76: =DÁLKA!E161 -> 480 | G76: =VÝŠKA!E161 -> 147 | H76: =MÍČEK!E161 -> 50 | I76: =KOULE!E161 -> 10.96 | J76: =OŠTĚP!E161 -> 0 | K76: =ČLUNEK!E161 -> 11.15 | L76: =LEHSED!E161 -> 34 | M76: =ODBÍJENÍ!E161 -> 34 | N76: =PLAVÁNÍ!E161 -> 0 | O76: =SHYBY!E161 -> 1 | P76: =ŠPLH!E161 -> 5.45 | Q76: =ŠVIHADLO!E161 -> 70 | R76: ='Z MÍSTA'!E161 -> 229 | S76: =REPRE!E64 -> 50 | T76: =ROČ!W181 -> 8721.60397
A77: ='60'!B162 -> RICHTER | B77: ='60'!C162 -> Jakub | C77: ='60'!E162 -> 9.81 | D77: ='300'!E171 -> 00:00:53.880 | E77: ='1000'!E162 -> 00:04:39.840 | F77: =DÁLKA!E162 -> 322 | G77: =VÝŠKA!E162 -> 98 | H77: =MÍČEK!E162 -> 29 | I77: =KOULE!E162 -> 6.2 | J77: =OŠTĚP!E162 -> 0 | K77: =ČLUNEK!E162 -> 11.8 | L77: =LEHSED!E162 -> 36 | M77: =ODBÍJENÍ!E162 -> 21 | N77: =PLAVÁNÍ!E162 -> 0 | O77: =SHYBY!E162 -> 0 | P77: =ŠPLH!E162 -> 9.15 | Q77: =ŠVIHADLO!E162 -> 70 | R77: ='Z MÍSTA'!E162 -> 190 | S77: =REPRE!E65 -> 0 | T77: =ROČ!W182 -> 6788.636983
A78: ='60'!B163 -> ROZUMEK | B78: ='60'!C163 -> Adam | C78: ='60'!E163 -> 9.44 | D78: ='300'!E172 -> 00:00:55.230 | E78: ='1000'!E163 -> 00:04:45.200 | F78: =DÁLKA!E163 -> 315 | G78: =VÝŠKA!E163 -> 103 | H78: =MÍČEK!E163 -> 45 | I78: =KOULE!E163 -> 9.4 | J78: =OŠTĚP!E163 -> 0 | K78: =ČLUNEK!E163 -> 11.34 | L78: =LEHSED!E163 -> 43 | M78: =ODBÍJENÍ!E163 -> 39 | N78: =PLAVÁNÍ!E163 -> 0 | O78: =SHYBY!E163 -> 0 | P78: =ŠPLH!E163 -> 0 | Q78: =ŠVIHADLO!E163 -> 111 | R78: ='Z MÍSTA'!E163 -> 180 | S78: =REPRE!E66 -> 0 | T78: =ROČ!W183 -> 7221.962969
A79: ='60'!B164 -> VALENTA | B79: ='60'!C164 -> František | C79: ='60'!E164 -> 9.08 | D79: ='300'!E173 -> 00:01:07.080 | E79: ='1000'!E164 -> 00:04:34.860 | F79: =DÁLKA!E164 -> 335 | G79: =VÝŠKA!E164 -> 113 | H79: =MÍČEK!E164 -> 28 | I79: =KOULE!E164 -> 7.7 | J79: =OŠTĚP!E164 -> 0 | K79: =ČLUNEK!E164 -> 10.71 | L79: =LEHSED!E164 -> 42 | M79: =ODBÍJENÍ!E164 -> 34 | N79: =PLAVÁNÍ!E164 -> 0 | O79: =SHYBY!E164 -> 2 | P79: =ŠPLH!E164 -> 0 | Q79: =ŠVIHADLO!E164 -> 72 | R79: ='Z MÍSTA'!E164 -> 177 | S79: =REPRE!E67 -> 0 | T79: =ROČ!W184 -> 7117.718442
A80: ='60'!B165 -> ZAPLATÍLEK | B80: ='60'!C165 -> Josef | C80: ='60'!E165 -> 9.63 | D80: ='300'!E174 -> 00:00:51.830 | E80: ='1000'!E165 -> 00:04:00.980 | F80: =DÁLKA!E165 -> 359 | G80: =VÝŠKA!E165 -> 130 | H80: =MÍČEK!E165 -> 42 | I80: =KOULE!E165 -> 5.83 | J80: =OŠTĚP!E165 -> 0 | K80: =ČLUNEK!E165 -> 10.43 | L80: =LEHSED!E165 -> 46 | M80: =ODBÍJENÍ!E165 -> 39 | N80: =PLAVÁNÍ!E165 -> 0 | O80: =SHYBY!E165 -> 1 | P80: =ŠPLH!E165 -> 25 | Q80: =ŠVIHADLO!E165 -> 100 | R80: ='Z MÍSTA'!E165 -> 201 | S80: =REPRE!E68 -> 0 | T80: =ROČ!W185 -> 7991.369369
A87: SPORTOVEC ŠKOLY 2020 - 2021 | J87: CHLAPCI 9. ROČNÍK
C89: 60 m | D89: 300m | E89: 1000m | F89: dálka | G89: výška | H89: míček | I89: koule | J89: oštěp | K89: člunek | L89: lehsed | M89: odbíjení | N89: plavání | O89: shyby | P89: šplh | Q89: švihadlo | R89: z místa | S89: REPRE | T89: BODY
A90: ='60'!B166 -> ERBEN | B90: ='60'!C166 -> Viktor | C90: ='60'!E166 -> 9.85 | D90: ='300'!E166 -> 00:00:58.740 | E90: ='1000'!E166 -> 00:04:48.120 | F90: =DÁLKA!E166 -> 370 | G90: =VÝŠKA!E166 -> 120 | H90: =MÍČEK!E166 -> 25 | I90: =KOULE!E166 -> 0 | J90: =OŠTĚP!E166 -> 0 | K90: =ČLUNEK!E166 -> 11.4 | L90: =LEHSED!E166 -> 28 | M90: =ODBÍJENÍ!E166 -> 55 | N90: =PLAVÁNÍ!E166 -> 0 | O90: =SHYBY!E166 -> 3 | P90: =ŠPLH!E166 -> 7.6 | Q90: =ŠVIHADLO!E166 -> 66 | R90: ='Z MÍSTA'!E166 -> 201 | S90: =REPRE!E69 -> 0 | T90: =ROČ!W186 -> 6881.1635
A91: ='60'!B167 -> FRANC | B91: ='60'!C167 -> Daniel | C91: ='60'!E167 -> 10.43 | D91: ='300'!E167 -> 00:01:03.290 | E91: ='1000'!E167 -> 00:06:20.930 | F91: =DÁLKA!E167 -> 315 | G91: =VÝŠKA!E167 -> 103 | H91: =MÍČEK!E167 -> 33 | I91: =KOULE!E167 -> 8.75 | J91: =OŠTĚP!E167 -> 0 | K91: =ČLUNEK!E167 -> 10.99 | L91: =LEHSED!E167 -> 32 | M91: =ODBÍJENÍ!E167 -> 51 | N91: =PLAVÁNÍ!E167 -> 0 | O91: =SHYBY!E167 -> 0 | P91: =ŠPLH!E167 -> 0 | Q91: =ŠVIHADLO!E167 -> 87 | R91: ='Z MÍSTA'!E167 -> 170 | S91: =REPRE!E70 -> 0 | T91: =ROČ!W187 -> 6685.766909
A92: ='60'!B168 -> JINDŘIŠEK | B92: ='60'!C168 -> Matyáš | C92: ='60'!E168 -> 9.05 | D92: ='300'!E168 -> 00:00:50.450 | E92: ='1000'!E168 -> 00:03:39.510 | F92: =DÁLKA!E168 -> 463 | G92: =VÝŠKA!E168 -> 128 | H92: =MÍČEK!E168 -> 52 | I92: =KOULE!E168 -> 9.74 | J92: =OŠTĚP!E168 -> 0 | K92: =ČLUNEK!E168 -> 10 | L92: =LEHSED!E168 -> 52 | M92: =ODBÍJENÍ!E168 -> 60 | N92: =PLAVÁNÍ!E168 -> 0 | O92: =SHYBY!E168 -> 10 | P92: =ŠPLH!E168 -> 3.36 | Q92: =ŠVIHADLO!E168 -> 86 | R92: ='Z MÍSTA'!E168 -> 232 | S92: =REPRE!E71 -> 50 | T92: =ROČ!W188 -> 10183.32345
A93: ='60'!B169 -> KOLAČNÝ | B93: ='60'!C169 -> Štěpán | C93: ='60'!E169 -> 10.31 | D93: ='300'!E169 -> 00:01:05.370 | E93: ='1000'!E169 -> 00:05:20.620 | F93: =DÁLKA!E169 -> 373 | G93: =VÝŠKA!E169 -> 103 | H93: =MÍČEK!E169 -> 33 | I93: =KOULE!E169 -> 8.58 | J93: =OŠTĚP!E169 -> 0 | K93: =ČLUNEK!E169 -> 10.95 | L93: =LEHSED!E169 -> 33 | M93: =ODBÍJENÍ!E169 -> 62 | N93: =PLAVÁNÍ!E169 -> 0 | O93: =SHYBY!E169 -> 1 | P93: =ŠPLH!E169 -> 0 | Q93: =ŠVIHADLO!E169 -> 0 | R93: ='Z MÍSTA'!E169 -> 174 | S93: =REPRE!E72 -> 0 | T93: =ROČ!W189 -> 6476.901104
A94: ='60'!B170 -> KRISTAN | B94: ='60'!C170 -> Jáchym | C94: ='60'!E170 -> 13.16 | D94: ='300'!E170 -> 00:01:23.850 | E94: ='1000'!E170 -> 00:06:31.100 | F94: =DÁLKA!E170 -> 278 | G94: =VÝŠKA!E170 -> 0 | H94: =MÍČEK!E170 -> 20 | I94: =KOULE!E170 -> 4.88 | J94: =OŠTĚP!E170 -> 0 | K94: =ČLUNEK!E170 -> 14.31 | L94: =LEHSED!E170 -> 23 | M94: =ODBÍJENÍ!E170 -> 8 | N94: =PLAVÁNÍ!E170 -> 0 | O94: =SHYBY!E170 -> 0 | P94: =ŠPLH!E170 -> 0 | Q94: =ŠVIHADLO!E170 -> 0 | R94: ='Z MÍSTA'!E170 -> 120 | S94: =REPRE!E73 -> 0 | T94: =ROČ!W190 -> 3872.693895
A95: ='60'!B171 -> NGUYEN | B95: ='60'!C171 -> David | C95: ='60'!E171 -> 9.12 | D95: ='300'!E171 -> 00:00:53.880 | E95: ='1000'!E171 -> 00:04:41.080 | F95: =DÁLKA!E171 -> 456 | G95: =VÝŠKA!E171 -> 125 | H95: =MÍČEK!E171 -> 47.5 | I95: =KOULE!E171 -> 8.44 | J95: =OŠTĚP!E171 -> 0 | K95: =ČLUNEK!E171 -> 9.83 | L95: =LEHSED!E171 -> 30 | M95: =ODBÍJENÍ!E171 -> 60 | N95: =PLAVÁNÍ!E171 -> 0 | O95: =SHYBY!E171 -> 2 | P95: =ŠPLH!E171 -> 3.68 | Q95: =ŠVIHADLO!E171 -> 98 | R95: ='Z MÍSTA'!E171 -> 231 | S95: =REPRE!E74 -> 0 | T95: =ROČ!W191 -> 8889.499141
A96: ='60'!B172 -> NOVOTNÝ | B96: ='60'!C172 -> Jan | C96: ='60'!E172 -> 8.8 | D96: ='300'!E172 -> 00:00:55.230 | E96: ='1000'!E172 -> 00:04:16.670 | F96: =DÁLKA!E172 -> 390 | G96: =VÝŠKA!E172 -> 128 | H96: =MÍČEK!E172 -> 31 | I96: =KOULE!E172 -> 9.05 | J96: =OŠTĚP!E172 -> 0 | K96: =ČLUNEK!E172 -> 10.17 | L96: =LEHSED!E172 -> 44 | M96: =ODBÍJENÍ!E172 -> 9 | N96: =PLAVÁNÍ!E172 -> 0 | O96: =SHYBY!E172 -> 5 | P96: =ŠPLH!E172 -> 5.77 | Q96: =ŠVIHADLO!E172 -> 82 | R96: ='Z MÍSTA'!E172 -> 218 | S96: =REPRE!E75 -> 0 | T96: =ROČ!W192 -> 8269.43876
A97: ='60'!B173 -> RÁB | B97: ='60'!C173 -> Adam | C97: ='60'!E173 -> 10.55 | D97: ='300'!E173 -> 00:01:07.080 | E97: ='1000'!E173 -> 00:06:30.900 | F97: =DÁLKA!E173 -> 315 | G97: =VÝŠKA!E173 -> 103 | H97: =MÍČEK!E173 -> 34.5 | I97: =KOULE!E173 -> 9.98 | J97: =OŠTĚP!E173 -> 0 | K97: =ČLUNEK!E173 -> 11.73 | L97: =LEHSED!E173 -> 30 | M97: =ODBÍJENÍ!E173 -> 21 | N97: =PLAVÁNÍ!E173 -> 0 | O97: =SHYBY!E173 -> 0 | P97: =ŠPLH!E173 -> 0 | Q97: =ŠVIHADLO!E173 -> 0 | R97: ='Z MÍSTA'!E173 -> 171 | S97: =REPRE!E76 -> 0 | T97: =ROČ!W193 -> 5832.630818
A98: ='60'!B174 -> REPASKÝ | B98: ='60'!C174 -> Jakub | C98: ='60'!E174 -> 8.42 | D98: ='300'!E174 -> 00:00:51.830 | E98: ='1000'!E174 -> 00:04:05.140 | F98: =DÁLKA!E174 -> 422 | G98: =VÝŠKA!E174 -> 138 | H98: =MÍČEK!E174 -> 59 | I98: =KOULE!E174 -> 11.02 | J98: =OŠTĚP!E174 -> 0 | K98: =ČLUNEK!E174 -> 10.21 | L98: =LEHSED!E174 -> 50 | M98: =ODBÍJENÍ!E174 -> 123 | N98: =PLAVÁNÍ!E174 -> 0 | O98: =SHYBY!E174 -> 6 | P98: =ŠPLH!E174 -> 3.9 | Q98: =ŠVIHADLO!E174 -> 131 | R98: ='Z MÍSTA'!E174 -> 238 | S98: =REPRE!E77 -> 50 | T98: =ROČ!W194 -> 10316.17349
A99: ='60'!B175 -> SKÁLA | B99: ='60'!C175 -> Jan | C99: ='60'!E175 -> 8.51 | D99: ='300'!E175 -> 00:00:52.260 | E99: ='1000'!E175 -> 00:03:52.130 | F99: =DÁLKA!E175 -> 449 | G99: =VÝŠKA!E175 -> 125 | H99: =MÍČEK!E175 -> 39 | I99: =KOULE!E175 -> 8.74 | J99: =OŠTĚP!E175 -> 0 | K99: =ČLUNEK!E175 -> 10.1 | L99: =LEHSED!E175 -> 49 | M99: =ODBÍJENÍ!E175 -> 30 | N99: =PLAVÁNÍ!E175 -> 0 | O99: =SHYBY!E175 -> 12 | P99: =ŠPLH!E175 -> 4.67 | Q99: =ŠVIHADLO!E175 -> 105 | R99: ='Z MÍSTA'!E175 -> 237 | S99: =REPRE!E78 -> 75 | T99: =ROČ!W195 -> 9719.559815
A100: ='60'!B176 -> ŠPULÁK | B100: ='60'!C176 -> Jakub | C100: ='60'!E176 -> 9.64 | D100: ='300'!E176 -> 00:00:58.030 | E100: ='1000'!E176 -> 00:04:39.900 | F100: =DÁLKA!E176 -> 397 | G100: =VÝŠKA!E176 -> 120 | H100: =MÍČEK!E176 -> 49.5 | I100: =KOULE!E176 -> 9.08 | J100: =OŠTĚP!E176 -> 0 | K100: =ČLUNEK!E176 -> 10.51 | L100: =LEHSED!E176 -> 0 | M100: =ODBÍJENÍ!E176 -> 66 | N100: =PLAVÁNÍ!E176 -> 18.64 | O100: =SHYBY!E176 -> 0 | P100: =ŠPLH!E176 -> 0 | Q100: =ŠVIHADLO!E176 -> 77 | R100: ='Z MÍSTA'!E176 -> 215 | S100: =REPRE!E79 -> 50 | T100: =ROČ!W196 -> 8007.404282
A101: ='60'!B177 -> VALENTA | B101: ='60'!C177 -> Tomáš | C101: ='60'!E177 -> 7.83 | D101: ='300'!E177 -> 00:00:45.930 | E101: ='1000'!E177 -> 00:03:47.090 | F101: =DÁLKA!E177 -> 539 | G101: =VÝŠKA!E177 -> 155 | H101: =MÍČEK!E177 -> 64 | I101: =KOULE!E177 -> 11.07 | J101: =OŠTĚP!E177 -> 0 | K101: =ČLUNEK!E177 -> 9.36 | L101: =LEHSED!E177 -> 56 | M101: =ODBÍJENÍ!E177 -> 123 | N101: =PLAVÁNÍ!E177 -> 0 | O101: =SHYBY!E177 -> 8 | P101: =ŠPLH!E177 -> 3.9 | Q101: =ŠVIHADLO!E177 -> 129 | R101: ='Z MÍSTA'!E177 -> 262 | S101: =REPRE!E80 -> 125 | T101: =ROČ!W197 -> 11371.82638
A102: ='60'!B178 -> VANCL | B102: ='60'!C178 -> Jiří | C102: ='60'!E178 -> 9.04 | D102: ='300'!E178 -> 00:00:59.030 | E102: ='1000'!E178 -> 00:04:46.680 | F102: =DÁLKA!E178 -> 425 | G102: =VÝŠKA!E178 -> 113 | H102: =MÍČEK!E178 -> 29 | I102: =KOULE!E178 -> 8.95 | J102: =OŠTĚP!E178 -> 0 | K102: =ČLUNEK!E178 -> 10.66 | L102: =LEHSED!E178 -> 42 | M102: =ODBÍJENÍ!E178 -> 66 | N102: =PLAVÁNÍ!E178 -> 0 | O102: =SHYBY!E178 -> 1 | P102: =ŠPLH!E178 -> 0 | Q102: =ŠVIHADLO!E178 -> 95 | R102: ='Z MÍSTA'!E178 -> 217 | S102: =REPRE!E81 -> 50 | T102: =ROČ!W198 -> 7797.187688
A103: ='60'!B179 -> VAŠÍČEK | B103: ='60'!C179 -> David | C103: ='60'!E179 -> 8.89 | D103: ='300'!E179 -> 00:00:51.020 | E103: ='1000'!E179 -> 00:03:30.640 | F103: =DÁLKA!E179 -> 393 | G103: =VÝŠKA!E179 -> 0 | H103: =MÍČEK!E179 -> 36 | I103: =KOULE!E179 -> 0 | J103: =OŠTĚP!E179 -> 0 | K103: =ČLUNEK!E179 -> 10.09 | L103: =LEHSED!E179 -> 0 | M103: =ODBÍJENÍ!E179 -> 22 | N103: =PLAVÁNÍ!E179 -> 0 | O103: =SHYBY!E179 -> 6 | P103: =ŠPLH!E179 -> 6.33 | Q103: =ŠVIHADLO!E179 -> 110 | R103: ='Z MÍSTA'!E179 -> 220 | S103: =REPRE!E82 -> 0 | T103: =ROČ!W199 -> 6955.550018
A104: ='60'!B180 -> ZOUHAR | B104: ='60'!C180 -> Ondřej | C104: ='60'!E180 -> 7.88 | D104: ='300'!E180 -> 00:00:50.800 | E104: ='1000'!E180 -> 00:04:31.880 | F104: =DÁLKA!E180 -> 0 | G104: =VÝŠKA!E180 -> 138 | H104: =MÍČEK!E180 -> 40 | I104: =KOULE!E180 -> 8 | J104: =OŠTĚP!E180 -> 0 | K104: =ČLUNEK!E180 -> 9.99 | L104: =LEHSED!E180 -> 36 | M104: =ODBÍJENÍ!E180 -> 62 | N104: =PLAVÁNÍ!E180 -> 0 | O104: =SHYBY!E180 -> 1 | P104: =ŠPLH!E180 -> 5.33 | Q104: =ŠVIHADLO!E180 -> 102 | R104: ='Z MÍSTA'!E180 -> 211 | S104: =REPRE!E83 -> 50 | T104: =ROČ!W200 -> 8046.265241
A105: ='60'!B181 -> ZUZÁNEK | B105: ='60'!C181 -> Filip | C105: ='60'!E181 -> 8.9 | D105: ='300'!E181 -> 00:00:58.480 | E105: ='1000'!E181 -> 00:04:34.770 | F105: =DÁLKA!E181 -> 433 | G105: =VÝŠKA!E181 -> 118 | H105: =MÍČEK!E181 -> 26 | I105: =KOULE!E181 -> 7.73 | J105: =OŠTĚP!E181 -> 0 | K105: =ČLUNEK!E181 -> 9.99 | L105: =LEHSED!E181 -> 50 | M105: =ODBÍJENÍ!E181 -> 46 | N105: =PLAVÁNÍ!E181 -> 0 | O105: =SHYBY!E181 -> 14 | P105: =ŠPLH!E181 -> 6.05 | Q105: =ŠVIHADLO!E181 -> 0 | R105: ='Z MÍSTA'!E181 -> 212 | S105: =REPRE!E84 -> 0 | T105: =ROČ!W201 -> 8547.273092

Sheet 60
C1: VÝKONY 2021 - 2022 | G1: 60 M
B2: stav k | C2: =TODAY() -> 2022-06-27
H3: body | J3: 20 - 21 | K3: 19 - 20 | L3: 18 - 19
A4: 1. | B4: =B101 -> EXNER | C4: =C101 -> Tomáš | D4: 6.A | E4: 9.1 | G4: Jilemnice 02.05.22 | H4: =H101 -> 796.0272713 | J4: 0 | K4: 0 | L4: 0
A5: 2. | B5: =B102 -> JANATA | C5: Denis | D5: 6.A | E5: 9.92 | G5: Jilemnice 02.05.22 | H5: 739.8153396 | J5: 0 | K5: 0 | L5: 0
A6: 3. | B6: =B103 -> JINDŘIŠEK | C6: Alex Jiří | D6: 6.A | E6: 9.67 | G6: Jilemnice 02.05.22 | H6: 755.9429337 | J6: 0 | K6: 0 | L6: 0
A7: 4. | B7: =B104 -> MARŠÁLEK | C7: Ondřej | D7: 6.A | E7: 9.99 | G7: Jilemnice 02.05.22 | H7: 735.4442612 | J7: 0 | K7: 0 | L7: 0
A8: 5. | B8: =B105 -> MLATEČEK | C8: Patrik | D8: 6.A | E8: 11.26 | G8: Jilemnice 02.05.22 | H8: 665.5779902 | J8: 0 | K8: 0 | L8: 0
A9: 6. | B9: =B106 -> SCHOLZ | C9: Matyáš | D9: 6.A | E9: 10.46 | G9: Jilemnice 02.05.22 | H9: 707.6107236 | J9: 0 | K9: 0 | L9: 0
A10: 7. | B10: =B107 -> TOMÁŠ | C10: Jakub | D10: 6.A | E10: 10.2 | G10: Jilemnice 02.05.22 | H10: 722.690997 | J10: 0 | K10: 0 | L10: 0
A11: 8. | B11: =B108 -> VÁCLAVÍK | C11: Jan | D11: 6.A | E11: 10.12 | G11: Jilemnice 02.05.22 | H11: 727.4869732 | J11: 0 | K11: 0 | L11: 0
A12: 9. | B12: =B109 -> VEČEŘA | C12: David | D12: 6.A | E12: 12.1 | G12: Jilemnice 02.05.22 | H12: 627.4254685 | J12: 0 | K12: 0 | L12: 0
A13: 10. | B13: =B110 -> VYBÍRAL | C13: Radim | D13: 6.A | E13: 8.95 | G13: Jilemnice 02.05.22 | H13: 807.4243764 | J13: 0 | K13: 0 | L13: 0
A14: 11. | B14: =B111 -> BERISHA | C14: David | D14: 6.B | E14: 13.54 | G14: Jilemnice 13.09.21 | H14: 573.0345768 | J14: 0 | K14: 0 | L14: 0
A15: 12. | B15: =B112 -> EFENBERK | C15: Šimon | D15: 6.B | E15: 9.82 | G15: Jilemnice 02.05.22 | H15: 746.167838 | J15: 0 | K15: 0 | L15: 0
A16: 13. | B16: =B113 -> FEJKL | C16: Antonín | D16: 6.B | E16: 9.48 | G16: Jilemnice 02.05.22 | H16: 768.7687942 | J16: 0 | K16: 0 | L16: 0
A17: 14. | B17: =B114 -> GOTTSTEIN | C17: Matouš | D17: 6.B | E17: 8.8 | G17: Jilemnice 02.05.22 | H17: 819.2100192 | J17: 0 | K17: 0 | L17: 0
A18: 15. | B18: =B115 -> HÁK | C18: Šimon | D18: 6.B | E18: 0 | G18: 0 | H18: 0 | J18: 0 | K18: 0 | L18: 0
A19: 16. | B19: =B116 -> POVAŽANEC | C19: Lukáš | D19: 6.B | E19: 10.1 | G19: Jilemnice 14.06.22 | H19: 728.6978385 | J19: 0 | K19: 0 | L19: 0
A20: 17. | B20: =B117 -> VANCL | C20: Jakub | D20: 6.B | E20: 11.09 | G20: Jilemnice 02.05.22 | H20: 674.0025401 | J20: 0 | K20: 0 | L20: 0
A21: 18. | B21: =B118 -> VANCL | C21: Miroslav | D21: 6.B | E21: 11.3 | G21: Jilemnice 02.05.22 | H21: 663.6325813 | J21: 0 | K21: 0 | L21: 0
A22: 19. | B22: =B119 -> VOTOČEK | C22: Michal | D22: 6.B | E22: 10.78 | G22: Jilemnice 14.06.22 | H22: 690.0489953 | J22: 0 | K22: 0 | L22: 0
A23: 20. | B23: =B120 -> BOUKAL | C23: Jakub | D23: 7.A | E23: 0 | G23: 0 | H23: 0 | J23: 12.56 | K23: 0 | L23: 0
A24: 21. | B24: =B121 -> DEMČUK | C24: Ilja | D24: 7.A | E24: 9.66 | G24: Jilemnice 02.05.22 | H24: 756.6054005 | J24: 10.85 | K24: 0 | L24: 0
A25: 22. | B25: =B122 -> FAISTAUER | C25: Kryštof | D25: 7.A | E25: 8.89 | G25: Turnov 31.05.22 | H25: 812.0909077 | J25: 9.5 | K25: 0 | L25: 0
A26: 23. | B26: =B123 -> FRK | C26: Matyáš | D26: 7.A | E26: 12.22 | G26: Jilemnice 13.09.21 | H26: 622.4032872 | J26: 12.72 | K26: 0 | L26: 0
A27: 24. | B27: =B124 -> HUBÁLOVSKÝ | C27: Marek | D27: 7.A | E27: 10.84 | G27: Jilemnice 13.09.21 | H27: 686.8716023 | J27: 11.43 | K27: 0 | L27: 0
A28: 25. | B28: =B125 -> MAŘAS | C28: Dominik | D28: 7.A | E28: 0 | G28: 0 | H28: 0 | J28: 11.64 | K28: 0 | L28: 0
A29: 26. | B29: =B126 -> MAŤÁTKO | C29: Jakub | D29: 7.A | E29: 0 | G29: 0 | H29: 0 | J29: 13.19 | K29: 0 | L29: 0
A30: 27. | B30: =B127 -> MERY | C30: Luboš | D30: 7.A | E30: 10.94 | G30: Jilemnice 02.05.22 | H30: 681.6533976 | J30: 11.43 | K30: 0 | L30: 0
A31: 28. | B31: =B128 -> NOVOTNÝ | C31: Matěj | D31: 7.A | E31: 10.98 | G31: Jilemnice 02.05.22 | H31: 679.5927294 | J31: 10.96 | K31: 0 | L31: 0
A32: 29. | B32: =B129 -> ŘEHOŘEK | C32: Vojtěch | D32: 7.A | E32: 10.43 | G32: Jilemnice 02.05.22 | H32: 709.3123844 | J32: 11.92 | K32: 0 | L32: 0
A33: 30. | B33: =B130 -> ŠÍR | C33: Matyáš | D33: 7.A | E33: 10.82 | G33: Jilemnice 02.05.22 | H33: 687.9268179 | J33: 11.48 | K33: 0 | L33: 0
A34: 31. | B34: =B131 -> TORÁČ | C34: Tomáš | D34: 7.A | E34: 0 | G34: 0 | H34: 0 | J34: 22.77 | K34: 0 | L34: 0
A35: 32. | B35: =B132 -> ULLMAN | C35: Šimon | D35: 7.A | E35: 8.38 | G35: Jilemnice 02.05.22 | H35: 854.4544355 | J35: 9.18 | K35: 0 | L35: 0
A36: 33. | B36: =B133 -> VÁCLAVÍK | C36: Ondřej | D36: 7.A | E36: 9.14 | G36: Jilemnice 02.05.22 | H36: 793.051222 | J36: 10.94 | K36: 0 | L36: 0
A37: 34. | B37: =B134 -> AUERSWALD | C37: Daniel | D37: 7.B | E37: 9.61 | G37: Jilemnice 13.09.21 | H37: 759.9384151 | J37: 9.89 | K37: 0 | L37: 0
A38: 35. | B38: =B135 -> BODLÁK | C38: Vladimír | D38: 7.B | E38: 0 | G38: 0 | H38: 0 | J38: 8.39 | K38: 0 | L38: 0
A39: 36. | B39: =B136 -> BUDÍN | C39: Martin | D39: 7.B | E39: 9.67 | G39: Jilemnice 02.05.22 | H39: 755.9429337 | J39: 10.46 | K39: 0 | L39: 0
A40: 37. | B40: =B137 -> DVOŘÁK | C40: Dominik | D40: 7.B | E40: 11.05 | G40: Jilemnice 02.05.22 | H40: 676.0224588 | J40: 11.56 | K40: 0 | L40: 0
A41: 38. | B41: =B138 -> FIŠERA | C41: Vojtěch | D41: 7.B | E41: 10.24 | G41: Jilemnice 02.05.22 | H41: 720.3211103 | J41: 10.44 | K41: 0 | L41: 0
A42: 39. | B42: =B139 -> JINDŘIŠEK | C42: Vít | D42: 7.B | E42: 8.24 | G42: Jilemnice 02.05.22 | H42: 867.0009914 | J42: 8.77 | K42: 0 | L42: 0
A43: 40. | B43: =B140 -> JIROUŠ | C43: Matouš | D43: 7.B | E43: 9.55 | G43: Jilemnice 13.09.21 | H43: 763.9841015 | J43: 10.08 | K43: 0 | L43: 0
A44: 41. | B44: =B141 -> KERLE | C44: Marek | D44: 7.B | E44: 8.84 | G44: Jilemnice 02.05.22 | H44: 816.0280734 | J44: 10.64 | K44: 0 | L44: 0
A45: 42. | B45: =B142 -> LUKEŠ | C45: Jakub | D45: 7.B | E45: 8.73 | G45: Turnov 10.05.22 | H45: 824.8485875 | J45: 10.26 | K45: 0 | L45: 0
A46: 43. | B46: =B143 -> OTT | C46: Matyáš | D46: 7.B | E46: 8.69 | G46: Turnov 31.05.22 | H46: 828.1114119 | J46: 11 | K46: 0 | L46: 0
A47: 44. | B47: =B144 -> POKORNÝ | C47: Matyáš | D47: 7.B | E47: 8.58 | G47: Jilemnice 02.05.22 | H47: 837.2410454 | J47: 8.94 | K47: 0 | L47: 0
A48: 45. | B48: =B145 -> POLÁČEK | C48: Matyáš | D48: 7.B | E48: 10.99 | G48: Jilemnice 13.09.21 | H48: 679.0799062 | J48: 11.49 | K48: 0 | L48: 0
A49: 46. | B49: =B146 -> SOUKUP | C49: Patrik | D49: 7.B | E49: 0 | G49: 0 | H49: 0 | J49: 10.09 | K49: 0 | L49: 0
A50: 47. | B50: =B147 -> VALENTA | C50: Jakub | D50: 7.B | E50: 9.87 | G50: Jilemnice 02.05.22 | H50: 742.9754984 | J50: 10.24 | K50: 0 | L50: 0
A51: 48. | B51: =B148 -> VRBATA | C51: Dominik | D51: 7.B | E51: 9.74 | G51: Jilemnice 02.05.22 | H51: 751.3437545 | J51: 10.25 | K51: 0 | L51: 0
A52: 49. | B52: =B149 -> FEJKL | C52: Jan | D52: 8.A | E52: 7.92 | G52: Jilemnice 02.05.22 | H52: 897.3444658 | J52: 9.14 | K52: 9.45 | L52: 0
A53: 50. | B53: =B150 -> KOTYK | C53: Tadeáš | D53: 8.A | E53: 10.72 | G53: Jilemnice 02.05.22 | H53: 693.2619561 | J53: 10.7 | K53: 10.7 | L53: 0
A54: 51. | B54: =B151 -> KRAUSE | C54: Tadeáš | D54: 8.A | E54: 8.69 | G54: Jilemnice 02.05.22 | H54: 828.1114119 | J54: 10.13 | K54: 10.34 | L54: 0
A55: 52. | B55: =B152 -> LEŠÁK | C55: Martin | D55: 8.A | E55: 10.38 | G55: Jilemnice 02.05.22 | H55: 712.1703439 | J55: 10.87 | K55: 10.54 | L55: 0
A56: 53. | B56: =B153 -> NECHANICKÝ | C56: David | D56: 8.A | E56: 7.89 | G56: Jilemnice 02.05.22 | H56: 900.3153573 | J56: 9.65 | K56: 9.42 | L56: 0
A57: 54. | B57: =B154 -> ŘEHOŘEK | C57: Jan | D57: 8.A | E57: 8.66 | G57: Jilemnice 02.05.22 | H57: 830.5783105 | J57: 9.55 | K57: 9.74 | L57: 0
A58: 55. | B58: =B155 -> SOUKUP | C58: Ondřej | D58: 8.A | E58: 9.62 | G58: Jilemnice 02.05.22 | H58: 759.2690405 | J58: 10 | K58: 10.91 | L58: 0
A59: 56. | B59: =B156 -> SPANILÝ | C59: David | D59: 8.A | E59: 8.42 | G59: Jilemnice 02.05.22 | H59: 850.9463384 | J59: 9.8 | K59: 10.22 | L59: 0
A60: 57. | B60: =B157 -> ČADAN | C60: Benjamín | D60: 8.B | E60: 10.38 | G60: Jilemnice 08.09.21 | H60: 712.1703439 | J60: 0 | K60: 0 | L60: 0
A61: 58. | B61: =B158 -> ČERNÝ | C61: Michal | D61: 8.B | E61: 9.65 | G61: Jilemnice 02.05.22 | H61: 757.2692403 | J61: 10.36 | K61: 11.28 | L61: 0
A62: 59. | B62: =B159 -> DOLEJŠÍ | C62: David | D62: 8.B | E62: 8.86 | G62: Jilemnice 02.05.22 | H62: 814.4478746 | J62: 11.1 | K62: 10.8 | L62: 0
A63: 60. | B63: =B160 -> NOVÁK | C63: Matěj | D63: 8.B | E63: 10.38 | G63: Jilemnice 08.09.21 | H63: 712.1703439 | J63: 10.47 | K63: 10.54 | L63: 0
A64: 61. | B64: =B161 -> POVAŽANEC | C64: Martin | D64: 8.B | E64: 8.45 | G64: Jilemnice 02.05.22 | H64: 848.3370614 | J64: 9.86 | K64: 11.89 | L64: 0
A65: 62. | B65: =B162 -> RICHTER | C65: Jakub | D65: 8.B | E65: 9.81 | G65: Jilemnice 02.05.22 | H65: 746.8102109 | J65: 0 | K65: 11.66 | L65: 0
A66: 63. | B66: =B163 -> ROZUMEK | C66: Adam | D66: 8.B | E66: 9.44 | G66: Jilemnice 02.05.22 | H66: 771.5347637 | J66: 0 | K66: 0 | L66: 0
A67: 64. | B67: =B164 -> VALENTA | C67: František | D67: 8.B | E67: 9.08 | G67: Jilemnice 02.05.22 | H67: 797.5251288 | J67: 10.92 | K67: 11.6 | L67: 0
A68: 65. | B68: =B165 -> ZAPLATÍLEK | C68: Josef | D68: 8.B | E68: 9.63 | G68: Jilemnice 08.09.21 | H68: 758.601056 | J68: 10.02 | K68: 10.04 | L68: 0
A69: 66. | B69: =B166 -> ERBEN | C69: Viktor | D69: 9.A | E69: 9.85 | G69: Jilemnice 08.09.21 | H69: 744.2485451 | J69: 10.43 | K69: 11.62 | L69: 12.32
A70: 67. | B70: =B167 -> FRANC | C70: Daniel | D70: 9.A | E70: 10.43 | G70: Jilemnice 08.09.21 | H70: 709.3123844 | J70: 11.1 | K70: 10.48 | L70: 10.38
A71: 68. | B71: =B168 -> JINDŘIŠEK | C71: Matyáš | D71: 9.A | E71: 9.05 | G71: Jilemnice 08.09.21 | H71: 799.7843281 | J71: 0 | K71: 9.88 | L71: 10.38
A72: 69. | B72: =B169 -> KOLAČNÝ | C72: Štěpán | D72: 9.A | E72: 10.31 | G72: Jilemnice 08.09.21 | H72: 716.2180571 | J72: 10.74 | K72: 10.34 | L72: 10.42
A73: 70. | B73: =B170 -> KRISTAN | C73: Jáchym | D73: 9.A | E73: 13.16 | G73: Jilemnice 02.05.22 | H73: 586.2316238 | J73: 14.56 | K73: 13.78 | L73: 14.93
A74: 71. | B74: =B171 -> NGUYEN | C74: David | D74: 9.A | E74: 9.12 | G74: Jilemnice 08.09.21 | H74: 794.5359835 | J74: 0 | K74: 10.58 | L74: 0
A75: 72. | B75: =B172 -> NOVOTNÝ | C75: Jan | D75: 9.A | E75: 8.8 | G75: Jilemnice 02.05.22 | H75: 819.2100192 | J75: 9.43 | K75: 9.93 | L75: 11.65
A76: 73. | B76: =B173 -> RÁB | C76: Adam | D76: 9.A | E76: 10.55 | G76: Jilemnice 02.05.22 | H76: 702.5638075 | J76: 12.15 | K76: 12.58 | L76: 12.82
A77: 74. | B77: =B174 -> REPASKÝ | C77: Jakub | D77: 9.A | E77: 8.42 | G77: Jilemnice 02.05.22 | H77: 850.9463384 | J77: 8.75 | K77: 9.53 | L77: 0
A78: 75. | B78: =B175 -> SKÁLA | C78: Jan | D78: 9.A | E78: 8.51 | G78: Jilemnice 08.09.21 | H78: 843.1736979 | J78: 8.75 | K78: 0 | L78: 10.56
A79: 76. | B79: =B176 -> ŠPULÁK | C79: Jakub | D79: 9.A | E79: 9.64 | G79: Jilemnice 02.05.22 | H79: 757.9344574 | J79: 9.8 | K79: 10.24 | L79: 11.9
A80: 77. | B80: =B177 -> VALENTA | C80: Tomáš | D80: 9.A | E80: 7.83 | G80: Jilemnice 08.09.21 | H80: 906.3254367 | J80: 8.18 | K80: 8.79 | L80: 9.09
A81: 78. | B81: =B178 -> VANCL | C81: Jiří | D81: 9.A | E81: 9.04 | G81: Jilemnice 02.05.22 | H81: 800.5407267 | J81: 9.64 | K81: 10.74 | L81: 10.86
A82: 79. | B82: =B179 -> VAŠÍČEK | C82: David | D82: 9.A | E82: 8.89 | G82: Jilemnice 08.09.21 | H82: 812.0909077 | J82: 0 | K82: 9.89 | L82: 10.4
A83: 80. | B83: =B180 -> ZOUHAR | C83: Ondřej | D83: 9.A | E83: 7.88 | G83: Jilemnice 02.05.22 | H83: 901.3106814 | J83: 8.8 | K83: 9.3 | L83: 9.8
A84: 81. | B84: =B181 -> ZUZÁNEK | C84: Filip | D84: 9.A | E84: 8.9 | G84: Jilemnice 02.05.22 | H84: 811.3087831 | J84: 10.04 | K84: 10.02 | L84: 10.58
B100: PŘÍJMENÍ | C100: JMÉNO | D100: TŘÍDA | E100: VÝKON | G100: MÍSTO | J100: 20 - 21 | K100: 19 - 20 | L100: 18 - 19
B101: EXNER | C101: Tomáš | D101: 6.A | E101: 9.1 | G101: Jilemnice 02.05.22 | H101: =IF(E101=0,0,(1000000000 - 313216 / E101 + 34538300 / E101*2 - 1698600000 / E101*3 + 32198000000 / E101*4)/20000000+66) -> 796.0272713
B102: JANATA | C102: Denis | D102: 6.A | E102: 9.92 | G102: Jilemnice 02.05.22 | H102: 739.8153396
B103: JINDŘIŠEK | C103: Alex Jiří | D103: 6.A | E103: 9.67 | G103: Jilemnice 02.05.22 | H103: 755.9429337
B104: MARŠÁLEK | C104: Ondřej | D104: 6.A | E104: 9.99 | G104: Jilemnice 02.05.22 | H104: 735.4442612
B105: MLATEČEK | C105: Patrik | D105: 6.A | E105: 11.26 | G105: Jilemnice 02.05.22 | H105: 665.5779902
B106: SCHOLZ | C106: Matyáš | D106: 6.A | E106: 10.46 | G106: Jilemnice 02.05.22 | H106: 707.6107236
B107: TOMÁŠ | C107: Jakub | D107: 6.A | E107: 10.2 | G107: Jilemnice 02.05.22 | H107: 722.690997
B108: VÁCLAVÍK | C108: Jan | D108: 6.A | E108: 10.12 | G108: Jilemnice 02.05.22 | H108: 727.4869732
B109: VEČEŘA | C109: David | D109: 6.A | E109: 12.1 | G109: Jilemnice 02.05.22 | H109: 627.4254685
B110: VYBÍRAL | C110: Radim | D110: 6.A | E110: 8.95 | G110: Jilemnice 02.05.22 | H110: 807.4243764
B111: BERISHA | C111: David | D111: 6.B | E111: 13.54 | G111: Jilemnice 13.09.21 | H111: 573.0345768
B112: EFENBERK | C112: Šimon | D112: 6.B | E112: 9.82 | G112: Jilemnice 02.05.22 | H112: 746.167838
B113: FEJKL | C113: Antonín | D113: 6.B | E113: 9.48 | G113: Jilemnice 02.05.22 | H113: 768.7687942
B114: GOTTSTEIN | C114: Matouš | D114: 6.B | E114: 8.8 | G114: Jilemnice 02.05.22 | H114: 819.2100192
B115: HÁK | C115: Šimon | D115: 6.B | H115: 0
B116: POVAŽANEC | C116: Lukáš | D116: 6.B | E116: 10.1 | G116: Jilemnice 14.06.22 | H116: 728.6978385
B117: VANCL | C117: Jakub | D117: 6.B | E117: 11.09 | G117: Jilemnice 02.05.22 | H117: 674.0025401
B118: VANCL | C118: Miroslav | D118: 6.B | E118: 11.3 | G118: Jilemnice 02.05.22 | H118: 663.6325813
B119: VOTOČEK | C119: Michal | D119: 6.B | E119: 10.78 | G119: Jilemnice 14.06.22 | H119: 690.0489953
B120: BOUKAL | C120: Jakub | D120: 7.A | H120: 0 | J120: 12.56
B121: DEMČUK | C121: Ilja | D121: 7.A | E121: 9.66 | G121: Jilemnice 02.05.22 | H121: 756.6054005 | J121: 10.85
B122: FAISTAUER | C122: Kryštof | D122: 7.A | E122: 8.89 | G122: Turnov 31.05.22 | H122: 812.0909077 | J122: 9.5
B123: FRK | C123: Matyáš | D123: 7.A | E123: 12.22 | G123: Jilemnice 13.09.21 | H123: 622.4032872 | J123: 12.72
B124: HUBÁLOVSKÝ | C124: Marek | D124: 7.A | E124: 10.84 | G124: Jilemnice 13.09.21 | H124: 686.8716023 | J124: 11.43
B125: MAŘAS | C125: Dominik | D125: 7.A | H125: 0 | J125: 11.64
B126: MAŤÁTKO | C126: Jakub | D126: 7.A | H126: 0 | J126: 13.19
B127: MERY | C127: Luboš | D127: 7.A | E127: 10.94 | G127: Jilemnice 02.05.22 | H127: 681.6533976 | J127: 11.43
B128: NOVOTNÝ | C128: Matěj | D128: 7.A | E128: 10.98 | G128: Jilemnice 02.05.22 | H128: 679.5927294 | J128: 10.96
B129: ŘEHOŘEK | C129: Vojtěch | D129: 7.A | E129: 10.43 | G129: Jilemnice 02.05.22 | H129: 709.3123844 | J129: 11.92
B130: ŠÍR | C130: Matyáš | D130: 7.A | E130: 10.82 | G130: Jilemnice 02.05.22 | H130: 687.9268179 | J130: 11.48
B131: TORÁČ | C131: Tomáš | D131: 7.A | H131: 0 | J131: 22.77
B132: ULLMAN | C132: Šimon | D132: 7.A | E132: 8.38 | G132: Jilemnice 02.05.22 | H132: 854.4544355 | J132: 9.18
B133: VÁCLAVÍK | C133: Ondřej | D133: 7.A | E133: 9.14 | G133: Jilemnice 02.05.22 | H133: =IF(E133=0,0,(1000000000 - 313216 / E133 + 34538300 / E133*2 - 1698600000 / E133*3 + 32198000000 / E133*4)/20000000+66) -> 793.051222 | J133: 10.94
B134: AUERSWALD | C134: Daniel | D134: 7.B | E134: 9.61 | G134: Jilemnice 13.09.21 | H134: 759.9384151 | J134: 9.89
B135: BODLÁK | C135: Vladimír | D135: 7.B | H135: 0 | J135: 8.39
B136: BUDÍN | C136: Martin | D136: 7.B | E136: 9.67 | G136: Jilemnice 02.05.22 | H136: 755.9429337 | J136: 10.46
B137: DVOŘÁK | C137: Dominik | D137: 7.B | E137: 11.05 | G137: Jilemnice 02.05.22 | H137: 676.0224588 | J137: 11.56
B138: FIŠERA | C138: Vojtěch | D138: 7.B | E138: 10.24 | G138: Jilemnice 02.05.22 | H138: 720.3211103 | J138: 10.44
B139: JINDŘIŠEK | C139: Vít | D139: 7.B | E139: 8.24 | G139: Jilemnice 02.05.22 | H139: 867.0009914 | J139: 8.77
B140: JIROUŠ | C140: Matouš | D140: 7.B | E140: 9.55 | G140: Jilemnice 13.09.21 | H140: 763.9841015 | J140: 10.08
B141: KERLE | C141: Marek | D141: 7.B | E141: 8.84 | G141: Jilemnice 02.05.22 | H141: 816.0280734 | J141: 10.64
B142: LUKEŠ | C142: Jakub | D142: 7.B | E142: 8.73 | G142: Turnov 10.05.22 | H142: 824.8485875 | J142: 10.26
B143: OTT | C143: Matyáš | D143: 7.B | E143: 8.69 | G143: Turnov 31.05.22 | H143: 828.1114119 | J143: 11
B144: POKORNÝ | C144: Matyáš | D144: 7.B | E144: 8.58 | G144: Jilemnice 02.05.22 | H144: 837.2410454 | J144: 8.94
B145: POLÁČEK | C145: Matyáš | D145: 7.B | E145: 10.99 | G145: Jilemnice 13.09.21 | H145: 679.0799062 | J145: 11.49
B146: SOUKUP | C146: Patrik | D146: 7.B | H146: 0 | J146: 10.09
B147: VALENTA | C147: Jakub | D147: 7.B | E147: 9.87 | G147: Jilemnice 02.05.22 | H147: 742.9754984 | J147: 10.24
B148: VRBATA | C148: Dominik | D148: 7.B | E148: 9.74 | G148: Jilemnice 02.05.22 | H148: 751.3437545 | J148: 10.25
B149: FEJKL | C149: Jan | D149: 8.A | E149: 7.92 | G149: Jilemnice 02.05.22 | H149: 897.3444658 | J149: 9.14 | K149: 9.45
B150: KOTYK | C150: Tadeáš | D150: 8.A | E150: 10.72 | G150: Jilemnice 02.05.22 | H150: 693.2619561 | J150: 10.7 | K150: 10.7
B151: KRAUSE | C151: Tadeáš | D151: 8.A | E151: 8.69 | G151: Jilemnice 02.05.22 | H151: 828.1114119 | J151: 10.13 | K151: 10.34
B152: LEŠÁK | C152: Martin | D152: 8.A | E152: 10.38 | G152: Jilemnice 02.05.22 | H152: 712.1703439 | J152: 10.87 | K152: 10.54
B153: NECHANICKÝ | C153: David | D153: 8.A | E153: 7.89 | G153: Jilemnice 02.05.22 | H153: 900.3153573 | J153: 9.65 | K153: 9.42
B154: ŘEHOŘEK | C154: Jan | D154: 8.A | E154: 8.66 | G154: Jilemnice 02.05.22 | H154: 830.5783105 | J154: 9.55 | K154: 9.74
B155: SOUKUP | C155: Ondřej | D155: 8.A | E155: 9.62 | G155: Jilemnice 02.05.22 | H155: 759.2690405 | J155: 10 | K155: 10.91
B156: SPANILÝ | C156: David | D156: 8.A | E156: 8.42 | G156: Jilemnice 02.05.22 | H156: 850.9463384 | J156: 9.8 | K156: 10.22
B157: ČADAN | C157: Benjamín | D157: 8.B | E157: 10.38 | G157: Jilemnice 08.09.21 | H157: 712.1703439
B158: ČERNÝ | C158: Michal | D158: 8.B | E158: 9.65 | G158: Jilemnice 02.05.22 | H158: 757.2692403 | J158: 10.36 | K158: 11.28
B159: DOLEJŠÍ | C159: David | D159: 8.B | E159: 8.86 | G159: Jilemnice 02.05.22 | H159: 814.4478746 | J159: 11.1 | K159: 10.8
B160: NOVÁK | C160: Matěj | D160: 8.B | E160: 10.38 | G160: Jilemnice 08.09.21 | H160: 712.1703439 | J160: 10.47 | K160: 10.54
B161: POVAŽANEC | C161: Martin | D161: 8.B | E161: 8.45 | G161: Jilemnice 02.05.22 | H161: 848.3370614 | J161: 9.86 | K161: 11.89
B162: RICHTER | C162: Jakub | D162: 8.B | E162: 9.81 | G162: Jilemnice 02.05.22 | H162: 746.8102109 | K162: 11.66
B163: ROZUMEK | C163: Adam | D163: 8.B | E163: 9.44 | G163: Jilemnice 02.05.22 | H163: 771.5347637
B164: VALENTA | C164: František | D164: 8.B | E164: 9.08 | G164: Jilemnice 02.05.22 | H164: 797.5251288 | J164: 10.92 | K164: 11.6
B165: ZAPLATÍLEK | C165: Josef | D165: 8.B | E165: 9.63 | G165: Jilemnice 08.09.21 | H165: =IF(E165=0,0,(1000000000 - 313216 / E165 + 34538300 / E165*2 - 1698600000 / E165*3 + 32198000000 / E165*4)/20000000+66) -> 758.601056 | J165: 10.02 | K165: 10.04
B166: ERBEN | C166: Viktor | D166: 9.A | E166: 9.85 | G166: Jilemnice 08.09.21 | H166: 744.2485451 | J166: 10.43 | K166: 11.62 | L166: 12.32
B167: FRANC | C167: Daniel | D167: 9.A | E167: 10.43 | G167: Jilemnice 08.09.21 | H167: 709.3123844 | J167: 11.1 | K167: 10.48 | L167: 10.38
B168: JINDŘIŠEK | C168: Matyáš | D168: 9.A | E168: 9.05 | G168: Jilemnice 08.09.21 | H168: 799.7843281 | K168: 9.88 | L168: 10.38
B169: KOLAČNÝ | C169: Štěpán | D169: 9.A | E169: 10.31 | G169: Jilemnice 08.09.21 | H169: 716.2180571 | J169: 10.74 | K169: 10.34 | L169: 10.42
B170: KRISTAN | C170: Jáchym | D170: 9.A | E170: 13.16 | G170: Jilemnice 02.05.22 | H170: 586.2316238 | J170: 14.56 | K170: 13.78 | L170: 14.93
B171: NGUYEN | C171: David | D171: 9.A | E171: 9.12 | G171: Jilemnice 08.09.21 | H171: 794.5359835 | K171: 10.58
B172: NOVOTNÝ | C172: Jan | D172: 9.A | E172: 8.8 | G172: Jilemnice 02.05.22 | H172: 819.2100192 | J172: 9.43 | K172: 9.93 | L172: 11.65
B173: RÁB | C173: Adam | D173: 9.A | E173: 10.55 | G173: Jilemnice 02.05.22 | H173: 702.5638075 | J173: 12.15 | K173: 12.58 | L173: 12.82
B174: REPASKÝ | C174: Jakub | D174: 9.A | E174: 8.42 | G174: Jilemnice 02.05.22 | H174: 850.9463384 | J174: 8.75 | K174: 9.53
B175: SKÁLA | C175: Jan | D175: 9.A | E175: 8.51 | G175: Jilemnice 08.09.21 | H175: 843.1736979 | J175: 8.75 | L175: 10.56
B176: ŠPULÁK | C176: Jakub | D176: 9.A | E176: 9.64 | G176: Jilemnice 02.05.22 | H176: 757.9344574 | J176: 9.8 | K176: 10.24 | L176: 11.9
B177: VALENTA | C177: Tomáš | D177: 9.A | E177: 7.83 | G177: Jilemnice 08.09.21 | H177: 906.3254367 | J177: 8.18 | K177: 8.79 | L177: 9.09
B178: VANCL | C178: Jiří | D178: 9.A | E178: 9.04 | G178: Jilemnice 02.05.22 | H178: 800.5407267 | J178: 9.64 | K178: 10.74 | L178: 10.86
B179: VAŠÍČEK | C179: David | D179: 9.A | E179: 8.89 | G179: Jilemnice 08.09.21 | H179: 812.0909077 | K179: 9.89 | L179: 10.4
B180: ZOUHAR | C180: Ondřej | D180: 9.A | E180: 7.88 | G180: Jilemnice 02.05.22 | H180: 901.3106814 | J180: 8.8 | K180: 9.3 | L180: 9.8
B181: ZUZÁNEK | C181: Filip | D181: 9.A | E181: 8.9 | G181: Jilemnice 02.05.22 | H181: 811.3087831 | J181: 10.04 | K181: 10.02 | L181: 10.58

Sheet 300
C1: VÝKONY 2021 - 2022 | G1: 300 M | H1: CHLAPCI 6. - 9. ROČ.
B2: stav k | C2: =TODAY() -> 2022-06-27 | J2: 20 - 21 | K2: 19 - 20 | L2: 18 - 19
A4: 1. | B4: =B101 -> EXNER | C4: =C101 -> Tomáš | D4: 6.A | E4: 00:01:00.640 | G4: Jilemnice 03.06.22 | H4: 577.7079054 | J4: 00:00:00 | K4: 00:00:00 | L4: 00:00:00
A5: 2. | B5: =B102 -> JANATA | C5: Denis | D5: 6.A | E5: 00:01:01.020 | G5: =G102 -> Jilemnice 03.06.22 | H5: 572.2171302 | J5: =J102 -> 00:00:00 | K5: 00:00:00 | L5: 00:00:00
A6: 3. | B6: =B103 -> JINDŘIŠEK | C6: Alex Jiří | D6: 6.A | E6: 00:01:01.350 | G6: =G103 -> Jilemnice 03.06.22 | H6: 567.5040087 | J6: =J103 -> 00:00:00 | K6: 00:00:00 | L6: 00:00:00
A7: 4. | B7: =B104 -> MARŠÁLEK | C7: Ondřej | D7: 6.A | E7: 00:01:09.950 | G7: =G104 -> Jilemnice 03.06.22 | H7: 460.3575973 | J7: =J104 -> 00:00:00 | K7: 00:00:00 | L7: 00:00:00
A8: 5. | B8: =B105 -> MLATEČEK | C8: Patrik | D8: 6.A | E8: 00:01:14.240 | G8: =G105 -> Jilemnice 03.06.22 | H8: 416.1890542 | J8: =J105 -> 00:00:00 | K8: 00:00:00 | L8: 00:00:00
A9: 6. | B9: =B106 -> SCHOLZ | C9: Matyáš | D9: 6.A | E9: 00:01:03.540 | G9: =G106 -> Jilemnice 03.06.22 | H9: 537.4665074 | J9: =J106 -> 00:00:00 | K9: 00:00:00 | L9: 00:00:00
A10: 7. | B10: =B107 -> TOMÁŠ | C10: Jakub | D10: 6.A | E10: 00:00:56.510 | G10: =G107 -> Jilemnice 14.06.22 | H10: 642.1466419 | J10: =J107 -> 00:00:00 | K10: 00:00:00 | L10: 00:00:00
A11: 8. | B11: =B108 -> VÁCLAVÍK | C11: Jan | D11: 6.A | E11: 00:00:56.400 | G11: =G108 -> Jilemnice 03.06.22 | H11: 643.9919536 | J11: =J108 -> 00:00:00 | K11: 00:00:00 | L11: 00:00:00
A12: 9. | B12: =B109 -> VEČEŘA | C12: David | D12: 6.A | E12: 00:01:15.100 | G12: =G109 -> Jilemnice 03.06.22 | H12: 407.9419398 | J12: =J109 -> 00:00:00 | K12: 00:00:00 | L12: 00:00:00
A13: 10. | B13: =B110 -> VYBÍRAL | C13: Radim | D13: 6.A | E13: 00:00:50.300 | G13: =G110 -> Jilemnice 03.06.22 | H13: 758.9565742 | J13: =J110 -> 00:00:00 | K13: 00:00:00 | L13: 00:00:00
A14: 11. | B14: =B111 -> BERISHA | C14: David | D14: 6.B | E14: 00:00:00 | G14: =G111 -> 0 | H14: 0 | J14: =J111 -> 00:00:00 | K14: 00:00:00 | L14: 00:00:00
A15: 12. | B15: =B112 -> EFENBERK | C15: Šimon | D15: 6.B | E15: 00:01:04.360 | G15: =G112 -> Jilemnice 03.06.22 | H15: 526.745587 | J15: =J112 -> 00:00:00 | K15: 00:00:00 | L15: 00:00:00
A16: 13. | B16: =B113 -> FEJKL | C16: Antonín | D16: 6.B | E16: 00:00:51.010 | G16: =G113 -> Jilemnice 03.06.22 | H16: 744.1615219 | J16: =J113 -> 00:00:00 | K16: 00:00:00 | L16: 00:00:00
A17: 14. | B17: =B114 -> GOTTSTEIN | C17: Matouš | D17: 6.B | E17: 00:00:47.930 | G17: =G114 -> Jilemnice 03.06.22 | H17: 811.516458 | J17: =J114 -> 00:00:00 | K17: 00:00:00 | L17: 00:00:00
A18: 15. | B18: =B115 -> HÁK | C18: Šimon | D18: 6.B | E18: 00:00:00 | G18: =G115 -> 0 | H18: 0 | J18: =J115 -> 00:00:00 | K18: 00:00:00 | L18: 00:00:00
A19: 16. | B19: =B116 -> POVAŽANEC | C19: Lukáš | D19: 6.B | E19: 00:01:04.130 | G19: =G116 -> Jilemnice 03.06.22 | H19: 529.7250091 | J19: =J116 -> 00:00:00 | K19: 00:00:00 | L19: 00:00:00
A20: 17. | B20: =B117 -> VANCL | C20: Jakub | D20: 6.B | E20: 00:01:08.950 | G20: =G117 -> Jilemnice 03.06.22 | H20: 471.4432042 | J20: =J117 -> 00:00:00 | K20: 00:00:00 | L20: 00:00:00
A21: 18. | B21: =B118 -> VANCL | C21: Miroslav | D21: 6.B | E21: 00:01:32.620 | G21: =G118 -> Jilemnice 03.06.22 | H21: 273.2719421 | J21: =J118 -> 00:00:00 | K21: 00:00:00 | L21: 00:00:00
A22: 19. | B22: =B119 -> VOTOČEK | C22: Michal | D22: 6.B | E22: 00:01:07.340 | G22: =G119 -> Jilemnice 03.06.22 | H22: 489.9827871 | J22: =J119 -> 00:00:00 | K22: 00:00:00 | L22: 00:00:00
A23: 20. | B23: =B120 -> BOUKAL | C23: Jakub | D23: 7.A | E23: 00:00:00 | G23: =G120 -> 0 | H23: 0 | J23: =J120 -> 00:01:20.860 | K23: 00:00:00 | L23: 00:00:00
A24: 21. | B24: =B121 -> DEMČUK | C24: Ilja | D24: 7.A | E24: 00:00:53.360 | G24: =G121 -> Jilemnice 03.06.22 | H24: 698.0002058 | J24: =J121 -> 00:01:00.280 | K24: 00:00:00 | L24: 00:00:00
A25: 22. | B25: =B122 -> FAISTAUER | C25: Kryštof | D25: 7.A | E25: 00:00:52.980 | G25: =G122 -> Jilemnice 03.06.22 | H25: 705.1870344 | J25: =J122 -> 00:00:54.880 | K25: 00:00:00 | L25: 00:00:00
A26: 23. | B26: =B123 -> FRK | C26: Matyáš | D26: 7.A | E26: 00:01:14.910 | G26: =G123 -> Jilemnice 03.06.22 | H26: 409.7476803 | J26: =J123 -> 00:01:21.540 | K26: 00:00:00 | L26: 00:00:00
A27: 24. | B27: =B124 -> HUBÁLOVSKÝ | C27: Marek | D27: 7.A | E27: 00:00:53.080 | G27: =G124 -> Jilemnice 03.06.22 | H27: 703.2857871 | J27: =J124 -> 00:01:11.580 | K27: 00:00:00 | L27: 00:00:00
A28: 25. | B28: =B125 -> MAŘAS | C28: Dominik | D28: 7.A | E28: 00:01:20.670 | G28: =G125 -> Jilemnice 27.05.22 | H28: 358.7850196 | J28: =J125 -> 00:01:18.210 | K28: 00:00:00 | L28: 00:00:00
A29: 26. | B29: =B126 -> MAŤÁTKO | C29: Jakub | D29: 7.A | E29: 00:01:29.020 | G29: =G126 -> Jilemnice 27.05.22 | H29: 296.6168196 | J29: =J126 -> 00:01:24.110 | K29: 00:00:00 | L29: 00:00:00
A30: 27. | B30: =B127 -> MERY | C30: Luboš | D30: 7.A | E30: 00:01:06.760 | G30: =G127 -> Jilemnice 03.06.22 | H30: 496.8807367 | J30: =J127 -> 00:01:15.180 | K30: 00:00:00 | L30: 00:00:00
A31: 28. | B31: =B128 -> NOVOTNÝ | C31: Matěj | D31: 7.A | E31: 00:01:09.540 | G31: =G128 -> Jilemnice 03.06.22 | H31: 464.8641341 | J31: =J128 -> 00:00:00 | K31: 00:00:00 | L31: 00:00:00
A32: 29. | B32: =B129 -> ŘEHOŘEK | C32: Vojtěch | D32: 7.A | E32: 00:01:04.170 | G32: =G129 -> Jilemnice 03.06.22 | H32: 529.2053145 | J32: =J129 -> 00:01:11.820 | K32: 00:00:00 | L32: 00:00:00
A33: 30. | B33: =B130 -> ŠÍR | C33: Matyáš | D33: 7.A | E33: 00:00:00 | G33: =G130 -> 0 | H33: 0 | J33: =J130 -> 00:01:09.460 | K33: 00:00:00 | L33: 00:00:00
A34: 31. | B34: =B131 -> TORÁČ | C34: Tomáš | D34: 7.A | E34: 00:02:06.130 | G34: =G131 -> Jilemnice 27.05.22 | H34: 119.9046605 | J34: =J131 -> 00:02:09.100 | K34: 00:00:00 | L34: 00:00:00
A35: 32. | B35: =B132 -> ULLMAN | C35: Šimon | D35: 7.A | E35: 00:00:48.360 | G35: =G132 -> Jilemnice 03.06.22 | H35: 801.597725 | J35: =J132 -> 00:00:53.770 | K35: 00:00:00 | L35: 00:00:00
A36: 33. | B36: =B133 -> VÁCLAVÍK | C36: Ondřej | D36: 7.A | E36: 00:01:16.350 | G36: =G133 -> Jilemnice 03.06.22 | H36: 396.2861288 | J36: =J133 -> 00:00:58.550 | K36: 00:00:00 | L36: 00:00:00
A37: 34. | B37: =B134 -> AUERSWALD | C37: Daniel | D37: 7.B | E37: 00:00:54.880 | G37: =G134 -> Jilemnice 03.06.22 | H37: 670.248152 | J37: =J134 -> 00:00:59.520 | K37: 00:00:00 | L37: 00:00:00
A38: 35. | B38: =B135 -> BODLÁK | C38: Vladimír | D38: 7.B | E38: 00:00:00 | G38: =G135 -> 0 | H38: 0 | J38: =J135 -> 00:00:45.090 | K38: 00:00:00 | L38: 00:00:00
A39: 36. | B39: =B136 -> BUDÍN | C39: Martin | D39: 7.B | E39: 00:00:55.190 | G39: =G136 -> Jilemnice 17.06.22 | H39: 664.7758676 | J39: =J136 -> 00:00:58.300 | K39: 00:00:00 | L39: 00:00:00
A40: 37. | B40: =B137 -> DVOŘÁK | C40: Dominik | D40: 7.B | E40: 00:01:00.920 | G40: =G137 -> Jilemnice 03.06.22 | H40: 573.6554298 | J40: =J137 -> 00:00:00 | K40: 00:00:00 | L40: 00:00:00
A41: 38. | B41: =B138 -> FIŠERA | C41: Vojtěch | D41: 7.B | E41: 00:00:00 | G41: =G138 -> 0 | H41: 0 | J41: =J138 -> 00:00:57.070 | K41: 00:00:00 | L41: 00:00:00
A42: 39. | B42: =B139 -> JINDŘIŠEK | C42: Vít | D42: 7.B | E42: 00:00:43.530 | G42: =G139 -> Jilemnice 17.06.22 | H42: 924.2720384 | J42: =J139 -> 00:00:00 | K42: 00:00:00 | L42: 00:00:00
A43: 40. | B43: =B140 -> JIROUŠ | C43: Matouš | D43: 7.B | E43: 00:00:55.050 | G43: =G140 -> Jilemnice 03.06.22 | H43: 667.23959 | J43: =J140 -> 00:00:00 | K43: 00:00:00 | L43: 00:00:00
A44: 41. | B44: =B141 -> KERLE | C44: Marek | D44: 7.B | E44: 00:00:48.020 | G44: =G141 -> Jilemnice 03.06.22 | H44: 809.4257451 | J44: =J141 -> 00:00:54.010 | K44: 00:00:00 | L44: 00:00:00
A45: 42. | B45: =B142 -> LUKEŠ | C45: Jakub | D45: 7.B | E45: 00:00:46.890 | G45: =G142 -> Jilemnice 03.06.22 | H45: 836.2580216 | J45: =J142 -> 00:00:54.300 | K45: 00:00:00 | L45: 00:00:00
A46: 43. | B46: =B143 -> OTT | C46: Matyáš | D46: 7.B | E46: 00:00:48.620 | G46: =G143 -> Jilemnice 03.06.22 | H46: 795.6854645 | J46: =J143 -> 00:01:08.290 | K46: 00:00:00 | L46: 00:00:00
A47: 44. | B47: =B144 -> POKORNÝ | C47: Matyáš | D47: 7.B | E47: 00:00:44.070 | G47: =G144 -> Jilemnice 17.06.22 | H47: 909.2217956 | J47: =J144 -> 00:00:48.010 | K47: 00:00:00 | L47: 00:00:00
A48: 45. | B48: =B145 -> POLÁČEK | C48: Matyáš | D48: 7.B | E48: 00:01:06.520 | G48: =G145 -> Jilemnice 03.06.22 | H48: 499.7702463 | J48: =J145 -> 00:01:13.650 | K48: 00:00:00 | L48: 00:00:00
A49: 46. | B49: =B146 -> SOUKUP | C49: Patrik | D49: 7.B | E49: 00:00:00 | G49: =G146 -> 0 | H49: 0 | J49: =J146 -> 00:00:53.980 | K49: 00:00:00 | L49: 00:00:00
A50: 47. | B50: =B147 -> VALENTA | C50: Jakub | D50: 7.B | E50: 00:00:48.980 | G50: =G147 -> Jilemnice 03.06.22 | H50: 787.6028804 | J50: =J147 -> 00:00:00 | K50: 00:00:00 | L50: 00:00:00
A51: 48. | B51: =B148 -> VRBATA | C51: Dominik | D51: 7.B | E51: 00:00:56.960 | G51: =G148 -> Jilemnice 17.06.22 | H51: 634.6718571 | J51: =J148 -> 00:00:57.790 | K51: 00:00:00 | L51: 00:00:00
A52: 49. | B52: =B149 -> FEJKL | C52: Jan | D52: 8.A | E52: 00:00:44.880 | G52: =G149 -> Jilemnice 08.06.22 | H52: 887.3255032 | J52: =J149 -> 00:00:00 | K52: 00:00:54.980 | L52: 00:00:00
A53: 50. | B53: =B150 -> KOTYK | C53: Tadeáš | D53: 8.A | E53: 00:01:09.690 | G53: =G150 -> Jilemnice 08.06.22 | H53: 463.20925 | J53: =J150 -> 00:00:00 | K53: 00:01:18.780 | L53: 00:00:00
A54: 51. | B54: =B151 -> KRAUSE | C54: Tadeáš | D54: 8.A | E54: 00:00:46.380 | G54: =G151 -> Jilemnice 08.06.22 | H54: 848.7963795 | J54: =J151 -> 00:00:00 | K54: 00:00:59.500 | L54: 00:00:00
A55: 52. | B55: =B152 -> LEŠÁK | C55: Martin | D55: 8.A | E55: 00:00:57.910 | G55: =G152 -> Jilemnice 08.06.22 | H55: 619.273247 | J55: =J152 -> 00:00:00 | K55: 00:01:15.530 | L55: 00:00:00
A56: 53. | B56: =B153 -> NECHANICKÝ | C56: David | D56: 8.A | E56: 00:00:46.990 | G56: =G153 -> Jilemnice 08.06.22 | H56: 833.831435 | J56: =J153 -> 00:00:00 | K56: 00:00:57.540 | L56: 00:00:00
A57: 54. | B57: =B154 -> ŘEHOŘEK | C57: Jan | D57: 8.A | E57: 00:00:51.300 | G57: =G154 -> Jilemnice 08.06.22 | H57: 738.2362706 | J57: =J154 -> 00:00:00 | K57: 00:00:58.500 | L57: 00:00:00
A58: 55. | B58: =B155 -> SOUKUP | C58: Ondřej | D58: 8.A | E58: 00:00:00 | G58: =G155 -> 0 | H58: 0 | J58: =J155 -> 00:00:00 | K58: 00:01:04.170 | L58: 00:00:00
A59: 56. | B59: =B156 -> SPANILÝ | C59: David | D59: 8.A | E59: 00:00:45.790 | G59: =G156 -> Jilemnice 08.06.22 | H59: 863.649992 | J59: =J156 -> 00:00:00 | K59: 00:01:00.950 | L59: 00:00:00
A60: 57. | B60: =B157 -> ČADAN | C60: Benjamín | D60: 8.B | E60: 00:00:00 | G60: =G157 -> 0 | H60: 0 | J60: =J157 -> 00:00:00 | K60: 00:01:14.370 | L60: 00:00:00
A61: 58. | B61: =B158 -> ČERNÝ | C61: Michal | D61: 8.B | E61: 00:00:58.820 | G61: =G158 -> Jilemnice 08.06.22 | H61: 604.9894302 | J61: =J158 -> 00:00:00 | K61: 00:01:13.500 | L61: 00:00:00
A62: 59. | B62: =B159 -> DOLEJŠÍ | C62: David | D62: 8.B | E62: 00:00:51.270 | G62: =G159 -> Jilemnice 08.06.22 | H62: 738.8461192 | J62: =J159 -> 00:00:00 | K62: 00:01:09.160 | L62: 00:00:00
A63: 60. | B63: =B160 -> NOVÁK | C63: Matěj | D63: 8.B | E63: 00:00:00 | G63: =G160 -> 0 | H63: 0 | J63: =J160 -> 00:00:00 | K63: 00:01:01.550 | L63: 00:00:00
A64: 61. | B64: =B161 -> POVAŽANEC | C64: Martin | D64: 8.B | E64: 00:00:50.120 | G64: =G161 -> Jilemnice 08.06.22 | H64: 762.7740379 | J64: =J161 -> 00:00:00 | K64: 00:01:22.800 | L64: 00:00:00
A65: 62. | B65: =B162 -> RICHTER | C65: Jakub | D65: 8.B | E65: 00:00:57.420 | G65: =G162 -> Jilemnice 08.06.22 | H65: 627.1520599 | J65: =J162 -> 00:00:00 | K65: 00:01:11.020 | L65: 00:00:00
A66: 63. | B66: =B163 -> ROZUMEK | C66: Adam | D66: 8.B | E66: 00:01:07.910 | G66: =G163 -> Jilemnice 08.06.22 | H66: 483.3185647 | J66: =J163 -> 00:00:00 | K66: 00:01:27.170 | L66: 00:00:00
A67: 64. | B67: =B164 -> VALENTA | C67: František | D67: 8.B | E67: 00:00:56.220 | G67: =G164 -> Jilemnice 08.06.22 | H67: 647.0271306 | J67: =J164 -> 00:00:00 | K67: 00:01:08.610 | L67: 00:00:00
A68: 65. | B68: =B165 -> ZAPLATÍLEK | C68: Josef | D68: 8.B | E68: 00:00:51.560 | G68: =G165 -> Jilemnice 08.06.22 | H68: 732.9806436 | J68: =J165 -> 00:00:00 | K68: 00:01:00.340 | L68: 00:00:00
A69: 66. | B69: =B166 -> ERBEN | C69: Viktor | D69: 9.A | E69: 00:00:58.740 | G69: =G166 -> Jilemnice 29.09.21 | H69: 606.2274069 | J69: =J166 -> 00:01:04.810 | K69: 00:01:15.110 | L69: 00:01:13.140
A70: 67. | B70: =B167 -> FRANC | C70: Daniel | D70: 9.A | E70: 00:01:03.290 | G70: =G167 -> Jilemnice 15-06.22 | H70: 540.7903402 | J70: =J167 -> 00:00:00 | K70: 00:01:18.570 | L70: 00:01:14.240
A71: 68. | B71: =B168 -> JINDŘIŠEK | C71: Matyáš | D71: 9.A | E71: 00:00:50.450 | G71: =G168 -> Jilemnice 15-06.22 | H71: 755.7961632 | J71: =J168 -> 00:00:51.030 | K71: 00:00:54.740 | L71: 00:01:04.050
A72: 69. | B72: =B169 -> KOLAČNÝ | C72: Štěpán | D72: 9.A | E72: 00:01:05.370 | G72: =G169 -> Jilemnice 29.09.21 | H72: 513.9102192 | J72: =J169 -> 00:01:10.470 | K72: 00:01:07.170 | L72: 00:01:08.590
A73: 70. | B73: =B170 -> KRISTAN | C73: Jáchym | D73: 9.A | E73: 00:01:23.850 | G73: =G170 -> Jilemnice 29.09.21 | H73: 333.6491763 | J73: =J170 -> 00:01:34.910 | K73: 00:01:28.170 | L73: 00:01:30.820
A74: 71. | B74: =B171 -> NGUYEN | C74: David | D74: 9.A | E74: 00:00:53.880 | G74: =G171 -> Jilemnice 15-06.22 | H74: 688.3298735 | J74: =J171 -> 00:00:00 | K74: 00:00:57.940 | L74: 00:00:00
A75: 72. | B75: =B172 -> NOVOTNÝ | C75: Jan | D75: 9.A | E75: 00:00:55.230 | G75: =G172 -> Jilemnice 15-06.22 | H75: 664.074241 | J75: =J172 -> 00:00:48.030 | K75: 00:00:54.410 | L75: 00:01:06.640
A76: 73. | B76: =B173 -> RÁB | C76: Adam | D76: 9.A | E76: 00:01:07.080 | G76: =G173 -> Jilemnice 29.09.21 | H76: 493.0602204 | J76: =J173 -> 00:01:12.190 | K76: 00:01:21.770 | L76: 00:01:26.790
A77: 74. | B77: =B174 -> REPASKÝ | C77: Jakub | D77: 9.A | E77: 00:00:51.830 | G77: =G174 -> Jilemnice 29.09.21 | H77: 727.5786867 | J77: =J174 -> 00:00:49.990 | K77: 00:00:00 | L77: 00:00:00
A78: 75. | B78: =B175 -> SKÁLA | C78: Jan | D78: 9.A | E78: 00:00:52.260 | G78: =G175 -> Jilemnice 29.09.21 | H78: 719.0908052 | J78: =J175 -> 00:00:51.050 | K78: 00:00:59.340 | L78: 00:01:09.240
A79: 76. | B79: =B176 -> ŠPULÁK | C79: Jakub | D79: 9.A | E79: 00:00:58.030 | G79: =G176 -> Jilemnice 29.09.21 | H79: 617.3640243 | J79: =J176 -> 00:00:55.640 | K79: 00:01:06.120 | L79: 00:01:16.460
A80: 77. | B80: =B177 -> VALENTA | C80: Tomáš | D80: 9.A | E80: 00:00:45.930 | G80: =G177 -> Jilemnice 29.09.21 | H80: 860.0908738 | J80: =J177 -> 00:00:44.370 | K80: 00:00:49.500 | L80: 00:00:56.410
A81: 78. | B81: =B178 -> VANCL | C81: Jiří | D81: 9.A | E81: 00:00:59.030 | G81: =G178 -> Jilemnice 29.09.21 | H81: 601.7557061 | J81: =J178 -> 00:00:58.090 | K81: 00:01:08.360 | L81: 00:01:16.720
A82: 79. | B82: =B179 -> VAŠÍČEK | C82: David | D82: 9.A | E82: 00:00:51.020 | G82: =G179 -> Jilemnice 29.09.21 | H82: 743.9560816 | J82: =J179 -> 00:00:00 | K82: 00:01:00.980 | L82: 00:00:57.580
A83: 80. | B83: =B180 -> ZOUHAR | C83: Ondřej | D83: 9.A | E83: 00:00:50.800 | G83: =G180 -> Jilemnice 29.09.21 | H83: 748.4944524 | J83: =J180 -> 00:00:49.010 | K83: 00:00:58.200 | L83: 00:00:58.890
A84: 81. | B84: =B181 -> ZUZÁNEK | C84: Filip | D84: 9.A | E84: 00:00:58.480 | G84: =G181 -> Jilemnice 29.09.21 | H84: 610.2742234 | J84: =J181 -> 00:00:57.690 | K84: 00:01:02.210 | L84: 00:01:07.280
B101: EXNER | C101: Tomáš | D101: 6.A | E101: 00:01:00.640 | G101: Jilemnice 03.06.22 | H101: =IF(E101=0,0,(1000000000-313216/E101+34538300/E101*2-1698600000/E101*3+32198000000/E101*4)/200000000000-304) -> 577.7079054
B102: JANATA | C102: Denis | D102: 6.A | E102: 00:01:01.020 | G102: Jilemnice 03.06.22 | H102: 572.2171302
B103: JINDŘIŠEK | C103: Alex Jiří | D103: 6.A | E103: 00:01:01.350 | G103: Jilemnice 03.06.22 | H103: 567.5040087
B104: MARŠÁLEK | C104: Ondřej | D104: 6.A | E104: 00:01:09.950 | G104: Jilemnice 03.06.22 | H104: 460.3575973
B105: MLATEČEK | C105: Patrik | D105: 6.A | E105: 00:01:14.240 | G105: Jilemnice 03.06.22 | H105: 416.1890542
B106: SCHOLZ | C106: Matyáš | D106: 6.A | E106: 00:01:03.540 | G106: Jilemnice 03.06.22 | H106: 537.4665074
B107: TOMÁŠ | C107: Jakub | D107: 6.A | E107: 00:00:56.510 | G107: Jilemnice 14.06.22 | H107: 642.1466419
B108: VÁCLAVÍK | C108: Jan | D108: 6.A | E108: 00:00:56.400 | G108: Jilemnice 03.06.22 | H108: 643.9919536
B109: VEČEŘA | C109: David | D109: 6.A | E109: 00:01:15.100 | G109: Jilemnice 03.06.22 | H109: 407.9419398
B110: VYBÍRAL | C110: Radim | D110: 6.A | E110: 00:00:50.300 | G110: Jilemnice 03.06.22 | H110: 758.9565742
B111: BERISHA | C111: David | D111: 6.B | H111: 0
B112: EFENBERK | C112: Šimon | D112: 6.B | E112: 00:01:04.360 | G112: Jilemnice 03.06.22 | H112: 526.745587
B113: FEJKL | C113: Antonín | D113: 6.B | E113: 00:00:51.010 | G113: Jilemnice 03.06.22 | H113: 744.1615219
B114: GOTTSTEIN | C114: Matouš | D114: 6.B | E114: 00:00:47.930 | G114: Jilemnice 03.06.22 | H114: 811.516458
B115: HÁK | C115: Šimon | D115: 6.B | H115: 0
B116: POVAŽANEC | C116: Lukáš | D116: 6.B | E116: 00:01:04.130 | G116: Jilemnice 03.06.22 | H116: 529.7250091
B117: VANCL | C117: Jakub | D117: 6.B | E117: 00:01:08.950 | G117: Jilemnice 03.06.22 | H117: 471.4432042
B118: VANCL | C118: Miroslav | D118: 6.B | E118: 00:01:32.620 | G118: Jilemnice 03.06.22 | H118: 273.2719421
B119: VOTOČEK | C119: Michal | D119: 6.B | E119: 00:01:07.340 | G119: Jilemnice 03.06.22 | H119: 489.9827871
B120: BOUKAL | C120: Jakub | D120: 7.A | H120: 0 | J120: 00:01:20.860
B121: DEMČUK | C121: Ilja | D121: 7.A | E121: 00:00:53.360 | G121: Jilemnice 03.06.22 | H121: 698.0002058 | J121: 00:01:00.280
B122: FAISTAUER | C122: Kryštof | D122: 7.A | E122: 00:00:52.980 | G122: Jilemnice 03.06.22 | H122: 705.1870344 | J122: 00:00:54.880
B123: FRK | C123: Matyáš | D123: 7.A | E123: 00:01:14.910 | G123: Jilemnice 03.06.22 | H123: 409.7476803 | J123: 00:01:21.540
B124: HUBÁLOVSKÝ | C124: Marek | D124: 7.A | E124: 00:00:53.080 | G124: Jilemnice 03.06.22 | H124: 703.2857871 | J124: 00:01:11.580
B125: MAŘAS | C125: Dominik | D125: 7.A | E125: 00:01:20.670 | G125: Jilemnice 27.05.22 | H125: 358.7850196 | J125: 00:01:18.210
B126: MAŤÁTKO | C126: Jakub | D126: 7.A | E126: 00:01:29.020 | G126: Jilemnice 27.05.22 | H126: 296.6168196 | J126: 00:01:24.110
B127: MERY | C127: Luboš | D127: 7.A | E127: 00:01:06.760 | G127: Jilemnice 03.06.22 | H127: 496.8807367 | J127: 00:01:15.180
B128: NOVOTNÝ | C128: Matěj | D128: 7.A | E128: 00:01:09.540 | G128: Jilemnice 03.06.22 | H128: 464.8641341
B129: ŘEHOŘEK | C129: Vojtěch | D129: 7.A | E129: 00:01:04.170 | G129: Jilemnice 03.06.22 | H129: 529.2053145 | J129: 00:01:11.820
B130: ŠÍR | C130: Matyáš | D130: 7.A | H130: 0 | J130: 00:01:09.460
B131: TORÁČ | C131: Tomáš | D131: 7.A | E131: 00:02:06.130 | G131: Jilemnice 27.05.22 | H131: 119.9046605 | J131: 00:02:09.100
B132: ULLMAN | C132: Šimon | D132: 7.A | E132: 00:00:48.360 | G132: Jilemnice 03.06.22 | H132: 801.597725 | J132: 00:00:53.770
B133: VÁCLAVÍK | C133: Ondřej | D133: 7.A | E133: 00:01:16.350 | G133: Jilemnice 03.06.22 | H133: =IF(E133=0,0,(1000000000-313216/E133+34538300/E133*2-1698600000/E133*3+32198000000/E133*4)/200000000000-304) -> 396.2861288 | J133: 00:00:58.550
B134: AUERSWALD | C134: Daniel | D134: 7.B | E134: 00:00:54.880 | G134: Jilemnice 03.06.22 | H134: 670.248152 | J134: 00:00:59.520
B135: BODLÁK | C135: Vladimír | D135: 7.B | H135: 0 | J135: 00:00:45.090
B136: BUDÍN | C136: Martin | D136: 7.B | E136: 00:00:55.190 | G136: Jilemnice 17.06.22 | H136: 664.7758676 | J136: 00:00:58.300
B137: DVOŘÁK | C137: Dominik | D137: 7.B | E137: 00:01:00.920 | G137: Jilemnice 03.06.22 | H137: 573.6554298
B138: FIŠERA | C138: Vojtěch | D138: 7.B | H138: 0 | J138: 00:00:57.070
B139: JINDŘIŠEK | C139: Vít | D139: 7.B | E139: 00:00:43.530 | G139: Jilemnice 17.06.22 | H139: 924.2720384
B140: JIROUŠ | C140: Matouš | D140: 7.B | E140: 00:00:55.050 | G140: Jilemnice 03.06.22 | H140: 667.23959
B141: KERLE | C141: Marek | D141: 7.B | E141: 00:00:48.020 | G141: Jilemnice 03.06.22 | H141: 809.4257451 | J141: 00:00:54.010
B142: LUKEŠ | C142: Jakub | D142: 7.B | E142: 00:00:46.890 | G142: Jilemnice 03.06.22 | H142: 836.2580216 | J142: 00:00:54.300
B143: OTT | C143: Matyáš | D143: 7.B | E143: 00:00:48.620 | G143: Jilemnice 03.06.22 | H143: 795.6854645 | J143: 00:01:08.290
B144: POKORNÝ | C144: Matyáš | D144: 7.B | E144: 00:00:44.070 | G144: Jilemnice 17.06.22 | H144: 909.2217956 | J144: 00:00:48.010
B145: POLÁČEK | C145: Matyáš | D145: 7.B | E145: 00:01:06.520 | G145: Jilemnice 03.06.22 | H145: 499.7702463 | J145: 00:01:13.650
B146: SOUKUP | C146: Patrik | D146: 7.B | H146: 0 | J146: 00:00:53.980
B147: VALENTA | C147: Jakub | D147: 7.B | E147: 00:00:48.980 | G147: Jilemnice 03.06.22 | H147: 787.6028804
B148: VRBATA | C148: Dominik | D148: 7.B | E148: 00:00:56.960 | G148: Jilemnice 17.06.22 | H148: 634.6718571 | J148: 00:00:57.790
B149: FEJKL | C149: Jan | D149: 8.A | E149: 00:00:44.880 | G149: Jilemnice 08.06.22 | H149: 887.3255032 | K149: 00:00:54.980
B150: KOTYK | C150: Tadeáš | D150: 8.A | E150: 00:01:09.690 | G150: Jilemnice 08.06.22 | H150: 463.20925 | K150: 00:01:18.780
B151: KRAUSE | C151: Tadeáš | D151: 8.A | E151: 00:00:46.380 | G151: Jilemnice 08.06.22 | H151: 848.7963795 | K151: 00:00:59.500
B152: LEŠÁK | C152: Martin | D152: 8.A | E152: 00:00:57.910 | G152: Jilemnice 08.06.22 | H152: 619.273247 | K152: 00:01:15.530
B153: NECHANICKÝ | C153: David | D153: 8.A | E153: 00:00:46.990 | G153: Jilemnice 08.06.22 | H153: 833.831435 | K153: 00:00:57.540
B154: ŘEHOŘEK | C154: Jan | D154: 8.A | E154: 00:00:51.300 | G154: Jilemnice 08.06.22 | H154: 738.2362706 | K154: 00:00:58.500
B155: SOUKUP | C155: Ondřej | D155: 8.A | H155: 0 | K155: 00:01:04.170
B156: SPANILÝ | C156: David | D156: 8.A | E156: 00:00:45.790 | G156: Jilemnice 08.06.22 | H156: 863.649992 | K156: 00:01:00.950
B157: ČADAN | C157: Benjamín | D157: 8.B | H157: 0 | K157: 00:01:14.370
B158: ČERNÝ | C158: Michal | D158: 8.B | E158: 00:00:58.820 | G158: Jilemnice 08.06.22 | H158: 604.9894302 | K158: 00:01:13.500
B159: DOLEJŠÍ | C159: David | D159: 8.B | E159: 00:00:51.270 | G159: Jilemnice 08.06.22 | H159: 738.8461192 | K159: 00:01:09.160
B160: NOVÁK | C160: Matěj | D160: 8.B | H160: 0 | K160: 00:01:01.550
B161: POVAŽANEC | C161: Martin | D161: 8.B | E161: 00:00:50.120 | G161: Jilemnice 08.06.22 | H161: 762.7740379 | K161: 00:01:22.800
B162: RICHTER | C162: Jakub | D162: 8.B | E162: 00:00:57.420 | G162: Jilemnice 08.06.22 | H162: 627.1520599 | K162: 00:01:11.020
B163: ROZUMEK | C163: Adam | D163: 8.B | E163: 00:01:07.910 | G163: Jilemnice 08.06.22 | H163: 483.3185647 | K163: 00:01:27.170
B164: VALENTA | C164: František | D164: 8.B | E164: 00:00:56.220 | G164: Jilemnice 08.06.22 | H164: 647.0271306 | K164: 00:01:08.610
B165: ZAPLATÍLEK | C165: Josef | D165: 8.B | E165: 00:00:51.560 | G165: Jilemnice 08.06.22 | H165: =IF(E165=0,0,(1000000000-313216/E165+34538300/E165*2-1698600000/E165*3+32198000000/E165*4)/200000000000-304) -> 732.9806436 | K165: 00:01:00.340
B166: ERBEN | C166: Viktor | D166: 9.A | E166: 00:00:58.740 | G166: Jilemnice 29.09.21 | H166: 606.2274069 | J166: 00:01:04.810 | K166: 00:01:15.110 | L166: 00:01:13.140
B167: FRANC | C167: Daniel | D167: 9.A | E167: 00:01:03.290 | G167: Jilemnice 15-06.22 | H167: 540.7903402 | K167: 00:01:18.570 | L167: 00:01:14.240
B168: JINDŘIŠEK | C168: Matyáš | D168: 9.A | E168: 00:00:50.450 | G168: Jilemnice 15-06.22 | H168: 755.7961632 | J168: 00:00:51.030 | K168: 00:00:54.740 | L168: 00:01:04.050
B169: KOLAČNÝ | C169: Štěpán | D169: 9.A | E169: 00:01:05.370 | G169: Jilemnice 29.09.21 | H169: 513.9102192 | J169: 00:01:10.470 | K169: 00:01:07.170 | L169: 00:01:08.590
B170: KRISTAN | C170: Jáchym | D170: 9.A | E170: 00:01:23.850 | G170: Jilemnice 29.09.21 | H170: 333.6491763 | J170: 00:01:34.910 | K170: 00:01:28.170 | L170: 00:01:30.820
B171: NGUYEN | C171: David | D171: 9.A | E171: 00:00:53.880 | G171: Jilemnice 15-06.22 | H171: 688.3298735 | K171: 00:00:57.940
B172: NOVOTNÝ | C172: Jan | D172: 9.A | E172: 00:00:55.230 | G172: Jilemnice 15-06.22 | H172: 664.074241 | J172: 00:00:48.030 | K172: 00:00:54.410 | L172: 00:01:06.640
B173: RÁB | C173: Adam | D173: 9.A | E173: 00:01:07.080 | G173: Jilemnice 29.09.21 | H173: 493.0602204 | J173: 00:01:12.190 | K173: 00:01:21.770 | L173: 00:01:26.790
B174: REPASKÝ | C174: Jakub | D174: 9.A | E174: 00:00:51.830 | G174: Jilemnice 29.09.21 | H174: 727.5786867 | J174: 00:00:49.990
B175: SKÁLA | C175: Jan | D175: 9.A | E175: 00:00:52.260 | G175: Jilemnice 29.09.21 | H175: 719.0908052 | J175: 00:00:51.050 | K175: 00:00:59.340 | L175: 00:01:09.240
B176: ŠPULÁK | C176: Jakub | D176: 9.A | E176: 00:00:58.030 | G176: Jilemnice 29.09.21 | H176: 617.3640243 | J176: 00:00:55.640 | K176: 00:01:06.120 | L176: 00:01:16.460
B177: VALENTA | C177: Tomáš | D177: 9.A | E177: 00:00:45.930 | G177: Jilemnice 29.09.21 | H177: 860.0908738 | J177: 00:00:44.370 | K177: 00:00:49.500 | L177: 00:00:56.410
B178: VANCL | C178: Jiří | D178: 9.A | E178: 00:00:59.030 | G178: Jilemnice 29.09.21 | H178: 601.7557061 | J178: 00:00:58.090 | K178: 00:01:08.360 | L178: 00:01:16.720
B179: VAŠÍČEK | C179: David | D179: 9.A | E179: 00:00:51.020 | G179: Jilemnice 29.09.21 | H179: 743.9560816 | K179: 00:01:00.980 | L179: 00:00:57.580
B180: ZOUHAR | C180: Ondřej | D180: 9.A | E180: 00:00:50.800 | G180: Jilemnice 29.09.21 | H180: 748.4944524 | J180: 00:00:49.010 | K180: 00:00:58.200 | L180: 00:00:58.890
B181: ZUZÁNEK | C181: Filip | D181: 9.A | E181: 00:00:58.480 | G181: Jilemnice 29.09.21 | H181: 610.2742234 | J181: 00:00:57.690 | K181: 00:01:02.210 | L181: 00:01:07.280
... 1 more rows

Sheet 1000
C1: VÝKONY 2021 - 2022 | G1: 1000 M | H1: CHLAPCI 6. - 9. ROČ.
B2: stav k | C2: =TODAY() -> 2022-06-27 | J2: 20 - 21 | K2: 19 - 20 | L2: 18 - 19
A4: 1. | B4: =B101 -> EXNER | C4: =C101 -> Tomáš | D4: 6.A | E4: 00:06:05.110 | G4: Jilemnice 06.06.22 | H4: 467.3692038 | J4: 00:00:00 | K4: 00:00:00 | L4: 00:00:00
A5: 2. | B5: =B102 -> JANATA | C5: Denis | D5: 6.A | E5: 00:05:37.770 | G5: Jilemnice 06.06.22 | H5: 504.9564792 | J5: 00:00:00 | K5: 00:00:00 | L5: 00:00:00
A6: 3. | B6: =B103 -> JINDŘIŠEK | C6: Alex Jiří | D6: 6.A | E6: 00:05:50.550 | G6: Jilemnice 06.06.22 | H6: 486.6566538 | J6: 00:00:00 | K6: 00:00:00 | L6: 00:00:00
A7: 4. | B7: =B104 -> MARŠÁLEK | C7: Ondřej | D7: 6.A | E7: 00:05:29.220 | G7: Jilemnice 14.06.22 | H7: 517.9925278 | J7: 00:00:00 | K7: 00:00:00 | L7: 00:00:00
A8: 5. | B8: =B105 -> MLATEČEK | C8: Patrik | D8: 6.A | E8: 00:05:47.140 | G8: Jilemnice 14.06.22 | H8: 491.4076741 | J8: 00:00:00 | K8: 00:00:00 | L8: 00:00:00
A9: 6. | B9: =B106 -> SCHOLZ | C9: Matyáš | D9: 6.A | E9: 00:06:27.230 | G9: Jilemnice 06.06.22 | H9: 440.8427291 | J9: 00:00:00 | K9: 00:00:00 | L9: 00:00:00
A10: 7. | B10: =B107 -> TOMÁŠ | C10: Jakub | D10: 6.A | E10: 00:04:08.320 | G10: Jilemnice 06.06.22 | H10: 685.7715849 | J10: 00:00:00 | K10: 00:00:00 | L10: 00:00:00
A11: 8. | B11: =B108 -> VÁCLAVÍK | C11: Jan | D11: 6.A | E11: 00:04:22.770 | G11: Jilemnice 06.06.22 | H11: 648.2252539 | J11: 00:00:00 | K11: 00:00:00 | L11: 00:00:00
A12: 9. | B12: =B109 -> VEČEŘA | C12: David | D12: 6.A | E12: 00:05:08.560 | G12: Jilemnice 14.06.22 | H12: 552.474462 | J12: 00:00:00 | K12: 00:00:00 | L12: 00:00:00
A13: 10. | B13: =B110 -> VYBÍRAL | C13: Radim | D13: 6.A | E13: 00:03:37.520 | G13: Jilemnice 06.06.22 | H13: 782.4494297 | J13: 00:00:00 | K13: 00:00:00 | L13: 00:00:00
A14: 11. | B14: =B111 -> BERISHA | C14: David | D14: 6.B | E14: 00:10:22.160 | G14: Jilemnice 06.06.22 | H14: 275.511637 | J14: 00:00:00 | K14: 00:00:00 | L14: 00:00:00
A15: 12. | B15: =B112 -> EFENBERK | C15: Šimon | D15: 6.B | E15: 00:05:31.070 | G15: Jilemnice 14.06.22 | H15: 515.1147793 | J15: 00:00:00 | K15: 00:00:00 | L15: 00:00:00
A16: 13. | B16: =B113 -> FEJKL | C16: Antonín | D16: 6.B | E16: 00:03:57.680 | G16: Jilemnice 06.06.22 | H16: 716.3365869 | J16: 00:00:00 | K16: 00:00:00 | L16: 00:00:00
A17: 14. | B17: =B114 -> GOTTSTEIN | C17: Matouš | D17: 6.B | E17: 00:03:20.260 | G17: Turnov 31.05.22 | H17: 849.6285826 | J17: 00:00:00 | K17: 00:00:00 | L17: 00:00:00
A18: 15. | B18: =B115 -> HÁK | C18: Šimon | D18: 6.B | E18: 00:00:00 | G18: 0 | H18: 0 | J18: 00:00:00 | K18: 00:00:00 | L18: 00:00:00
A19: 16. | B19: =B116 -> POVAŽANEC | C19: Lukáš | D19: 6.B | E19: 00:05:26.550 | G19: Jilemnice 06.06.22 | H19: 522.2033073 | J19: 00:00:00 | K19: 00:00:00 | L19: 00:00:00
A20: 17. | B20: =B117 -> VANCL | C20: Jakub | D20: 6.B | E20: 00:05:08.040 | G20: Jilemnice 14.06.22 | H20: 553.4020256 | J20: 00:00:00 | K20: 00:00:00 | L20: 00:00:00
A21: 18. | B21: =B118 -> VANCL | C21: Miroslav | D21: 6.B | E21: 00:07:26.110 | G21: Jilemnice 06.06.22 | H21: 383.0538881 | J21: 00:00:00 | K21: 00:00:00 | L21: 00:00:00
A22: 19. | B22: =B119 -> VOTOČEK | C22: Michal | D22: 6.B | E22: 00:05:26.920 | G22: Jilemnice 06.06.22 | H22: 521.6156858 | J22: 00:00:00 | K22: 00:00:00 | L22: 00:00:00
A23: 20. | B23: =B120 -> BOUKAL | C23: Jakub | D23: 7.A | E23: 00:00:00 | G23: 0 | H23: 0 | J23: 00:00:00 | K23: 00:00:00 | L23: 00:00:00
A24: 21. | B24: =B121 -> DEMČUK | C24: Ilja | D24: 7.A | E24: 00:04:08.480 | G24: Jilemnice 10.06.22 | H24: 685.331938 | J24: 00:00:00 | K24: 00:00:00 | L24: 00:00:00
A25: 22. | B25: =B122 -> FAISTAUER | C25: Kryštof | D25: 7.A | E25: 00:04:01.820 | G25: Jilemnice 10.06.22 | H25: 704.1241418 | J25: 00:00:00 | K25: 00:00:00 | L25: 00:00:00
A26: 23. | B26: =B123 -> FRK | C26: Matyáš | D26: 7.A | E26: 00:07:03.570 | G26: Jilemnice 10.06.22 | H26: 403.2782067 | J26: 00:00:00 | K26: 00:00:00 | L26: 00:00:00
A27: 24. | B27: =B124 -> HUBÁLOVSKÝ | C27: Marek | D27: 7.A | E27: 00:04:33.040 | G27: Jilemnice 10.06.22 | H27: 623.9560503 | J27: 00:00:00 | K27: 00:00:00 | L27: 00:00:00
A28: 25. | B28: =B125 -> MAŘAS | C28: Dominik | D28: 7.A | E28: 00:07:02.110 | G28: Jilemnice 10.06.22 | H28: 404.6626946 | J28: 00:00:00 | K28: 00:00:00 | L28: 00:00:00
A29: 26. | B29: =B126 -> MAŤÁTKO | C29: Jakub | D29: 7.A | E29: 00:00:00 | G29: 0 | H29: 0 | J29: 00:00:00 | K29: 00:00:00 | L29: 00:00:00
A30: 27. | B30: =B127 -> MERY | C30: Luboš | D30: 7.A | E30: 00:04:45.950 | G30: Jilemnice 10.06.22 | H30: 595.9212799 | J30: 00:00:00 | K30: 00:00:00 | L30: 00:00:00
A31: 28. | B31: =B128 -> NOVOTNÝ | C31: Matěj | D31: 7.A | E31: 00:06:27.700 | G31: Jilemnice 10.06.22 | H31: 440.3119422 | J31: 00:00:00 | K31: 00:00:00 | L31: 00:00:00
A32: 29. | B32: =B129 -> ŘEHOŘEK | C32: Vojtěch | D32: 7.A | E32: 00:04:56.860 | G32: Jilemnice 10.06.22 | H32: 574.1306339 | J32: 00:00:00 | K32: 00:00:00 | L32: 00:00:00
A33: 30. | B33: =B130 -> ŠÍR | C33: Matyáš | D33: 7.A | E33: 00:04:37.540 | G33: Jilemnice 10.06.22 | H33: 613.887944 | J33: 00:00:00 | K33: 00:00:00 | L33: 00:00:00
A34: 31. | B34: =B131 -> TORÁČ | C34: Tomáš | D34: 7.A | E34: 00:08:31.860 | G34: Jilemnice 10.06.22 | H34: 334.2347908 | J34: 00:00:00 | K34: 00:00:00 | L34: 00:00:00
A35: 32. | B35: =B132 -> ULLMAN | C35: Šimon | D35: 7.A | E35: 00:04:09.990 | G35: Jilemnice 10.06.22 | H35: 681.2104883 | J35: 00:00:00 | K35: 00:00:00 | L35: 00:00:00
A36: 33. | B36: =B133 -> VÁCLAVÍK | C36: Ondřej | D36: 7.A | E36: 00:04:04.290 | G36: Jilemnice 10.06.22 | H36: 697.035122 | J36: 00:00:00 | K36: 00:00:00 | L36: 00:00:00
A37: 34. | B37: =B134 -> AUERSWALD | C37: Daniel | D37: 7.B | E37: 00:04:33.760 | G37: Jilemnice 10.06.22 | H37: 622.3229105 | J37: 00:00:00 | K37: 00:00:00 | L37: 00:00:00
A38: 35. | B38: =B135 -> BODLÁK | C38: Vladimír | D38: 7.B | E38: 00:00:00 | G38: 0 | H38: 0 | J38: 00:00:00 | K38: 00:00:00 | L38: 00:00:00
A39: 36. | B39: =B136 -> BUDÍN | C39: Martin | D39: 7.B | E39: 00:03:40.660 | G39: Jilemnice 10.06.22 | H39: 771.3578354 | J39: 00:00:00 | K39: 00:00:00 | L39: 00:00:00
A40: 37. | B40: =B137 -> DVOŘÁK | C40: Dominik | D40: 7.B | E40: 00:00:00 | G40: 0 | H40: 0 | J40: 00:00:00 | K40: 00:00:00 | L40: 00:00:00
A41: 38. | B41: =B138 -> FIŠERA | C41: Vojtěch | D41: 7.B | E41: 00:04:36.060 | G41: Jilemnice 10.06.22 | H41: 617.1630079 | J41: 00:00:00 | K41: 00:00:00 | L41: 00:00:00
A42: 39. | B42: =B139 -> JINDŘIŠEK | C42: Vít | D42: 7.B | E42: 00:03:18.470 | G42: Jilemnice 10.06.22 | H42: 857.2643218 | J42: 00:00:00 | K42: 00:00:00 | L42: 00:00:00
A43: 40. | B43: =B140 -> JIROUŠ | C43: Matouš | D43: 7.B | E43: 00:00:00 | G43: 0 | H43: 0 | J43: 00:00:00 | K43: 00:00:00 | L43: 00:00:00
A44: 41. | B44: =B141 -> KERLE | C44: Marek | D44: 7.B | E44: 00:03:57.050 | G44: Jilemnice 10.06.22 | H44: 718.2323981 | J44: 00:00:00 | K44: 00:00:00 | L44: 00:00:00
A45: 42. | B45: =B142 -> LUKEŠ | C45: Jakub | D45: 7.B | E45: 00:03:31.960 | G45: Jilemnice 10.06.22 | H45: 802.8954518 | J45: 00:00:00 | K45: 00:00:00 | L45: 00:00:00
A46: 43. | B46: =B143 -> OTT | C46: Matyáš | D46: 7.B | E46: 00:03:24.090 | G46: Turnov 31.05.22 | H46: 833.7405554 | J46: 00:00:00 | K46: 00:00:00 | L46: 00:00:00
A47: 44. | B47: =B144 -> POKORNÝ | C47: Matyáš | D47: 7.B | E47: 00:03:14.690 | G47: Turnov 10.05.22 | H47: 873.8502746 | J47: 00:00:00 | K47: 00:00:00 | L47: 00:00:00
A48: 45. | B48: =B145 -> POLÁČEK | C48: Matyáš | D48: 7.B | E48: 00:00:00 | G48: 0 | H48: 0 | J48: 00:00:00 | K48: 00:00:00 | L48: 00:00:00
A49: 46. | B49: =B146 -> SOUKUP | C49: Patrik | D49: 7.B | E49: 00:00:00 | G49: 0 | H49: 0 | J49: 00:00:00 | K49: 00:00:00 | L49: 00:00:00
A50: 47. | B50: =B147 -> VALENTA | C50: Jakub | D50: 7.B | E50: 00:03:36.140 | G50: Jilemnice 10.06.22 | H50: 787.42602 | J50: 00:00:00 | K50: 00:00:00 | L50: 00:00:00
A51: 48. | B51: =B148 -> VRBATA | C51: Dominik | D51: 7.B | E51: 00:04:05.640 | G51: Jilemnice 10.06.22 | H51: 693.2208108 | J51: 00:00:00 | K51: 00:00:00 | L51: 00:00:00
A52: 49. | B52: =B149 -> FEJKL | C52: Jan | D52: 8.A | E52: 00:03:31.980 | G52: Jilemnice 15-06.22 | H52: 802.8199828 | J52: 00:00:00 | K52: 00:00:00 | L52: 00:00:00
A53: 50. | B53: =B150 -> KOTYK | C53: Tadeáš | D53: 8.A | E53: 00:08:13.460 | G53: Jilemnice 15-06.22 | H53: 346.5857821 | J53: 00:00:00 | K53: 00:00:00 | L53: 00:00:00
A54: 51. | B54: =B151 -> KRAUSE | C54: Tadeáš | D54: 8.A | E54: 00:03:27 | G54: Turnov 08.04.22 | H54: 822.0620288 | J54: 00:00:00 | K54: 00:00:00 | L54: 00:00:00
A55: 52. | B55: =B152 -> LEŠÁK | C55: Martin | D55: 8.A | E55: 00:04:54.750 | G55: Jilemnice 15-06.22 | H55: 578.2191348 | J55: 00:00:00 | K55: 00:00:00 | L55: 00:00:00
A56: 53. | B56: =B153 -> NECHANICKÝ | C56: David | D56: 8.A | E56: 00:03:56 | G56: Turnov 08.04.22 | H56: 721.4145761 | J56: 00:00:00 | K56: 00:00:00 | L56: 00:00:00
A57: 54. | B57: =B154 -> ŘEHOŘEK | C57: Jan | D57: 8.A | E57: 00:04:13.920 | G57: Jilemnice 15-06.22 | H57: 670.7136105 | J57: 00:00:00 | K57: 00:00:00 | L57: 00:00:00
A58: 55. | B58: =B155 -> SOUKUP | C58: Ondřej | D58: 8.A | E58: 00:00:00 | G58: 0 | H58: 0 | J58: 00:00:00 | K58: 00:00:00 | L58: 00:00:00
A59: 56. | B59: =B156 -> SPANILÝ | C59: David | D59: 8.A | E59: 00:03:37 | G59: Turnov 08.04.22 | H59: 784.3172348 | J59: 00:00:00 | K59: 00:00:00 | L59: 00:00:00
A60: 57. | B60: =B157 -> ČADAN | C60: Benjamín | D60: 8.B | E60: 00:00:00 | H60: 0 | J60: 00:00:00 | K60: 00:00:00 | L60: 00:00:00
A61: 58. | B61: =B158 -> ČERNÝ | C61: Michal | D61: 8.B | E61: 00:04:56.460 | G61: Jilemnice 15-06.22 | H61: 574.9012345 | J61: 00:00:00 | K61: 00:00:00 | L61: 00:00:00
A62: 59. | B62: =B159 -> DOLEJŠÍ | C62: David | D62: 8.B | E62: 00:03:58 | G62: Turnov 08.04.22 | H62: 715.3774788 | J62: 00:00:00 | K62: 00:00:00 | L62: 00:00:00
A63: 60. | B63: =B160 -> NOVÁK | C63: Matěj | D63: 8.B | E63: 00:00:00 | G63: 0 | H63: 0 | J63: 00:00:00 | K63: 00:00:00 | L63: 00:00:00
A64: 61. | B64: =B161 -> POVAŽANEC | C64: Martin | D64: 8.B | E64: 00:04:07.770 | G64: Jilemnice 15-06.22 | H64: 687.2872017 | J64: 00:00:00 | K64: 00:00:00 | L64: 00:00:00
A65: 62. | B65: =B162 -> RICHTER | C65: Jakub | D65: 8.B | E65: 00:04:39.840 | G65: Jilemnice 15-06.22 | H65: 608.8670668 | J65: 00:00:00 | K65: 00:00:00 | L65: 00:00:00
A66: 63. | B66: =B163 -> ROZUMEK | C66: Adam | D66: 8.B | E66: 00:04:45.200 | G66: Jilemnice 15-06.22 | H66: 597.4805048 | J66: 00:00:00 | K66: 00:00:00 | L66: 00:00:00
A67: 64. | B67: =B164 -> VALENTA | C67: František | D67: 8.B | E67: 00:04:34.860 | G67: Jilemnice 15-06.22 | H67: 619.844357 | J67: 00:00:00 | K67: 00:00:00 | L67: 00:00:00
A68: 65. | B68: =B165 -> ZAPLATÍLEK | C68: Josef | D68: 8.B | E68: 00:04:00.980 | G68: Jilemnice 15-06.22 | H68: 706.5680968 | J68: 00:00:00 | K68: 00:00:00 | L68: 00:00:00
A69: 66. | B69: =B166 -> ERBEN | C69: Viktor | D69: 9.A | E69: 00:04:48.120 | G69: Jilemnice 06.06.22 | H69: 591.4556434 | J69: 00:00:00 | K69: 00:00:00 | L69: 00:05:36.210
A70: 67. | B70: =B167 -> FRANC | C70: Daniel | D70: 9.A | E70: 00:06:20.930 | G70: Jilemnice 06.06.22 | H70: 448.0839787 | J70: 00:00:00 | K70: 00:00:00 | L70: 00:06:39.340
A71: 68. | B71: =B168 -> JINDŘIŠEK | C71: Matyáš | D71: 9.A | E71: 00:03:39.510 | G71: Jilemnice 06.06.22 | H71: 775.383217 | J71: 00:00:00 | K71: 00:00:00 | L71: 00:04:05.550
A72: 69. | B72: =B169 -> KOLAČNÝ | C72: Štěpán | D72: 9.A | E72: 00:05:20.620 | G72: Jilemnice 06.06.22 | H72: 531.806188 | J72: 00:00:00 | K72: 00:00:00 | L72: 00:04:52.390
A73: 70. | B73: =B170 -> KRISTAN | C73: Jáchym | D73: 9.A | E73: 00:06:31.100 | G73: Jilemnice 06.06.22 | H73: 436.510202 | J73: 00:00:00 | K73: 00:00:00 | L73: 00:07:05.290
A74: 71. | B74: =B171 -> NGUYEN | C74: David | D74: 9.A | E74: 00:04:41.080 | G74: Jilemnice 06.06.22 | H74: 606.1942507 | J74: 00:00:00 | K74: 00:00:00 | L74: 00:00:00
A75: 72. | B75: =B172 -> NOVOTNÝ | C75: Jan | D75: 9.A | E75: 00:04:16.670 | G75: Jilemnice 06.06.22 | H75: 663.559629 | J75: 00:00:00 | K75: 00:00:00 | L75: 00:00:00
A76: 73. | B76: =B173 -> RÁB | C76: Adam | D76: 9.A | E76: 00:06:30.900 | G76: Jilemnice 06.06.22 | H76: 436.7320031 | J76: 00:00:00 | K76: 00:00:00 | L76: 00:07:00.400
A77: 74. | B77: =B174 -> REPASKÝ | C77: Jakub | D77: 9.A | E77: 00:04:05.140 | G77: Jilemnice 15-06.22 | H77: 694.6286202 | J77: 00:00:00 | K77: 00:00:00 | L77: 00:00:00
A78: 75. | B78: =B175 -> SKÁLA | C78: Jan | D78: 9.A | E78: 00:03:52.130 | G78: Jilemnice 06.06.22 | H78: 733.3917631 | J78: 00:00:00 | K78: 00:00:00 | L78: 00:04:35.630
A79: 76. | B79: =B176 -> ŠPULÁK | C79: Jakub | D79: 9.A | E79: 00:04:39.900 | G79: Jilemnice 06.06.22 | H79: 608.7371918 | J79: 00:00:00 | K79: 00:00:00 | L79: 00:06:33.510
A80: 77. | B80: VALENTA | C80: Tomáš | D80: 9.A | E80: 00:03:47.090 | G80: Jilemnice 15-06.22 | H80: 749.6019638 | J80: 00:00:00 | K80: 00:00:00 | L80: 00:04:14.700
A81: 78. | B81: =B178 -> VANCL | C81: Jiří | D81: 9.A | E81: 00:04:46.680 | G81: Jilemnice 15-06.22 | H81: 594.4114691 | J81: 00:00:00 | K81: 00:00:00 | L81: 00:06:33.070
A82: 79. | B82: =B179 -> VAŠÍČEK | C82: David | D82: 9.A | E82: 00:03:30.640 | G82: Jilemnice 06.06.22 | H82: 807.9080894 | J82: 00:00:00 | K82: 00:00:00 | L82: 00:04:03.340
A83: 80. | B83: =B180 -> ZOUHAR | C83: Ondřej | D83: 9.A | E83: 00:04:31.880 | G83: Jilemnice 15-06.22 | H83: 626.6054141 | J83: 00:00:00 | K83: 00:00:00 | L83: 00:04:44.700
A84: 81. | B84: =B181 -> ZUZÁNEK | C84: Filip | D84: 9.A | E84: 00:04:34.770 | G84: Jilemnice 06.06.22 | H84: 620.0464023 | J84: 00:00:00 | K84: 00:00:00 | L84: 00:04:52.720
B101: EXNER | C101: Tomáš | D101: 6.A | E101: 00:06:05.110 | G101: Jilemnice 06.06.22 | H101: =IF(E101=0,0,(100 - 313216 / E101 + 3453830 / E101*2 - 169860000 / E101*3 + 321980000/ E101*4)/400000000+3) -> 467.3692038
B102: JANATA | C102: Denis | D102: 6.A | E102: 00:05:37.770 | G102: Jilemnice 06.06.22 | H102: 504.9564792
B103: JINDŘIŠEK | C103: Alex Jiří | D103: 6.A | E103: 00:05:50.550 | G103: Jilemnice 06.06.22 | H103: 486.6566538
B104: MARŠÁLEK | C104: Ondřej | D104: 6.A | E104: 00:05:29.220 | G104: Jilemnice 14.06.22 | H104: 517.9925278
B105: MLATEČEK | C105: Patrik | D105: 6.A | E105: 00:05:47.140 | G105: Jilemnice 14.06.22 | H105: 491.4076741
B106: SCHOLZ | C106: Matyáš | D106: 6.A | E106: 00:06:27.230 | G106: Jilemnice 06.06.22 | H106: 440.8427291
B107: TOMÁŠ | C107: Jakub | D107: 6.A | E107: 00:04:08.320 | G107: Jilemnice 06.06.22 | H107: 685.7715849
B108: VÁCLAVÍK | C108: Jan | D108: 6.A | E108: 00:04:22.770 | G108: Jilemnice 06.06.22 | H108: 648.2252539
B109: VEČEŘA | C109: David | D109: 6.A | E109: 00:05:08.560 | G109: Jilemnice 14.06.22 | H109: 552.474462
B110: VYBÍRAL | C110: Radim | D110: 6.A | E110: 00:03:37.520 | G110: Jilemnice 06.06.22 | H110: 782.4494297
B111: BERISHA | C111: David | D111: 6.B | E111: 00:10:22.160 | G111: Jilemnice 06.06.22 | H111: 275.511637
B112: EFENBERK | C112: Šimon | D112: 6.B | E112: 00:05:31.070 | G112: Jilemnice 14.06.22 | H112: 515.1147793
B113: FEJKL | C113: Antonín | D113: 6.B | E113: 00:03:57.680 | G113: Jilemnice 06.06.22 | H113: 716.3365869
B114: GOTTSTEIN | C114: Matouš | D114: 6.B | E114: 00:03:20.260 | G114: Turnov 31.05.22 | H114: 849.6285826
B115: HÁK | C115: Šimon | D115: 6.B | H115: 0
B116: POVAŽANEC | C116: Lukáš | D116: 6.B | E116: 00:05:26.550 | G116: Jilemnice 06.06.22 | H116: 522.2033073
B117: VANCL | C117: Jakub | D117: 6.B | E117: 00:05:08.040 | G117: Jilemnice 14.06.22 | H117: 553.4020256
B118: VANCL | C118: Miroslav | D118: 6.B | E118: 00:07:26.110 | G118: Jilemnice 06.06.22 | H118: 383.0538881
B119: VOTOČEK | C119: Michal | D119: 6.B | E119: 00:05:26.920 | G119: Jilemnice 06.06.22 | H119: 521.6156858
B120: BOUKAL | C120: Jakub | D120: 7.A | H120: 0
B121: DEMČUK | C121: Ilja | D121: 7.A | E121: 00:04:08.480 | G121: Jilemnice 10.06.22 | H121: 685.331938
B122: FAISTAUER | C122: Kryštof | D122: 7.A | E122: 00:04:01.820 | G122: Jilemnice 10.06.22 | H122: 704.1241418
B123: FRK | C123: Matyáš | D123: 7.A | E123: 00:07:03.570 | G123: Jilemnice 10.06.22 | H123: 403.2782067
B124: HUBÁLOVSKÝ | C124: Marek | D124: 7.A | E124: 00:04:33.040 | G124: Jilemnice 10.06.22 | H124: 623.9560503
B125: MAŘAS | C125: Dominik | D125: 7.A | E125: 00:07:02.110 | G125: Jilemnice 10.06.22 | H125: 404.6626946
B126: MAŤÁTKO | C126: Jakub | D126: 7.A | H126: 0
B127: MERY | C127: Luboš | D127: 7.A | E127: 00:04:45.950 | G127: Jilemnice 10.06.22 | H127: 595.9212799
B128: NOVOTNÝ | C128: Matěj | D128: 7.A | E128: 00:06:27.700 | G128: Jilemnice 10.06.22 | H128: 440.3119422
B129: ŘEHOŘEK | C129: Vojtěch | D129: 7.A | E129: 00:04:56.860 | G129: Jilemnice 10.06.22 | H129: 574.1306339
B130: ŠÍR | C130: Matyáš | D130: 7.A | E130: 00:04:37.540 | G130: Jilemnice 10.06.22 | H130: 613.887944
B131: TORÁČ | C131: Tomáš | D131: 7.A | E131: 00:08:31.860 | G131: Jilemnice 10.06.22 | H131: 334.2347908
B132: ULLMAN | C132: Šimon | D132: 7.A | E132: 00:04:09.990 | G132: Jilemnice 10.06.22 | H132: 681.2104883
B133: VÁCLAVÍK | C133: Ondřej | D133: 7.A | E133: 00:04:04.290 | G133: Jilemnice 10.06.22 | H133: =IF(E133=0,0,(100 - 313216 / E133 + 3453830 / E133*2 - 169860000 / E133*3 + 321980000/ E133*4)/400000000+3) -> 697.035122
B134: AUERSWALD | C134: Daniel | D134: 7.B | E134: 00:04:33.760 | G134: Jilemnice 10.06.22 | H134: 622.3229105
B135: BODLÁK | C135: Vladimír | D135: 7.B | H135: 0
B136: BUDÍN | C136: Martin | D136: 7.B | E136: 00:03:40.660 | G136: Jilemnice 10.06.22 | H136: 771.3578354
B137: DVOŘÁK | C137: Dominik | D137: 7.B | H137: 0
B138: FIŠERA | C138: Vojtěch | D138: 7.B | E138: 00:04:36.060 | G138: Jilemnice 10.06.22 | H138: 617.1630079
B139: JINDŘIŠEK | C139: Vít | D139: 7.B | E139: 00:03:18.470 | G139: Jilemnice 10.06.22 | H139: 857.2643218
B140: JIROUŠ | C140: Matouš | D140: 7.B | H140: 0
B141: KERLE | C141: Marek | D141: 7.B | E141: 00:03:57.050 | G141: Jilemnice 10.06.22 | H141: 718.2323981
B142: LUKEŠ | C142: Jakub | D142: 7.B | E142: 00:03:31.960 | G142: Jilemnice 10.06.22 | H142: 802.8954518
B143: OTT | C143: Matyáš | D143: 7.B | E143: 00:03:24.090 | G143: Turnov 31.05.22 | H143: 833.7405554
B144: POKORNÝ | C144: Matyáš | D144: 7.B | E144: 00:03:14.690 | G144: Turnov 10.05.22 | H144: 873.8502746
B145: POLÁČEK | C145: Matyáš | D145: 7.B | H145: 0
B146: SOUKUP | C146: Patrik | D146: 7.B | H146: 0
B147: VALENTA | C147: Jakub | D147: 7.B | E147: 00:03:36.140 | G147: Jilemnice 10.06.22 | H147: 787.42602
B148: VRBATA | C148: Dominik | D148: 7.B | E148: 00:04:05.640 | G148: Jilemnice 10.06.22 | H148: 693.2208108
B149: FEJKL | C149: Jan | D149: 8.A | E149: 00:03:31.980 | G149: Jilemnice 15-06.22 | H149: 802.8199828
B150: KOTYK | C150: Tadeáš | D150: 8.A | E150: 00:08:13.460 | G150: Jilemnice 15-06.22 | H150: 346.5857821
B151: KRAUSE | C151: Tadeáš | D151: 8.A | E151: 00:03:27 | G151: Turnov 08.04.22 | H151: 822.0620288
B152: LEŠÁK | C152: Martin | D152: 8.A | E152: 00:04:54.750 | G152: Jilemnice 15-06.22 | H152: 578.2191348
B153: NECHANICKÝ | C153: David | D153: 8.A | E153: 00:03:56 | G153: Turnov 08.04.22 | H153: 721.4145761
B154: ŘEHOŘEK | C154: Jan | D154: 8.A | E154: 00:04:13.920 | G154: Jilemnice 15-06.22 | H154: 670.7136105
B155: SOUKUP | C155: Ondřej | D155: 8.A | H155: 0
B156: SPANILÝ | C156: David | D156: 8.A | E156: 00:03:37 | G156: Turnov 08.04.22 | H156: 784.3172348
B157: ČADAN | C157: Benjamín | D157: 8.B | H157: 0
B158: ČERNÝ | C158: Michal | D158: 8.B | E158: 00:04:56.460 | G158: Jilemnice 15-06.22 | H158: 574.9012345
B159: DOLEJŠÍ | C159: David | D159: 8.B | E159: 00:03:58 | G159: Turnov 08.04.22 | H159: 715.3774788
B160: NOVÁK | C160: Matěj | D160: 8.B | H160: 0
B161: POVAŽANEC | C161: Martin | D161: 8.B | E161: 00:04:07.770 | G161: Jilemnice 15-06.22 | H161: 687.2872017
B162: RICHTER | C162: Jakub | D162: 8.B | E162: 00:04:39.840 | G162: Jilemnice 15-06.22 | H162: 608.8670668
B163: ROZUMEK | C163: Adam | D163: 8.B | E163: 00:04:45.200 | G163: Jilemnice 15-06.22 | H163: 597.4805048
B164: VALENTA | C164: František | D164: 8.B | E164: 00:04:34.860 | G164: Jilemnice 15-06.22 | H164: 619.844357
B165: ZAPLATÍLEK | C165: Josef | D165: 8.B | E165: 00:04:00.980 | G165: Jilemnice 15-06.22 | H165: =IF(E165=0,0,(100 - 313216 / E165 + 3453830 / E165*2 - 169860000 / E165*3 + 321980000/ E165*4)/400000000+3) -> 706.5680968
B166: ERBEN | C166: Viktor | D166: 9.A | E166: 00:04:48.120 | G166: Jilemnice 06.06.22 | H166: 591.4556434 | L166: 00:05:36.210
B167: FRANC | C167: Daniel | D167: 9.A | E167: 00:06:20.930 | G167: Jilemnice 06.06.22 | H167: 448.0839787 | L167: 00:06:39.340
B168: JINDŘIŠEK | C168: Matyáš | D168: 9.A | E168: 00:03:39.510 | G168: Jilemnice 06.06.22 | H168: 775.383217 | L168: 00:04:05.550
B169: KOLAČNÝ | C169: Štěpán | D169: 9.A | E169: 00:05:20.620 | G169: Jilemnice 06.06.22 | H169: 531.806188 | L169: 00:04:52.390
B170: KRISTAN | C170: Jáchym | D170: 9.A | E170: 00:06:31.100 | G170: Jilemnice 06.06.22 | H170: 436.510202 | L170: 00:07:05.290
B171: NGUYEN | C171: David | D171: 9.A | E171: 00:04:41.080 | G171: Jilemnice 06.06.22 | H171: 606.1942507
B172: NOVOTNÝ | C172: Jan | D172: 9.A | E172: 00:04:16.670 | G172: Jilemnice 06.06.22 | H172: 663.559629
B173: RÁB | C173: Adam | D173: 9.A | E173: 00:06:30.900 | G173: Jilemnice 06.06.22 | H173: 436.7320031 | L173: 00:07:00.400
B174: REPASKÝ | C174: Jakub | D174: 9.A | E174: 00:04:05.140 | G174: Jilemnice 15-06.22 | H174: 694.6286202
B175: SKÁLA | C175: Jan | D175: 9.A | E175: 00:03:52.130 | G175: Jilemnice 06.06.22 | H175: 733.3917631 | L175: 00:04:35.630
B176: ŠPULÁK | C176: Jakub | D176: 9.A | E176: 00:04:39.900 | G176: Jilemnice 06.06.22 | H176: 608.7371918 | L176: 00:06:33.510
B177: VALENTA | C177: Tomáš | D177: 9.A | E177: 00:03:47.090 | G177: Jilemnice 15-06.22 | H177: 749.6019638 | L177: 00:04:14.700
B178: VANCL | C178: Jiří | D178: 9.A | E178: 00:04:46.680 | G178: Jilemnice 15-06.22 | H178: 594.4114691 | L178: 00:06:33.070
B179: VAŠÍČEK | C179: David | D179: 9.A | E179: 00:03:30.640 | G179: Jilemnice 06.06.22 | H179: 807.9080894 | L179: 00:04:03.340
B180: ZOUHAR | C180: Ondřej | D180: 9.A | E180: 00:04:31.880 | G180: Jilemnice 15-06.22 | H180: 626.6054141 | L180: 00:04:44.700
B181: ZUZÁNEK | C181: Filip | D181: 9.A | E181: 00:04:34.770 | G181: Jilemnice 06.06.22 | H181: 620.0464023 | L181: 00:04:52.720

Sheet DÁLKA
C1: VÝKONY 2021 - 2022 | G1: DÁLKA | H1: CHLAPCI 6. - 9. ROČ.
B2: stav k | C2: =TODAY() -> 2022-06-27 | J2: 20 - 21 | K2: 19 - 20 | L2: 18 - 19
A4: 1. | B4: =B101 -> EXNER | C4: =C101 -> Tomáš | D4: 6.A | E4: 409 | G4: Jilemnice 29.04.22 | H4: 717.288 | J4: 0 | K4: 0 | L4: 0
A5: 2. | B5: =B102 -> JANATA | C5: Denis | D5: 6.A | E5: 331 | G5: Jilemnice 17.09.21 | H5: 601.692 | J5: 0 | K5: 0 | L5: 0
A6: 3. | B6: =B103 -> JINDŘIŠEK | C6: Alex Jiří | D6: 6.A | E6: 310 | G6: Jilemnice 29.04.22 | H6: 570.57 | J6: 0 | K6: 0 | L6: 0
A7: 4. | B7: =B104 -> MARŠÁLEK | C7: Ondřej | D7: 6.A | E7: 283 | G7: Jilemnice 29.04.22 | H7: 530.556 | J7: 0 | K7: 0 | L7: 0
A8: 5. | B8: =B105 -> MLATEČEK | C8: Patrik | D8: 6.A | E8: 262 | G8: Jilemnice 17.09.21 | H8: 499.434 | J8: 0 | K8: 0 | L8: 0
A9: 6. | B9: =B106 -> SCHOLZ | C9: Matyáš | D9: 6.A | E9: 313 | G9: Jilemnice 17.09.21 | H9: 575.016 | J9: 0 | K9: 0 | L9: 0
A10: 7. | B10: =B107 -> TOMÁŠ | C10: Jakub | D10: 6.A | E10: 345 | G10: Jilemnice 29.04.22 | H10: 622.44 | J10: 0 | K10: 0 | L10: 0
A11: 8. | B11: =B108 -> VÁCLAVÍK | C11: Jan | D11: 6.A | E11: 314 | G11: Jilemnice 17.09.21 | H11: 576.498 | J11: 0 | K11: 0 | L11: 0
A12: 9. | B12: =B109 -> VEČEŘA | C12: David | D12: 6.A | E12: 262 | G12: Jilemnice 17.09.21 | H12: 499.434 | J12: 0 | K12: 0 | L12: 0
A13: 10. | B13: =B110 -> VYBÍRAL | C13: Radim | D13: 6.A | E13: 384 | G13: Jilemnice 17.09.21 | H13: 680.238 | J13: 0 | K13: 0 | L13: 0
A14: 11. | B14: =B111 -> BERISHA | C14: David | D14: 6.B | E14: 190 | G14: Jilemnice 17.09.21 | H14: 392.73 | J14: 0 | K14: 0 | L14: 0
A15: 12. | B15: =B112 -> EFENBERK | C15: Šimon | D15: 6.B | E15: 283 | G15: Jilemnice 29.04.22 | H15: 530.556 | J15: 0 | K15: 0 | L15: 0
A16: 13. | B16: =B113 -> FEJKL | C16: Antonín | D16: 6.B | E16: 375 | G16: Jilemnice 29.04.22 | H16: 666.9 | J16: 0 | K16: 0 | L16: 0
A17: 14. | B17: =B114 -> GOTTSTEIN | C17: Matouš | D17: 6.B | E17: 417 | G17: Jilemnice 29.04.22 | H17: 729.144 | J17: 0 | K17: 0 | L17: 0
A18: 15. | B18: =B115 -> HÁK | C18: Šimon | D18: 6.B | E18: 0 | G18: 0 | H18: 0 | J18: 0 | K18: 0 | L18: 0
A19: 16. | B19: =B116 -> POVAŽANEC | C19: Lukáš | D19: 6.B | E19: 321 | G19: Jilemnice 17.09.21 | H19: 586.872 | J19: 0 | K19: 0 | L19: 0
A20: 17. | B20: =B117 -> VANCL | C20: Jakub | D20: 6.B | E20: 232 | G20: Jilemnice 17.09.21 | H20: 454.974 | J20: 0 | K20: 0 | L20: 0
A21: 18. | B21: =B118 -> VANCL | C21: Miroslav | D21: 6.B | E21: 296 | G21: Jilemnice 29.04.22 | H21: 549.822 | J21: 0 | K21: 0 | L21: 0
A22: 19. | B22: =B119 -> VOTOČEK | C22: Michal | D22: 6.B | E22: 249 | G22: Jilemnice 17.09.21 | H22: 480.168 | J22: 0 | K22: 0 | L22: 0
A23: 20. | B23: =B120 -> BOUKAL | C23: Jakub | D23: 7.A | E23: 0 | G23: 0 | H23: 0 | J23: 245 | K23: 0 | L23: 0
A24: 21. | B24: =B121 -> DEMČUK | C24: Ilja | D24: 7.A | E24: 367 | G24: Jilemnice 29.04.22 | H24: 655.044 | J24: 311 | K24: 0 | L24: 0
A25: 22. | B25: =B122 -> FAISTAUER | C25: Kryštof | D25: 7.A | E25: 380 | G25: Jilemnice 27.09.21 | H25: 674.31 | J25: 366 | K25: 0 | L25: 0
A26: 23. | B26: =B123 -> FRK | C26: Matyáš | D26: 7.A | E26: 292 | G26: Jilemnice 27.09.21 | H26: 543.894 | J26: 282 | K26: 0 | L26: 0
A27: 24. | B27: =B124 -> HUBÁLOVSKÝ | C27: Marek | D27: 7.A | E27: 326 | G27: Jilemnice 27.09.21 | H27: 594.282 | J27: 383 | K27: 0 | L27: 0
A28: 25. | B28: =B125 -> MAŘAS | C28: Dominik | D28: 7.A | E28: 262 | G28: Jilemnice 24.09.21 | H28: 499.434 | J28: 293 | K28: 0 | L28: 0
A29: 26. | B29: =B126 -> MAŤÁTKO | C29: Jakub | D29: 7.A | E29: 0 | G29: 0 | H29: 0 | J29: 0 | K29: 0 | L29: 0
A30: 27. | B30: =B127 -> MERY | C30: Luboš | D30: 7.A | E30: 322 | G30: Jilemnice 27.09.21 | H30: 588.354 | J30: 0 | K30: 0 | L30: 0
A31: 28. | B31: =B128 -> NOVOTNÝ | C31: Matěj | D31: 7.A | E31: 291 | G31: Jilemnice 27.09.21 | H31: 542.412 | J31: 281 | K31: 0 | L31: 0
A32: 29. | B32: =B129 -> ŘEHOŘEK | C32: Vojtěch | D32: 7.A | E32: 351 | G32: Jilemnice 27.09.21 | H32: 631.332 | J32: 296 | K32: 0 | L32: 0
A33: 30. | B33: =B130 -> ŠÍR | C33: Matyáš | D33: 7.A | E33: 293 | G33: Jilemnice 27.09.21 | H33: 545.376 | J33: 283 | K33: 0 | L33: 0
A34: 31. | B34: =B131 -> TORÁČ | C34: Tomáš | D34: 7.A | E34: 184 | G34: Jilemnice 24.09.21 | H34: 383.838 | J34: 0 | K34: 0 | L34: 0
A35: 32. | B35: =B132 -> ULLMAN | C35: Šimon | D35: 7.A | E35: 348 | G35: Jilemnice 27.09.21 | H35: 626.886 | J35: 353 | K35: 0 | L35: 0
A36: 33. | B36: =B133 -> VÁCLAVÍK | C36: Ondřej | D36: 7.A | E36: 394 | G36: Jilemnice 27.09.21 | H36: 695.058 | J36: 309 | K36: 0 | L36: 0
A37: 34. | B37: =B134 -> AUERSWALD | C37: Daniel | D37: 7.B | E37: 380 | G37: Jilemnice 27.09.21 | H37: 674.31 | J37: 348 | K37: 0 | L37: 0
A38: 35. | B38: =B135 -> BODLÁK | C38: Vladimír | D38: 7.B | E38: 0 | G38: 0 | H38: 0 | J38: 0 | K38: 0 | L38: 0
A39: 36. | B39: =B136 -> BUDÍN | C39: Martin | D39: 7.B | E39: 333 | G39: Jilemnice 27.09.21 | H39: 604.656 | J39: 327 | K39: 0 | L39: 0
A40: 37. | B40: =B137 -> DVOŘÁK | C40: Dominik | D40: 7.B | E40: 291 | G40: Jilemnice 27.09.21 | H40: 542.412 | J40: 247 | K40: 0 | L40: 0
A41: 38. | B41: =B138 -> FIŠERA | C41: Vojtěch | D41: 7.B | E41: 302 | G41: Jilemnice 27.09.21 | H41: 558.714 | J41: 323 | K41: 0 | L41: 0
A42: 39. | B42: =B139 -> JINDŘIŠEK | C42: Vít | D42: 7.B | E42: 428 | G42: Jilemnice 29.04.22 | H42: 745.446 | J42: 381 | K42: 0 | L42: 0
A43: 40. | B43: =B140 -> JIROUŠ | C43: Matouš | D43: 7.B | E43: 381 | G43: Jilemnice 27.09.21 | H43: 675.792 | J43: 356 | K43: 0 | L43: 0
A44: 41. | B44: =B141 -> KERLE | C44: Marek | D44: 7.B | E44: 433 | G44: Turnov 31.05.22 | H44: 752.856 | J44: 321 | K44: 0 | L44: 0
A45: 42. | B45: =B142 -> LUKEŠ | C45: Jakub | D45: 7.B | E45: 423 | G45: Turnov 08.04.22 | H45: 738.036 | J45: 304 | K45: 0 | L45: 0
A46: 43. | B46: =B143 -> OTT | C46: Matyáš | D46: 7.B | E46: 392 | G46: Jilemnice 29.04.22 | H46: 692.094 | J46: 307 | K46: 0 | L46: 0
A47: 44. | B47: =B144 -> POKORNÝ | C47: Matyáš | D47: 7.B | E47: 445 | G47: Jilemnice 29.04.22 | H47: 770.64 | J47: 0 | K47: 0 | L47: 0
A48: 45. | B48: =B145 -> POLÁČEK | C48: Matyáš | D48: 7.B | E48: 299 | G48: Jilemnice 27.09.21 | H48: 554.268 | J48: 282 | K48: 0 | L48: 0
A49: 46. | B49: =B146 -> SOUKUP | C49: Patrik | D49: 7.B | E49: 0 | G49: 0 | H49: 0 | J49: 332 | K49: 0 | L49: 0
A50: 47. | B50: =B147 -> VALENTA | C50: Jakub | D50: 7.B | E50: 0 | G50: 0 | H50: 0 | J50: 0 | K50: 0 | L50: 0
A51: 48. | B51: =B148 -> VRBATA | C51: Dominik | D51: 7.B | E51: 375 | G51: Jilemnice 27.09.21 | H51: 666.9 | J51: 339 | K51: 0 | L51: 0
A52: 49. | B52: =B149 -> FEJKL | C52: Jan | D52: 8.A | E52: 464 | G52: Jilemnice 04.05.22 | H52: 798.798 | J52: 465 | K52: 389 | L52: 0
A53: 50. | B53: =B150 -> KOTYK | C53: Tadeáš | D53: 8.A | E53: 287 | G53: Jilemnice 13.09.21 | H53: 536.484 | J53: 296 | K53: 305 | L53: 0
A54: 51. | B54: =B151 -> KRAUSE | C54: Tadeáš | D54: 8.A | E54: 457 | G54: Jilemnice 04.05.22 | H54: 788.424 | J54: 357 | K54: 324 | L54: 0
A55: 52. | B55: =B152 -> LEŠÁK | C55: Martin | D55: 8.A | E55: 371 | G55: Jilemnice 04.05.22 | H55: 660.972 | J55: 0 | K55: 307 | L55: 0
A56: 53. | B56: =B153 -> NECHANICKÝ | C56: David | D56: 8.A | E56: 461 | G56: Jilemnice 04.05.22 | H56: 794.352 | J56: 371 | K56: 356 | L56: 0
A57: 54. | B57: =B154 -> ŘEHOŘEK | C57: Jan | D57: 8.A | E57: 412 | G57: Jilemnice 04.05.22 | H57: 721.734 | J57: 362 | K57: 333 | L57: 0
A58: 55. | B58: =B155 -> SOUKUP | C58: Ondřej | D58: 8.A | E58: 311 | G58: Jilemnice 13.09.21 | H58: 572.052 | J58: 314 | K58: 341 | L58: 0
A59: 56. | B59: =B156 -> SPANILÝ | C59: David | D59: 8.A | E59: 459 | G59: Jilemnice 04.05.22 | H59: 791.388 | J59: 0 | K59: 336 | L59: 0
A60: 57. | B60: =B157 -> ČADAN | C60: Benjamín | D60: 8.B | E60: 345 | G60: Jilemnice 13.09.21 | H60: 622.44 | J60: 332 | K60: 292 | L60: 0
A61: 58. | B61: =B158 -> ČERNÝ | C61: Michal | D61: 8.B | E61: 342 | G61: Jilemnice 04.05.22 | H61: 617.994 | J61: 282 | K61: 294 | L61: 0
A62: 59. | B62: =B159 -> DOLEJŠÍ | C62: David | D62: 8.B | E62: 402 | G62: Jilemnice 04.05.22 | H62: 706.914 | J62: 303 | K62: 287 | L62: 0
A63: 60. | B63: =B160 -> NOVÁK | C63: Matěj | D63: 8.B | E63: 364 | G63: Jilemnice 13.09.21 | H63: 650.598 | J63: 322 | K63: 306 | L63: 0
A64: 61. | B64: =B161 -> POVAŽANEC | C64: Martin | D64: 8.B | E64: 480 | G64: Jilemnice 04.05.22 | H64: 822.51 | J64: 371 | K64: 310 | L64: 0
A65: 62. | B65: =B162 -> RICHTER | C65: Jakub | D65: 8.B | E65: 322 | G65: Jilemnice 04.05.22 | H65: 588.354 | J65: 0 | K65: 266 | L65: 0
A66: 63. | B66: =B163 -> ROZUMEK | C66: Adam | D66: 8.B | E66: 315 | G66: Jilemnice 13.09.21 | H66: 577.98 | J66: 273 | K66: 238 | L66: 0
A67: 64. | B67: =B164 -> VALENTA | C67: František | D67: 8.B | E67: 335 | G67: Jilemnice 04.05.22 | H67: 607.62 | J67: 273 | K67: 271 | L67: 0
A68: 65. | B68: =B165 -> ZAPLATÍLEK | C68: Josef | D68: 8.B | E68: 359 | G68: Jilemnice 13.09.21 | H68: 643.188 | J68: 0 | K68: 333 | L68: 0
A69: 66. | B69: =B166 -> ERBEN | C69: Viktor | D69: 9.A | E69: 370 | G69: Jilemnice 13.09.21 | H69: 659.49 | J69: 0 | K69: 0 | L69: 225
A70: 67. | B70: =B167 -> FRANC | C70: Daniel | D70: 9.A | E70: 315 | G70: Jilemnice 13.09.21 | H70: 577.98 | J70: 306 | K70: 0 | L70: 245
A71: 68. | B71: =B168 -> JINDŘIŠEK | C71: Matyáš | D71: 9.A | E71: 463 | G71: Jilemnice 04.05.22 | H71: 797.316 | J71: 0 | K71: 339 | L71: 250
A72: 69. | B72: =B169 -> KOLAČNÝ | C72: Štěpán | D72: 9.A | E72: 373 | G72: Jilemnice 13.09.21 | H72: 663.936 | J72: 307 | K72: 308 | L72: 230
A73: 70. | B73: =B170 -> KRISTAN | C73: Jáchym | D73: 9.A | E73: 278 | G73: Jilemnice 13.09.21 | H73: 523.146 | J73: 0 | K73: 0 | L73: 175
A74: 71. | B74: =B171 -> NGUYEN | C74: David | D74: 9.A | E74: 456 | G74: Jilemnice 04.05.22 | H74: 786.942 | J74: 381 | K74: 350 | L74: 0
A75: 72. | B75: =B172 -> NOVOTNÝ | C75: Jan | D75: 9.A | E75: 390 | G75: Jilemnice 13.09.21 | H75: 689.13 | J75: 372 | K75: 390 | L75: 0
A76: 73. | B76: =B173 -> RÁB | C76: Adam | D76: 9.A | E76: 315 | G76: Jilemnice 13.09.21 | H76: 577.98 | J76: 284 | K76: 283 | L76: 206
A77: 74. | B77: =B174 -> REPASKÝ | C77: Jakub | D77: 9.A | E77: 422 | G77: Jilemnice 04.05.22 | H77: 736.554 | J77: 0 | K77: 0 | L77: 315
A78: 75. | B78: =B175 -> SKÁLA | C78: Jan | D78: 9.A | E78: 449 | G78: Jilemnice 04.05.22 | H78: 776.568 | J78: 408 | K78: 321 | L78: 200
A79: 76. | B79: =B176 -> ŠPULÁK | C79: Jakub | D79: 9.A | E79: 397 | G79: Jilemnice 04.05.22 | H79: 699.504 | J79: 348 | K79: 322 | L79: 215
A80: 77. | B80: =B177 -> VALENTA | C80: Tomáš | D80: 9.A | E80: 539 | G80: Jilemnice 04.05.22 | H80: 909.948 | J80: 485 | K80: 445 | L80: 345
A81: 78. | B81: =B178 -> VANCL | C81: Jiří | D81: 9.A | E81: 425 | G81: Jilemnice 13.09.21 | H81: 741 | J81: 0 | K81: 297 | L81: 182
A82: 79. | B82: =B179 -> VAŠÍČEK | C82: David | D82: 9.A | E82: 393 | G82: Jilemnice 04.05.22 | H82: 693.576 | J82: 349 | K82: 0 | L82: 270
A83: 80. | B83: =B180 -> ZOUHAR | C83: Ondřej | D83: 9.A | E83: 0 | G83: 0 | H83: 0 | J83: 373 | K83: 373 | L83: 305
A84: 81. | B84: =B181 -> ZUZÁNEK | C84: Filip | D84: 9.A | E84: 433 | G84: Jilemnice 13.09.21 | H84: 752.856 | J84: 0 | K84: 324 | L84: 271
B101: EXNER | C101: Tomáš | D101: 6.A | E101: 409 | G101: Jilemnice 29.04.22 | H101: =IF(E101=0,0,(E101+75)*1.482) -> 717.288
B102: JANATA | C102: Denis | D102: 6.A | E102: 331 | G102: Jilemnice 17.09.21 | H102: 601.692
B103: JINDŘIŠEK | C103: Alex Jiří | D103: 6.A | E103: 310 | G103: Jilemnice 29.04.22 | H103: 570.57
B104: MARŠÁLEK | C104: Ondřej | D104: 6.A | E104: 283 | G104: Jilemnice 29.04.22 | H104: 530.556
B105: MLATEČEK | C105: Patrik | D105: 6.A | E105: 262 | G105: Jilemnice 17.09.21 | H105: 499.434
B106: SCHOLZ | C106: Matyáš | D106: 6.A | E106: 313 | G106: Jilemnice 17.09.21 | H106: 575.016
B107: TOMÁŠ | C107: Jakub | D107: 6.A | E107: 345 | G107: Jilemnice 29.04.22 | H107: 622.44
B108: VÁCLAVÍK | C108: Jan | D108: 6.A | E108: 314 | G108: Jilemnice 17.09.21 | H108: 576.498
B109: VEČEŘA | C109: David | D109: 6.A | E109: 262 | G109: Jilemnice 17.09.21 | H109: 499.434
B110: VYBÍRAL | C110: Radim | D110: 6.A | E110: 384 | G110: Jilemnice 17.09.21 | H110: 680.238
B111: BERISHA | C111: David | D111: 6.B | E111: 190 | G111: Jilemnice 17.09.21 | H111: 392.73
B112: EFENBERK | C112: Šimon | D112: 6.B | E112: 283 | G112: Jilemnice 29.04.22 | H112: 530.556
B113: FEJKL | C113: Antonín | D113: 6.B | E113: 375 | G113: Jilemnice 29.04.22 | H113: 666.9
B114: GOTTSTEIN | C114: Matouš | D114: 6.B | E114: 417 | G114: Jilemnice 29.04.22 | H114: 729.144
B115: HÁK | C115: Šimon | D115: 6.B | H115: 0
B116: POVAŽANEC | C116: Lukáš | D116: 6.B | E116: 321 | G116: Jilemnice 17.09.21 | H116: 586.872
B117: VANCL | C117: Jakub | D117: 6.B | E117: 232 | G117: Jilemnice 17.09.21 | H117: 454.974
B118: VANCL | C118: Miroslav | D118: 6.B | E118: 296 | G118: Jilemnice 29.04.22 | H118: 549.822
B119: VOTOČEK | C119: Michal | D119: 6.B | E119: 249 | G119: Jilemnice 17.09.21 | H119: 480.168
B120: BOUKAL | C120: Jakub | D120: 7.A | H120: 0 | J120: 245
B121: DEMČUK | C121: Ilja | D121: 7.A | E121: 367 | G121: Jilemnice 29.04.22 | H121: 655.044 | J121: 311
B122: FAISTAUER | C122: Kryštof | D122: 7.A | E122: 380 | G122: Jilemnice 27.09.21 | H122: 674.31 | J122: 366
B123: FRK | C123: Matyáš | D123: 7.A | E123: 292 | G123: Jilemnice 27.09.21 | H123: 543.894 | J123: 282
B124: HUBÁLOVSKÝ | C124: Marek | D124: 7.A | E124: 326 | G124: Jilemnice 27.09.21 | H124: 594.282 | J124: 383
B125: MAŘAS | C125: Dominik | D125: 7.A | E125: 262 | G125: Jilemnice 24.09.21 | H125: 499.434 | J125: 293
B126: MAŤÁTKO | C126: Jakub | D126: 7.A | H126: 0
B127: MERY | C127: Luboš | D127: 7.A | E127: 322 | G127: Jilemnice 27.09.21 | H127: 588.354
B128: NOVOTNÝ | C128: Matěj | D128: 7.A | E128: 291 | G128: Jilemnice 27.09.21 | H128: 542.412 | J128: 281
B129: ŘEHOŘEK | C129: Vojtěch | D129: 7.A | E129: 351 | G129: Jilemnice 27.09.21 | H129: 631.332 | J129: 296
B130: ŠÍR | C130: Matyáš | D130: 7.A | E130: 293 | G130: Jilemnice 27.09.21 | H130: 545.376 | J130: 283
B131: TORÁČ | C131: Tomáš | D131: 7.A | E131: 184 | G131: Jilemnice 24.09.21 | H131: 383.838
B132: ULLMAN | C132: Šimon | D132: 7.A | E132: 348 | G132: Jilemnice 27.09.21 | H132: 626.886 | J132: 353
B133: VÁCLAVÍK | C133: Ondřej | D133: 7.A | E133: 394 | G133: Jilemnice 27.09.21 | H133: =IF(E133=0,0,(E133+75)*1.482) -> 695.058 | J133: 309
B134: AUERSWALD | C134: Daniel | D134: 7.B | E134: 380 | G134: Jilemnice 27.09.21 | H134: 674.31 | J134: 348
B135: BODLÁK | C135: Vladimír | D135: 7.B | H135: 0
B136: BUDÍN | C136: Martin | D136: 7.B | E136: 333 | G136: Jilemnice 27.09.21 | H136: 604.656 | J136: 327
B137: DVOŘÁK | C137: Dominik | D137: 7.B | E137: 291 | G137: Jilemnice 27.09.21 | H137: 542.412 | J137: 247
B138: FIŠERA | C138: Vojtěch | D138: 7.B | E138: 302 | G138: Jilemnice 27.09.21 | H138: 558.714 | J138: 323
B139: JINDŘIŠEK | C139: Vít | D139: 7.B | E139: 428 | G139: Jilemnice 29.04.22 | H139: 745.446 | J139: 381
B140: JIROUŠ | C140: Matouš | D140: 7.B | E140: 381 | G140: Jilemnice 27.09.21 | H140: 675.792 | J140: 356
B141: KERLE | C141: Marek | D141: 7.B | E141: 433 | G141: Turnov 31.05.22 | H141: 752.856 | J141: 321
B142: LUKEŠ | C142: Jakub | D142: 7.B | E142: 423 | G142: Turnov 08.04.22 | H142: 738.036 | J142: 304
B143: OTT | C143: Matyáš | D143: 7.B | E143: 392 | G143: Jilemnice 29.04.22 | H143: 692.094 | J143: 307
B144: POKORNÝ | C144: Matyáš | D144: 7.B | E144: 445 | G144: Jilemnice 29.04.22 | H144: 770.64
B145: POLÁČEK | C145: Matyáš | D145: 7.B | E145: 299 | G145: Jilemnice 27.09.21 | H145: 554.268 | J145: 282
B146: SOUKUP | C146: Patrik | D146: 7.B | H146: 0 | J146: 332
B147: VALENTA | C147: Jakub | D147: 7.B | H147: 0
B148: VRBATA | C148: Dominik | D148: 7.B | E148: 375 | G148: Jilemnice 27.09.21 | H148: 666.9 | J148: 339
B149: FEJKL | C149: Jan | D149: 8.A | E149: 464 | G149: Jilemnice 04.05.22 | H149: 798.798 | J149: 465 | K149: 389
B150: KOTYK | C150: Tadeáš | D150: 8.A | E150: 287 | G150: Jilemnice 13.09.21 | H150: 536.484 | J150: 296 | K150: 305
B151: KRAUSE | C151: Tadeáš | D151: 8.A | E151: 457 | G151: Jilemnice 04.05.22 | H151: 788.424 | J151: 357 | K151: 324
B152: LEŠÁK | C152: Martin | D152: 8.A | E152: 371 | G152: Jilemnice 04.05.22 | H152: 660.972 | K152: 307
B153: NECHANICKÝ | C153: David | D153: 8.A | E153: 461 | G153: Jilemnice 04.05.22 | H153: 794.352 | J153: 371 | K153: 356
B154: ŘEHOŘEK | C154: Jan | D154: 8.A | E154: 412 | G154: Jilemnice 04.05.22 | H154: 721.734 | J154: 362 | K154: 333
B155: SOUKUP | C155: Ondřej | D155: 8.A | E155: 311 | G155: Jilemnice 13.09.21 | H155: 572.052 | J155: 314 | K155: 341
B156: SPANILÝ | C156: David | D156: 8.A | E156: 459 | G156: Jilemnice 04.05.22 | H156: 791.388 | K156: 336
B157: ČADAN | C157: Benjamín | D157: 8.B | E157: 345 | G157: Jilemnice 13.09.21 | H157: 622.44 | J157: 332 | K157: 292
B158: ČERNÝ | C158: Michal | D158: 8.B | E158: 342 | G158: Jilemnice 04.05.22 | H158: 617.994 | J158: 282 | K158: 294
B159: DOLEJŠÍ | C159: David | D159: 8.B | E159: 402 | G159: Jilemnice 04.05.22 | H159: 706.914 | J159: 303 | K159: 287
B160: NOVÁK | C160: Matěj | D160: 8.B | E160: 364 | G160: Jilemnice 13.09.21 | H160: 650.598 | J160: 322 | K160: 306
B161: POVAŽANEC | C161: Martin | D161: 8.B | E161: 480 | G161: Jilemnice 04.05.22 | H161: 822.51 | J161: 371 | K161: 310
B162: RICHTER | C162: Jakub | D162: 8.B | E162: 322 | G162: Jilemnice 04.05.22 | H162: 588.354 | K162: 266
B163: ROZUMEK | C163: Adam | D163: 8.B | E163: 315 | G163: Jilemnice 13.09.21 | H163: 577.98 | J163: 273 | K163: 238
B164: VALENTA | C164: František | D164: 8.B | E164: 335 | G164: Jilemnice 04.05.22 | H164: 607.62 | J164: 273 | K164: 271
B165: ZAPLATÍLEK | C165: Josef | D165: 8.B | E165: 359 | G165: Jilemnice 13.09.21 | H165: =IF(E165=0,0,(E165+75)*1.482) -> 643.188 | K165: 333
B166: ERBEN | C166: Viktor | D166: 9.A | E166: 370 | G166: Jilemnice 13.09.21 | H166: 659.49 | L166: 225
B167: FRANC | C167: Daniel | D167: 9.A | E167: 315 | G167: Jilemnice 13.09.21 | H167: 577.98 | J167: 306 | L167: 245
B168: JINDŘIŠEK | C168: Matyáš | D168: 9.A | E168: 463 | G168: Jilemnice 04.05.22 | H168: 797.316 | K168: 339 | L168: 250
B169: KOLAČNÝ | C169: Štěpán | D169: 9.A | E169: 373 | G169: Jilemnice 13.09.21 | H169: 663.936 | J169: 307 | K169: 308 | L169: 230
B170: KRISTAN | C170: Jáchym | D170: 9.A | E170: 278 | G170: Jilemnice 13.09.21 | H170: 523.146 | L170: 175
B171: NGUYEN | C171: David | D171: 9.A | E171: 456 | G171: Jilemnice 04.05.22 | H171: 786.942 | J171: 381 | K171: 350
B172: NOVOTNÝ | C172: Jan | D172: 9.A | E172: 390 | G172: Jilemnice 13.09.21 | H172: 689.13 | J172: 372 | K172: 390
B173: RÁB | C173: Adam | D173: 9.A | E173: 315 | G173: Jilemnice 13.09.21 | H173: 577.98 | J173: 284 | K173: 283 | L173: 206
B174: REPASKÝ | C174: Jakub | D174: 9.A | E174: 422 | G174: Jilemnice 04.05.22 | H174: 736.554 | L174: 315
B175: SKÁLA | C175: Jan | D175: 9.A | E175: 449 | G175: Jilemnice 04.05.22 | H175: 776.568 | J175: 408 | K175: 321 | L175: 200
B176: ŠPULÁK | C176: Jakub | D176: 9.A | E176: 397 | G176: Jilemnice 04.05.22 | H176: 699.504 | J176: 348 | K176: 322 | L176: 215
B177: VALENTA | C177: Tomáš | D177: 9.A | E177: 539 | G177: Jilemnice 04.05.22 | H177: 909.948 | J177: 485 | K177: 445 | L177: 345
B178: VANCL | C178: Jiří | D178: 9.A | E178: 425 | G178: Jilemnice 13.09.21 | H178: 741 | K178: 297 | L178: 182
B179: VAŠÍČEK | C179: David | D179: 9.A | E179: 393 | G179: Jilemnice 04.05.22 | H179: 693.576 | J179: 349 | L179: 270
B180: ZOUHAR | C180: Ondřej | D180: 9.A | H180: 0 | J180: 373 | K180: 373 | L180: 305
B181: ZUZÁNEK | C181: Filip | D181: 9.A | E181: 433 | G181: Jilemnice 13.09.21 | H181: 752.856 | K181: 324 | L181: 271

Sheet VÝŠKA
C1: VÝKONY 2021 - 2022 | G1: VÝŠKA | H1: CHLAPCI 6. - 9. ROČ.
B2: stav k | C2: =TODAY() -> 2022-06-27 | J2: 20 - 21 | K2: 19 - 20 | L2: 18 - 19
A4: 1. | B4: =B101 -> EXNER | C4: =C101 -> Tomáš | D4: 6.A | E4: 111 | G4: Jilemnice 27.09.21 | H4: 616.92 | J4: 0 | K4: 0 | L4: 0
A5: 2. | B5: =B102 -> JANATA | C5: Denis | D5: 6.A | E5: 103 | G5: Jilemnice 06.05.22 | H5: 571.16 | J5: 0 | K5: 0 | L5: 0
A6: 3. | B6: =B103 -> JINDŘIŠEK | C6: Alex Jiří | D6: 6.A | E6: 93 | G6: Jilemnice 06.05.22 | H6: 513.96 | J6: 0 | K6: 0 | L6: 0
A7: 4. | B7: =B104 -> MARŠÁLEK | C7: Ondřej | D7: 6.A | E7: 103 | G7: Jilemnice 06.05.22 | H7: 571.16 | J7: 0 | K7: 0 | L7: 0
A8: 5. | B8: =B105 -> MLATEČEK | C8: Patrik | D8: 6.A | E8: 91 | G8: Jilemnice 24.05.22 | H8: 502.52 | J8: 0 | K8: 0 | L8: 0
A9: 6. | B9: =B106 -> SCHOLZ | C9: Matyáš | D9: 6.A | E9: 102 | G9: Jilemnice 24.05.22 | H9: 565.44 | J9: 0 | K9: 0 | L9: 0
A10: 7. | B10: =B107 -> TOMÁŠ | C10: Jakub | D10: 6.A | E10: 111 | G10: Jilemnice 24.05.22 | H10: 616.92 | J10: 0 | K10: 0 | L10: 0
A11: 8. | B11: =B108 -> VÁCLAVÍK | C11: Jan | D11: 6.A | E11: 108 | G11: Jilemnice 06.05.22 | H11: 599.76 | J11: 0 | K11: 0 | L11: 0
A12: 9. | B12: =B109 -> VEČEŘA | C12: David | D12: 6.A | E12: 93 | G12: Jilemnice 06.05.22 | H12: 513.96 | J12: 0 | K12: 0 | L12: 0
A13: 10. | B13: =B110 -> VYBÍRAL | C13: Radim | D13: 6.A | E13: 119 | G13: Jilemnice 24.05.22 | H13: 662.68 | J13: 0 | K13: 0 | L13: 0
A14: 11. | B14: =B111 -> BERISHA | C14: David | D14: 6.B | E14: 71 | G14: Jilemnice 27.09.21 | H14: 388.12 | J14: 0 | K14: 0 | L14: 0
A15: 12. | B15: =B112 -> EFENBERK | C15: Šimon | D15: 6.B | E15: 102 | G15: Jilemnice 24.05.22 | H15: 565.44 | J15: 0 | K15: 0 | L15: 0
A16: 13. | B16: =B113 -> FEJKL | C16: Antonín | D16: 6.B | E16: 111 | G16: Jilemnice 27.09.21 | H16: 616.92 | J16: 0 | K16: 0 | L16: 0
A17: 14. | B17: =B114 -> GOTTSTEIN | C17: Matouš | D17: 6.B | E17: 123 | G17: Jilemnice 06.05.22 | H17: 685.56 | J17: 0 | K17: 0 | L17: 0
A18: 15. | B18: =B115 -> HÁK | C18: Šimon | D18: 6.B | E18: 0 | G18: 0 | H18: 0 | J18: 0 | K18: 0 | L18: 0
A19: 16. | B19: =B116 -> POVAŽANEC | C19: Lukáš | D19: 6.B | E19: 105 | G19: Jilemnice 17.05.22 | H19: 582.6 | J19: 0 | K19: 0 | L19: 0
A20: 17. | B20: =B117 -> VANCL | C20: Jakub | D20: 6.B | E20: 91 | G20: Jilemnice 24.05.22 | H20: 502.52 | J20: 0 | K20: 0 | L20: 0
A21: 18. | B21: =B118 -> VANCL | C21: Miroslav | D21: 6.B | E21: 103 | G21: Jilemnice 06.05.22 | H21: 571.16 | J21: 0 | K21: 0 | L21: 0
A22: 19. | B22: =B119 -> VOTOČEK | C22: Michal | D22: 6.B | E22: 102 | G22: Jilemnice 24.05.22 | H22: 565.44 | J22: 0 | K22: 0 | L22: 0
A23: 20. | B23: =B120 -> BOUKAL | C23: Jakub | D23: 7.A | E23: 0 | G23: 0 | H23: 0 | J23: 0 | K23: 0 | L23: 0
A24: 21. | B24: =B121 -> DEMČUK | C24: Ilja | D24: 7.A | E24: 120 | G24: Jilemnice 30.05.22 | H24: 668.4 | J24: 80 | K24: 0 | L24: 0
A25: 22. | B25: =B122 -> FAISTAUER | C25: Kryštof | D25: 7.A | E25: 130 | G25: Jilemnice 26.05.22 | H25: 725.6 | J25: 80 | K25: 0 | L25: 0
A26: 23. | B26: =B123 -> FRK | C26: Matyáš | D26: 7.A | E26: 0 | G26: 0 | H26: 0 | J26: 75 | K26: 0 | L26: 0
A27: 24. | B27: =B124 -> HUBÁLOVSKÝ | C27: Marek | D27: 7.A | E27: 115 | G27: Jilemnice 26.05.22 | H27: 639.8 | J27: 80 | K27: 0 | L27: 0
A28: 25. | B28: =B125 -> MAŘAS | C28: Dominik | D28: 7.A | E28: 110 | G28: Jilemnice 03.06.22 | H28: 611.2 | J28: 0 | K28: 0 | L28: 0
A29: 26. | B29: =B126 -> MAŤÁTKO | C29: Jakub | D29: 7.A | E29: 110 | G29: Jilemnice 03.06.22 | H29: 611.2 | J29: 0 | K29: 0 | L29: 0
A30: 27. | B30: =B127 -> MERY | C30: Luboš | D30: 7.A | E30: 0 | G30: 0 | H30: 0 | J30: 70 | K30: 0 | L30: 0
A31: 28. | B31: =B128 -> NOVOTNÝ | C31: Matěj | D31: 7.A | E31: 0 | G31: 0 | H31: 0 | J31: 80 | K31: 0 | L31: 0
A32: 29. | B32: =B129 -> ŘEHOŘEK | C32: Vojtěch | D32: 7.A | E32: 110 | G32: Jilemnice 26.05.22 | H32: 611.2 | J32: 0 | K32: 0 | L32: 0
A33: 30. | B33: =B130 -> ŠÍR | C33: Matyáš | D33: 7.A | E33: 98 | G33: Jilemnice 06.05.22 | H33: 542.56 | J33: 70 | K33: 0 | L33: 0
A34: 31. | B34: =B131 -> TORÁČ | C34: Tomáš | D34: 7.A | E34: 90 | G34: Jilemnice 03.06.22 | H34: 496.8 | J34: 0 | K34: 0 | L34: 0
A35: 32. | B35: =B132 -> ULLMAN | C35: Šimon | D35: 7.A | E35: 120 | G35: Jilemnice 26.05.22 | H35: 668.4 | J35: 80 | K35: 0 | L35: 0
A36: 33. | B36: =B133 -> VÁCLAVÍK | C36: Ondřej | D36: 7.A | E36: 108 | G36: Jilemnice 06.05.22 | H36: 599.76 | J36: 80 | K36: 0 | L36: 0
A37: 34. | B37: =B134 -> AUERSWALD | C37: Daniel | D37: 7.B | E37: 108 | G37: Jilemnice 06.05.22 | H37: 599.76 | J37: 0 | K37: 0 | L37: 0
A38: 35. | B38: =B135 -> BODLÁK | C38: Vladimír | D38: 7.B | E38: 0 | G38: 0 | H38: 0 | J38: 0 | K38: 0 | L38: 0
A39: 36. | B39: =B136 -> BUDÍN | C39: Martin | D39: 7.B | E39: 110 | G39: Jilemnice 26.05.22 | H39: 611.2 | J39: 80 | K39: 0 | L39: 0
A40: 37. | B40: =B137 -> DVOŘÁK | C40: Dominik | D40: 7.B | E40: 110 | G40: Jilemnice 26.05.22 | H40: 611.2 | J40: 75 | K40: 0 | L40: 0
A41: 38. | B41: =B138 -> FIŠERA | C41: Vojtěch | D41: 7.B | E41: 103 | G41: Jilemnice 06.05.22 | H41: 571.16 | J41: 0 | K41: 0 | L41: 0
A42: 39. | B42: =B139 -> JINDŘIŠEK | C42: Vít | D42: 7.B | E42: 136 | G42: Jilemnice 26.05.22 | H42: 759.92 | J42: 80 | K42: 0 | L42: 0
A43: 40. | B43: =B140 -> JIROUŠ | C43: Matouš | D43: 7.B | E43: 108 | G43: Jilemnice 06.05.22 | H43: 599.76 | J43: 80 | K43: 0 | L43: 0
A44: 41. | B44: =B141 -> KERLE | C44: Marek | D44: 7.B | E44: 138 | G44: Turnov 31.05.22 | H44: 771.36 | J44: 80 | K44: 0 | L44: 0
A45: 42. | B45: =B142 -> LUKEŠ | C45: Jakub | D45: 7.B | E45: 146 | G45: Turnov 31.05.22 | H45: 817.12 | J45: 75 | K45: 0 | L45: 0
A46: 43. | B46: =B143 -> OTT | C46: Matyáš | D46: 7.B | E46: 125 | G46: Jilemnice 26.05.22 | H46: 697 | J46: 80 | K46: 0 | L46: 0
A47: 44. | B47: =B144 -> POKORNÝ | C47: Matyáš | D47: 7.B | E47: 135 | G47: Jilemnice 17.05.22 | H47: 754.2 | J47: 80 | K47: 0 | L47: 0
A48: 45. | B48: =B145 -> POLÁČEK | C48: Matyáš | D48: 7.B | E48: 98 | G48: Jilemnice 06.05.22 | H48: 542.56 | J48: 75 | K48: 0 | L48: 0
A49: 46. | B49: =B146 -> SOUKUP | C49: Patrik | D49: 7.B | E49: 0 | G49: 0 | H49: 0 | J49: 80 | K49: 0 | L49: 0
A50: 47. | B50: =B147 -> VALENTA | C50: Jakub | D50: 7.B | E50: 130 | G50: Turnov 08.04.22 | H50: 725.6 | J50: 0 | K50: 0 | L50: 0
A51: 48. | B51: =B148 -> VRBATA | C51: Dominik | D51: 7.B | E51: 108 | G51: Jilemnice 06.05.22 | H51: 599.76 | J51: 80 | K51: 0 | L51: 0
A52: 49. | B52: =B149 -> FEJKL | C52: Jan | D52: 8.A | E52: 145 | G52: Jilemnice 17.05.22 | H52: 811.4 | J52: 115 | K52: 115 | L52: 0
A53: 50. | B53: =B150 -> KOTYK | C53: Tadeáš | D53: 8.A | E53: 95 | G53: Jilemnice 27.09.21 | H53: 525.4 | J53: 92 | K53: 0 | L53: 0
A54: 51. | B54: =B151 -> KRAUSE | C54: Tadeáš | D54: 8.A | E54: 143 | G54: Turnov 08.04.22 | H54: 799.96 | J54: 0 | K54: 0 | L54: 0
A55: 52. | B55: =B152 -> LEŠÁK | C55: Martin | D55: 8.A | E55: 118 | G55: Jilemnice 09.05.22 | H55: 656.96 | J55: 82 | K55: 0 | L55: 0
A56: 53. | B56: =B153 -> NECHANICKÝ | C56: David | D56: 8.A | E56: 123 | G56: Jilemnice 09.05.22 | H56: 685.56 | J56: 110 | K56: 0 | L56: 0
A57: 54. | B57: =B154 -> ŘEHOŘEK | C57: Jan | D57: 8.A | E57: 139 | G57: Turnov 08.04.22 | H57: 777.08 | J57: 115 | K57: 105 | L57: 0
A58: 55. | B58: =B155 -> SOUKUP | C58: Ondřej | D58: 8.A | E58: 103 | G58: Jilemnice 09.05.22 | H58: 571.16 | J58: 101 | K58: 0 | L58: 0
A59: 56. | B59: =B156 -> SPANILÝ | C59: David | D59: 8.A | E59: 123 | G59: Jilemnice 09.05.22 | H59: 685.56 | J59: 0 | K59: 0 | L59: 0
A60: 57. | B60: =B157 -> ČADAN | C60: Benjamín | D60: 8.B | E60: 115 | G60: Jilemnice 27.09.21 | H60: 639.8 | J60: 0 | K60: 0 | L60: 0
A61: 58. | B61: =B158 -> ČERNÝ | C61: Michal | D61: 8.B | E61: 108 | G61: Jilemnice 09.05.22 | H61: 599.76 | J61: 92 | K61: 0 | L61: 0
A62: 59. | B62: =B159 -> DOLEJŠÍ | C62: David | D62: 8.B | E62: 118 | G62: Jilemnice 09.05.22 | H62: 656.96 | J62: 92 | K62: 0 | L62: 0
A63: 60. | B63: =B160 -> NOVÁK | C63: Matěj | D63: 8.B | E63: 95 | G63: Jilemnice 27.09.21 | H63: 525.4 | J63: 101 | K63: 0 | L63: 0
A64: 61. | B64: =B161 -> POVAŽANEC | C64: Martin | D64: 8.B | E64: 147 | G64: Jilemnice 17.05.22 | H64: 822.84 | J64: 110 | K64: 0 | L64: 0
A65: 62. | B65: =B162 -> RICHTER | C65: Jakub | D65: 8.B | E65: 98 | G65: Jilemnice 09.05.22 | H65: 542.56 | J65: 0 | K65: 0 | L65: 0
A66: 63. | B66: =B163 -> ROZUMEK | C66: Adam | D66: 8.B | E66: 103 | G66: Jilemnice 09.05.22 | H66: 571.16 | J66: 0 | K66: 0 | L66: 0
A67: 64. | B67: =B164 -> VALENTA | C67: František | D67: 8.B | E67: 113 | G67: Jilemnice 09.05.22 | H67: 628.36 | J67: 0 | K67: 0 | L67: 0
A68: 65. | B68: =B165 -> ZAPLATÍLEK | C68: Josef | D68: 8.B | E68: 130 | G68: Jilemnice 17.05.22 | H68: 725.6 | J68: 0 | K68: 0 | L68: 0
A69: 66. | B69: =B166 -> ERBEN | C69: Viktor | D69: 9.A | E69: 120 | G69: Jilemnice 15-06.22 | H69: 668.4 | J69: 0 | K69: 0 | L69: 90
A70: 67. | B70: =B167 -> FRANC | C70: Daniel | D70: 9.A | E70: 103 | G70: Jilemnice 09.05.22 | H70: 571.16 | J70: 0 | K70: 0 | L70: 90
A71: 68. | B71: =B168 -> JINDŘIŠEK | C71: Matyáš | D71: 9.A | E71: 128 | G71: Jilemnice 09.05.22 | H71: 714.16 | J71: 0 | K71: 0 | L71: 0
A72: 69. | B72: =B169 -> KOLAČNÝ | C72: Štěpán | D72: 9.A | E72: 103 | G72: Jilemnice 09.05.22 | H72: 571.16 | J72: 0 | K72: 0 | L72: 105
A73: 70. | B73: =B170 -> KRISTAN | C73: Jáchym | D73: 9.A | E73: 0 | G73: 0 | H73: 0 | J73: 0 | K73: 0 | L73: 0
A74: 71. | B74: =B171 -> NGUYEN | C74: David | D74: 9.A | E74: 125 | G74: Jilemnice 27.09.21 | H74: 697 | J74: 0 | K74: 0 | L74: 0
A75: 72. | B75: =B172 -> NOVOTNÝ | C75: Jan | D75: 9.A | E75: 128 | G75: Jilemnice 09.05.22 | H75: 714.16 | J75: 0 | K75: 0 | L75: 100
A76: 73. | B76: =B173 -> RÁB | C76: Adam | D76: 9.A | E76: 103 | G76: Jilemnice 09.05.22 | H76: 571.16 | J76: 0 | K76: 0 | L76: 90
A77: 74. | B77: =B174 -> REPASKÝ | C77: Jakub | D77: 9.A | E77: 138 | G77: Jilemnice 09.05.22 | H77: 771.36 | J77: 0 | K77: 0 | L77: 110
A78: 75. | B78: =B175 -> SKÁLA | C78: Jan | D78: 9.A | E78: 125 | G78: Jilemnice 27.09.21 | H78: 697 | J78: 0 | K78: 0 | L78: 90
A79: 76. | B79: =B176 -> ŠPULÁK | C79: Jakub | D79: 9.A | E79: 120 | G79: Jilemnice 27.09.21 | H79: 668.4 | J79: 0 | K79: 0 | L79: 90
A80: 77. | B80: =B177 -> VALENTA | C80: Tomáš | D80: 9.A | E80: 155 | G80: Turnov 08.04.22 | H80: 868.6 | J80: 0 | K80: 0 | L80: 130
A81: 78. | B81: =B178 -> VANCL | C81: Jiří | D81: 9.A | E81: 113 | G81: Jilemnice 09.05.22 | H81: 628.36 | J81: 0 | K81: 0 | L81: 90
A82: 79. | B82: =B179 -> VAŠÍČEK | C82: David | D82: 9.A | E82: 0 | G82: 0 | H82: 0 | J82: 0 | K82: 0 | L82: 110
A83: 80. | B83: =B180 -> ZOUHAR | C83: Ondřej | D83: 9.A | E83: 138 | G83: Jilemnice 09.05.22 | H83: 771.36 | J83: 0 | K83: 0 | L83: 110
A84: 81. | B84: =B181 -> ZUZÁNEK | C84: Filip | D84: 9.A | E84: 118 | G84: Jilemnice 09.05.22 | H84: 656.96 | J84: 0 | K84: 0 | L84: 105
B101: EXNER | C101: Tomáš | D101: 6.A | E101: 111 | G101: Jilemnice 27.09.21 | H101: =IF(E101=0,0,(IF(E101>0,E101*4.4*1.3-18))) -> 616.92
B102: JANATA | C102: Denis | D102: 6.A | E102: 103 | G102: Jilemnice 06.05.22 | H102: 571.16
B103: JINDŘIŠEK | C103: Alex Jiří | D103: 6.A | E103: 93 | G103: Jilemnice 06.05.22 | H103: 513.96
B104: MARŠÁLEK | C104: Ondřej | D104: 6.A | E104: 103 | G104: Jilemnice 06.05.22 | H104: 571.16
B105: MLATEČEK | C105: Patrik | D105: 6.A | E105: 91 | G105: Jilemnice 24.05.22 | H105: 502.52
B106: SCHOLZ | C106: Matyáš | D106: 6.A | E106: 102 | G106: Jilemnice 24.05.22 | H106: 565.44
B107: TOMÁŠ | C107: Jakub | D107: 6.A | E107: 111 | G107: Jilemnice 24.05.22 | H107: 616.92
B108: VÁCLAVÍK | C108: Jan | D108: 6.A | E108: 108 | G108: Jilemnice 06.05.22 | H108: 599.76
B109: VEČEŘA | C109: David | D109: 6.A | E109: 93 | G109: Jilemnice 06.05.22 | H109: 513.96
B110: VYBÍRAL | C110: Radim | D110: 6.A | E110: 119 | G110: Jilemnice 24.05.22 | H110: 662.68
B111: BERISHA | C111: David | D111: 6.B | E111: 71 | G111: Jilemnice 27.09.21 | H111: 388.12
B112: EFENBERK | C112: Šimon | D112: 6.B | E112: 102 | G112: Jilemnice 24.05.22 | H112: 565.44
B113: FEJKL | C113: Antonín | D113: 6.B | E113: 111 | G113: Jilemnice 27.09.21 | H113: 616.92
B114: GOTTSTEIN | C114: Matouš | D114: 6.B | E114: 123 | G114: Jilemnice 06.05.22 | H114: 685.56
B115: HÁK | C115: Šimon | D115: 6.B | H115: 0
B116: POVAŽANEC | C116: Lukáš | D116: 6.B | E116: 105 | G116: Jilemnice 17.05.22 | H116: 582.6
B117: VANCL | C117: Jakub | D117: 6.B | E117: 91 | G117: Jilemnice 24.05.22 | H117: 502.52
B118: VANCL | C118: Miroslav | D118: 6.B | E118: 103 | G118: Jilemnice 06.05.22 | H118: 571.16
B119: VOTOČEK | C119: Michal | D119: 6.B | E119: 102 | G119: Jilemnice 24.05.22 | H119: 565.44
B120: BOUKAL | C120: Jakub | D120: 7.A | H120: 0
B121: DEMČUK | C121: Ilja | D121: 7.A | E121: 120 | G121: Jilemnice 30.05.22 | H121: 668.4 | J121: 80
B122: FAISTAUER | C122: Kryštof | D122: 7.A | E122: 130 | G122: Jilemnice 26.05.22 | H122: 725.6 | J122: 80
B123: FRK | C123: Matyáš | D123: 7.A | H123: 0 | J123: 75
B124: HUBÁLOVSKÝ | C124: Marek | D124: 7.A | E124: 115 | G124: Jilemnice 26.05.22 | H124: 639.8 | J124: 80
B125: MAŘAS | C125: Dominik | D125: 7.A | E125: 110 | G125: Jilemnice 03.06.22 | H125: 611.2
B126: MAŤÁTKO | C126: Jakub | D126: 7.A | E126: 110 | G126: Jilemnice 03.06.22 | H126: 611.2
B127: MERY | C127: Luboš | D127: 7.A | H127: 0 | J127: 70
B128: NOVOTNÝ | C128: Matěj | D128: 7.A | H128: 0 | J128: 80
B129: ŘEHOŘEK | C129: Vojtěch | D129: 7.A | E129: 110 | G129: Jilemnice 26.05.22 | H129: 611.2
B130: ŠÍR | C130: Matyáš | D130: 7.A | E130: 98 | G130: Jilemnice 06.05.22 | H130: 542.56 | J130: 70
B131: TORÁČ | C131: Tomáš | D131: 7.A | E131: 90 | G131: Jilemnice 03.06.22 | H131: 496.8
B132: ULLMAN | C132: Šimon | D132: 7.A | E132: 120 | G132: Jilemnice 26.05.22 | H132: 668.4 | J132: 80
B133: VÁCLAVÍK | C133: Ondřej | D133: 7.A | E133: 108 | G133: Jilemnice 06.05.22 | H133: =IF(E133=0,0,(IF(E133>0,E133*4.4*1.3-18))) -> 599.76 | J133: 80
B134: AUERSWALD | C134: Daniel | D134: 7.B | E134: 108 | G134: Jilemnice 06.05.22 | H134: 599.76
B135: BODLÁK | C135: Vladimír | D135: 7.B | H135: 0
B136: BUDÍN | C136: Martin | D136: 7.B | E136: 110 | G136: Jilemnice 26.05.22 | H136: 611.2 | J136: 80
B137: DVOŘÁK | C137: Dominik | D137: 7.B | E137: 110 | G137: Jilemnice 26.05.22 | H137: 611.2 | J137: 75
B138: FIŠERA | C138: Vojtěch | D138: 7.B | E138: 103 | G138: Jilemnice 06.05.22 | H138: 571.16
B139: JINDŘIŠEK | C139: Vít | D139: 7.B | E139: 136 | G139: Jilemnice 26.05.22 | H139: 759.92 | J139: 80
B140: JIROUŠ | C140: Matouš | D140: 7.B | E140: 108 | G140: Jilemnice 06.05.22 | H140: 599.76 | J140: 80
B141: KERLE | C141: Marek | D141: 7.B | E141: 138 | G141: Turnov 31.05.22 | H141: 771.36 | J141: 80
B142: LUKEŠ | C142: Jakub | D142: 7.B | E142: 146 | G142: Turnov 31.05.22 | H142: 817.12 | J142: 75
B143: OTT | C143: Matyáš | D143: 7.B | E143: 125 | G143: Jilemnice 26.05.22 | H143: 697 | J143: 80
B144: POKORNÝ | C144: Matyáš | D144: 7.B | E144: 135 | G144: Jilemnice 17.05.22 | H144: 754.2 | J144: 80
B145: POLÁČEK | C145: Matyáš | D145: 7.B | E145: 98 | G145: Jilemnice 06.05.22 | H145: 542.56 | J145: 75
B146: SOUKUP | C146: Patrik | D146: 7.B | H146: 0 | J146: 80
B147: VALENTA | C147: Jakub | D147: 7.B | E147: 130 | G147: Turnov 08.04.22 | H147: 725.6
B148: VRBATA | C148: Dominik | D148: 7.B | E148: 108 | G148: Jilemnice 06.05.22 | H148: 599.76 | J148: 80
B149: FEJKL | C149: Jan | D149: 8.A | E149: 145 | G149: Jilemnice 17.05.22 | H149: 811.4 | J149: 115 | K149: 115
B150: KOTYK | C150: Tadeáš | D150: 8.A | E150: 95 | G150: Jilemnice 27.09.21 | H150: 525.4 | J150: 92
B151: KRAUSE | C151: Tadeáš | D151: 8.A | E151: 143 | G151: Turnov 08.04.22 | H151: 799.96
B152: LEŠÁK | C152: Martin | D152: 8.A | E152: 118 | G152: Jilemnice 09.05.22 | H152: 656.96 | J152: 82
B153: NECHANICKÝ | C153: David | D153: 8.A | E153: 123 | G153: Jilemnice 09.05.22 | H153: 685.56 | J153: 110
B154: ŘEHOŘEK | C154: Jan | D154: 8.A | E154: 139 | G154: Turnov 08.04.22 | H154: 777.08 | J154: 115 | K154: 105
B155: SOUKUP | C155: Ondřej | D155: 8.A | E155: 103 | G155: Jilemnice 09.05.22 | H155: 571.16 | J155: 101
B156: SPANILÝ | C156: David | D156: 8.A | E156: 123 | G156: Jilemnice 09.05.22 | H156: 685.56
B157: ČADAN | C157: Benjamín | D157: 8.B | E157: 115 | G157: Jilemnice 27.09.21 | H157: 639.8
B158: ČERNÝ | C158: Michal | D158: 8.B | E158: 108 | G158: Jilemnice 09.05.22 | H158: 599.76 | J158: 92
B159: DOLEJŠÍ | C159: David | D159: 8.B | E159: 118 | G159: Jilemnice 09.05.22 | H159: 656.96 | J159: 92
B160: NOVÁK | C160: Matěj | D160: 8.B | E160: 95 | G160: Jilemnice 27.09.21 | H160: 525.4 | J160: 101
B161: POVAŽANEC | C161: Martin | D161: 8.B | E161: 147 | G161: Jilemnice 17.05.22 | H161: 822.84 | J161: 110
B162: RICHTER | C162: Jakub | D162: 8.B | E162: 98 | G162: Jilemnice 09.05.22 | H162: 542.56
B163: ROZUMEK | C163: Adam | D163: 8.B | E163: 103 | G163: Jilemnice 09.05.22 | H163: 571.16
B164: VALENTA | C164: František | D164: 8.B | E164: 113 | G164: Jilemnice 09.05.22 | H164: 628.36
B165: ZAPLATÍLEK | C165: Josef | D165: 8.B | E165: 130 | G165: Jilemnice 17.05.22 | H165: =IF(E165=0,0,(IF(E165>0,E165*4.4*1.3-18))) -> 725.6
B166: ERBEN | C166: Viktor | D166: 9.A | E166: 120 | G166: Jilemnice 15-06.22 | H166: 668.4 | L166: 90
B167: FRANC | C167: Daniel | D167: 9.A | E167: 103 | G167: Jilemnice 09.05.22 | H167: 571.16 | L167: 90
B168: JINDŘIŠEK | C168: Matyáš | D168: 9.A | E168: 128 | G168: Jilemnice 09.05.22 | H168: 714.16
B169: KOLAČNÝ | C169: Štěpán | D169: 9.A | E169: 103 | G169: Jilemnice 09.05.22 | H169: 571.16 | L169: 105
B170: KRISTAN | C170: Jáchym | D170: 9.A | H170: 0
B171: NGUYEN | C171: David | D171: 9.A | E171: 125 | G171: Jilemnice 27.09.21 | H171: 697
B172: NOVOTNÝ | C172: Jan | D172: 9.A | E172: 128 | G172: Jilemnice 09.05.22 | H172: 714.16 | L172: 100
B173: RÁB | C173: Adam | D173: 9.A | E173: 103 | G173: Jilemnice 09.05.22 | H173: 571.16 | L173: 90
B174: REPASKÝ | C174: Jakub | D174: 9.A | E174: 138 | G174: Jilemnice 09.05.22 | H174: 771.36 | L174: 110
B175: SKÁLA | C175: Jan | D175: 9.A | E175: 125 | G175: Jilemnice 27.09.21 | H175: 697 | L175: 90
B176: ŠPULÁK | C176: Jakub | D176: 9.A | E176: 120 | G176: Jilemnice 27.09.21 | H176: 668.4 | L176: 90
B177: VALENTA | C177: Tomáš | D177: 9.A | E177: 155 | G177: Turnov 08.04.22 | H177: 868.6 | L177: 130
B178: VANCL | C178: Jiří | D178: 9.A | E178: 113 | G178: Jilemnice 09.05.22 | H178: 628.36 | L178: 90
B179: VAŠÍČEK | C179: David | D179: 9.A | H179: 0 | L179: 110
B180: ZOUHAR | C180: Ondřej | D180: 9.A | E180: 138 | G180: Jilemnice 09.05.22 | H180: 771.36 | L180: 110
B181: ZUZÁNEK | C181: Filip | D181: 9.A | E181: 118 | G181: Jilemnice 09.05.22 | H181: 656.96 | L181: 105

Sheet MÍČEK
C1: VÝKONY 2021 - 2022 | G1: MÍČEK | H1: CHLAPCI 6. - 9. ROČ.
B2: stav k | C2: =TODAY() -> 2022-06-27 | J2: 20 - 21 | K2: 19 - 20 | L2: 18 - 19
A4: 1. | B4: =B101 -> EXNER | C4: =C101 -> Tomáš | D4: 6.A | E4: 16 | G4: Jilemnice 17.05.22 | H4: 200 | J4: 0 | K4: 0 | L4: 0
A5: 2. | B5: =B102 -> JANATA | C5: Denis | D5: 6.A | E5: 24 | G5: Jilemnice 17.05.22 | H5: 300 | J5: 0 | K5: 0 | L5: 0
A6: 3. | B6: =B103 -> JINDŘIŠEK | C6: Alex Jiří | D6: 6.A | E6: 25 | G6: Jilemnice 17.05.22 | H6: 312.5 | J6: 0 | K6: 0 | L6: 0
A7: 4. | B7: =B104 -> MARŠÁLEK | C7: Ondřej | D7: 6.A | E7: 22.5 | G7: Jilemnice 17.05.22 | H7: 281.25 | J7: 0 | K7: 0 | L7: 0
A8: 5. | B8: =B105 -> MLATEČEK | C8: Patrik | D8: 6.A | E8: 26.5 | G8: Jilemnice 09.05.22 | H8: 331.25 | J8: 0 | K8: 0 | L8: 0
A9: 6. | B9: =B106 -> SCHOLZ | C9: Matyáš | D9: 6.A | E9: 26 | G9: Jilemnice 17.05.22 | H9: 325 | J9: 0 | K9: 0 | L9: 0
A10: 7. | B10: =B107 -> TOMÁŠ | C10: Jakub | D10: 6.A | E10: 24.5 | G10: Jilemnice 09.05.22 | H10: 306.25 | J10: 0 | K10: 0 | L10: 0
A11: 8. | B11: =B108 -> VÁCLAVÍK | C11: Jan | D11: 6.A | E11: 25 | G11: Jilemnice 09.05.22 | H11: 312.5 | J11: 0 | K11: 0 | L11: 0
A12: 9. | B12: =B109 -> VEČEŘA | C12: David | D12: 6.A | E12: 23 | G12: Jilemnice 09.05.22 | H12: 287.5 | J12: 0 | K12: 0 | L12: 0
A13: 10. | B13: =B110 -> VYBÍRAL | C13: Radim | D13: 6.A | E13: 30 | G13: Jilemnice 09.05.22 | H13: 375 | J13: 0 | K13: 0 | L13: 0
A14: 11. | B14: =B111 -> BERISHA | C14: David | D14: 6.B | E14: 17.5 | G14: Jilemnice 17.05.22 | H14: 218.75 | J14: 0 | K14: 0 | L14: 0
A15: 12. | B15: =B112 -> EFENBERK | C15: Šimon | D15: 6.B | E15: 21 | G15: Jilemnice 09.05.22 | H15: 262.5 | J15: 0 | K15: 0 | L15: 0
A16: 13. | B16: =B113 -> FEJKL | C16: Antonín | D16: 6.B | E16: 40 | G16: Jilemnice 09.05.22 | H16: 500 | J16: 0 | K16: 0 | L16: 0
A17: 14. | B17: =B114 -> GOTTSTEIN | C17: Matouš | D17: 6.B | E17: 36 | G17: Jilemnice 17.05.22 | H17: 450 | J17: 0 | K17: 0 | L17: 0
A18: 15. | B18: =B115 -> HÁK | C18: Šimon | D18: 6.B | E18: 0 | G18: 0 | H18: 0 | J18: 0 | K18: 0 | L18: 0
A19: 16. | B19: =B116 -> POVAŽANEC | C19: Lukáš | D19: 6.B | E19: 33 | G19: Jilemnice 09.05.22 | H19: 412.5 | J19: 0 | K19: 0 | L19: 0
A20: 17. | B20: =B117 -> VANCL | C20: Jakub | D20: 6.B | E20: 20.5 | G20: Jilemnice 17.05.22 | H20: 256.25 | J20: 0 | K20: 0 | L20: 0
A21: 18. | B21: =B118 -> VANCL | C21: Miroslav | D21: 6.B | E21: 21 | G21: Jilemnice 24.09.21 | H21: 262.5 | J21: 0 | K21: 0 | L21: 0
A22: 19. | B22: =B119 -> VOTOČEK | C22: Michal | D22: 6.B | E22: 30 | G22: Jilemnice 17.05.22 | H22: 375 | J22: 0 | K22: 0 | L22: 0
A23: 20. | B23: =B120 -> BOUKAL | C23: Jakub | D23: 7.A | E23: 0 | G23: 0 | H23: 0 | J23: 0 | K23: 0 | L23: 0
A24: 21. | B24: =B121 -> DEMČUK | C24: Ilja | D24: 7.A | E24: 31 | G24: Jilemnice 09.05.22 | H24: 387.5 | J24: 20 | K24: 0 | L24: 0
A25: 22. | B25: =B122 -> FAISTAUER | C25: Kryštof | D25: 7.A | E25: 45 | G25: Jilemnice 09.05.22 | H25: 562.5 | J25: 34.5 | K25: 0 | L25: 0
A26: 23. | B26: =B123 -> FRK | C26: Matyáš | D26: 7.A | E26: 26 | G26: Jilemnice 20.09.21 | H26: 325 | J26: 0 | K26: 0 | L26: 0
A27: 24. | B27: =B124 -> HUBÁLOVSKÝ | C27: Marek | D27: 7.A | E27: 34 | G27: Jilemnice 09.05.22 | H27: 425 | J27: 26 | K27: 0 | L27: 0
A28: 25. | B28: =B125 -> MAŘAS | C28: Dominik | D28: 7.A | E28: 28 | G28: Jilemnice 20.09.21 | H28: 350 | J28: 0 | K28: 0 | L28: 0
A29: 26. | B29: =B126 -> MAŤÁTKO | C29: Jakub | D29: 7.A | E29: 25 | G29: Jilemnice 25.03.22 | H29: 312.5 | J29: 0 | K29: 0 | L29: 0
A30: 27. | B30: =B127 -> MERY | C30: Luboš | D30: 7.A | E30: 21 | G30: Jilemnice 09.05.22 | H30: 262.5 | J30: 0 | K30: 0 | L30: 0
A31: 28. | B31: =B128 -> NOVOTNÝ | C31: Matěj | D31: 7.A | E31: 25.5 | G31: Jilemnice 20.09.21 | H31: 318.75 | J31: 29 | K31: 0 | L31: 0
A32: 29. | B32: =B129 -> ŘEHOŘEK | C32: Vojtěch | D32: 7.A | E32: 44.8 | G32: Turnov 31.05.22 | H32: 560 | J32: 40 | K32: 0 | L32: 0
A33: 30. | B33: =B130 -> ŠÍR | C33: Matyáš | D33: 7.A | E33: 25 | G33: Jilemnice 09.05.22 | H33: 312.5 | J33: 20 | K33: 0 | L33: 0
A34: 31. | B34: =B131 -> TORÁČ | C34: Tomáš | D34: 7.A | E34: 17.5 | G34: Jilemnice 25.03.22 | H34: 218.75 | J34: 0 | K34: 0 | L34: 0
A35: 32. | B35: =B132 -> ULLMAN | C35: Šimon | D35: 7.A | E35: 0 | G35: 0 | H35: 0 | J35: 24.5 | K35: 0 | L35: 0
A36: 33. | B36: =B133 -> VÁCLAVÍK | C36: Ondřej | D36: 7.A | E36: 42 | G36: Jilemnice 09.05.22 | H36: 525 | J36: 36 | K36: 0 | L36: 0
A37: 34. | B37: =B134 -> AUERSWALD | C37: Daniel | D37: 7.B | E37: 29 | G37: Jilemnice 09.05.22 | H37: 362.5 | J37: 25 | K37: 0 | L37: 0
A38: 35. | B38: =B135 -> BODLÁK | C38: Vladimír | D38: 7.B | E38: 0 | G38: 0 | H38: 0 | J38: 0 | K38: 0 | L38: 0
A39: 36. | B39: =B136 -> BUDÍN | C39: Martin | D39: 7.B | E39: 37 | G39: Jilemnice 09.05.22 | H39: 462.5 | J39: 31 | K39: 0 | L39: 0
A40: 37. | B40: =B137 -> DVOŘÁK | C40: Dominik | D40: 7.B | E40: 31 | G40: Jilemnice 09.05.22 | H40: 387.5 | J40: 0 | K40: 0 | L40: 0
A41: 38. | B41: =B138 -> FIŠERA | C41: Vojtěch | D41: 7.B | E41: 19 | G41: Jilemnice 20.09.21 | H41: 237.5 | J41: 19 | K41: 0 | L41: 0
A42: 39. | B42: =B139 -> JINDŘIŠEK | C42: Vít | D42: 7.B | E42: 52.9 | G42: Turnov 08.04.22 | H42: 661.25 | J42: 42 | K42: 0 | L42: 0
A43: 40. | B43: =B140 -> JIROUŠ | C43: Matouš | D43: 7.B | E43: 29.5 | G43: Jilemnice 09.05.22 | H43: 368.75 | J43: 28 | K43: 0 | L43: 0
A44: 41. | B44: =B141 -> KERLE | C44: Marek | D44: 7.B | E44: 46 | G44: Jilemnice 09.05.22 | H44: 575 | J44: 0 | K44: 0 | L44: 0
A45: 42. | B45: =B142 -> LUKEŠ | C45: Jakub | D45: 7.B | E45: 24 | G45: Jilemnice 09.05.22 | H45: 300 | J45: 21 | K45: 0 | L45: 0
A46: 43. | B46: =B143 -> OTT | C46: Matyáš | D46: 7.B | E46: 35 | G46: Jilemnice 20.09.21 | H46: 437.5 | J46: 29 | K46: 0 | L46: 0
A47: 44. | B47: =B144 -> POKORNÝ | C47: Matyáš | D47: 7.B | E47: 45 | G47: Jilemnice 09.05.22 | H47: 562.5 | J47: 43 | K47: 0 | L47: 0
A48: 45. | B48: =B145 -> POLÁČEK | C48: Matyáš | D48: 7.B | E48: 37 | G48: Jilemnice 09.05.22 | H48: 462.5 | J48: 34 | K48: 0 | L48: 0
A49: 46. | B49: =B146 -> SOUKUP | C49: Patrik | D49: 7.B | E49: 0 | G49: 0 | H49: 0 | J49: 30 | K49: 0 | L49: 0
A50: 47. | B50: =B147 -> VALENTA | C50: Jakub | D50: 7.B | E50: 28 | G50: Jilemnice 09.05.22 | H50: 350 | J50: 26 | K50: 0 | L50: 0
A51: 48. | B51: =B148 -> VRBATA | C51: Dominik | D51: 7.B | E51: 37 | G51: Jilemnice 20.09.21 | H51: 462.5 | J51: 34.5 | K51: 0 | L51: 0
A52: 49. | B52: =B149 -> FEJKL | C52: Jan | D52: 8.A | E52: 61 | G52: Jilemnice 09.05.22 | H52: 762.5 | J52: 49 | K52: 39.5 | L52: 0
A53: 50. | B53: =B150 -> KOTYK | C53: Tadeáš | D53: 8.A | E53: 26 | G53: Jilemnice 09.05.22 | H53: 325 | J53: 20 | K53: 16.5 | L53: 0
A54: 51. | B54: =B151 -> KRAUSE | C54: Tadeáš | D54: 8.A | E54: 37.5 | G54: Jilemnice 20.09.21 | H54: 468.75 | J54: 29.5 | K54: 25 | L54: 0
A55: 52. | B55: =B152 -> LEŠÁK | C55: Martin | D55: 8.A | E55: 30 | G55: Jilemnice 20.09.21 | H55: 375 | J55: 25.5 | K55: 22 | L55: 0
A56: 53. | B56: =B153 -> NECHANICKÝ | C56: David | D56: 8.A | E56: 43 | G56: Jilemnice 09.05.22 | H56: 537.5 | J56: 31 | K56: 29 | L56: 0
A57: 54. | B57: =B154 -> ŘEHOŘEK | C57: Jan | D57: 8.A | E57: 39 | G57: Jilemnice 20.09.21 | H57: 487.5 | J57: 42 | K57: 41 | L57: 0
A58: 55. | B58: =B155 -> SOUKUP | C58: Ondřej | D58: 8.A | E58: 0 | G58: 0 | H58: 0 | J58: 0 | K58: 0 | L58: 0
A59: 56. | B59: =B156 -> SPANILÝ | C59: David | D59: 8.A | E59: 59 | G59: Jilemnice 09.05.22 | H59: 737.5 | J59: 47 | K59: 44 | L59: 0
A60: 57. | B60: =B157 -> ČADAN | C60: Benjamín | D60: 8.B | E60: 0 | G60: 0 | H60: 0 | J60: 26 | K60: 0 | L60: 0
A61: 58. | B61: =B158 -> ČERNÝ | C61: Michal | D61: 8.B | E61: 44.5 | G61: Jilemnice 20.09.21 | H61: 556.25 | J61: 39.5 | K61: 31 | L61: 0
A62: 59. | B62: =B159 -> DOLEJŠÍ | C62: David | D62: 8.B | E62: 21.5 | G62: Jilemnice 20.09.21 | H62: 268.75 | J62: 21 | K62: 20 | L62: 0
A63: 60. | B63: =B160 -> NOVÁK | C63: Matěj | D63: 8.B | E63: 33 | G63: Jilemnice 20.09.21 | H63: 412.5 | J63: 30.5 | K63: 28 | L63: 0
A64: 61. | B64: =B161 -> POVAŽANEC | C64: Martin | D64: 8.B | E64: 50 | G64: Jilemnice 09.05.22 | H64: 625 | J64: 40.5 | K64: 34 | L64: 0
A65: 62. | B65: =B162 -> RICHTER | C65: Jakub | D65: 8.B | E65: 29 | G65: Jilemnice 09.05.22 | H65: 362.5 | J65: 23 | K65: 19.5 | L65: 0
A66: 63. | B66: =B163 -> ROZUMEK | C66: Adam | D66: 8.B | E66: 45 | G66: Jilemnice 09.05.22 | H66: 562.5 | J66: 38 | K66: 30.5 | L66: 0
A67: 64. | B67: =B164 -> VALENTA | C67: František | D67: 8.B | E67: 28 | G67: Jilemnice 09.05.22 | H67: 350 | J67: 20 | K67: 20 | L67: 0
A68: 65. | B68: =B165 -> ZAPLATÍLEK | C68: Josef | D68: 8.B | E68: 42 | G68: Jilemnice 09.05.22 | H68: 525 | J68: 36 | K68: 34.5 | L68: 0
A69: 66. | B69: =B166 -> ERBEN | C69: Viktor | D69: 9.A | E69: 25 | G69: =G166 -> Jilemnice 30.05.22 | H69: 312.5 | J69: 21 | K69: 0 | L69: 14
A70: 67. | B70: =B167 -> FRANC | C70: Daniel | D70: 9.A | E70: 33 | G70: Jilemnice 30.05.22 | H70: 412.5 | J70: 26 | K70: 0 | L70: 26
A71: 68. | B71: JINDŘIŠEK | C71: Matyáš | D71: 9.A | E71: 52 | G71: Jilemnice 20.09.21 | H71: 650 | J71: 0 | K71: 36.5 | L71: 38
A72: 69. | B72: =B169 -> KOLAČNÝ | C72: Štěpán | D72: 9.A | E72: 33 | G72: Jilemnice 30.05.22 | H72: 412.5 | J72: 25 | K72: 0 | L72: 27
A73: 70. | B73: =B170 -> KRISTAN | C73: Jáchym | D73: 9.A | E73: 20 | G73: Jilemnice 30.05.22 | H73: 250 | J73: 15 | K73: 0 | L73: 15.5
A74: 71. | B74: =B171 -> NGUYEN | C74: David | D74: 9.A | E74: 47.5 | G74: Jilemnice 30.05.22 | H74: 593.75 | J74: 36.5 | K74: 0 | L74: 0
A75: 72. | B75: =B172 -> NOVOTNÝ | C75: Jan | D75: 9.A | E75: =E172 -> 31 | G75: Jilemnice 30.05.22 | H75: 387.5 | J75: 27 | K75: 23 | L75: 20
A76: 73. | B76: RÁB | C76: Adam | D76: 9.A | E76: 34.5 | G76: Jilemnice 30.05.22 | H76: 431.25 | J76: 25.5 | K76: 0 | L76: 26
A77: 74. | B77: =B174 -> REPASKÝ | C77: Jakub | D77: 9.A | E77: 59 | G77: Jilemnice 20.09.21 | H77: 737.5 | J77: 50.5 | K77: 0 | L77: 43
A78: 75. | B78: =B175 -> SKÁLA | C78: Jan | D78: 9.A | E78: 39 | G78: Jilemnice 20.09.21 | H78: 487.5 | J78: 30 | K78: 0 | L78: 24
A79: 76. | B79: =B176 -> ŠPULÁK | C79: Jakub | D79: 9.A | E79: 49.5 | G79: Jilemnice 20.09.21 | H79: 618.75 | J79: 45 | K79: 0 | L79: 32.5
A80: 77. | B80: =B177 -> VALENTA | C80: Tomáš | D80: 9.A | E80: 64 | G80: Jilemnice 30.05.22 | H80: 800 | J80: 53 | K80: 41 | L80: 50
A81: 78. | B81: =B178 -> VANCL | C81: Jiří | D81: 9.A | E81: 29 | G81: Jilemnice 20.09.21 | H81: 362.5 | J81: 31 | K81: 0 | L81: 27
A82: 79. | B82: =B179 -> VAŠÍČEK | C82: David | D82: 9.A | E82: 36 | G82: Jilemnice 30.05.22 | H82: 450 | J82: 32.5 | K82: 0 | L82: 25
A83: 80. | B83: =B180 -> ZOUHAR | C83: Ondřej | D83: 9.A | E83: 40 | G83: Jilemnice 20.09.21 | H83: 500 | J83: 35 | K83: 0 | L83: 28
A84: 81. | B84: =B181 -> ZUZÁNEK | C84: Filip | D84: 9.A | E84: 26 | G84: Jilemnice 30.05.22 | H84: 325 | J84: 24.5 | K84: 0 | L84: 25
B101: EXNER | C101: Tomáš | D101: 6.A | E101: 16 | G101: Jilemnice 17.05.22 | H101: =IF(E101=0,0,E101*10*1.25) -> 200
B102: JANATA | C102: Denis | D102: 6.A | E102: 24 | G102: Jilemnice 17.05.22 | H102: 300
B103: JINDŘIŠEK | C103: Alex Jiří | D103: 6.A | E103: 25 | G103: Jilemnice 17.05.22 | H103: 312.5
B104: MARŠÁLEK | C104: Ondřej | D104: 6.A | E104: 22.5 | G104: Jilemnice 17.05.22 | H104: 281.25
B105: MLATEČEK | C105: Patrik | D105: 6.A | E105: 26.5 | G105: Jilemnice 09.05.22 | H105: 331.25
B106: SCHOLZ | C106: Matyáš | D106: 6.A | E106: 26 | G106: Jilemnice 17.05.22 | H106: 325
B107: TOMÁŠ | C107: Jakub | D107: 6.A | E107: 24.5 | G107: Jilemnice 09.05.22 | H107: 306.25
B108: VÁCLAVÍK | C108: Jan | D108: 6.A | E108: 25 | G108: Jilemnice 09.05.22 | H108: 312.5
B109: VEČEŘA | C109: David | D109: 6.A | E109: 23 | G109: Jilemnice 09.05.22 | H109: 287.5
B110: VYBÍRAL | C110: Radim | D110: 6.A | E110: 30 | G110: Jilemnice 09.05.22 | H110: 375
B111: BERISHA | C111: David | D111: 6.B | E111: 17.5 | G111: Jilemnice 17.05.22 | H111: 218.75
B112: EFENBERK | C112: Šimon | D112: 6.B | E112: 21 | G112: Jilemnice 09.05.22 | H112: 262.5
B113: FEJKL | C113: Antonín | D113: 6.B | E113: 40 | G113: Jilemnice 09.05.22 | H113: 500
B114: GOTTSTEIN | C114: Matouš | D114: 6.B | E114: 36 | G114: Jilemnice 17.05.22 | H114: 450
B115: HÁK | C115: Šimon | D115: 6.B | H115: 0
B116: POVAŽANEC | C116: Lukáš | D116: 6.B | E116: 33 | G116: Jilemnice 09.05.22 | H116: 412.5
B117: VANCL | C117: Jakub | D117: 6.B | E117: 20.5 | G117: Jilemnice 17.05.22 | H117: 256.25
B118: VANCL | C118: Miroslav | D118: 6.B | E118: 21 | G118: Jilemnice 24.09.21 | H118: 262.5
B119: VOTOČEK | C119: Michal | D119: 6.B | E119: 30 | G119: Jilemnice 17.05.22 | H119: 375
B120: BOUKAL | C120: Jakub | D120: 7.A | H120: 0
B121: DEMČUK | C121: Ilja | D121: 7.A | E121: 31 | G121: Jilemnice 09.05.22 | H121: 387.5 | J121: 20
B122: FAISTAUER | C122: Kryštof | D122: 7.A | E122: 45 | G122: Jilemnice 09.05.22 | H122: 562.5 | J122: 34.5
B123: FRK | C123: Matyáš | D123: 7.A | E123: 26 | G123: Jilemnice 20.09.21 | H123: 325
B124: HUBÁLOVSKÝ | C124: Marek | D124: 7.A | E124: 34 | G124: Jilemnice 09.05.22 | H124: 425 | J124: 26
B125: MAŘAS | C125: Dominik | D125: 7.A | E125: 28 | G125: Jilemnice 20.09.21 | H125: 350
B126: MAŤÁTKO | C126: Jakub | D126: 7.A | E126: 25 | G126: Jilemnice 25.03.22 | H126: 312.5
B127: MERY | C127: Luboš | D127: 7.A | E127: 21 | G127: Jilemnice 09.05.22 | H127: 262.5
B128: NOVOTNÝ | C128: Matěj | D128: 7.A | E128: 25.5 | G128: Jilemnice 20.09.21 | H128: 318.75 | J128: 29
B129: ŘEHOŘEK | C129: Vojtěch | D129: 7.A | E129: 44.8 | G129: Turnov 31.05.22 | H129: 560 | J129: 40
B130: ŠÍR | C130: Matyáš | D130: 7.A | E130: 25 | G130: Jilemnice 09.05.22 | H130: 312.5 | J130: 20
B131: TORÁČ | C131: Tomáš | D131: 7.A | E131: 17.5 | G131: Jilemnice 25.03.22 | H131: 218.75
B132: ULLMAN | C132: Šimon | D132: 7.A | H132: 0 | J132: 24.5
B133: VÁCLAVÍK | C133: Ondřej | D133: 7.A | E133: 42 | G133: Jilemnice 09.05.22 | H133: =IF(E133=0,0,E133*10*1.25) -> 525 | J133: 36
B134: AUERSWALD | C134: Daniel | D134: 7.B | E134: 29 | G134: Jilemnice 09.05.22 | H134: 362.5 | J134: 25
B135: BODLÁK | C135: Vladimír | D135: 7.B | H135: 0
B136: BUDÍN | C136: Martin | D136: 7.B | E136: 37 | G136: Jilemnice 09.05.22 | H136: 462.5 | J136: 31
B137: DVOŘÁK | C137: Dominik | D137: 7.B | E137: 31 | G137: Jilemnice 09.05.22 | H137: 387.5
B138: FIŠERA | C138: Vojtěch | D138: 7.B | E138: 19 | G138: Jilemnice 20.09.21 | H138: 237.5 | J138: 19
B139: JINDŘIŠEK | C139: Vít | D139: 7.B | E139: 52.9 | G139: Turnov 08.04.22 | H139: 661.25 | J139: 42
B140: JIROUŠ | C140: Matouš | D140: 7.B | E140: 29.5 | G140: Jilemnice 09.05.22 | H140: 368.75 | J140: 28
B141: KERLE | C141: Marek | D141: 7.B | E141: 46 | G141: Jilemnice 09.05.22 | H141: 575
B142: LUKEŠ | C142: Jakub | D142: 7.B | E142: 24 | G142: Jilemnice 09.05.22 | H142: 300 | J142: 21
B143: OTT | C143: Matyáš | D143: 7.B | E143: 35 | G143: Jilemnice 20.09.21 | H143: 437.5 | J143: 29
B144: POKORNÝ | C144: Matyáš | D144: 7.B | E144: 45 | G144: Jilemnice 09.05.22 | H144: 562.5 | J144: 43
B145: POLÁČEK | C145: Matyáš | D145: 7.B | E145: 37 | G145: Jilemnice 09.05.22 | H145: 462.5 | J145: 34
B146: SOUKUP | C146: Patrik | D146: 7.B | H146: 0 | J146: 30
B147: VALENTA | C147: Jakub | D147: 7.B | E147: 28 | G147: Jilemnice 09.05.22 | H147: 350 | J147: 26
B148: VRBATA | C148: Dominik | D148: 7.B | E148: 37 | G148: Jilemnice 20.09.21 | H148: 462.5 | J148: 34.5
B149: FEJKL | C149: Jan | D149: 8.A | E149: 61 | G149: Jilemnice 09.05.22 | H149: 762.5 | J149: 49 | K149: 39.5
B150: KOTYK | C150: Tadeáš | D150: 8.A | E150: 26 | G150: Jilemnice 09.05.22 | H150: 325 | J150: 20 | K150: 16.5
B151: KRAUSE | C151: Tadeáš | D151: 8.A | E151: 37.5 | G151: Jilemnice 20.09.21 | H151: 468.75 | J151: 29.5 | K151: 25
B152: LEŠÁK | C152: Martin | D152: 8.A | E152: 30 | G152: Jilemnice 20.09.21 | H152: 375 | J152: 25.5 | K152: 22
B153: NECHANICKÝ | C153: David | D153: 8.A | E153: 43 | G153: Jilemnice 09.05.22 | H153: 537.5 | J153: 31 | K153: 29
B154: ŘEHOŘEK | C154: Jan | D154: 8.A | E154: 39 | G154: Jilemnice 20.09.21 | H154: 487.5 | J154: 42 | K154: 41
B155: SOUKUP | C155: Ondřej | D155: 8.A | H155: 0
B156: SPANILÝ | C156: David | D156: 8.A | E156: 59 | G156: Jilemnice 09.05.22 | H156: 737.5 | J156: 47 | K156: 44
B157: ČADAN | C157: Benjamín | D157: 8.B | H157: 0 | J157: 26
B158: ČERNÝ | C158: Michal | D158: 8.B | E158: 44.5 | G158: Jilemnice 20.09.21 | H158: 556.25 | J158: 39.5 | K158: 31
B159: DOLEJŠÍ | C159: David | D159: 8.B | E159: 21.5 | G159: Jilemnice 20.09.21 | H159: 268.75 | J159: 21 | K159: 20
B160: NOVÁK | C160: Matěj | D160: 8.B | E160: 33 | G160: Jilemnice 20.09.21 | H160: 412.5 | J160: 30.5 | K160: 28
B161: POVAŽANEC | C161: Martin | D161: 8.B | E161: 50 | G161: Jilemnice 09.05.22 | H161: 625 | J161: 40.5 | K161: 34
B162: RICHTER | C162: Jakub | D162: 8.B | E162: 29 | G162: Jilemnice 09.05.22 | H162: 362.5 | J162: 23 | K162: 19.5
B163: ROZUMEK | C163: Adam | D163: 8.B | E163: 45 | G163: Jilemnice 09.05.22 | H163: 562.5 | J163: 38 | K163: 30.5
B164: VALENTA | C164: František | D164: 8.B | E164: 28 | G164: Jilemnice 09.05.22 | H164: 350 | J164: 20 | K164: 20
B165: ZAPLATÍLEK | C165: Josef | D165: 8.B | E165: 42 | G165: Jilemnice 09.05.22 | H165: =IF(E165=0,0,E165*10*1.25) -> 525 | J165: 36 | K165: 34.5
B166: ERBEN | C166: Viktor | D166: 9.A | E166: 25 | G166: Jilemnice 30.05.22 | H166: 312.5 | J166: 21 | L166: 14
B167: FRANC | C167: Daniel | D167: 9.A | E167: 33 | G167: Jilemnice 30.05.22 | H167: 412.5 | J167: 26 | L167: 26
B168: JINDŘIŠEK | C168: Matyáš | D168: 9.A | E168: 52 | G168: Jilemnice 20.09.21 | H168: 650 | K168: 36.5 | L168: 38
B169: KOLAČNÝ | C169: Štěpán | D169: 9.A | E169: 33 | G169: Jilemnice 30.05.22 | H169: 412.5 | J169: 25 | L169: 27
B170: KRISTAN | C170: Jáchym | D170: 9.A | E170: 20 | G170: Jilemnice 30.05.22 | H170: 250 | J170: 15 | L170: 15.5
B171: NGUYEN | C171: David | D171: 9.A | E171: 47.5 | G171: Jilemnice 30.05.22 | H171: 593.75 | J171: 36.5
B172: NOVOTNÝ | C172: Jan | D172: 9.A | E172: 31 | G172: Jilemnice 30.05.22 | H172: 387.5 | J172: 27 | K172: 23 | L172: 20
B173: RÁB | C173: Adam | D173: 9.A | E173: 34.5 | G173: Jilemnice 30.05.22 | H173: 431.25 | J173: 25.5 | L173: 26
B174: REPASKÝ | C174: Jakub | D174: 9.A | E174: 59 | G174: Jilemnice 20.09.21 | H174: 737.5 | J174: 50.5 | L174: 43
B175: SKÁLA | C175: Jan | D175: 9.A | E175: 39 | G175: Jilemnice 20.09.21 | H175: 487.5 | J175: 30 | L175: 24
B176: ŠPULÁK | C176: Jakub | D176: 9.A | E176: 49.5 | G176: Jilemnice 20.09.21 | H176: 618.75 | J176: 45 | L176: 32.5
B177: VALENTA | C177: Tomáš | D177: 9.A | E177: 64 | G177: Jilemnice 30.05.22 | H177: 800 | J177: 53 | K177: 41 | L177: 50
B178: VANCL | C178: Jiří | D178: 9.A | E178: 29 | G178: Jilemnice 20.09.21 | H178: 362.5 | J178: 31 | L178: 27
B179: VAŠÍČEK | C179: David | D179: 9.A | E179: 36 | G179: Jilemnice 30.05.22 | H179: 450 | J179: 32.5 | L179: 25
B180: ZOUHAR | C180: Ondřej | D180: 9.A | E180: 40 | G180: Jilemnice 20.09.21 | H180: 500 | J180: 35 | L180: 28
B181: ZUZÁNEK | C181: Filip | D181: 9.A | E181: 26 | G181: Jilemnice 30.05.22 | H181: 325 | J181: 24.5 | L181: 25

Sheet KOULE
C1: VÝKONY 2021 - 2022 | G1: KOULE | H1: CHLAPCI 6. - 9. ROČ.
B2: stav k | C2: =TODAY() -> 2022-06-27 | J2: 20 - 21 | K2: 19 - 20 | L2: 18 - 19
A4: 1. | B4: =B101 -> EXNER | C4: =C101 -> Tomáš | D4: 6.A | E4: 6.58 | G4: Jilemnice 22.10.21 | H4: 532.2222222 | J4: 0 | K4: 0 | L4: 0
A5: 2. | B5: =B102 -> JANATA | C5: Denis | D5: 6.A | E5: 4.45 | G5: Jilemnice 22.10.21 | H5: 413.8888889 | J5: 0 | K5: 0 | L5: 0
A6: 3. | B6: =B103 -> JINDŘIŠEK | C6: Alex Jiří | D6: 6.A | E6: 7.65 | G6: Jilemnice 17.05.22 | H6: 591.6666667 | J6: 0 | K6: 0 | L6: 0
A7: 4. | B7: =B104 -> MARŠÁLEK | C7: Ondřej | D7: 6.A | E7: 6.27 | G7: Jilemnice 17.05.22 | H7: 515 | J7: 0 | K7: 0 | L7: 0
A8: 5. | B8: =B105 -> MLATEČEK | C8: Patrik | D8: 6.A | E8: 5.48 | G8: Jilemnice 17.05.22 | H8: 471.1111111 | J8: 0 | K8: 0 | L8: 0
A9: 6. | B9: =B106 -> SCHOLZ | C9: Matyáš | D9: 6.A | E9: 6.98 | G9: Jilemnice 17.05.22 | H9: 554.4444444 | J9: 0 | K9: 0 | L9: 0
A10: 7. | B10: =B107 -> TOMÁŠ | C10: Jakub | D10: 6.A | E10: 5.85 | G10: Jilemnice 17.05.22 | H10: 491.6666667 | J10: 0 | K10: 0 | L10: 0
A11: 8. | B11: =B108 -> VÁCLAVÍK | C11: Jan | D11: 6.A | E11: 5.22 | G11: Jilemnice 17.05.22 | H11: 456.6666667 | J11: 0 | K11: 0 | L11: 0
A12: 9. | B12: =B109 -> VEČEŘA | C12: David | D12: 6.A | E12: 5.4 | G12: Jilemnice 17.05.22 | H12: 466.6666667 | J12: 0 | K12: 0 | L12: 0
A13: 10. | B13: =B110 -> VYBÍRAL | C13: Radim | D13: 6.A | E13: 6.29 | G13: Jilemnice 22.10.21 | H13: 516.1111111 | J13: 0 | K13: 0 | L13: 0
A14: 11. | B14: =B111 -> BERISHA | C14: David | D14: 6.B | E14: 2.15 | G14: Jilemnice 22.10.21 | H14: 286.1111111 | J14: 0 | K14: 0 | L14: 0
A15: 12. | B15: =B112 -> EFENBERK | C15: Šimon | D15: 6.B | E15: 6.61 | G15: Jilemnice 17.05.22 | H15: 533.8888889 | J15: 0 | K15: 0 | L15: 0
A16: 13. | B16: =B113 -> FEJKL | C16: Antonín | D16: 6.B | E16: 6.37 | G16: Jilemnice 17.05.22 | H16: 520.5555556 | J16: 0 | K16: 0 | L16: 0
A17: 14. | B17: =B114 -> GOTTSTEIN | C17: Matouš | D17: 6.B | E17: 6.45 | G17: Jilemnice 17.05.22 | H17: 525 | J17: 0 | K17: 0 | L17: 0
A18: 15. | B18: =B115 -> HÁK | C18: Šimon | D18: 6.B | E18: 0 | G18: 0 | H18: 0 | J18: 0 | K18: 0 | L18: 0
A19: 16. | B19: =B116 -> POVAŽANEC | C19: Lukáš | D19: 6.B | E19: 7.1 | G19: Jilemnice 17.05.22 | H19: 561.1111111 | J19: 0 | K19: 0 | L19: 0
A20: 17. | B20: =B117 -> VANCL | C20: Jakub | D20: 6.B | E20: 5.46 | G20: Jilemnice 17.05.22 | H20: 470 | J20: 0 | K20: 0 | L20: 0
A21: 18. | B21: =B118 -> VANCL | C21: Miroslav | D21: 6.B | E21: 4.98 | G21: Jilemnice 22.10.21 | H21: 443.3333333 | J21: 0 | K21: 0 | L21: 0
A22: 19. | B22: =B119 -> VOTOČEK | C22: Michal | D22: 6.B | E22: 5.7 | G22: Jilemnice 17.05.22 | H22: 483.3333333 | J22: 0 | K22: 0 | L22: 0
A23: 20. | B23: =B120 -> BOUKAL | C23: Jakub | D23: 7.A | E23: 6.72 | G23: Jilemnice 27.09.21 | H23: 540 | J23: 0 | K23: 0 | L23: 0
A24: 21. | B24: =B121 -> DEMČUK | C24: Ilja | D24: 7.A | E24: 6.49 | G24: Jilemnice 22.10.21 | H24: 527.2222222 | J24: 0 | K24: 0 | L24: 0
A25: 22. | B25: =B122 -> FAISTAUER | C25: Kryštof | D25: 7.A | E25: 6.11 | G25: Jilemnice 22.10.21 | H25: 506.1111111 | J25: 0 | K25: 0 | L25: 0
A26: 23. | B26: =B123 -> FRK | C26: Matyáš | D26: 7.A | E26: 5.63 | G26: Jilemnice 22.10.21 | H26: 479.4444444 | J26: 0 | K26: 0 | L26: 0
A27: 24. | B27: =B124 -> HUBÁLOVSKÝ | C27: Marek | D27: 7.A | E27: 5.12 | G27: Jilemnice 22.10.21 | H27: 451.1111111 | J27: 0 | K27: 0 | L27: 0
A28: 25. | B28: =B125 -> MAŘAS | C28: Dominik | D28: 7.A | E28: 5.2 | G28: Jilemnice 27.09.21 | H28: 455.5555556 | J28: 0 | K28: 0 | L28: 0
A29: 26. | B29: =B126 -> MAŤÁTKO | C29: Jakub | D29: 7.A | E29: 0 | G29: 0 | H29: 0 | J29: 0 | K29: 0 | L29: 0
